Workbook

Sheet Statistik
B2: Statistik | P2: Index
B3: Anzahl Bände | C3: =COUNTA(Titel) -> 3168 | E3: Genres | F3: Bände | H3: Serien | J3: Verlage | K3: Bände | M3: Serien | P3: 0
B4: Davon 18+/Mature | C4: =COUNTIF(Mature,"X") -> 343 | D4: =C4/$C$3 -> 0.108270202 | E4: =INDEX(Genre_Def,P4) -> Action | F4: =COUNTIF(Genre,E4) -> 235 | G4: =F4/$C$3 -> 0.07417929293 | H4: =SUM(IF(Genre=E4,1/COUNTIF(Sort_Titel,Sort_Titel),0)) -> 35 | I4: =H4/$C$5 -> 0.06183745583 | J4: =INDEX(Verlag_Def,P4) -> Altraverse | K4: =COUNTIF(Verlag,J4) -> 598 | L4: =K4/$C$3 -> 0.1887626263 | M4: =SUM(IF(Verlag=J4,1/COUNTIF(Sort_Titel,Sort_Titel),0)) -> 89 | N4: =M4/$C$5 -> 0.1572438163 | P4: =P3+1 -> 1
B5: Anzahl Serien | C5: =SUM(IF(LEN(Sort_Titel)=0,0,1/COUNTIF(Sort_Titel,Sort_Titel))) -> 566 | E5: =INDEX(Genre_Def,P5) -> Artbook | F5: =COUNTIF(Genre,E5) -> 5 | G5: =F5/$C$3 -> 0.001578282828 | H5: =SUM(IF(Genre=E5,1/COUNTIF(Sort_Titel,Sort_Titel),0)) -> 5 | I5: =H5/$C$5 -> 0.008833922261 | J5: =INDEX(Verlag_Def,P5) -> Carlsen Manga | K5: =COUNTIF(Verlag,J5) -> 189 | L5: =K5/$C$3 -> 0.05965909091 | M5: =SUM(IF(Verlag=J5,1/COUNTIF(Sort_Titel,Sort_Titel),0)) -> 24 | N5: =M5/$C$5 -> 0.04240282686 | P5: =P4+1 -> 2
B6: Davon 18+/Mature | C6: =SUM(IF(Mature="",0,1/COUNTIF(Sort_Titel,Sort_Titel))) -> 113 | D6: =C6/$C$5 -> 0.1996466431 | E6: Boys Love | F6: 1 | G6: 0.0003156565657 | H6: =SUM(IF(Genre=E6,1/COUNTIF(Sort_Titel,Sort_Titel),0)) -> 1 | I6: 0.001766784452 | J6: Dani Books | K6: 5 | L6: 0.001578282828 | M6: =SUM(IF(Verlag=J6,1/COUNTIF(Sort_Titel,Sort_Titel),0)) -> 2 | N6: 0.003533568905 | P6: 3
B7: Gelesene Bände | C7: =COUNTIF(Gelesen,"X") -> 2627 | D7: =C7/$C$3 -> 0.829229798 | E7: Comedy | F7: 648 | G7: 0.2045454545 | H7: =SUM(IF(Genre=E7,1/COUNTIF(Sort_Titel,Sort_Titel),0)) -> 71 | I7: 0.1254416961 | J7: Dark Horse | K7: 4 | L7: 0.001262626263 | M7: =SUM(IF(Verlag=J7,1/COUNTIF(Sort_Titel,Sort_Titel),0)) -> 1 | N7: 0.001766784452 | P7: 4
B8: Ungelesene Bände | C8: =$C$3-$C$7 -> 541 | D8: =C8/$C$3 -> 0.170770202 | E8: Drama | F8: 65 | G8: 0.02051767677 | H8: =SUM(IF(Genre=E8,1/COUNTIF(Sort_Titel,Sort_Titel),0)) -> 8 | I8: 0.01413427562 | J8: Denpa | K8: 6 | L8: 0.001893939394 | M8: =SUM(IF(Verlag=J8,1/COUNTIF(Sort_Titel,Sort_Titel),0)) -> 1 | N8: 0.001766784452 | P8: 5
B9: Im Bestand | C9: =$C$3-$C$10 -> 3160 | D9: =C9/$C$3 -> 0.9974747475 | E9: Erotik | F9: 78 | G9: 0.02462121212 | H9: =SUM(IF(Genre=E9,1/COUNTIF(Sort_Titel,Sort_Titel),0)) -> 12 | I9: 0.02120141343 | J9: Dokico | K9: 11 | L9: 0.003472222222 | M9: =SUM(IF(Verlag=J9,1/COUNTIF(Sort_Titel,Sort_Titel),0)) -> 4 | N9: 0.007067137809 | P9: 6
B10: Nicht im Bestand | C10: =COUNTIF(Verliehen,"*") -> 8 | D10: =C10/$C$3 -> 0.002525252525 | E10: Fantasy | F10: 540 | G10: 0.1704545455 | H10: =SUM(IF(Genre=E10,1/COUNTIF(Sort_Titel,Sort_Titel),0)) -> 78 | I10: 0.1378091873 | J10: Egmont Manga | K10: 227 | L10: 0.0716540404 | M10: =SUM(IF(Verlag=J10,1/COUNTIF(Sort_Titel,Sort_Titel),0)) -> 41 | N10: 0.07243816254 | P10: 7
B11: Sprachen | E11: Girls Love | F11: 402 | G11: 0.1268939394 | H11: =SUM(IF(Genre=E11,1/COUNTIF(Sort_Titel,Sort_Titel),0)) -> 104 | I11: 0.183745583 | J11: Fakku Books | K11: 69 | L11: 0.02178030303 | M11: =SUM(IF(Verlag=J11,1/COUNTIF(Sort_Titel,Sort_Titel),0)) -> 60 | N11: 0.1060070671 | P11: 8
B12: Bände | E12: =INDEX(Genre_Def,P12) -> Guidebook | F12: =COUNTIF(Genre,E12) -> 2 | G12: =F12/$C$3 -> 0.0006313131313 | H12: =SUM(IF(Genre=E12,1/COUNTIF(Sort_Titel,Sort_Titel),0)) -> 2 | I12: =H12/$C$5 -> 0.003533568905 | J12: Ghost Ship | K12: 256 | L12: 0.08080808081 | M12: =SUM(IF(Verlag=J12,1/COUNTIF(Sort_Titel,Sort_Titel),0)) -> 36 | N12: 0.06360424028 | P12: 9
B13: Deutsch | C13: =COUNTIF(Sprache,INDEX(Sprache_Def,P4)) -> 2265 | D13: =C13/$C$3 -> 0.7149621212 | E13: Hentai | F13: 67 | G13: 0.0211489899 | H13: =SUM(IF(Genre=E13,1/COUNTIF(Sort_Titel,Sort_Titel),0)) -> 59 | I13: 0.1042402827 | J13: Hayabusa | K13: 83 | L13: 0.02619949495 | M13: =SUM(IF(Verlag=J13,1/COUNTIF(Sort_Titel,Sort_Titel),0)) -> 18 | N13: 0.03180212014 | P13: 10
B14: Englisch | C14: =COUNTIF(Sprache,INDEX(Sprache_Def,P5)) -> 903 | D14: =C14/$C$3 -> 0.2850378788 | E14: Horror | F14: 5 | G14: 0.001578282828 | H14: =SUM(IF(Genre=E14,1/COUNTIF(Sort_Titel,Sort_Titel),0)) -> 2 | I14: 0.003533568905 | J14: Image Comics | K14: 14 | L14: 0.004419191919 | M14: =SUM(IF(Verlag=J14,1/COUNTIF(Sort_Titel,Sort_Titel),0)) -> 4 | N14: 0.007067137809 | P14: 11
B15: Serien | E15: Mystery | F15: 238 | G15: 0.07512626263 | H15: =SUM(IF(Genre=E15,1/COUNTIF(Sort_Titel,Sort_Titel),0)) -> 29 | I15: 0.05123674912 | J15: Ize Press | K15: 18 | L15: 0.005681818182 | M15: =SUM(IF(Verlag=J15,1/COUNTIF(Sort_Titel,Sort_Titel),0)) -> 2 | N15: 0.003533568905 | P15: 12
B16: Deutsch | C16: =SUM(IF(Sprache=INDEX(Sprache_Def,P4),1/COUNTIF(Sort_Titel,Sort_Titel),0)) -> 362 | D16: =C16/$C$5 -> 0.6395759717 | E16: Romance | F16: 556 | G16: 0.1755050505 | H16: =SUM(IF(Genre=E16,1/COUNTIF(Sort_Titel,Sort_Titel),0)) -> 99 | I16: 0.1749116608 | J16: Kazé Manga/Crunchyroll | K16: 267 | L16: 0.08428030303 | M16: =SUM(IF(Verlag=J16,1/COUNTIF(Sort_Titel,Sort_Titel),0)) -> 24 | N16: 0.04240282686 | P16: 13
B17: Englisch | C17: =SUM(IF(Sprache=INDEX(Sprache_Def,P5),1/COUNTIF(Sort_Titel,Sort_Titel),0)) -> 204 | D17: =C17/$C$5 -> 0.3604240283 | E17: Romantasy | F17: 40 | G17: 0.01262626263 | H17: =SUM(IF(Genre=E17,1/COUNTIF(Sort_Titel,Sort_Titel),0)) -> 5 | I17: 0.008833922261 | J17: Kodansha | K17: 51 | L17: 0.01609848485 | M17: =SUM(IF(Verlag=J17,1/COUNTIF(Sort_Titel,Sort_Titel),0)) -> 7 | N17: 0.01236749117 | P17: 14
B18: Formate | E18: RomCom | F18: 38 | G18: 0.01199494949 | H18: =SUM(IF(Genre=E18,1/COUNTIF(Sort_Titel,Sort_Titel),0)) -> 11 | I18: 0.01943462898 | J18: Manga Cult | K18: 196 | L18: 0.06186868687 | M18: =SUM(IF(Verlag=J18,1/COUNTIF(Sort_Titel,Sort_Titel),0)) -> 19 | N18: 0.03356890459 | P18: 15
B19: Bände | E19: Sci-Fi | F19: 68 | G19: 0.02146464646 | H19: =SUM(IF(Genre=E19,1/COUNTIF(Sort_Titel,Sort_Titel),0)) -> 15 | I19: 0.02650176678 | J19: Manga Jamsession | K19: 22 | L19: 0.006944444444 | M19: =SUM(IF(Verlag=J19,1/COUNTIF(Sort_Titel,Sort_Titel),0)) -> 3 | N19: 0.005300353357 | P19: 16
B20: =INDEX(Format_Def,P4)&"format" -> Standardformat | C20: =COUNTIF(Format,INDEX(Format_Def,P4)) -> 2399 | D20: =C20/$C$3 -> 0.757260101 | E20: Slice of Life | F20: 145 | G20: 0.04577020202 | H20: =SUM(IF(Genre=E20,1/COUNTIF(Sort_Titel,Sort_Titel),0)) -> 24 | I20: 0.04240282686 | J20: Mangamoon | K20: 2 | L20: 0.0006313131313 | M20: =SUM(IF(Verlag=J20,1/COUNTIF(Sort_Titel,Sort_Titel),0)) -> 1 | N20: 0.001766784452 | P20: 17
B21: =INDEX(Format_Def,P5)&"format" -> Großformat | C21: =COUNTIF(Format,INDEX(Format_Def,P5)) -> 747 | D21: =C21/$C$3 -> 0.2357954545 | E21: Thriller | F21: 35 | G21: 0.0110479798 | H21: =SUM(IF(Genre=E21,1/COUNTIF(Sort_Titel,Sort_Titel),0)) -> 6 | I21: 0.01060070671 | J21: Manlin | K21: 4 | L21: 0.001262626263 | M21: =SUM(IF(Verlag=J21,1/COUNTIF(Sort_Titel,Sort_Titel),0)) -> 2 | N21: 0.003533568905 | P21: 18
B22: =INDEX(Format_Def,P6)&"format" -> Übergroßformat | C22: =COUNTIF(Format,INDEX(Format_Def,P6)) -> 22 | D22: 0.006944444444 | J22: One Peace Books | K22: 17 | L22: 0.005366161616 | M22: =SUM(IF(Verlag=J22,1/COUNTIF(Sort_Titel,Sort_Titel),0)) -> 2 | N22: 0.003533568905 | P22: 19
B23: Serien | J23: Panini Comics | K23: 1 | L23: 0.0003156565657 | M23: =SUM(IF(Verlag=J23,1/COUNTIF(Sort_Titel,Sort_Titel),0)) -> 1 | N23: 0.001766784452 | P23: 20
B24: =INDEX(Format_Def,P4)&"format" -> Standardformat | C24: =SUM(IF(Format=INDEX(Format_Def,P4),1/COUNTIF(Sort_Titel,Sort_Titel),0)) -> 377 | D24: =C24/$C$5 -> 0.6660777385 | J24: Papertoons | K24: 35 | L24: 0.0110479798 | M24: =SUM(IF(Verlag=J24,1/COUNTIF(Sort_Titel,Sort_Titel),0)) -> 5 | N24: 0.008833922261 | P24: 21
B25: =INDEX(Format_Def,P5)&"format" -> Großformat | C25: =SUM(IF(Format=INDEX(Format_Def,P5),1/COUNTIF(Sort_Titel,Sort_Titel),0)) -> 177 | D25: =C25/$C$5 -> 0.3127208481 | J25: Planet Manga/Panini Manga | K25: 127 | L25: 0.04008838384 | M25: =SUM(IF(Verlag=J25,1/COUNTIF(Sort_Titel,Sort_Titel),0)) -> 23 | N25: 0.0406360424 | P25: 22
B26: =INDEX(Format_Def,P6)&"format" -> Übergroßformat | C26: =SUM(IF(Format=INDEX(Format_Def,P6),1/COUNTIF(Sort_Titel,Sort_Titel),0)) -> 12 | D26: 0.02120141343 | J26: Seven Seas | K26: 283 | L26: 0.08933080808 | M26: =SUM(IF(Verlag=J26,1/COUNTIF(Sort_Titel,Sort_Titel),0)) -> 56 | N26: 0.09893992933 | P26: 23
J27: Splitter | K27: 1 | L27: 0.0003156565657 | M27: =SUM(IF(Verlag=J27,1/COUNTIF(Sort_Titel,Sort_Titel),0)) -> 1 | N27: 0.001766784452 | P27: 24
J28: Square Enix Books | K28: 1 | L28: 0.0003156565657 | M28: =SUM(IF(Verlag=J28,1/COUNTIF(Sort_Titel,Sort_Titel),0)) -> 1 | N28: 0.001766784452 | P28: 25
J29: =INDEX(Verlag_Def,P29) -> Steamship | K29: =COUNTIF(Verlag,J29) -> 7 | L29: =K29/$C$3 -> 0.00220959596 | M29: =SUM(IF(Verlag=J29,1/COUNTIF(Sort_Titel,Sort_Titel),0)) -> 2 | N29: =M29/$C$5 -> 0.003533568905 | P29: 26
J30: Tokyopop | K30: 495 | L30: 0.15625 | M30: =SUM(IF(Verlag=J30,1/COUNTIF(Sort_Titel,Sort_Titel),0)) -> 102 | N30: 0.1802120141 | P30: 27
J31: Udon Entertainment | K31: 2 | L31: 0.0006313131313 | M31: =SUM(IF(Verlag=J31,1/COUNTIF(Sort_Titel,Sort_Titel),0)) -> 1 | N31: 0.001766784452 | P31: 28
J32: Vertical Comics | K32: 12 | L32: 0.003787878788 | M32: =SUM(IF(Verlag=J32,1/COUNTIF(Sort_Titel,Sort_Titel),0)) -> 1 | N32: 0.001766784452 | P32: 29
J33: Viz Media | K33: 60 | L33: 0.01893939394 | M33: =SUM(IF(Verlag=J33,1/COUNTIF(Sort_Titel,Sort_Titel),0)) -> 6 | N33: 0.01060070671 | P33: 30
J34: Yen Press | K34: 101 | L34: 0.03188131313 | M34: =SUM(IF(Verlag=J34,1/COUNTIF(Sort_Titel,Sort_Titel),0)) -> 23 | N34: 0.0406360424 | P34: 31
J35: Yomeru | K35: 0 | L35: 0 | M35: =SUM(IF(Verlag=J35,1/COUNTIF(Sort_Titel,Sort_Titel),0)) -> 0 | N35: 0 | P35: 32
J36: Yurico | K36: 4 | L36: 0.001262626263 | M36: =SUM(IF(Verlag=J36,1/COUNTIF(Sort_Titel,Sort_Titel),0)) -> 4 | N36: 0.007067137809 | P36: 33
P46: Summe Genres | Q46: =SUM(F4:F21) -> 3168
P47: Summe Formate | Q47: =SUM(C20:C22) -> 3168
P48: Summe Sprachen | Q48: =SUM(C13:C14) -> 3168
P49: Summe Verlag | Q49: =SUM(K4:K36) -> 3168

Sheet Bücher
D1: =IF(COUNTIF(Erstes_Zeichen,"")>0,IF($C$1="",HYPERLINK("#C1","<< Auswahl"),HYPERLINK("#"&CELL("adresse",INDEX(Titel,MATCH(C1&"*",Titel,0))),"Gehe zu "&C1)),HYPERLINK("#Definitionen!L1","Anpassen!")) -> << Auswahl
C2: =IF(COUNTIF(Titel_Eindeutig,"")>0,IF($B$2="",HYPERLINK("#B2","<< Auswahl"),HYPERLINK("#"&CELL("adresse",INDEX(Titel,MATCH(B2,Titel,0))),"Gehe zu Titel")),HYPERLINK("#Definitionen!H1","Anpassen!")) -> << Auswahl | E2: =HYPERLINK("#B"&H2+3,"Gehe zu Eintrag:") -> Gehe zu Eintrag: | H2: =CELL("zeile",INDEX(Titel,MIN(IF(Titel="",ROW(Titel)))-6)) -> 3169 | K2: =IF($J$2="",HYPERLINK("#j1","<< ISBN eingeben"),IF(_xlfn.IFNA(MATCH(J2,ISBN,0),0)>0,HYPERLINK("#"&CELL("adresse",INDEX(ISBN,MATCH(J2,ISBN,0))),"Gehe zu ISBN"),HYPERLINK("#j1","nicht gefunden"))) -> << ISBN eingeben | P2: Spalten Barcode | Q2: 0
B3: Titel | C3: Band | D3: Genre | E3: 18+ | F3: Sprache | G3: Format | H3: Verlag | I3: Gelesen | J3: ISBN | K3: Entleiher / nicht im Bestand | L3: Sort_Titel | M3: Sortierung | N3: Zeilen pro Seite: | O3: 80
A4: =A3+1 -> 1 | B4: #plüschmond | C4: 1 | D4: Slice of Life | F4: deu | G4: Groß | H4: Altraverse | I4: X | J4: 9783963582356 | L4: =IF(B4<>"",B4&Trenner&Einschluss&F4&Einschluss,"") -> #plüschmond •deu• | M4: =IF(C4<>"", IF(ISNUMBER(C4), IF(COUNTIF(Sort_Titel,L4)>99,L4&Trenner&TEXT(C4,"000"), IF(COUNTIF(Sort_Titel,L4)>9,L4&Trenner&TEXT(C4,"00"),L4&Trenner&TEXT(C4,"0")) ),L4&Trenner&C4 ),IF(L4<>"",L4,Titel_Leer) ) -> #plüschmond •deu• 1 | O4: ="Seite "&TEXT(ROUND(((A4-1)/$O$3)+0.5,0),"0") -> Seite 1 | P4: =IF(CELL("spalte",P4)<CELL("spalte",$P4)+$Q$2, IF(MOD(CELL("zeile",P4)-CELL("zeile",P$4),$Q$2)=MOD(CELL("spalte",P4)-(CELL("spalte",$P4)),$Q$2),ean_conv(LEFT($J4,12)),""), "<>") -> <> | Q4: =IF(CELL("spalte",Q4)<CELL("spalte",$P4)+$Q$2, IF(MOD(CELL("zeile",Q4)-CELL("zeile",Q$4),$Q$2)=MOD(CELL("spalte",Q4)-(CELL("spalte",$P4)),$Q$2),ean_conv(LEFT($J4,12)),""), "<>") -> <> | R4: =IF(CELL("spalte",R4)<CELL("spalte",$P4)+$Q$2, IF(MOD(CELL("zeile",R4)-CELL("zeile",R$4),$Q$2)=MOD(CELL("spalte",R4)-(CELL("spalte",$P4)),$Q$2),ean_conv(LEFT($J4,12)),""), "<>") -> <> | S4: =IF(CELL("spalte",S4)<CELL("spalte",$P4)+$Q$2, IF(MOD(CELL("zeile",S4)-CELL("zeile",S$4),$Q$2)=MOD(CELL("spalte",S4)-(CELL("spalte",$P4)),$Q$2),ean_conv(LEFT($J4,12)),""), "<>") -> <> | T4: =IF(CELL("spalte",T4)<CELL("spalte",$P4)+$Q$2, IF(MOD(CELL("zeile",T4)-CELL("zeile",T$4),$Q$2)=MOD(CELL("spalte",T4)-(CELL("spalte",$P4)),$Q$2),ean_conv(LEFT($J4,12)),""), "<>") -> <> | U4: =IF(CELL("spalte",U4)<CELL("spalte",$P4)+$Q$2, IF(MOD(CELL("zeile",U4)-CELL("zeile",U$4),$Q$2)=MOD(CELL("spalte",U4)-(CELL("spalte",$P4)),$Q$2),ean_conv(LEFT($J4,12)),""), "<>") -> <> | V4: =IF(CELL("spalte",V4)<CELL("spalte",$P4)+$Q$2, IF(MOD(CELL("zeile",V4)-CELL("zeile",V$4),$Q$2)=MOD(CELL("spalte",V4)-(CELL("spalte",$P4)),$Q$2),ean_conv(LEFT($J4,12)),""), "<>") -> <> | W4: =IF(CELL("spalte",W4)<CELL("spalte",$P4)+$Q$2, IF(MOD(CELL("zeile",W4)-CELL("zeile",W$4),$Q$2)=MOD(CELL("spalte",W4)-(CELL("spalte",$P4)),$Q$2),ean_conv(LEFT($J4,12)),""), "<>") -> <> | X4: =IF(CELL("spalte",X4)<CELL("spalte",$P4)+$Q$2, IF(MOD(CELL("zeile",X4)-CELL("zeile",X$4),$Q$2)=MOD(CELL("spalte",X4)-(CELL("spalte",$P4)),$Q$2),ean_conv(LEFT($J4,12)),""), "<>") -> <> | Y4: =IF(CELL("spalte",Y4)<CELL("spalte",$P4)+$Q$2, IF(MOD(CELL("zeile",Y4)-CELL("zeile",Y$4),$Q$2)=MOD(CELL("spalte",Y4)-(CELL("spalte",$P4)),$Q$2),ean_conv(LEFT($J4,12)),""), "<>") -> <>
A5: 2 | B5: #plüschmond | C5: 2 | D5: Slice of Life | F5: deu | G5: Groß | H5: Altraverse | I5: X | J5: 9783963582363 | L5: #plüschmond •deu• | M5: #plüschmond •deu• 2 | O5: Seite 1 | P5: =IF(CELL("spalte",P5)<CELL("spalte",$P5)+$Q$2, IF(MOD(CELL("zeile",P5)-CELL("zeile",P$4),$Q$2)=MOD(CELL("spalte",P5)-(CELL("spalte",$P5)),$Q$2),ean_conv(LEFT($J5,12)),""), "<>") -> <> | Q5: =IF(CELL("spalte",Q5)<CELL("spalte",$P5)+$Q$2, IF(MOD(CELL("zeile",Q5)-CELL("zeile",Q$4),$Q$2)=MOD(CELL("spalte",Q5)-(CELL("spalte",$P5)),$Q$2),ean_conv(LEFT($J5,12)),""), "<>") -> <> | R5: =IF(CELL("spalte",R5)<CELL("spalte",$P5)+$Q$2, IF(MOD(CELL("zeile",R5)-CELL("zeile",R$4),$Q$2)=MOD(CELL("spalte",R5)-(CELL("spalte",$P5)),$Q$2),ean_conv(LEFT($J5,12)),""), "<>") -> <> | S5: =IF(CELL("spalte",S5)<CELL("spalte",$P5)+$Q$2, IF(MOD(CELL("zeile",S5)-CELL("zeile",S$4),$Q$2)=MOD(CELL("spalte",S5)-(CELL("spalte",$P5)),$Q$2),ean_conv(LEFT($J5,12)),""), "<>") -> <> | T5: =IF(CELL("spalte",T5)<CELL("spalte",$P5)+$Q$2, IF(MOD(CELL("zeile",T5)-CELL("zeile",T$4),$Q$2)=MOD(CELL("spalte",T5)-(CELL("spalte",$P5)),$Q$2),ean_conv(LEFT($J5,12)),""), "<>") -> <> | U5: =IF(CELL("spalte",U5)<CELL("spalte",$P5)+$Q$2, IF(MOD(CELL("zeile",U5)-CELL("zeile",U$4),$Q$2)=MOD(CELL("spalte",U5)-(CELL("spalte",$P5)),$Q$2),ean_conv(LEFT($J5,12)),""), "<>") -> <> | V5: =IF(CELL("spalte",V5)<CELL("spalte",$P5)+$Q$2, IF(MOD(CELL("zeile",V5)-CELL("zeile",V$4),$Q$2)=MOD(CELL("spalte",V5)-(CELL("spalte",$P5)),$Q$2),ean_conv(LEFT($J5,12)),""), "<>") -> <> | W5: =IF(CELL("spalte",W5)<CELL("spalte",$P5)+$Q$2, IF(MOD(CELL("zeile",W5)-CELL("zeile",W$4),$Q$2)=MOD(CELL("spalte",W5)-(CELL("spalte",$P5)),$Q$2),ean_conv(LEFT($J5,12)),""), "<>") -> <> | X5: =IF(CELL("spalte",X5)<CELL("spalte",$P5)+$Q$2, IF(MOD(CELL("zeile",X5)-CELL("zeile",X$4),$Q$2)=MOD(CELL("spalte",X5)-(CELL("spalte",$P5)),$Q$2),ean_conv(LEFT($J5,12)),""), "<>") -> <> | Y5: =IF(CELL("spalte",Y5)<CELL("spalte",$P5)+$Q$2, IF(MOD(CELL("zeile",Y5)-CELL("zeile",Y$4),$Q$2)=MOD(CELL("spalte",Y5)-(CELL("spalte",$P5)),$Q$2),ean_conv(LEFT($J5,12)),""), "<>") -> <>
A6: 3 | B6: #plüschmond | C6: 3 | D6: Slice of Life | F6: deu | G6: Groß | H6: Altraverse | I6: X | J6: 9783963585562 | L6: #plüschmond •deu• | M6: #plüschmond •deu• 3 | O6: Seite 1 | P6: =IF(CELL("spalte",P6)<CELL("spalte",$P6)+$Q$2, IF(MOD(CELL("zeile",P6)-CELL("zeile",P$4),$Q$2)=MOD(CELL("spalte",P6)-(CELL("spalte",$P6)),$Q$2),ean_conv(LEFT($J6,12)),""), "<>") -> <> | Q6: =IF(CELL("spalte",Q6)<CELL("spalte",$P6)+$Q$2, IF(MOD(CELL("zeile",Q6)-CELL("zeile",Q$4),$Q$2)=MOD(CELL("spalte",Q6)-(CELL("spalte",$P6)),$Q$2),ean_conv(LEFT($J6,12)),""), "<>") -> <> | R6: =IF(CELL("spalte",R6)<CELL("spalte",$P6)+$Q$2, IF(MOD(CELL("zeile",R6)-CELL("zeile",R$4),$Q$2)=MOD(CELL("spalte",R6)-(CELL("spalte",$P6)),$Q$2),ean_conv(LEFT($J6,12)),""), "<>") -> <> | S6: =IF(CELL("spalte",S6)<CELL("spalte",$P6)+$Q$2, IF(MOD(CELL("zeile",S6)-CELL("zeile",S$4),$Q$2)=MOD(CELL("spalte",S6)-(CELL("spalte",$P6)),$Q$2),ean_conv(LEFT($J6,12)),""), "<>") -> <> | T6: =IF(CELL("spalte",T6)<CELL("spalte",$P6)+$Q$2, IF(MOD(CELL("zeile",T6)-CELL("zeile",T$4),$Q$2)=MOD(CELL("spalte",T6)-(CELL("spalte",$P6)),$Q$2),ean_conv(LEFT($J6,12)),""), "<>") -> <> | U6: =IF(CELL("spalte",U6)<CELL("spalte",$P6)+$Q$2, IF(MOD(CELL("zeile",U6)-CELL("zeile",U$4),$Q$2)=MOD(CELL("spalte",U6)-(CELL("spalte",$P6)),$Q$2),ean_conv(LEFT($J6,12)),""), "<>") -> <> | V6: =IF(CELL("spalte",V6)<CELL("spalte",$P6)+$Q$2, IF(MOD(CELL("zeile",V6)-CELL("zeile",V$4),$Q$2)=MOD(CELL("spalte",V6)-(CELL("spalte",$P6)),$Q$2),ean_conv(LEFT($J6,12)),""), "<>") -> <> | W6: =IF(CELL("spalte",W6)<CELL("spalte",$P6)+$Q$2, IF(MOD(CELL("zeile",W6)-CELL("zeile",W$4),$Q$2)=MOD(CELL("spalte",W6)-(CELL("spalte",$P6)),$Q$2),ean_conv(LEFT($J6,12)),""), "<>") -> <> | X6: =IF(CELL("spalte",X6)<CELL("spalte",$P6)+$Q$2, IF(MOD(CELL("zeile",X6)-CELL("zeile",X$4),$Q$2)=MOD(CELL("spalte",X6)-(CELL("spalte",$P6)),$Q$2),ean_conv(LEFT($J6,12)),""), "<>") -> <> | Y6: =IF(CELL("spalte",Y6)<CELL("spalte",$P6)+$Q$2, IF(MOD(CELL("zeile",Y6)-CELL("zeile",Y$4),$Q$2)=MOD(CELL("spalte",Y6)-(CELL("spalte",$P6)),$Q$2),ean_conv(LEFT($J6,12)),""), "<>") -> <>
A7: 4 | B7: #plüschmond | C7: 4 | D7: Slice of Life | F7: deu | G7: Groß | H7: Altraverse | I7: X | J7: 9783963585579 | L7: #plüschmond •deu• | M7: #plüschmond •deu• 4 | O7: Seite 1 | P7: =IF(CELL("spalte",P7)<CELL("spalte",$P7)+$Q$2, IF(MOD(CELL("zeile",P7)-CELL("zeile",P$4),$Q$2)=MOD(CELL("spalte",P7)-(CELL("spalte",$P7)),$Q$2),ean_conv(LEFT($J7,12)),""), "<>") -> <> | Q7: =IF(CELL("spalte",Q7)<CELL("spalte",$P7)+$Q$2, IF(MOD(CELL("zeile",Q7)-CELL("zeile",Q$4),$Q$2)=MOD(CELL("spalte",Q7)-(CELL("spalte",$P7)),$Q$2),ean_conv(LEFT($J7,12)),""), "<>") -> <> | R7: =IF(CELL("spalte",R7)<CELL("spalte",$P7)+$Q$2, IF(MOD(CELL("zeile",R7)-CELL("zeile",R$4),$Q$2)=MOD(CELL("spalte",R7)-(CELL("spalte",$P7)),$Q$2),ean_conv(LEFT($J7,12)),""), "<>") -> <> | S7: =IF(CELL("spalte",S7)<CELL("spalte",$P7)+$Q$2, IF(MOD(CELL("zeile",S7)-CELL("zeile",S$4),$Q$2)=MOD(CELL("spalte",S7)-(CELL("spalte",$P7)),$Q$2),ean_conv(LEFT($J7,12)),""), "<>") -> <> | T7: =IF(CELL("spalte",T7)<CELL("spalte",$P7)+$Q$2, IF(MOD(CELL("zeile",T7)-CELL("zeile",T$4),$Q$2)=MOD(CELL("spalte",T7)-(CELL("spalte",$P7)),$Q$2),ean_conv(LEFT($J7,12)),""), "<>") -> <> | U7: =IF(CELL("spalte",U7)<CELL("spalte",$P7)+$Q$2, IF(MOD(CELL("zeile",U7)-CELL("zeile",U$4),$Q$2)=MOD(CELL("spalte",U7)-(CELL("spalte",$P7)),$Q$2),ean_conv(LEFT($J7,12)),""), "<>") -> <> | V7: =IF(CELL("spalte",V7)<CELL("spalte",$P7)+$Q$2, IF(MOD(CELL("zeile",V7)-CELL("zeile",V$4),$Q$2)=MOD(CELL("spalte",V7)-(CELL("spalte",$P7)),$Q$2),ean_conv(LEFT($J7,12)),""), "<>") -> <> | W7: =IF(CELL("spalte",W7)<CELL("spalte",$P7)+$Q$2, IF(MOD(CELL("zeile",W7)-CELL("zeile",W$4),$Q$2)=MOD(CELL("spalte",W7)-(CELL("spalte",$P7)),$Q$2),ean_conv(LEFT($J7,12)),""), "<>") -> <> | X7: =IF(CELL("spalte",X7)<CELL("spalte",$P7)+$Q$2, IF(MOD(CELL("zeile",X7)-CELL("zeile",X$4),$Q$2)=MOD(CELL("spalte",X7)-(CELL("spalte",$P7)),$Q$2),ean_conv(LEFT($J7,12)),""), "<>") -> <> | Y7: =IF(CELL("spalte",Y7)<CELL("spalte",$P7)+$Q$2, IF(MOD(CELL("zeile",Y7)-CELL("zeile",Y$4),$Q$2)=MOD(CELL("spalte",Y7)-(CELL("spalte",$P7)),$Q$2),ean_conv(LEFT($J7,12)),""), "<>") -> <>
A8: 5 | B8: 12 Dirty Deeds to Unite the Princess and Her Heroine | C8: 1 | D8: Girls Love | F8: eng | G8: Standard | H8: Ghost Ship | I8: X | J8: 9798893731262 | L8: 12 Dirty Deeds to Unite the Princess and Her Heroine •eng• | M8: 12 Dirty Deeds to Unite the Princess and Her Heroine •eng• 1 | O8: Seite 1 | P8: =IF(CELL("spalte",P8)<CELL("spalte",$P8)+$Q$2, IF(MOD(CELL("zeile",P8)-CELL("zeile",P$4),$Q$2)=MOD(CELL("spalte",P8)-(CELL("spalte",$P8)),$Q$2),ean_conv(LEFT($J8,12)),""), "<>") -> <> | Q8: =IF(CELL("spalte",Q8)<CELL("spalte",$P8)+$Q$2, IF(MOD(CELL("zeile",Q8)-CELL("zeile",Q$4),$Q$2)=MOD(CELL("spalte",Q8)-(CELL("spalte",$P8)),$Q$2),ean_conv(LEFT($J8,12)),""), "<>") -> <> | R8: =IF(CELL("spalte",R8)<CELL("spalte",$P8)+$Q$2, IF(MOD(CELL("zeile",R8)-CELL("zeile",R$4),$Q$2)=MOD(CELL("spalte",R8)-(CELL("spalte",$P8)),$Q$2),ean_conv(LEFT($J8,12)),""), "<>") -> <> | S8: =IF(CELL("spalte",S8)<CELL("spalte",$P8)+$Q$2, IF(MOD(CELL("zeile",S8)-CELL("zeile",S$4),$Q$2)=MOD(CELL("spalte",S8)-(CELL("spalte",$P8)),$Q$2),ean_conv(LEFT($J8,12)),""), "<>") -> <> | T8: =IF(CELL("spalte",T8)<CELL("spalte",$P8)+$Q$2, IF(MOD(CELL("zeile",T8)-CELL("zeile",T$4),$Q$2)=MOD(CELL("spalte",T8)-(CELL("spalte",$P8)),$Q$2),ean_conv(LEFT($J8,12)),""), "<>") -> <> | U8: =IF(CELL("spalte",U8)<CELL("spalte",$P8)+$Q$2, IF(MOD(CELL("zeile",U8)-CELL("zeile",U$4),$Q$2)=MOD(CELL("spalte",U8)-(CELL("spalte",$P8)),$Q$2),ean_conv(LEFT($J8,12)),""), "<>") -> <> | V8: =IF(CELL("spalte",V8)<CELL("spalte",$P8)+$Q$2, IF(MOD(CELL("zeile",V8)-CELL("zeile",V$4),$Q$2)=MOD(CELL("spalte",V8)-(CELL("spalte",$P8)),$Q$2),ean_conv(LEFT($J8,12)),""), "<>") -> <> | W8: =IF(CELL("spalte",W8)<CELL("spalte",$P8)+$Q$2, IF(MOD(CELL("zeile",W8)-CELL("zeile",W$4),$Q$2)=MOD(CELL("spalte",W8)-(CELL("spalte",$P8)),$Q$2),ean_conv(LEFT($J8,12)),""), "<>") -> <> | X8: =IF(CELL("spalte",X8)<CELL("spalte",$P8)+$Q$2, IF(MOD(CELL("zeile",X8)-CELL("zeile",X$4),$Q$2)=MOD(CELL("spalte",X8)-(CELL("spalte",$P8)),$Q$2),ean_conv(LEFT($J8,12)),""), "<>") -> <> | Y8: =IF(CELL("spalte",Y8)<CELL("spalte",$P8)+$Q$2, IF(MOD(CELL("zeile",Y8)-CELL("zeile",Y$4),$Q$2)=MOD(CELL("spalte",Y8)-(CELL("spalte",$P8)),$Q$2),ean_conv(LEFT($J8,12)),""), "<>") -> <>
A9: 6 | B9: 12 Dirty Deeds to Unite the Princess and Her Heroine | C9: 2 | D9: Girls Love | F9: eng | G9: Standard | H9: Ghost Ship | J9: 9798893731279 | L9: 12 Dirty Deeds to Unite the Princess and Her Heroine •eng• | M9: 12 Dirty Deeds to Unite the Princess and Her Heroine •eng• 2 | O9: Seite 1 | P9: =IF(CELL("spalte",P9)<CELL("spalte",$P9)+$Q$2, IF(MOD(CELL("zeile",P9)-CELL("zeile",P$4),$Q$2)=MOD(CELL("spalte",P9)-(CELL("spalte",$P9)),$Q$2),ean_conv(LEFT($J9,12)),""), "<>") -> <> | Q9: =IF(CELL("spalte",Q9)<CELL("spalte",$P9)+$Q$2, IF(MOD(CELL("zeile",Q9)-CELL("zeile",Q$4),$Q$2)=MOD(CELL("spalte",Q9)-(CELL("spalte",$P9)),$Q$2),ean_conv(LEFT($J9,12)),""), "<>") -> <> | R9: =IF(CELL("spalte",R9)<CELL("spalte",$P9)+$Q$2, IF(MOD(CELL("zeile",R9)-CELL("zeile",R$4),$Q$2)=MOD(CELL("spalte",R9)-(CELL("spalte",$P9)),$Q$2),ean_conv(LEFT($J9,12)),""), "<>") -> <> | S9: =IF(CELL("spalte",S9)<CELL("spalte",$P9)+$Q$2, IF(MOD(CELL("zeile",S9)-CELL("zeile",S$4),$Q$2)=MOD(CELL("spalte",S9)-(CELL("spalte",$P9)),$Q$2),ean_conv(LEFT($J9,12)),""), "<>") -> <> | T9: =IF(CELL("spalte",T9)<CELL("spalte",$P9)+$Q$2, IF(MOD(CELL("zeile",T9)-CELL("zeile",T$4),$Q$2)=MOD(CELL("spalte",T9)-(CELL("spalte",$P9)),$Q$2),ean_conv(LEFT($J9,12)),""), "<>") -> <> | U9: =IF(CELL("spalte",U9)<CELL("spalte",$P9)+$Q$2, IF(MOD(CELL("zeile",U9)-CELL("zeile",U$4),$Q$2)=MOD(CELL("spalte",U9)-(CELL("spalte",$P9)),$Q$2),ean_conv(LEFT($J9,12)),""), "<>") -> <> | V9: =IF(CELL("spalte",V9)<CELL("spalte",$P9)+$Q$2, IF(MOD(CELL("zeile",V9)-CELL("zeile",V$4),$Q$2)=MOD(CELL("spalte",V9)-(CELL("spalte",$P9)),$Q$2),ean_conv(LEFT($J9,12)),""), "<>") -> <> | W9: =IF(CELL("spalte",W9)<CELL("spalte",$P9)+$Q$2, IF(MOD(CELL("zeile",W9)-CELL("zeile",W$4),$Q$2)=MOD(CELL("spalte",W9)-(CELL("spalte",$P9)),$Q$2),ean_conv(LEFT($J9,12)),""), "<>") -> <> | X9: =IF(CELL("spalte",X9)<CELL("spalte",$P9)+$Q$2, IF(MOD(CELL("zeile",X9)-CELL("zeile",X$4),$Q$2)=MOD(CELL("spalte",X9)-(CELL("spalte",$P9)),$Q$2),ean_conv(LEFT($J9,12)),""), "<>") -> <> | Y9: =IF(CELL("spalte",Y9)<CELL("spalte",$P9)+$Q$2, IF(MOD(CELL("zeile",Y9)-CELL("zeile",Y$4),$Q$2)=MOD(CELL("spalte",Y9)-(CELL("spalte",$P9)),$Q$2),ean_conv(LEFT($J9,12)),""), "<>") -> <>
A10: 7 | B10: 12 Dirty Deeds to Unite the Princess and Her Heroine | C10: 3 | D10: Girls Love | F10: eng | G10: Standard | H10: Ghost Ship | J10: 9798893735901 | L10: 12 Dirty Deeds to Unite the Princess and Her Heroine •eng• | M10: 12 Dirty Deeds to Unite the Princess and Her Heroine •eng• 3 | O10: Seite 1 | P10: =IF(CELL("spalte",P10)<CELL("spalte",$P10)+$Q$2, IF(MOD(CELL("zeile",P10)-CELL("zeile",P$4),$Q$2)=MOD(CELL("spalte",P10)-(CELL("spalte",$P10)),$Q$2),ean_conv(LEFT($J10,12)),""), "<>") -> <> | Q10: =IF(CELL("spalte",Q10)<CELL("spalte",$P10)+$Q$2, IF(MOD(CELL("zeile",Q10)-CELL("zeile",Q$4),$Q$2)=MOD(CELL("spalte",Q10)-(CELL("spalte",$P10)),$Q$2),ean_conv(LEFT($J10,12)),""), "<>") -> <> | R10: =IF(CELL("spalte",R10)<CELL("spalte",$P10)+$Q$2, IF(MOD(CELL("zeile",R10)-CELL("zeile",R$4),$Q$2)=MOD(CELL("spalte",R10)-(CELL("spalte",$P10)),$Q$2),ean_conv(LEFT($J10,12)),""), "<>") -> <> | S10: =IF(CELL("spalte",S10)<CELL("spalte",$P10)+$Q$2, IF(MOD(CELL("zeile",S10)-CELL("zeile",S$4),$Q$2)=MOD(CELL("spalte",S10)-(CELL("spalte",$P10)),$Q$2),ean_conv(LEFT($J10,12)),""), "<>") -> <> | T10: =IF(CELL("spalte",T10)<CELL("spalte",$P10)+$Q$2, IF(MOD(CELL("zeile",T10)-CELL("zeile",T$4),$Q$2)=MOD(CELL("spalte",T10)-(CELL("spalte",$P10)),$Q$2),ean_conv(LEFT($J10,12)),""), "<>") -> <> | U10: =IF(CELL("spalte",U10)<CELL("spalte",$P10)+$Q$2, IF(MOD(CELL("zeile",U10)-CELL("zeile",U$4),$Q$2)=MOD(CELL("spalte",U10)-(CELL("spalte",$P10)),$Q$2),ean_conv(LEFT($J10,12)),""), "<>") -> <> | V10: =IF(CELL("spalte",V10)<CELL("spalte",$P10)+$Q$2, IF(MOD(CELL("zeile",V10)-CELL("zeile",V$4),$Q$2)=MOD(CELL("spalte",V10)-(CELL("spalte",$P10)),$Q$2),ean_conv(LEFT($J10,12)),""), "<>") -> <> | W10: =IF(CELL("spalte",W10)<CELL("spalte",$P10)+$Q$2, IF(MOD(CELL("zeile",W10)-CELL("zeile",W$4),$Q$2)=MOD(CELL("spalte",W10)-(CELL("spalte",$P10)),$Q$2),ean_conv(LEFT($J10,12)),""), "<>") -> <> | X10: =IF(CELL("spalte",X10)<CELL("spalte",$P10)+$Q$2, IF(MOD(CELL("zeile",X10)-CELL("zeile",X$4),$Q$2)=MOD(CELL("spalte",X10)-(CELL("spalte",$P10)),$Q$2),ean_conv(LEFT($J10,12)),""), "<>") -> <> | Y10: =IF(CELL("spalte",Y10)<CELL("spalte",$P10)+$Q$2, IF(MOD(CELL("zeile",Y10)-CELL("zeile",Y$4),$Q$2)=MOD(CELL("spalte",Y10)-(CELL("spalte",$P10)),$Q$2),ean_conv(LEFT($J10,12)),""), "<>") -> <>
A11: 8 | B11: 2.5 Dimensional Seduction | C11: 1 | D11: Comedy | F11: eng | G11: Standard | H11: Ghost Ship | I11: X | J11: 9781648278815 | L11: 2.5 Dimensional Seduction •eng• | M11: 2.5 Dimensional Seduction •eng• 01 | O11: Seite 1 | P11: =IF(CELL("spalte",P11)<CELL("spalte",$P11)+$Q$2, IF(MOD(CELL("zeile",P11)-CELL("zeile",P$4),$Q$2)=MOD(CELL("spalte",P11)-(CELL("spalte",$P11)),$Q$2),ean_conv(LEFT($J11,12)),""), "<>") -> <> | Q11: =IF(CELL("spalte",Q11)<CELL("spalte",$P11)+$Q$2, IF(MOD(CELL("zeile",Q11)-CELL("zeile",Q$4),$Q$2)=MOD(CELL("spalte",Q11)-(CELL("spalte",$P11)),$Q$2),ean_conv(LEFT($J11,12)),""), "<>") -> <> | R11: =IF(CELL("spalte",R11)<CELL("spalte",$P11)+$Q$2, IF(MOD(CELL("zeile",R11)-CELL("zeile",R$4),$Q$2)=MOD(CELL("spalte",R11)-(CELL("spalte",$P11)),$Q$2),ean_conv(LEFT($J11,12)),""), "<>") -> <> | S11: =IF(CELL("spalte",S11)<CELL("spalte",$P11)+$Q$2, IF(MOD(CELL("zeile",S11)-CELL("zeile",S$4),$Q$2)=MOD(CELL("spalte",S11)-(CELL("spalte",$P11)),$Q$2),ean_conv(LEFT($J11,12)),""), "<>") -> <> | T11: =IF(CELL("spalte",T11)<CELL("spalte",$P11)+$Q$2, IF(MOD(CELL("zeile",T11)-CELL("zeile",T$4),$Q$2)=MOD(CELL("spalte",T11)-(CELL("spalte",$P11)),$Q$2),ean_conv(LEFT($J11,12)),""), "<>") -> <> | U11: =IF(CELL("spalte",U11)<CELL("spalte",$P11)+$Q$2, IF(MOD(CELL("zeile",U11)-CELL("zeile",U$4),$Q$2)=MOD(CELL("spalte",U11)-(CELL("spalte",$P11)),$Q$2),ean_conv(LEFT($J11,12)),""), "<>") -> <> | V11: =IF(CELL("spalte",V11)<CELL("spalte",$P11)+$Q$2, IF(MOD(CELL("zeile",V11)-CELL("zeile",V$4),$Q$2)=MOD(CELL("spalte",V11)-(CELL("spalte",$P11)),$Q$2),ean_conv(LEFT($J11,12)),""), "<>") -> <> | W11: =IF(CELL("spalte",W11)<CELL("spalte",$P11)+$Q$2, IF(MOD(CELL("zeile",W11)-CELL("zeile",W$4),$Q$2)=MOD(CELL("spalte",W11)-(CELL("spalte",$P11)),$Q$2),ean_conv(LEFT($J11,12)),""), "<>") -> <> | X11: =IF(CELL("spalte",X11)<CELL("spalte",$P11)+$Q$2, IF(MOD(CELL("zeile",X11)-CELL("zeile",X$4),$Q$2)=MOD(CELL("spalte",X11)-(CELL("spalte",$P11)),$Q$2),ean_conv(LEFT($J11,12)),""), "<>") -> <> | Y11: =IF(CELL("spalte",Y11)<CELL("spalte",$P11)+$Q$2, IF(MOD(CELL("zeile",Y11)-CELL("zeile",Y$4),$Q$2)=MOD(CELL("spalte",Y11)-(CELL("spalte",$P11)),$Q$2),ean_conv(LEFT($J11,12)),""), "<>") -> <>
A12: 9 | B12: 2.5 Dimensional Seduction | C12: 2 | D12: Comedy | F12: eng | G12: Standard | H12: Ghost Ship | I12: X | J12: 9781638582755 | L12: 2.5 Dimensional Seduction •eng• | M12: 2.5 Dimensional Seduction •eng• 02 | O12: Seite 1 | P12: =IF(CELL("spalte",P12)<CELL("spalte",$P12)+$Q$2, IF(MOD(CELL("zeile",P12)-CELL("zeile",P$4),$Q$2)=MOD(CELL("spalte",P12)-(CELL("spalte",$P12)),$Q$2),ean_conv(LEFT($J12,12)),""), "<>") -> <> | Q12: =IF(CELL("spalte",Q12)<CELL("spalte",$P12)+$Q$2, IF(MOD(CELL("zeile",Q12)-CELL("zeile",Q$4),$Q$2)=MOD(CELL("spalte",Q12)-(CELL("spalte",$P12)),$Q$2),ean_conv(LEFT($J12,12)),""), "<>") -> <> | R12: =IF(CELL("spalte",R12)<CELL("spalte",$P12)+$Q$2, IF(MOD(CELL("zeile",R12)-CELL("zeile",R$4),$Q$2)=MOD(CELL("spalte",R12)-(CELL("spalte",$P12)),$Q$2),ean_conv(LEFT($J12,12)),""), "<>") -> <> | S12: =IF(CELL("spalte",S12)<CELL("spalte",$P12)+$Q$2, IF(MOD(CELL("zeile",S12)-CELL("zeile",S$4),$Q$2)=MOD(CELL("spalte",S12)-(CELL("spalte",$P12)),$Q$2),ean_conv(LEFT($J12,12)),""), "<>") -> <> | T12: =IF(CELL("spalte",T12)<CELL("spalte",$P12)+$Q$2, IF(MOD(CELL("zeile",T12)-CELL("zeile",T$4),$Q$2)=MOD(CELL("spalte",T12)-(CELL("spalte",$P12)),$Q$2),ean_conv(LEFT($J12,12)),""), "<>") -> <> | U12: =IF(CELL("spalte",U12)<CELL("spalte",$P12)+$Q$2, IF(MOD(CELL("zeile",U12)-CELL("zeile",U$4),$Q$2)=MOD(CELL("spalte",U12)-(CELL("spalte",$P12)),$Q$2),ean_conv(LEFT($J12,12)),""), "<>") -> <> | V12: =IF(CELL("spalte",V12)<CELL("spalte",$P12)+$Q$2, IF(MOD(CELL("zeile",V12)-CELL("zeile",V$4),$Q$2)=MOD(CELL("spalte",V12)-(CELL("spalte",$P12)),$Q$2),ean_conv(LEFT($J12,12)),""), "<>") -> <> | W12: =IF(CELL("spalte",W12)<CELL("spalte",$P12)+$Q$2, IF(MOD(CELL("zeile",W12)-CELL("zeile",W$4),$Q$2)=MOD(CELL("spalte",W12)-(CELL("spalte",$P12)),$Q$2),ean_conv(LEFT($J12,12)),""), "<>") -> <> | X12: =IF(CELL("spalte",X12)<CELL("spalte",$P12)+$Q$2, IF(MOD(CELL("zeile",X12)-CELL("zeile",X$4),$Q$2)=MOD(CELL("spalte",X12)-(CELL("spalte",$P12)),$Q$2),ean_conv(LEFT($J12,12)),""), "<>") -> <> | Y12: =IF(CELL("spalte",Y12)<CELL("spalte",$P12)+$Q$2, IF(MOD(CELL("zeile",Y12)-CELL("zeile",Y$4),$Q$2)=MOD(CELL("spalte",Y12)-(CELL("spalte",$P12)),$Q$2),ean_conv(LEFT($J12,12)),""), "<>") -> <>
A13: 10 | B13: 2.5 Dimensional Seduction | C13: 3 | D13: Comedy | F13: eng | G13: Standard | H13: Ghost Ship | I13: X | J13: 9781638583912 | L13: 2.5 Dimensional Seduction •eng• | M13: 2.5 Dimensional Seduction •eng• 03 | O13: Seite 1 | P13: =IF(CELL("spalte",P13)<CELL("spalte",$P13)+$Q$2, IF(MOD(CELL("zeile",P13)-CELL("zeile",P$4),$Q$2)=MOD(CELL("spalte",P13)-(CELL("spalte",$P13)),$Q$2),ean_conv(LEFT($J13,12)),""), "<>") -> <> | Q13: =IF(CELL("spalte",Q13)<CELL("spalte",$P13)+$Q$2, IF(MOD(CELL("zeile",Q13)-CELL("zeile",Q$4),$Q$2)=MOD(CELL("spalte",Q13)-(CELL("spalte",$P13)),$Q$2),ean_conv(LEFT($J13,12)),""), "<>") -> <> | R13: =IF(CELL("spalte",R13)<CELL("spalte",$P13)+$Q$2, IF(MOD(CELL("zeile",R13)-CELL("zeile",R$4),$Q$2)=MOD(CELL("spalte",R13)-(CELL("spalte",$P13)),$Q$2),ean_conv(LEFT($J13,12)),""), "<>") -> <> | S13: =IF(CELL("spalte",S13)<CELL("spalte",$P13)+$Q$2, IF(MOD(CELL("zeile",S13)-CELL("zeile",S$4),$Q$2)=MOD(CELL("spalte",S13)-(CELL("spalte",$P13)),$Q$2),ean_conv(LEFT($J13,12)),""), "<>") -> <> | T13: =IF(CELL("spalte",T13)<CELL("spalte",$P13)+$Q$2, IF(MOD(CELL("zeile",T13)-CELL("zeile",T$4),$Q$2)=MOD(CELL("spalte",T13)-(CELL("spalte",$P13)),$Q$2),ean_conv(LEFT($J13,12)),""), "<>") -> <> | U13: =IF(CELL("spalte",U13)<CELL("spalte",$P13)+$Q$2, IF(MOD(CELL("zeile",U13)-CELL("zeile",U$4),$Q$2)=MOD(CELL("spalte",U13)-(CELL("spalte",$P13)),$Q$2),ean_conv(LEFT($J13,12)),""), "<>") -> <> | V13: =IF(CELL("spalte",V13)<CELL("spalte",$P13)+$Q$2, IF(MOD(CELL("zeile",V13)-CELL("zeile",V$4),$Q$2)=MOD(CELL("spalte",V13)-(CELL("spalte",$P13)),$Q$2),ean_conv(LEFT($J13,12)),""), "<>") -> <> | W13: =IF(CELL("spalte",W13)<CELL("spalte",$P13)+$Q$2, IF(MOD(CELL("zeile",W13)-CELL("zeile",W$4),$Q$2)=MOD(CELL("spalte",W13)-(CELL("spalte",$P13)),$Q$2),ean_conv(LEFT($J13,12)),""), "<>") -> <> | X13: =IF(CELL("spalte",X13)<CELL("spalte",$P13)+$Q$2, IF(MOD(CELL("zeile",X13)-CELL("zeile",X$4),$Q$2)=MOD(CELL("spalte",X13)-(CELL("spalte",$P13)),$Q$2),ean_conv(LEFT($J13,12)),""), "<>") -> <> | Y13: =IF(CELL("spalte",Y13)<CELL("spalte",$P13)+$Q$2, IF(MOD(CELL("zeile",Y13)-CELL("zeile",Y$4),$Q$2)=MOD(CELL("spalte",Y13)-(CELL("spalte",$P13)),$Q$2),ean_conv(LEFT($J13,12)),""), "<>") -> <>
A14: 11 | B14: 2.5 Dimensional Seduction | C14: 4 | D14: Comedy | F14: eng | G14: Standard | H14: Ghost Ship | I14: X | J14: 9781638587378 | L14: 2.5 Dimensional Seduction •eng• | M14: 2.5 Dimensional Seduction •eng• 04 | O14: Seite 1 | P14: =IF(CELL("spalte",P14)<CELL("spalte",$P14)+$Q$2, IF(MOD(CELL("zeile",P14)-CELL("zeile",P$4),$Q$2)=MOD(CELL("spalte",P14)-(CELL("spalte",$P14)),$Q$2),ean_conv(LEFT($J14,12)),""), "<>") -> <> | Q14: =IF(CELL("spalte",Q14)<CELL("spalte",$P14)+$Q$2, IF(MOD(CELL("zeile",Q14)-CELL("zeile",Q$4),$Q$2)=MOD(CELL("spalte",Q14)-(CELL("spalte",$P14)),$Q$2),ean_conv(LEFT($J14,12)),""), "<>") -> <> | R14: =IF(CELL("spalte",R14)<CELL("spalte",$P14)+$Q$2, IF(MOD(CELL("zeile",R14)-CELL("zeile",R$4),$Q$2)=MOD(CELL("spalte",R14)-(CELL("spalte",$P14)),$Q$2),ean_conv(LEFT($J14,12)),""), "<>") -> <> | S14: =IF(CELL("spalte",S14)<CELL("spalte",$P14)+$Q$2, IF(MOD(CELL("zeile",S14)-CELL("zeile",S$4),$Q$2)=MOD(CELL("spalte",S14)-(CELL("spalte",$P14)),$Q$2),ean_conv(LEFT($J14,12)),""), "<>") -> <> | T14: =IF(CELL("spalte",T14)<CELL("spalte",$P14)+$Q$2, IF(MOD(CELL("zeile",T14)-CELL("zeile",T$4),$Q$2)=MOD(CELL("spalte",T14)-(CELL("spalte",$P14)),$Q$2),ean_conv(LEFT($J14,12)),""), "<>") -> <> | U14: =IF(CELL("spalte",U14)<CELL("spalte",$P14)+$Q$2, IF(MOD(CELL("zeile",U14)-CELL("zeile",U$4),$Q$2)=MOD(CELL("spalte",U14)-(CELL("spalte",$P14)),$Q$2),ean_conv(LEFT($J14,12)),""), "<>") -> <> | V14: =IF(CELL("spalte",V14)<CELL("spalte",$P14)+$Q$2, IF(MOD(CELL("zeile",V14)-CELL("zeile",V$4),$Q$2)=MOD(CELL("spalte",V14)-(CELL("spalte",$P14)),$Q$2),ean_conv(LEFT($J14,12)),""), "<>") -> <> | W14: =IF(CELL("spalte",W14)<CELL("spalte",$P14)+$Q$2, IF(MOD(CELL("zeile",W14)-CELL("zeile",W$4),$Q$2)=MOD(CELL("spalte",W14)-(CELL("spalte",$P14)),$Q$2),ean_conv(LEFT($J14,12)),""), "<>") -> <> | X14: =IF(CELL("spalte",X14)<CELL("spalte",$P14)+$Q$2, IF(MOD(CELL("zeile",X14)-CELL("zeile",X$4),$Q$2)=MOD(CELL("spalte",X14)-(CELL("spalte",$P14)),$Q$2),ean_conv(LEFT($J14,12)),""), "<>") -> <> | Y14: =IF(CELL("spalte",Y14)<CELL("spalte",$P14)+$Q$2, IF(MOD(CELL("zeile",Y14)-CELL("zeile",Y$4),$Q$2)=MOD(CELL("spalte",Y14)-(CELL("spalte",$P14)),$Q$2),ean_conv(LEFT($J14,12)),""), "<>") -> <>
A15: 12 | B15: 2.5 Dimensional Seduction | C15: 5 | D15: Comedy | F15: eng | G15: Standard | H15: Ghost Ship | I15: X | J15: 9781638589273 | L15: 2.5 Dimensional Seduction •eng• | M15: 2.5 Dimensional Seduction •eng• 05 | O15: Seite 1 | P15: =IF(CELL("spalte",P15)<CELL("spalte",$P15)+$Q$2, IF(MOD(CELL("zeile",P15)-CELL("zeile",P$4),$Q$2)=MOD(CELL("spalte",P15)-(CELL("spalte",$P15)),$Q$2),ean_conv(LEFT($J15,12)),""), "<>") -> <> | Q15: =IF(CELL("spalte",Q15)<CELL("spalte",$P15)+$Q$2, IF(MOD(CELL("zeile",Q15)-CELL("zeile",Q$4),$Q$2)=MOD(CELL("spalte",Q15)-(CELL("spalte",$P15)),$Q$2),ean_conv(LEFT($J15,12)),""), "<>") -> <> | R15: =IF(CELL("spalte",R15)<CELL("spalte",$P15)+$Q$2, IF(MOD(CELL("zeile",R15)-CELL("zeile",R$4),$Q$2)=MOD(CELL("spalte",R15)-(CELL("spalte",$P15)),$Q$2),ean_conv(LEFT($J15,12)),""), "<>") -> <> | S15: =IF(CELL("spalte",S15)<CELL("spalte",$P15)+$Q$2, IF(MOD(CELL("zeile",S15)-CELL("zeile",S$4),$Q$2)=MOD(CELL("spalte",S15)-(CELL("spalte",$P15)),$Q$2),ean_conv(LEFT($J15,12)),""), "<>") -> <> | T15: =IF(CELL("spalte",T15)<CELL("spalte",$P15)+$Q$2, IF(MOD(CELL("zeile",T15)-CELL("zeile",T$4),$Q$2)=MOD(CELL("spalte",T15)-(CELL("spalte",$P15)),$Q$2),ean_conv(LEFT($J15,12)),""), "<>") -> <> | U15: =IF(CELL("spalte",U15)<CELL("spalte",$P15)+$Q$2, IF(MOD(CELL("zeile",U15)-CELL("zeile",U$4),$Q$2)=MOD(CELL("spalte",U15)-(CELL("spalte",$P15)),$Q$2),ean_conv(LEFT($J15,12)),""), "<>") -> <> | V15: =IF(CELL("spalte",V15)<CELL("spalte",$P15)+$Q$2, IF(MOD(CELL("zeile",V15)-CELL("zeile",V$4),$Q$2)=MOD(CELL("spalte",V15)-(CELL("spalte",$P15)),$Q$2),ean_conv(LEFT($J15,12)),""), "<>") -> <> | W15: =IF(CELL("spalte",W15)<CELL("spalte",$P15)+$Q$2, IF(MOD(CELL("zeile",W15)-CELL("zeile",W$4),$Q$2)=MOD(CELL("spalte",W15)-(CELL("spalte",$P15)),$Q$2),ean_conv(LEFT($J15,12)),""), "<>") -> <> | X15: =IF(CELL("spalte",X15)<CELL("spalte",$P15)+$Q$2, IF(MOD(CELL("zeile",X15)-CELL("zeile",X$4),$Q$2)=MOD(CELL("spalte",X15)-(CELL("spalte",$P15)),$Q$2),ean_conv(LEFT($J15,12)),""), "<>") -> <> | Y15: =IF(CELL("spalte",Y15)<CELL("spalte",$P15)+$Q$2, IF(MOD(CELL("zeile",Y15)-CELL("zeile",Y$4),$Q$2)=MOD(CELL("spalte",Y15)-(CELL("spalte",$P15)),$Q$2),ean_conv(LEFT($J15,12)),""), "<>") -> <>
A16: 13 | B16: 2.5 Dimensional Seduction | C16: 6 | D16: Comedy | F16: eng | G16: Standard | H16: Ghost Ship | I16: X | J16: 9781638589921 | L16: 2.5 Dimensional Seduction •eng• | M16: 2.5 Dimensional Seduction •eng• 06 | O16: Seite 1 | P16: =IF(CELL("spalte",P16)<CELL("spalte",$P16)+$Q$2, IF(MOD(CELL("zeile",P16)-CELL("zeile",P$4),$Q$2)=MOD(CELL("spalte",P16)-(CELL("spalte",$P16)),$Q$2),ean_conv(LEFT($J16,12)),""), "<>") -> <> | Q16: =IF(CELL("spalte",Q16)<CELL("spalte",$P16)+$Q$2, IF(MOD(CELL("zeile",Q16)-CELL("zeile",Q$4),$Q$2)=MOD(CELL("spalte",Q16)-(CELL("spalte",$P16)),$Q$2),ean_conv(LEFT($J16,12)),""), "<>") -> <> | R16: =IF(CELL("spalte",R16)<CELL("spalte",$P16)+$Q$2, IF(MOD(CELL("zeile",R16)-CELL("zeile",R$4),$Q$2)=MOD(CELL("spalte",R16)-(CELL("spalte",$P16)),$Q$2),ean_conv(LEFT($J16,12)),""), "<>") -> <> | S16: =IF(CELL("spalte",S16)<CELL("spalte",$P16)+$Q$2, IF(MOD(CELL("zeile",S16)-CELL("zeile",S$4),$Q$2)=MOD(CELL("spalte",S16)-(CELL("spalte",$P16)),$Q$2),ean_conv(LEFT($J16,12)),""), "<>") -> <> | T16: =IF(CELL("spalte",T16)<CELL("spalte",$P16)+$Q$2, IF(MOD(CELL("zeile",T16)-CELL("zeile",T$4),$Q$2)=MOD(CELL("spalte",T16)-(CELL("spalte",$P16)),$Q$2),ean_conv(LEFT($J16,12)),""), "<>") -> <> | U16: =IF(CELL("spalte",U16)<CELL("spalte",$P16)+$Q$2, IF(MOD(CELL("zeile",U16)-CELL("zeile",U$4),$Q$2)=MOD(CELL("spalte",U16)-(CELL("spalte",$P16)),$Q$2),ean_conv(LEFT($J16,12)),""), "<>") -> <> | V16: =IF(CELL("spalte",V16)<CELL("spalte",$P16)+$Q$2, IF(MOD(CELL("zeile",V16)-CELL("zeile",V$4),$Q$2)=MOD(CELL("spalte",V16)-(CELL("spalte",$P16)),$Q$2),ean_conv(LEFT($J16,12)),""), "<>") -> <> | W16: =IF(CELL("spalte",W16)<CELL("spalte",$P16)+$Q$2, IF(MOD(CELL("zeile",W16)-CELL("zeile",W$4),$Q$2)=MOD(CELL("spalte",W16)-(CELL("spalte",$P16)),$Q$2),ean_conv(LEFT($J16,12)),""), "<>") -> <> | X16: =IF(CELL("spalte",X16)<CELL("spalte",$P16)+$Q$2, IF(MOD(CELL("zeile",X16)-CELL("zeile",X$4),$Q$2)=MOD(CELL("spalte",X16)-(CELL("spalte",$P16)),$Q$2),ean_conv(LEFT($J16,12)),""), "<>") -> <> | Y16: =IF(CELL("spalte",Y16)<CELL("spalte",$P16)+$Q$2, IF(MOD(CELL("zeile",Y16)-CELL("zeile",Y$4),$Q$2)=MOD(CELL("spalte",Y16)-(CELL("spalte",$P16)),$Q$2),ean_conv(LEFT($J16,12)),""), "<>") -> <>
A17: 14 | B17: 2.5 Dimensional Seduction | C17: 7 | D17: Comedy | F17: eng | G17: Standard | H17: Ghost Ship | I17: X | J17: 9781685796006 | L17: 2.5 Dimensional Seduction •eng• | M17: 2.5 Dimensional Seduction •eng• 07 | O17: Seite 1 | P17: =IF(CELL("spalte",P17)<CELL("spalte",$P17)+$Q$2, IF(MOD(CELL("zeile",P17)-CELL("zeile",P$4),$Q$2)=MOD(CELL("spalte",P17)-(CELL("spalte",$P17)),$Q$2),ean_conv(LEFT($J17,12)),""), "<>") -> <> | Q17: =IF(CELL("spalte",Q17)<CELL("spalte",$P17)+$Q$2, IF(MOD(CELL("zeile",Q17)-CELL("zeile",Q$4),$Q$2)=MOD(CELL("spalte",Q17)-(CELL("spalte",$P17)),$Q$2),ean_conv(LEFT($J17,12)),""), "<>") -> <> | R17: =IF(CELL("spalte",R17)<CELL("spalte",$P17)+$Q$2, IF(MOD(CELL("zeile",R17)-CELL("zeile",R$4),$Q$2)=MOD(CELL("spalte",R17)-(CELL("spalte",$P17)),$Q$2),ean_conv(LEFT($J17,12)),""), "<>") -> <> | S17: =IF(CELL("spalte",S17)<CELL("spalte",$P17)+$Q$2, IF(MOD(CELL("zeile",S17)-CELL("zeile",S$4),$Q$2)=MOD(CELL("spalte",S17)-(CELL("spalte",$P17)),$Q$2),ean_conv(LEFT($J17,12)),""), "<>") -> <> | T17: =IF(CELL("spalte",T17)<CELL("spalte",$P17)+$Q$2, IF(MOD(CELL("zeile",T17)-CELL("zeile",T$4),$Q$2)=MOD(CELL("spalte",T17)-(CELL("spalte",$P17)),$Q$2),ean_conv(LEFT($J17,12)),""), "<>") -> <> | U17: =IF(CELL("spalte",U17)<CELL("spalte",$P17)+$Q$2, IF(MOD(CELL("zeile",U17)-CELL("zeile",U$4),$Q$2)=MOD(CELL("spalte",U17)-(CELL("spalte",$P17)),$Q$2),ean_conv(LEFT($J17,12)),""), "<>") -> <> | V17: =IF(CELL("spalte",V17)<CELL("spalte",$P17)+$Q$2, IF(MOD(CELL("zeile",V17)-CELL("zeile",V$4),$Q$2)=MOD(CELL("spalte",V17)-(CELL("spalte",$P17)),$Q$2),ean_conv(LEFT($J17,12)),""), "<>") -> <> | W17: =IF(CELL("spalte",W17)<CELL("spalte",$P17)+$Q$2, IF(MOD(CELL("zeile",W17)-CELL("zeile",W$4),$Q$2)=MOD(CELL("spalte",W17)-(CELL("spalte",$P17)),$Q$2),ean_conv(LEFT($J17,12)),""), "<>") -> <> | X17: =IF(CELL("spalte",X17)<CELL("spalte",$P17)+$Q$2, IF(MOD(CELL("zeile",X17)-CELL("zeile",X$4),$Q$2)=MOD(CELL("spalte",X17)-(CELL("spalte",$P17)),$Q$2),ean_conv(LEFT($J17,12)),""), "<>") -> <> | Y17: =IF(CELL("spalte",Y17)<CELL("spalte",$P17)+$Q$2, IF(MOD(CELL("zeile",Y17)-CELL("zeile",Y$4),$Q$2)=MOD(CELL("spalte",Y17)-(CELL("spalte",$P17)),$Q$2),ean_conv(LEFT($J17,12)),""), "<>") -> <>
A18: 15 | B18: 2.5 Dimensional Seduction | C18: 8 | D18: Comedy | F18: eng | G18: Standard | H18: Ghost Ship | I18: X | J18: 9781685795764 | L18: 2.5 Dimensional Seduction •eng• | M18: 2.5 Dimensional Seduction •eng• 08 | O18: Seite 1 | P18: =IF(CELL("spalte",P18)<CELL("spalte",$P18)+$Q$2, IF(MOD(CELL("zeile",P18)-CELL("zeile",P$4),$Q$2)=MOD(CELL("spalte",P18)-(CELL("spalte",$P18)),$Q$2),ean_conv(LEFT($J18,12)),""), "<>") -> <> | Q18: =IF(CELL("spalte",Q18)<CELL("spalte",$P18)+$Q$2, IF(MOD(CELL("zeile",Q18)-CELL("zeile",Q$4),$Q$2)=MOD(CELL("spalte",Q18)-(CELL("spalte",$P18)),$Q$2),ean_conv(LEFT($J18,12)),""), "<>") -> <> | R18: =IF(CELL("spalte",R18)<CELL("spalte",$P18)+$Q$2, IF(MOD(CELL("zeile",R18)-CELL("zeile",R$4),$Q$2)=MOD(CELL("spalte",R18)-(CELL("spalte",$P18)),$Q$2),ean_conv(LEFT($J18,12)),""), "<>") -> <> | S18: =IF(CELL("spalte",S18)<CELL("spalte",$P18)+$Q$2, IF(MOD(CELL("zeile",S18)-CELL("zeile",S$4),$Q$2)=MOD(CELL("spalte",S18)-(CELL("spalte",$P18)),$Q$2),ean_conv(LEFT($J18,12)),""), "<>") -> <> | T18: =IF(CELL("spalte",T18)<CELL("spalte",$P18)+$Q$2, IF(MOD(CELL("zeile",T18)-CELL("zeile",T$4),$Q$2)=MOD(CELL("spalte",T18)-(CELL("spalte",$P18)),$Q$2),ean_conv(LEFT($J18,12)),""), "<>") -> <> | U18: =IF(CELL("spalte",U18)<CELL("spalte",$P18)+$Q$2, IF(MOD(CELL("zeile",U18)-CELL("zeile",U$4),$Q$2)=MOD(CELL("spalte",U18)-(CELL("spalte",$P18)),$Q$2),ean_conv(LEFT($J18,12)),""), "<>") -> <> | V18: =IF(CELL("spalte",V18)<CELL("spalte",$P18)+$Q$2, IF(MOD(CELL("zeile",V18)-CELL("zeile",V$4),$Q$2)=MOD(CELL("spalte",V18)-(CELL("spalte",$P18)),$Q$2),ean_conv(LEFT($J18,12)),""), "<>") -> <> | W18: =IF(CELL("spalte",W18)<CELL("spalte",$P18)+$Q$2, IF(MOD(CELL("zeile",W18)-CELL("zeile",W$4),$Q$2)=MOD(CELL("spalte",W18)-(CELL("spalte",$P18)),$Q$2),ean_conv(LEFT($J18,12)),""), "<>") -> <> | X18: =IF(CELL("spalte",X18)<CELL("spalte",$P18)+$Q$2, IF(MOD(CELL("zeile",X18)-CELL("zeile",X$4),$Q$2)=MOD(CELL("spalte",X18)-(CELL("spalte",$P18)),$Q$2),ean_conv(LEFT($J18,12)),""), "<>") -> <> | Y18: =IF(CELL("spalte",Y18)<CELL("spalte",$P18)+$Q$2, IF(MOD(CELL("zeile",Y18)-CELL("zeile",Y$4),$Q$2)=MOD(CELL("spalte",Y18)-(CELL("spalte",$P18)),$Q$2),ean_conv(LEFT($J18,12)),""), "<>") -> <>
A19: 16 | B19: 2.5 Dimensional Seduction | C19: 9 | D19: Comedy | F19: eng | G19: Standard | H19: Ghost Ship | I19: X | J19: 9798888434086 | L19: 2.5 Dimensional Seduction •eng• | M19: 2.5 Dimensional Seduction •eng• 09 | O19: Seite 1 | P19: =IF(CELL("spalte",P19)<CELL("spalte",$P19)+$Q$2, IF(MOD(CELL("zeile",P19)-CELL("zeile",P$4),$Q$2)=MOD(CELL("spalte",P19)-(CELL("spalte",$P19)),$Q$2),ean_conv(LEFT($J19,12)),""), "<>") -> <> | Q19: =IF(CELL("spalte",Q19)<CELL("spalte",$P19)+$Q$2, IF(MOD(CELL("zeile",Q19)-CELL("zeile",Q$4),$Q$2)=MOD(CELL("spalte",Q19)-(CELL("spalte",$P19)),$Q$2),ean_conv(LEFT($J19,12)),""), "<>") -> <> | R19: =IF(CELL("spalte",R19)<CELL("spalte",$P19)+$Q$2, IF(MOD(CELL("zeile",R19)-CELL("zeile",R$4),$Q$2)=MOD(CELL("spalte",R19)-(CELL("spalte",$P19)),$Q$2),ean_conv(LEFT($J19,12)),""), "<>") -> <> | S19: =IF(CELL("spalte",S19)<CELL("spalte",$P19)+$Q$2, IF(MOD(CELL("zeile",S19)-CELL("zeile",S$4),$Q$2)=MOD(CELL("spalte",S19)-(CELL("spalte",$P19)),$Q$2),ean_conv(LEFT($J19,12)),""), "<>") -> <> | T19: =IF(CELL("spalte",T19)<CELL("spalte",$P19)+$Q$2, IF(MOD(CELL("zeile",T19)-CELL("zeile",T$4),$Q$2)=MOD(CELL("spalte",T19)-(CELL("spalte",$P19)),$Q$2),ean_conv(LEFT($J19,12)),""), "<>") -> <> | U19: =IF(CELL("spalte",U19)<CELL("spalte",$P19)+$Q$2, IF(MOD(CELL("zeile",U19)-CELL("zeile",U$4),$Q$2)=MOD(CELL("spalte",U19)-(CELL("spalte",$P19)),$Q$2),ean_conv(LEFT($J19,12)),""), "<>") -> <> | V19: =IF(CELL("spalte",V19)<CELL("spalte",$P19)+$Q$2, IF(MOD(CELL("zeile",V19)-CELL("zeile",V$4),$Q$2)=MOD(CELL("spalte",V19)-(CELL("spalte",$P19)),$Q$2),ean_conv(LEFT($J19,12)),""), "<>") -> <> | W19: =IF(CELL("spalte",W19)<CELL("spalte",$P19)+$Q$2, IF(MOD(CELL("zeile",W19)-CELL("zeile",W$4),$Q$2)=MOD(CELL("spalte",W19)-(CELL("spalte",$P19)),$Q$2),ean_conv(LEFT($J19,12)),""), "<>") -> <> | X19: =IF(CELL("spalte",X19)<CELL("spalte",$P19)+$Q$2, IF(MOD(CELL("zeile",X19)-CELL("zeile",X$4),$Q$2)=MOD(CELL("spalte",X19)-(CELL("spalte",$P19)),$Q$2),ean_conv(LEFT($J19,12)),""), "<>") -> <> | Y19: =IF(CELL("spalte",Y19)<CELL("spalte",$P19)+$Q$2, IF(MOD(CELL("zeile",Y19)-CELL("zeile",Y$4),$Q$2)=MOD(CELL("spalte",Y19)-(CELL("spalte",$P19)),$Q$2),ean_conv(LEFT($J19,12)),""), "<>") -> <>
A20: 17 | B20: 2.5 Dimensional Seduction | C20: 10 | D20: Comedy | F20: eng | G20: Standard | H20: Ghost Ship | I20: X | J20: 9798888436318 | L20: 2.5 Dimensional Seduction •eng• | M20: 2.5 Dimensional Seduction •eng• 10 | O20: Seite 1 | P20: =IF(CELL("spalte",P20)<CELL("spalte",$P20)+$Q$2, IF(MOD(CELL("zeile",P20)-CELL("zeile",P$4),$Q$2)=MOD(CELL("spalte",P20)-(CELL("spalte",$P20)),$Q$2),ean_conv(LEFT($J20,12)),""), "<>") -> <> | Q20: =IF(CELL("spalte",Q20)<CELL("spalte",$P20)+$Q$2, IF(MOD(CELL("zeile",Q20)-CELL("zeile",Q$4),$Q$2)=MOD(CELL("spalte",Q20)-(CELL("spalte",$P20)),$Q$2),ean_conv(LEFT($J20,12)),""), "<>") -> <> | R20: =IF(CELL("spalte",R20)<CELL("spalte",$P20)+$Q$2, IF(MOD(CELL("zeile",R20)-CELL("zeile",R$4),$Q$2)=MOD(CELL("spalte",R20)-(CELL("spalte",$P20)),$Q$2),ean_conv(LEFT($J20,12)),""), "<>") -> <> | S20: =IF(CELL("spalte",S20)<CELL("spalte",$P20)+$Q$2, IF(MOD(CELL("zeile",S20)-CELL("zeile",S$4),$Q$2)=MOD(CELL("spalte",S20)-(CELL("spalte",$P20)),$Q$2),ean_conv(LEFT($J20,12)),""), "<>") -> <> | T20: =IF(CELL("spalte",T20)<CELL("spalte",$P20)+$Q$2, IF(MOD(CELL("zeile",T20)-CELL("zeile",T$4),$Q$2)=MOD(CELL("spalte",T20)-(CELL("spalte",$P20)),$Q$2),ean_conv(LEFT($J20,12)),""), "<>") -> <> | U20: =IF(CELL("spalte",U20)<CELL("spalte",$P20)+$Q$2, IF(MOD(CELL("zeile",U20)-CELL("zeile",U$4),$Q$2)=MOD(CELL("spalte",U20)-(CELL("spalte",$P20)),$Q$2),ean_conv(LEFT($J20,12)),""), "<>") -> <> | V20: =IF(CELL("spalte",V20)<CELL("spalte",$P20)+$Q$2, IF(MOD(CELL("zeile",V20)-CELL("zeile",V$4),$Q$2)=MOD(CELL("spalte",V20)-(CELL("spalte",$P20)),$Q$2),ean_conv(LEFT($J20,12)),""), "<>") -> <> | W20: =IF(CELL("spalte",W20)<CELL("spalte",$P20)+$Q$2, IF(MOD(CELL("zeile",W20)-CELL("zeile",W$4),$Q$2)=MOD(CELL("spalte",W20)-(CELL("spalte",$P20)),$Q$2),ean_conv(LEFT($J20,12)),""), "<>") -> <> | X20: =IF(CELL("spalte",X20)<CELL("spalte",$P20)+$Q$2, IF(MOD(CELL("zeile",X20)-CELL("zeile",X$4),$Q$2)=MOD(CELL("spalte",X20)-(CELL("spalte",$P20)),$Q$2),ean_conv(LEFT($J20,12)),""), "<>") -> <> | Y20: =IF(CELL("spalte",Y20)<CELL("spalte",$P20)+$Q$2, IF(MOD(CELL("zeile",Y20)-CELL("zeile",Y$4),$Q$2)=MOD(CELL("spalte",Y20)-(CELL("spalte",$P20)),$Q$2),ean_conv(LEFT($J20,12)),""), "<>") -> <>
A21: 18 | B21: 2.5 Dimensional Seduction | C21: 11 | D21: Comedy | F21: eng | G21: Standard | H21: Ghost Ship | I21: X | J21: 9798891602069 | L21: 2.5 Dimensional Seduction •eng• | M21: 2.5 Dimensional Seduction •eng• 11 | O21: Seite 1 | P21: =IF(CELL("spalte",P21)<CELL("spalte",$P21)+$Q$2, IF(MOD(CELL("zeile",P21)-CELL("zeile",P$4),$Q$2)=MOD(CELL("spalte",P21)-(CELL("spalte",$P21)),$Q$2),ean_conv(LEFT($J21,12)),""), "<>") -> <> | Q21: =IF(CELL("spalte",Q21)<CELL("spalte",$P21)+$Q$2, IF(MOD(CELL("zeile",Q21)-CELL("zeile",Q$4),$Q$2)=MOD(CELL("spalte",Q21)-(CELL("spalte",$P21)),$Q$2),ean_conv(LEFT($J21,12)),""), "<>") -> <> | R21: =IF(CELL("spalte",R21)<CELL("spalte",$P21)+$Q$2, IF(MOD(CELL("zeile",R21)-CELL("zeile",R$4),$Q$2)=MOD(CELL("spalte",R21)-(CELL("spalte",$P21)),$Q$2),ean_conv(LEFT($J21,12)),""), "<>") -> <> | S21: =IF(CELL("spalte",S21)<CELL("spalte",$P21)+$Q$2, IF(MOD(CELL("zeile",S21)-CELL("zeile",S$4),$Q$2)=MOD(CELL("spalte",S21)-(CELL("spalte",$P21)),$Q$2),ean_conv(LEFT($J21,12)),""), "<>") -> <> | T21: =IF(CELL("spalte",T21)<CELL("spalte",$P21)+$Q$2, IF(MOD(CELL("zeile",T21)-CELL("zeile",T$4),$Q$2)=MOD(CELL("spalte",T21)-(CELL("spalte",$P21)),$Q$2),ean_conv(LEFT($J21,12)),""), "<>") -> <> | U21: =IF(CELL("spalte",U21)<CELL("spalte",$P21)+$Q$2, IF(MOD(CELL("zeile",U21)-CELL("zeile",U$4),$Q$2)=MOD(CELL("spalte",U21)-(CELL("spalte",$P21)),$Q$2),ean_conv(LEFT($J21,12)),""), "<>") -> <> | V21: =IF(CELL("spalte",V21)<CELL("spalte",$P21)+$Q$2, IF(MOD(CELL("zeile",V21)-CELL("zeile",V$4),$Q$2)=MOD(CELL("spalte",V21)-(CELL("spalte",$P21)),$Q$2),ean_conv(LEFT($J21,12)),""), "<>") -> <> | W21: =IF(CELL("spalte",W21)<CELL("spalte",$P21)+$Q$2, IF(MOD(CELL("zeile",W21)-CELL("zeile",W$4),$Q$2)=MOD(CELL("spalte",W21)-(CELL("spalte",$P21)),$Q$2),ean_conv(LEFT($J21,12)),""), "<>") -> <> | X21: =IF(CELL("spalte",X21)<CELL("spalte",$P21)+$Q$2, IF(MOD(CELL("zeile",X21)-CELL("zeile",X$4),$Q$2)=MOD(CELL("spalte",X21)-(CELL("spalte",$P21)),$Q$2),ean_conv(LEFT($J21,12)),""), "<>") -> <> | Y21: =IF(CELL("spalte",Y21)<CELL("spalte",$P21)+$Q$2, IF(MOD(CELL("zeile",Y21)-CELL("zeile",Y$4),$Q$2)=MOD(CELL("spalte",Y21)-(CELL("spalte",$P21)),$Q$2),ean_conv(LEFT($J21,12)),""), "<>") -> <>
A22: 19 | B22: 2.5 Dimensional Seduction | C22: 12 | D22: Comedy | F22: eng | G22: Standard | H22: Ghost Ship | I22: X | J22: 9798891602076 | L22: 2.5 Dimensional Seduction •eng• | M22: 2.5 Dimensional Seduction •eng• 12 | O22: Seite 1 | P22: =IF(CELL("spalte",P22)<CELL("spalte",$P22)+$Q$2, IF(MOD(CELL("zeile",P22)-CELL("zeile",P$4),$Q$2)=MOD(CELL("spalte",P22)-(CELL("spalte",$P22)),$Q$2),ean_conv(LEFT($J22,12)),""), "<>") -> <> | Q22: =IF(CELL("spalte",Q22)<CELL("spalte",$P22)+$Q$2, IF(MOD(CELL("zeile",Q22)-CELL("zeile",Q$4),$Q$2)=MOD(CELL("spalte",Q22)-(CELL("spalte",$P22)),$Q$2),ean_conv(LEFT($J22,12)),""), "<>") -> <> | R22: =IF(CELL("spalte",R22)<CELL("spalte",$P22)+$Q$2, IF(MOD(CELL("zeile",R22)-CELL("zeile",R$4),$Q$2)=MOD(CELL("spalte",R22)-(CELL("spalte",$P22)),$Q$2),ean_conv(LEFT($J22,12)),""), "<>") -> <> | S22: =IF(CELL("spalte",S22)<CELL("spalte",$P22)+$Q$2, IF(MOD(CELL("zeile",S22)-CELL("zeile",S$4),$Q$2)=MOD(CELL("spalte",S22)-(CELL("spalte",$P22)),$Q$2),ean_conv(LEFT($J22,12)),""), "<>") -> <> | T22: =IF(CELL("spalte",T22)<CELL("spalte",$P22)+$Q$2, IF(MOD(CELL("zeile",T22)-CELL("zeile",T$4),$Q$2)=MOD(CELL("spalte",T22)-(CELL("spalte",$P22)),$Q$2),ean_conv(LEFT($J22,12)),""), "<>") -> <> | U22: =IF(CELL("spalte",U22)<CELL("spalte",$P22)+$Q$2, IF(MOD(CELL("zeile",U22)-CELL("zeile",U$4),$Q$2)=MOD(CELL("spalte",U22)-(CELL("spalte",$P22)),$Q$2),ean_conv(LEFT($J22,12)),""), "<>") -> <> | V22: =IF(CELL("spalte",V22)<CELL("spalte",$P22)+$Q$2, IF(MOD(CELL("zeile",V22)-CELL("zeile",V$4),$Q$2)=MOD(CELL("spalte",V22)-(CELL("spalte",$P22)),$Q$2),ean_conv(LEFT($J22,12)),""), "<>") -> <> | W22: =IF(CELL("spalte",W22)<CELL("spalte",$P22)+$Q$2, IF(MOD(CELL("zeile",W22)-CELL("zeile",W$4),$Q$2)=MOD(CELL("spalte",W22)-(CELL("spalte",$P22)),$Q$2),ean_conv(LEFT($J22,12)),""), "<>") -> <> | X22: =IF(CELL("spalte",X22)<CELL("spalte",$P22)+$Q$2, IF(MOD(CELL("zeile",X22)-CELL("zeile",X$4),$Q$2)=MOD(CELL("spalte",X22)-(CELL("spalte",$P22)),$Q$2),ean_conv(LEFT($J22,12)),""), "<>") -> <> | Y22: =IF(CELL("spalte",Y22)<CELL("spalte",$P22)+$Q$2, IF(MOD(CELL("zeile",Y22)-CELL("zeile",Y$4),$Q$2)=MOD(CELL("spalte",Y22)-(CELL("spalte",$P22)),$Q$2),ean_conv(LEFT($J22,12)),""), "<>") -> <>
A23: 20 | B23: 2.5 Dimensional Seduction | C23: 13 | D23: Comedy | F23: eng | G23: Standard | H23: Ghost Ship | I23: X | J23: 9798891603912 | L23: 2.5 Dimensional Seduction •eng• | M23: 2.5 Dimensional Seduction •eng• 13 | O23: Seite 1 | P23: =IF(CELL("spalte",P23)<CELL("spalte",$P23)+$Q$2, IF(MOD(CELL("zeile",P23)-CELL("zeile",P$4),$Q$2)=MOD(CELL("spalte",P23)-(CELL("spalte",$P23)),$Q$2),ean_conv(LEFT($J23,12)),""), "<>") -> <> | Q23: =IF(CELL("spalte",Q23)<CELL("spalte",$P23)+$Q$2, IF(MOD(CELL("zeile",Q23)-CELL("zeile",Q$4),$Q$2)=MOD(CELL("spalte",Q23)-(CELL("spalte",$P23)),$Q$2),ean_conv(LEFT($J23,12)),""), "<>") -> <> | R23: =IF(CELL("spalte",R23)<CELL("spalte",$P23)+$Q$2, IF(MOD(CELL("zeile",R23)-CELL("zeile",R$4),$Q$2)=MOD(CELL("spalte",R23)-(CELL("spalte",$P23)),$Q$2),ean_conv(LEFT($J23,12)),""), "<>") -> <> | S23: =IF(CELL("spalte",S23)<CELL("spalte",$P23)+$Q$2, IF(MOD(CELL("zeile",S23)-CELL("zeile",S$4),$Q$2)=MOD(CELL("spalte",S23)-(CELL("spalte",$P23)),$Q$2),ean_conv(LEFT($J23,12)),""), "<>") -> <> | T23: =IF(CELL("spalte",T23)<CELL("spalte",$P23)+$Q$2, IF(MOD(CELL("zeile",T23)-CELL("zeile",T$4),$Q$2)=MOD(CELL("spalte",T23)-(CELL("spalte",$P23)),$Q$2),ean_conv(LEFT($J23,12)),""), "<>") -> <> | U23: =IF(CELL("spalte",U23)<CELL("spalte",$P23)+$Q$2, IF(MOD(CELL("zeile",U23)-CELL("zeile",U$4),$Q$2)=MOD(CELL("spalte",U23)-(CELL("spalte",$P23)),$Q$2),ean_conv(LEFT($J23,12)),""), "<>") -> <> | V23: =IF(CELL("spalte",V23)<CELL("spalte",$P23)+$Q$2, IF(MOD(CELL("zeile",V23)-CELL("zeile",V$4),$Q$2)=MOD(CELL("spalte",V23)-(CELL("spalte",$P23)),$Q$2),ean_conv(LEFT($J23,12)),""), "<>") -> <> | W23: =IF(CELL("spalte",W23)<CELL("spalte",$P23)+$Q$2, IF(MOD(CELL("zeile",W23)-CELL("zeile",W$4),$Q$2)=MOD(CELL("spalte",W23)-(CELL("spalte",$P23)),$Q$2),ean_conv(LEFT($J23,12)),""), "<>") -> <> | X23: =IF(CELL("spalte",X23)<CELL("spalte",$P23)+$Q$2, IF(MOD(CELL("zeile",X23)-CELL("zeile",X$4),$Q$2)=MOD(CELL("spalte",X23)-(CELL("spalte",$P23)),$Q$2),ean_conv(LEFT($J23,12)),""), "<>") -> <> | Y23: =IF(CELL("spalte",Y23)<CELL("spalte",$P23)+$Q$2, IF(MOD(CELL("zeile",Y23)-CELL("zeile",Y$4),$Q$2)=MOD(CELL("spalte",Y23)-(CELL("spalte",$P23)),$Q$2),ean_conv(LEFT($J23,12)),""), "<>") -> <>
A24: 21 | B24: 2.5 Dimensional Seduction | C24: 14 | D24: Comedy | F24: eng | G24: Standard | H24: Ghost Ship | I24: X | J24: 9798891609549 | L24: 2.5 Dimensional Seduction •eng• | M24: 2.5 Dimensional Seduction •eng• 14 | O24: Seite 1 | P24: =IF(CELL("spalte",P24)<CELL("spalte",$P24)+$Q$2, IF(MOD(CELL("zeile",P24)-CELL("zeile",P$4),$Q$2)=MOD(CELL("spalte",P24)-(CELL("spalte",$P24)),$Q$2),ean_conv(LEFT($J24,12)),""), "<>") -> <> | Q24: =IF(CELL("spalte",Q24)<CELL("spalte",$P24)+$Q$2, IF(MOD(CELL("zeile",Q24)-CELL("zeile",Q$4),$Q$2)=MOD(CELL("spalte",Q24)-(CELL("spalte",$P24)),$Q$2),ean_conv(LEFT($J24,12)),""), "<>") -> <> | R24: =IF(CELL("spalte",R24)<CELL("spalte",$P24)+$Q$2, IF(MOD(CELL("zeile",R24)-CELL("zeile",R$4),$Q$2)=MOD(CELL("spalte",R24)-(CELL("spalte",$P24)),$Q$2),ean_conv(LEFT($J24,12)),""), "<>") -> <> | S24: =IF(CELL("spalte",S24)<CELL("spalte",$P24)+$Q$2, IF(MOD(CELL("zeile",S24)-CELL("zeile",S$4),$Q$2)=MOD(CELL("spalte",S24)-(CELL("spalte",$P24)),$Q$2),ean_conv(LEFT($J24,12)),""), "<>") -> <> | T24: =IF(CELL("spalte",T24)<CELL("spalte",$P24)+$Q$2, IF(MOD(CELL("zeile",T24)-CELL("zeile",T$4),$Q$2)=MOD(CELL("spalte",T24)-(CELL("spalte",$P24)),$Q$2),ean_conv(LEFT($J24,12)),""), "<>") -> <> | U24: =IF(CELL("spalte",U24)<CELL("spalte",$P24)+$Q$2, IF(MOD(CELL("zeile",U24)-CELL("zeile",U$4),$Q$2)=MOD(CELL("spalte",U24)-(CELL("spalte",$P24)),$Q$2),ean_conv(LEFT($J24,12)),""), "<>") -> <> | V24: =IF(CELL("spalte",V24)<CELL("spalte",$P24)+$Q$2, IF(MOD(CELL("zeile",V24)-CELL("zeile",V$4),$Q$2)=MOD(CELL("spalte",V24)-(CELL("spalte",$P24)),$Q$2),ean_conv(LEFT($J24,12)),""), "<>") -> <> | W24: =IF(CELL("spalte",W24)<CELL("spalte",$P24)+$Q$2, IF(MOD(CELL("zeile",W24)-CELL("zeile",W$4),$Q$2)=MOD(CELL("spalte",W24)-(CELL("spalte",$P24)),$Q$2),ean_conv(LEFT($J24,12)),""), "<>") -> <> | X24: =IF(CELL("spalte",X24)<CELL("spalte",$P24)+$Q$2, IF(MOD(CELL("zeile",X24)-CELL("zeile",X$4),$Q$2)=MOD(CELL("spalte",X24)-(CELL("spalte",$P24)),$Q$2),ean_conv(LEFT($J24,12)),""), "<>") -> <> | Y24: =IF(CELL("spalte",Y24)<CELL("spalte",$P24)+$Q$2, IF(MOD(CELL("zeile",Y24)-CELL("zeile",Y$4),$Q$2)=MOD(CELL("spalte",Y24)-(CELL("spalte",$P24)),$Q$2),ean_conv(LEFT($J24,12)),""), "<>") -> <>
A25: 22 | B25: 2.5 Dimensional Seduction | C25: 15 | D25: Comedy | F25: eng | G25: Standard | H25: Ghost Ship | I25: X | J25: 9798893735864 | L25: 2.5 Dimensional Seduction •eng• | M25: 2.5 Dimensional Seduction •eng• 15 | O25: Seite 1 | P25: =IF(CELL("spalte",P25)<CELL("spalte",$P25)+$Q$2, IF(MOD(CELL("zeile",P25)-CELL("zeile",P$4),$Q$2)=MOD(CELL("spalte",P25)-(CELL("spalte",$P25)),$Q$2),ean_conv(LEFT($J25,12)),""), "<>") -> <> | Q25: =IF(CELL("spalte",Q25)<CELL("spalte",$P25)+$Q$2, IF(MOD(CELL("zeile",Q25)-CELL("zeile",Q$4),$Q$2)=MOD(CELL("spalte",Q25)-(CELL("spalte",$P25)),$Q$2),ean_conv(LEFT($J25,12)),""), "<>") -> <> | R25: =IF(CELL("spalte",R25)<CELL("spalte",$P25)+$Q$2, IF(MOD(CELL("zeile",R25)-CELL("zeile",R$4),$Q$2)=MOD(CELL("spalte",R25)-(CELL("spalte",$P25)),$Q$2),ean_conv(LEFT($J25,12)),""), "<>") -> <> | S25: =IF(CELL("spalte",S25)<CELL("spalte",$P25)+$Q$2, IF(MOD(CELL("zeile",S25)-CELL("zeile",S$4),$Q$2)=MOD(CELL("spalte",S25)-(CELL("spalte",$P25)),$Q$2),ean_conv(LEFT($J25,12)),""), "<>") -> <> | T25: =IF(CELL("spalte",T25)<CELL("spalte",$P25)+$Q$2, IF(MOD(CELL("zeile",T25)-CELL("zeile",T$4),$Q$2)=MOD(CELL("spalte",T25)-(CELL("spalte",$P25)),$Q$2),ean_conv(LEFT($J25,12)),""), "<>") -> <> | U25: =IF(CELL("spalte",U25)<CELL("spalte",$P25)+$Q$2, IF(MOD(CELL("zeile",U25)-CELL("zeile",U$4),$Q$2)=MOD(CELL("spalte",U25)-(CELL("spalte",$P25)),$Q$2),ean_conv(LEFT($J25,12)),""), "<>") -> <> | V25: =IF(CELL("spalte",V25)<CELL("spalte",$P25)+$Q$2, IF(MOD(CELL("zeile",V25)-CELL("zeile",V$4),$Q$2)=MOD(CELL("spalte",V25)-(CELL("spalte",$P25)),$Q$2),ean_conv(LEFT($J25,12)),""), "<>") -> <> | W25: =IF(CELL("spalte",W25)<CELL("spalte",$P25)+$Q$2, IF(MOD(CELL("zeile",W25)-CELL("zeile",W$4),$Q$2)=MOD(CELL("spalte",W25)-(CELL("spalte",$P25)),$Q$2),ean_conv(LEFT($J25,12)),""), "<>") -> <> | X25: =IF(CELL("spalte",X25)<CELL("spalte",$P25)+$Q$2, IF(MOD(CELL("zeile",X25)-CELL("zeile",X$4),$Q$2)=MOD(CELL("spalte",X25)-(CELL("spalte",$P25)),$Q$2),ean_conv(LEFT($J25,12)),""), "<>") -> <> | Y25: =IF(CELL("spalte",Y25)<CELL("spalte",$P25)+$Q$2, IF(MOD(CELL("zeile",Y25)-CELL("zeile",Y$4),$Q$2)=MOD(CELL("spalte",Y25)-(CELL("spalte",$P25)),$Q$2),ean_conv(LEFT($J25,12)),""), "<>") -> <>
A26: 23 | B26: 2.5 Dimensional Seduction | C26: 16 | D26: Comedy | F26: eng | G26: Standard | H26: Ghost Ship | I26: X | J26: 9798893735871 | L26: 2.5 Dimensional Seduction •eng• | M26: 2.5 Dimensional Seduction •eng• 16 | O26: Seite 1 | P26: =IF(CELL("spalte",P26)<CELL("spalte",$P26)+$Q$2, IF(MOD(CELL("zeile",P26)-CELL("zeile",P$4),$Q$2)=MOD(CELL("spalte",P26)-(CELL("spalte",$P26)),$Q$2),ean_conv(LEFT($J26,12)),""), "<>") -> <> | Q26: =IF(CELL("spalte",Q26)<CELL("spalte",$P26)+$Q$2, IF(MOD(CELL("zeile",Q26)-CELL("zeile",Q$4),$Q$2)=MOD(CELL("spalte",Q26)-(CELL("spalte",$P26)),$Q$2),ean_conv(LEFT($J26,12)),""), "<>") -> <> | R26: =IF(CELL("spalte",R26)<CELL("spalte",$P26)+$Q$2, IF(MOD(CELL("zeile",R26)-CELL("zeile",R$4),$Q$2)=MOD(CELL("spalte",R26)-(CELL("spalte",$P26)),$Q$2),ean_conv(LEFT($J26,12)),""), "<>") -> <> | S26: =IF(CELL("spalte",S26)<CELL("spalte",$P26)+$Q$2, IF(MOD(CELL("zeile",S26)-CELL("zeile",S$4),$Q$2)=MOD(CELL("spalte",S26)-(CELL("spalte",$P26)),$Q$2),ean_conv(LEFT($J26,12)),""), "<>") -> <> | T26: =IF(CELL("spalte",T26)<CELL("spalte",$P26)+$Q$2, IF(MOD(CELL("zeile",T26)-CELL("zeile",T$4),$Q$2)=MOD(CELL("spalte",T26)-(CELL("spalte",$P26)),$Q$2),ean_conv(LEFT($J26,12)),""), "<>") -> <> | U26: =IF(CELL("spalte",U26)<CELL("spalte",$P26)+$Q$2, IF(MOD(CELL("zeile",U26)-CELL("zeile",U$4),$Q$2)=MOD(CELL("spalte",U26)-(CELL("spalte",$P26)),$Q$2),ean_conv(LEFT($J26,12)),""), "<>") -> <> | V26: =IF(CELL("spalte",V26)<CELL("spalte",$P26)+$Q$2, IF(MOD(CELL("zeile",V26)-CELL("zeile",V$4),$Q$2)=MOD(CELL("spalte",V26)-(CELL("spalte",$P26)),$Q$2),ean_conv(LEFT($J26,12)),""), "<>") -> <> | W26: =IF(CELL("spalte",W26)<CELL("spalte",$P26)+$Q$2, IF(MOD(CELL("zeile",W26)-CELL("zeile",W$4),$Q$2)=MOD(CELL("spalte",W26)-(CELL("spalte",$P26)),$Q$2),ean_conv(LEFT($J26,12)),""), "<>") -> <> | X26: =IF(CELL("spalte",X26)<CELL("spalte",$P26)+$Q$2, IF(MOD(CELL("zeile",X26)-CELL("zeile",X$4),$Q$2)=MOD(CELL("spalte",X26)-(CELL("spalte",$P26)),$Q$2),ean_conv(LEFT($J26,12)),""), "<>") -> <> | Y26: =IF(CELL("spalte",Y26)<CELL("spalte",$P26)+$Q$2, IF(MOD(CELL("zeile",Y26)-CELL("zeile",Y$4),$Q$2)=MOD(CELL("spalte",Y26)-(CELL("spalte",$P26)),$Q$2),ean_conv(LEFT($J26,12)),""), "<>") -> <>
A27: 24 | B27: 2.5 Dimensional Seduction | C27: 17 | D27: Comedy | F27: eng | G27: Standard | H27: Ghost Ship | J27: 9798893735888 | L27: 2.5 Dimensional Seduction •eng• | M27: 2.5 Dimensional Seduction •eng• 17 | O27: Seite 1 | P27: =IF(CELL("spalte",P27)<CELL("spalte",$P27)+$Q$2, IF(MOD(CELL("zeile",P27)-CELL("zeile",P$4),$Q$2)=MOD(CELL("spalte",P27)-(CELL("spalte",$P27)),$Q$2),ean_conv(LEFT($J27,12)),""), "<>") -> <> | Q27: =IF(CELL("spalte",Q27)<CELL("spalte",$P27)+$Q$2, IF(MOD(CELL("zeile",Q27)-CELL("zeile",Q$4),$Q$2)=MOD(CELL("spalte",Q27)-(CELL("spalte",$P27)),$Q$2),ean_conv(LEFT($J27,12)),""), "<>") -> <> | R27: =IF(CELL("spalte",R27)<CELL("spalte",$P27)+$Q$2, IF(MOD(CELL("zeile",R27)-CELL("zeile",R$4),$Q$2)=MOD(CELL("spalte",R27)-(CELL("spalte",$P27)),$Q$2),ean_conv(LEFT($J27,12)),""), "<>") -> <> | S27: =IF(CELL("spalte",S27)<CELL("spalte",$P27)+$Q$2, IF(MOD(CELL("zeile",S27)-CELL("zeile",S$4),$Q$2)=MOD(CELL("spalte",S27)-(CELL("spalte",$P27)),$Q$2),ean_conv(LEFT($J27,12)),""), "<>") -> <> | T27: =IF(CELL("spalte",T27)<CELL("spalte",$P27)+$Q$2, IF(MOD(CELL("zeile",T27)-CELL("zeile",T$4),$Q$2)=MOD(CELL("spalte",T27)-(CELL("spalte",$P27)),$Q$2),ean_conv(LEFT($J27,12)),""), "<>") -> <> | U27: =IF(CELL("spalte",U27)<CELL("spalte",$P27)+$Q$2, IF(MOD(CELL("zeile",U27)-CELL("zeile",U$4),$Q$2)=MOD(CELL("spalte",U27)-(CELL("spalte",$P27)),$Q$2),ean_conv(LEFT($J27,12)),""), "<>") -> <> | V27: =IF(CELL("spalte",V27)<CELL("spalte",$P27)+$Q$2, IF(MOD(CELL("zeile",V27)-CELL("zeile",V$4),$Q$2)=MOD(CELL("spalte",V27)-(CELL("spalte",$P27)),$Q$2),ean_conv(LEFT($J27,12)),""), "<>") -> <> | W27: =IF(CELL("spalte",W27)<CELL("spalte",$P27)+$Q$2, IF(MOD(CELL("zeile",W27)-CELL("zeile",W$4),$Q$2)=MOD(CELL("spalte",W27)-(CELL("spalte",$P27)),$Q$2),ean_conv(LEFT($J27,12)),""), "<>") -> <> | X27: =IF(CELL("spalte",X27)<CELL("spalte",$P27)+$Q$2, IF(MOD(CELL("zeile",X27)-CELL("zeile",X$4),$Q$2)=MOD(CELL("spalte",X27)-(CELL("spalte",$P27)),$Q$2),ean_conv(LEFT($J27,12)),""), "<>") -> <> | Y27: =IF(CELL("spalte",Y27)<CELL("spalte",$P27)+$Q$2, IF(MOD(CELL("zeile",Y27)-CELL("zeile",Y$4),$Q$2)=MOD(CELL("spalte",Y27)-(CELL("spalte",$P27)),$Q$2),ean_conv(LEFT($J27,12)),""), "<>") -> <>
A28: 25 | B28: 2ZKB, Feder & Wecker | C28: 1 | D28: Girls Love | F28: deu | G28: Groß | H28: Altraverse | I28: X | J28: 9783963583209 | L28: 2ZKB, Feder & Wecker •deu• | M28: 2ZKB, Feder & Wecker •deu• 1 | O28: Seite 1 | P28: =IF(CELL("spalte",P28)<CELL("spalte",$P28)+$Q$2, IF(MOD(CELL("zeile",P28)-CELL("zeile",P$4),$Q$2)=MOD(CELL("spalte",P28)-(CELL("spalte",$P28)),$Q$2),ean_conv(LEFT($J28,12)),""), "<>") -> <> | Q28: =IF(CELL("spalte",Q28)<CELL("spalte",$P28)+$Q$2, IF(MOD(CELL("zeile",Q28)-CELL("zeile",Q$4),$Q$2)=MOD(CELL("spalte",Q28)-(CELL("spalte",$P28)),$Q$2),ean_conv(LEFT($J28,12)),""), "<>") -> <> | R28: =IF(CELL("spalte",R28)<CELL("spalte",$P28)+$Q$2, IF(MOD(CELL("zeile",R28)-CELL("zeile",R$4),$Q$2)=MOD(CELL("spalte",R28)-(CELL("spalte",$P28)),$Q$2),ean_conv(LEFT($J28,12)),""), "<>") -> <> | S28: =IF(CELL("spalte",S28)<CELL("spalte",$P28)+$Q$2, IF(MOD(CELL("zeile",S28)-CELL("zeile",S$4),$Q$2)=MOD(CELL("spalte",S28)-(CELL("spalte",$P28)),$Q$2),ean_conv(LEFT($J28,12)),""), "<>") -> <> | T28: =IF(CELL("spalte",T28)<CELL("spalte",$P28)+$Q$2, IF(MOD(CELL("zeile",T28)-CELL("zeile",T$4),$Q$2)=MOD(CELL("spalte",T28)-(CELL("spalte",$P28)),$Q$2),ean_conv(LEFT($J28,12)),""), "<>") -> <> | U28: =IF(CELL("spalte",U28)<CELL("spalte",$P28)+$Q$2, IF(MOD(CELL("zeile",U28)-CELL("zeile",U$4),$Q$2)=MOD(CELL("spalte",U28)-(CELL("spalte",$P28)),$Q$2),ean_conv(LEFT($J28,12)),""), "<>") -> <> | V28: =IF(CELL("spalte",V28)<CELL("spalte",$P28)+$Q$2, IF(MOD(CELL("zeile",V28)-CELL("zeile",V$4),$Q$2)=MOD(CELL("spalte",V28)-(CELL("spalte",$P28)),$Q$2),ean_conv(LEFT($J28,12)),""), "<>") -> <> | W28: =IF(CELL("spalte",W28)<CELL("spalte",$P28)+$Q$2, IF(MOD(CELL("zeile",W28)-CELL("zeile",W$4),$Q$2)=MOD(CELL("spalte",W28)-(CELL("spalte",$P28)),$Q$2),ean_conv(LEFT($J28,12)),""), "<>") -> <> | X28: =IF(CELL("spalte",X28)<CELL("spalte",$P28)+$Q$2, IF(MOD(CELL("zeile",X28)-CELL("zeile",X$4),$Q$2)=MOD(CELL("spalte",X28)-(CELL("spalte",$P28)),$Q$2),ean_conv(LEFT($J28,12)),""), "<>") -> <> | Y28: =IF(CELL("spalte",Y28)<CELL("spalte",$P28)+$Q$2, IF(MOD(CELL("zeile",Y28)-CELL("zeile",Y$4),$Q$2)=MOD(CELL("spalte",Y28)-(CELL("spalte",$P28)),$Q$2),ean_conv(LEFT($J28,12)),""), "<>") -> <>
A29: 26 | B29: 2ZKB, Feder & Wecker | C29: 2 | D29: Girls Love | F29: deu | G29: Groß | H29: Altraverse | I29: X | J29: 9783963583216 | L29: 2ZKB, Feder & Wecker •deu• | M29: 2ZKB, Feder & Wecker •deu• 2 | O29: Seite 1 | P29: =IF(CELL("spalte",P29)<CELL("spalte",$P29)+$Q$2, IF(MOD(CELL("zeile",P29)-CELL("zeile",P$4),$Q$2)=MOD(CELL("spalte",P29)-(CELL("spalte",$P29)),$Q$2),ean_conv(LEFT($J29,12)),""), "<>") -> <> | Q29: =IF(CELL("spalte",Q29)<CELL("spalte",$P29)+$Q$2, IF(MOD(CELL("zeile",Q29)-CELL("zeile",Q$4),$Q$2)=MOD(CELL("spalte",Q29)-(CELL("spalte",$P29)),$Q$2),ean_conv(LEFT($J29,12)),""), "<>") -> <> | R29: =IF(CELL("spalte",R29)<CELL("spalte",$P29)+$Q$2, IF(MOD(CELL("zeile",R29)-CELL("zeile",R$4),$Q$2)=MOD(CELL("spalte",R29)-(CELL("spalte",$P29)),$Q$2),ean_conv(LEFT($J29,12)),""), "<>") -> <> | S29: =IF(CELL("spalte",S29)<CELL("spalte",$P29)+$Q$2, IF(MOD(CELL("zeile",S29)-CELL("zeile",S$4),$Q$2)=MOD(CELL("spalte",S29)-(CELL("spalte",$P29)),$Q$2),ean_conv(LEFT($J29,12)),""), "<>") -> <> | T29: =IF(CELL("spalte",T29)<CELL("spalte",$P29)+$Q$2, IF(MOD(CELL("zeile",T29)-CELL("zeile",T$4),$Q$2)=MOD(CELL("spalte",T29)-(CELL("spalte",$P29)),$Q$2),ean_conv(LEFT($J29,12)),""), "<>") -> <> | U29: =IF(CELL("spalte",U29)<CELL("spalte",$P29)+$Q$2, IF(MOD(CELL("zeile",U29)-CELL("zeile",U$4),$Q$2)=MOD(CELL("spalte",U29)-(CELL("spalte",$P29)),$Q$2),ean_conv(LEFT($J29,12)),""), "<>") -> <> | V29: =IF(CELL("spalte",V29)<CELL("spalte",$P29)+$Q$2, IF(MOD(CELL("zeile",V29)-CELL("zeile",V$4),$Q$2)=MOD(CELL("spalte",V29)-(CELL("spalte",$P29)),$Q$2),ean_conv(LEFT($J29,12)),""), "<>") -> <> | W29: =IF(CELL("spalte",W29)<CELL("spalte",$P29)+$Q$2, IF(MOD(CELL("zeile",W29)-CELL("zeile",W$4),$Q$2)=MOD(CELL("spalte",W29)-(CELL("spalte",$P29)),$Q$2),ean_conv(LEFT($J29,12)),""), "<>") -> <> | X29: =IF(CELL("spalte",X29)<CELL("spalte",$P29)+$Q$2, IF(MOD(CELL("zeile",X29)-CELL("zeile",X$4),$Q$2)=MOD(CELL("spalte",X29)-(CELL("spalte",$P29)),$Q$2),ean_conv(LEFT($J29,12)),""), "<>") -> <> | Y29: =IF(CELL("spalte",Y29)<CELL("spalte",$P29)+$Q$2, IF(MOD(CELL("zeile",Y29)-CELL("zeile",Y$4),$Q$2)=MOD(CELL("spalte",Y29)-(CELL("spalte",$P29)),$Q$2),ean_conv(LEFT($J29,12)),""), "<>") -> <>
A30: 27 | B30: 2ZKB, Feder & Wecker | C30: 3 | D30: Girls Love | F30: deu | G30: Groß | H30: Altraverse | I30: X | J30: 9783963583940 | L30: 2ZKB, Feder & Wecker •deu• | M30: 2ZKB, Feder & Wecker •deu• 3 | O30: Seite 1 | P30: =IF(CELL("spalte",P30)<CELL("spalte",$P30)+$Q$2, IF(MOD(CELL("zeile",P30)-CELL("zeile",P$4),$Q$2)=MOD(CELL("spalte",P30)-(CELL("spalte",$P30)),$Q$2),ean_conv(LEFT($J30,12)),""), "<>") -> <> | Q30: =IF(CELL("spalte",Q30)<CELL("spalte",$P30)+$Q$2, IF(MOD(CELL("zeile",Q30)-CELL("zeile",Q$4),$Q$2)=MOD(CELL("spalte",Q30)-(CELL("spalte",$P30)),$Q$2),ean_conv(LEFT($J30,12)),""), "<>") -> <> | R30: =IF(CELL("spalte",R30)<CELL("spalte",$P30)+$Q$2, IF(MOD(CELL("zeile",R30)-CELL("zeile",R$4),$Q$2)=MOD(CELL("spalte",R30)-(CELL("spalte",$P30)),$Q$2),ean_conv(LEFT($J30,12)),""), "<>") -> <> | S30: =IF(CELL("spalte",S30)<CELL("spalte",$P30)+$Q$2, IF(MOD(CELL("zeile",S30)-CELL("zeile",S$4),$Q$2)=MOD(CELL("spalte",S30)-(CELL("spalte",$P30)),$Q$2),ean_conv(LEFT($J30,12)),""), "<>") -> <> | T30: =IF(CELL("spalte",T30)<CELL("spalte",$P30)+$Q$2, IF(MOD(CELL("zeile",T30)-CELL("zeile",T$4),$Q$2)=MOD(CELL("spalte",T30)-(CELL("spalte",$P30)),$Q$2),ean_conv(LEFT($J30,12)),""), "<>") -> <> | U30: =IF(CELL("spalte",U30)<CELL("spalte",$P30)+$Q$2, IF(MOD(CELL("zeile",U30)-CELL("zeile",U$4),$Q$2)=MOD(CELL("spalte",U30)-(CELL("spalte",$P30)),$Q$2),ean_conv(LEFT($J30,12)),""), "<>") -> <> | V30: =IF(CELL("spalte",V30)<CELL("spalte",$P30)+$Q$2, IF(MOD(CELL("zeile",V30)-CELL("zeile",V$4),$Q$2)=MOD(CELL("spalte",V30)-(CELL("spalte",$P30)),$Q$2),ean_conv(LEFT($J30,12)),""), "<>") -> <> | W30: =IF(CELL("spalte",W30)<CELL("spalte",$P30)+$Q$2, IF(MOD(CELL("zeile",W30)-CELL("zeile",W$4),$Q$2)=MOD(CELL("spalte",W30)-(CELL("spalte",$P30)),$Q$2),ean_conv(LEFT($J30,12)),""), "<>") -> <> | X30: =IF(CELL("spalte",X30)<CELL("spalte",$P30)+$Q$2, IF(MOD(CELL("zeile",X30)-CELL("zeile",X$4),$Q$2)=MOD(CELL("spalte",X30)-(CELL("spalte",$P30)),$Q$2),ean_conv(LEFT($J30,12)),""), "<>") -> <> | Y30: =IF(CELL("spalte",Y30)<CELL("spalte",$P30)+$Q$2, IF(MOD(CELL("zeile",Y30)-CELL("zeile",Y$4),$Q$2)=MOD(CELL("spalte",Y30)-(CELL("spalte",$P30)),$Q$2),ean_conv(LEFT($J30,12)),""), "<>") -> <>
A31: 28 | B31: 2ZKB, Feder & Wecker | C31: 4 | D31: Girls Love | F31: deu | G31: Groß | H31: Altraverse | I31: X | J31: 9783963583957 | L31: 2ZKB, Feder & Wecker •deu• | M31: 2ZKB, Feder & Wecker •deu• 4 | O31: Seite 1 | P31: =IF(CELL("spalte",P31)<CELL("spalte",$P31)+$Q$2, IF(MOD(CELL("zeile",P31)-CELL("zeile",P$4),$Q$2)=MOD(CELL("spalte",P31)-(CELL("spalte",$P31)),$Q$2),ean_conv(LEFT($J31,12)),""), "<>") -> <> | Q31: =IF(CELL("spalte",Q31)<CELL("spalte",$P31)+$Q$2, IF(MOD(CELL("zeile",Q31)-CELL("zeile",Q$4),$Q$2)=MOD(CELL("spalte",Q31)-(CELL("spalte",$P31)),$Q$2),ean_conv(LEFT($J31,12)),""), "<>") -> <> | R31: =IF(CELL("spalte",R31)<CELL("spalte",$P31)+$Q$2, IF(MOD(CELL("zeile",R31)-CELL("zeile",R$4),$Q$2)=MOD(CELL("spalte",R31)-(CELL("spalte",$P31)),$Q$2),ean_conv(LEFT($J31,12)),""), "<>") -> <> | S31: =IF(CELL("spalte",S31)<CELL("spalte",$P31)+$Q$2, IF(MOD(CELL("zeile",S31)-CELL("zeile",S$4),$Q$2)=MOD(CELL("spalte",S31)-(CELL("spalte",$P31)),$Q$2),ean_conv(LEFT($J31,12)),""), "<>") -> <> | T31: =IF(CELL("spalte",T31)<CELL("spalte",$P31)+$Q$2, IF(MOD(CELL("zeile",T31)-CELL("zeile",T$4),$Q$2)=MOD(CELL("spalte",T31)-(CELL("spalte",$P31)),$Q$2),ean_conv(LEFT($J31,12)),""), "<>") -> <> | U31: =IF(CELL("spalte",U31)<CELL("spalte",$P31)+$Q$2, IF(MOD(CELL("zeile",U31)-CELL("zeile",U$4),$Q$2)=MOD(CELL("spalte",U31)-(CELL("spalte",$P31)),$Q$2),ean_conv(LEFT($J31,12)),""), "<>") -> <> | V31: =IF(CELL("spalte",V31)<CELL("spalte",$P31)+$Q$2, IF(MOD(CELL("zeile",V31)-CELL("zeile",V$4),$Q$2)=MOD(CELL("spalte",V31)-(CELL("spalte",$P31)),$Q$2),ean_conv(LEFT($J31,12)),""), "<>") -> <> | W31: =IF(CELL("spalte",W31)<CELL("spalte",$P31)+$Q$2, IF(MOD(CELL("zeile",W31)-CELL("zeile",W$4),$Q$2)=MOD(CELL("spalte",W31)-(CELL("spalte",$P31)),$Q$2),ean_conv(LEFT($J31,12)),""), "<>") -> <> | X31: =IF(CELL("spalte",X31)<CELL("spalte",$P31)+$Q$2, IF(MOD(CELL("zeile",X31)-CELL("zeile",X$4),$Q$2)=MOD(CELL("spalte",X31)-(CELL("spalte",$P31)),$Q$2),ean_conv(LEFT($J31,12)),""), "<>") -> <> | Y31: =IF(CELL("spalte",Y31)<CELL("spalte",$P31)+$Q$2, IF(MOD(CELL("zeile",Y31)-CELL("zeile",Y$4),$Q$2)=MOD(CELL("spalte",Y31)-(CELL("spalte",$P31)),$Q$2),ean_conv(LEFT($J31,12)),""), "<>") -> <>
A32: 29 | B32: 2ZKB, Feder & Wecker | C32: 5 | D32: Girls Love | F32: deu | G32: Groß | H32: Altraverse | I32: X | J32: 9783963584336 | L32: 2ZKB, Feder & Wecker •deu• | M32: 2ZKB, Feder & Wecker •deu• 5 | O32: Seite 1 | P32: =IF(CELL("spalte",P32)<CELL("spalte",$P32)+$Q$2, IF(MOD(CELL("zeile",P32)-CELL("zeile",P$4),$Q$2)=MOD(CELL("spalte",P32)-(CELL("spalte",$P32)),$Q$2),ean_conv(LEFT($J32,12)),""), "<>") -> <> | Q32: =IF(CELL("spalte",Q32)<CELL("spalte",$P32)+$Q$2, IF(MOD(CELL("zeile",Q32)-CELL("zeile",Q$4),$Q$2)=MOD(CELL("spalte",Q32)-(CELL("spalte",$P32)),$Q$2),ean_conv(LEFT($J32,12)),""), "<>") -> <> | R32: =IF(CELL("spalte",R32)<CELL("spalte",$P32)+$Q$2, IF(MOD(CELL("zeile",R32)-CELL("zeile",R$4),$Q$2)=MOD(CELL("spalte",R32)-(CELL("spalte",$P32)),$Q$2),ean_conv(LEFT($J32,12)),""), "<>") -> <> | S32: =IF(CELL("spalte",S32)<CELL("spalte",$P32)+$Q$2, IF(MOD(CELL("zeile",S32)-CELL("zeile",S$4),$Q$2)=MOD(CELL("spalte",S32)-(CELL("spalte",$P32)),$Q$2),ean_conv(LEFT($J32,12)),""), "<>") -> <> | T32: =IF(CELL("spalte",T32)<CELL("spalte",$P32)+$Q$2, IF(MOD(CELL("zeile",T32)-CELL("zeile",T$4),$Q$2)=MOD(CELL("spalte",T32)-(CELL("spalte",$P32)),$Q$2),ean_conv(LEFT($J32,12)),""), "<>") -> <> | U32: =IF(CELL("spalte",U32)<CELL("spalte",$P32)+$Q$2, IF(MOD(CELL("zeile",U32)-CELL("zeile",U$4),$Q$2)=MOD(CELL("spalte",U32)-(CELL("spalte",$P32)),$Q$2),ean_conv(LEFT($J32,12)),""), "<>") -> <> | V32: =IF(CELL("spalte",V32)<CELL("spalte",$P32)+$Q$2, IF(MOD(CELL("zeile",V32)-CELL("zeile",V$4),$Q$2)=MOD(CELL("spalte",V32)-(CELL("spalte",$P32)),$Q$2),ean_conv(LEFT($J32,12)),""), "<>") -> <> | W32: =IF(CELL("spalte",W32)<CELL("spalte",$P32)+$Q$2, IF(MOD(CELL("zeile",W32)-CELL("zeile",W$4),$Q$2)=MOD(CELL("spalte",W32)-(CELL("spalte",$P32)),$Q$2),ean_conv(LEFT($J32,12)),""), "<>") -> <> | X32: =IF(CELL("spalte",X32)<CELL("spalte",$P32)+$Q$2, IF(MOD(CELL("zeile",X32)-CELL("zeile",X$4),$Q$2)=MOD(CELL("spalte",X32)-(CELL("spalte",$P32)),$Q$2),ean_conv(LEFT($J32,12)),""), "<>") -> <> | Y32: =IF(CELL("spalte",Y32)<CELL("spalte",$P32)+$Q$2, IF(MOD(CELL("zeile",Y32)-CELL("zeile",Y$4),$Q$2)=MOD(CELL("spalte",Y32)-(CELL("spalte",$P32)),$Q$2),ean_conv(LEFT($J32,12)),""), "<>") -> <>
A33: 30 | B33: 2ZKB, Feder & Wecker | C33: 6 | D33: Girls Love | F33: deu | G33: Groß | H33: Altraverse | I33: X | J33: 9783963585036 | L33: 2ZKB, Feder & Wecker •deu• | M33: 2ZKB, Feder & Wecker •deu• 6 | O33: Seite 1 | P33: =IF(CELL("spalte",P33)<CELL("spalte",$P33)+$Q$2, IF(MOD(CELL("zeile",P33)-CELL("zeile",P$4),$Q$2)=MOD(CELL("spalte",P33)-(CELL("spalte",$P33)),$Q$2),ean_conv(LEFT($J33,12)),""), "<>") -> <> | Q33: =IF(CELL("spalte",Q33)<CELL("spalte",$P33)+$Q$2, IF(MOD(CELL("zeile",Q33)-CELL("zeile",Q$4),$Q$2)=MOD(CELL("spalte",Q33)-(CELL("spalte",$P33)),$Q$2),ean_conv(LEFT($J33,12)),""), "<>") -> <> | R33: =IF(CELL("spalte",R33)<CELL("spalte",$P33)+$Q$2, IF(MOD(CELL("zeile",R33)-CELL("zeile",R$4),$Q$2)=MOD(CELL("spalte",R33)-(CELL("spalte",$P33)),$Q$2),ean_conv(LEFT($J33,12)),""), "<>") -> <> | S33: =IF(CELL("spalte",S33)<CELL("spalte",$P33)+$Q$2, IF(MOD(CELL("zeile",S33)-CELL("zeile",S$4),$Q$2)=MOD(CELL("spalte",S33)-(CELL("spalte",$P33)),$Q$2),ean_conv(LEFT($J33,12)),""), "<>") -> <> | T33: =IF(CELL("spalte",T33)<CELL("spalte",$P33)+$Q$2, IF(MOD(CELL("zeile",T33)-CELL("zeile",T$4),$Q$2)=MOD(CELL("spalte",T33)-(CELL("spalte",$P33)),$Q$2),ean_conv(LEFT($J33,12)),""), "<>") -> <> | U33: =IF(CELL("spalte",U33)<CELL("spalte",$P33)+$Q$2, IF(MOD(CELL("zeile",U33)-CELL("zeile",U$4),$Q$2)=MOD(CELL("spalte",U33)-(CELL("spalte",$P33)),$Q$2),ean_conv(LEFT($J33,12)),""), "<>") -> <> | V33: =IF(CELL("spalte",V33)<CELL("spalte",$P33)+$Q$2, IF(MOD(CELL("zeile",V33)-CELL("zeile",V$4),$Q$2)=MOD(CELL("spalte",V33)-(CELL("spalte",$P33)),$Q$2),ean_conv(LEFT($J33,12)),""), "<>") -> <> | W33: =IF(CELL("spalte",W33)<CELL("spalte",$P33)+$Q$2, IF(MOD(CELL("zeile",W33)-CELL("zeile",W$4),$Q$2)=MOD(CELL("spalte",W33)-(CELL("spalte",$P33)),$Q$2),ean_conv(LEFT($J33,12)),""), "<>") -> <> | X33: =IF(CELL("spalte",X33)<CELL("spalte",$P33)+$Q$2, IF(MOD(CELL("zeile",X33)-CELL("zeile",X$4),$Q$2)=MOD(CELL("spalte",X33)-(CELL("spalte",$P33)),$Q$2),ean_conv(LEFT($J33,12)),""), "<>") -> <> | Y33: =IF(CELL("spalte",Y33)<CELL("spalte",$P33)+$Q$2, IF(MOD(CELL("zeile",Y33)-CELL("zeile",Y$4),$Q$2)=MOD(CELL("spalte",Y33)-(CELL("spalte",$P33)),$Q$2),ean_conv(LEFT($J33,12)),""), "<>") -> <>
A34: 31 | B34: 2ZKB, Feder & Wecker | C34: 7 | D34: Girls Love | F34: deu | G34: Groß | H34: Altraverse | I34: X | J34: 9783963585043 | L34: 2ZKB, Feder & Wecker •deu• | M34: 2ZKB, Feder & Wecker •deu• 7 | O34: Seite 1 | P34: =IF(CELL("spalte",P34)<CELL("spalte",$P34)+$Q$2, IF(MOD(CELL("zeile",P34)-CELL("zeile",P$4),$Q$2)=MOD(CELL("spalte",P34)-(CELL("spalte",$P34)),$Q$2),ean_conv(LEFT($J34,12)),""), "<>") -> <> | Q34: =IF(CELL("spalte",Q34)<CELL("spalte",$P34)+$Q$2, IF(MOD(CELL("zeile",Q34)-CELL("zeile",Q$4),$Q$2)=MOD(CELL("spalte",Q34)-(CELL("spalte",$P34)),$Q$2),ean_conv(LEFT($J34,12)),""), "<>") -> <> | R34: =IF(CELL("spalte",R34)<CELL("spalte",$P34)+$Q$2, IF(MOD(CELL("zeile",R34)-CELL("zeile",R$4),$Q$2)=MOD(CELL("spalte",R34)-(CELL("spalte",$P34)),$Q$2),ean_conv(LEFT($J34,12)),""), "<>") -> <> | S34: =IF(CELL("spalte",S34)<CELL("spalte",$P34)+$Q$2, IF(MOD(CELL("zeile",S34)-CELL("zeile",S$4),$Q$2)=MOD(CELL("spalte",S34)-(CELL("spalte",$P34)),$Q$2),ean_conv(LEFT($J34,12)),""), "<>") -> <> | T34: =IF(CELL("spalte",T34)<CELL("spalte",$P34)+$Q$2, IF(MOD(CELL("zeile",T34)-CELL("zeile",T$4),$Q$2)=MOD(CELL("spalte",T34)-(CELL("spalte",$P34)),$Q$2),ean_conv(LEFT($J34,12)),""), "<>") -> <> | U34: =IF(CELL("spalte",U34)<CELL("spalte",$P34)+$Q$2, IF(MOD(CELL("zeile",U34)-CELL("zeile",U$4),$Q$2)=MOD(CELL("spalte",U34)-(CELL("spalte",$P34)),$Q$2),ean_conv(LEFT($J34,12)),""), "<>") -> <> | V34: =IF(CELL("spalte",V34)<CELL("spalte",$P34)+$Q$2, IF(MOD(CELL("zeile",V34)-CELL("zeile",V$4),$Q$2)=MOD(CELL("spalte",V34)-(CELL("spalte",$P34)),$Q$2),ean_conv(LEFT($J34,12)),""), "<>") -> <> | W34: =IF(CELL("spalte",W34)<CELL("spalte",$P34)+$Q$2, IF(MOD(CELL("zeile",W34)-CELL("zeile",W$4),$Q$2)=MOD(CELL("spalte",W34)-(CELL("spalte",$P34)),$Q$2),ean_conv(LEFT($J34,12)),""), "<>") -> <> | X34: =IF(CELL("spalte",X34)<CELL("spalte",$P34)+$Q$2, IF(MOD(CELL("zeile",X34)-CELL("zeile",X$4),$Q$2)=MOD(CELL("spalte",X34)-(CELL("spalte",$P34)),$Q$2),ean_conv(LEFT($J34,12)),""), "<>") -> <> | Y34: =IF(CELL("spalte",Y34)<CELL("spalte",$P34)+$Q$2, IF(MOD(CELL("zeile",Y34)-CELL("zeile",Y$4),$Q$2)=MOD(CELL("spalte",Y34)-(CELL("spalte",$P34)),$Q$2),ean_conv(LEFT($J34,12)),""), "<>") -> <>
A35: 32 | B35: 2ZKB, Feder & Wecker | C35: 8 | D35: Girls Love | F35: deu | G35: Groß | H35: Altraverse | I35: X | J35: 9783963586361 | L35: 2ZKB, Feder & Wecker •deu• | M35: 2ZKB, Feder & Wecker •deu• 8 | O35: Seite 1 | P35: =IF(CELL("spalte",P35)<CELL("spalte",$P35)+$Q$2, IF(MOD(CELL("zeile",P35)-CELL("zeile",P$4),$Q$2)=MOD(CELL("spalte",P35)-(CELL("spalte",$P35)),$Q$2),ean_conv(LEFT($J35,12)),""), "<>") -> <> | Q35: =IF(CELL("spalte",Q35)<CELL("spalte",$P35)+$Q$2, IF(MOD(CELL("zeile",Q35)-CELL("zeile",Q$4),$Q$2)=MOD(CELL("spalte",Q35)-(CELL("spalte",$P35)),$Q$2),ean_conv(LEFT($J35,12)),""), "<>") -> <> | R35: =IF(CELL("spalte",R35)<CELL("spalte",$P35)+$Q$2, IF(MOD(CELL("zeile",R35)-CELL("zeile",R$4),$Q$2)=MOD(CELL("spalte",R35)-(CELL("spalte",$P35)),$Q$2),ean_conv(LEFT($J35,12)),""), "<>") -> <> | S35: =IF(CELL("spalte",S35)<CELL("spalte",$P35)+$Q$2, IF(MOD(CELL("zeile",S35)-CELL("zeile",S$4),$Q$2)=MOD(CELL("spalte",S35)-(CELL("spalte",$P35)),$Q$2),ean_conv(LEFT($J35,12)),""), "<>") -> <> | T35: =IF(CELL("spalte",T35)<CELL("spalte",$P35)+$Q$2, IF(MOD(CELL("zeile",T35)-CELL("zeile",T$4),$Q$2)=MOD(CELL("spalte",T35)-(CELL("spalte",$P35)),$Q$2),ean_conv(LEFT($J35,12)),""), "<>") -> <> | U35: =IF(CELL("spalte",U35)<CELL("spalte",$P35)+$Q$2, IF(MOD(CELL("zeile",U35)-CELL("zeile",U$4),$Q$2)=MOD(CELL("spalte",U35)-(CELL("spalte",$P35)),$Q$2),ean_conv(LEFT($J35,12)),""), "<>") -> <> | V35: =IF(CELL("spalte",V35)<CELL("spalte",$P35)+$Q$2, IF(MOD(CELL("zeile",V35)-CELL("zeile",V$4),$Q$2)=MOD(CELL("spalte",V35)-(CELL("spalte",$P35)),$Q$2),ean_conv(LEFT($J35,12)),""), "<>") -> <> | W35: =IF(CELL("spalte",W35)<CELL("spalte",$P35)+$Q$2, IF(MOD(CELL("zeile",W35)-CELL("zeile",W$4),$Q$2)=MOD(CELL("spalte",W35)-(CELL("spalte",$P35)),$Q$2),ean_conv(LEFT($J35,12)),""), "<>") -> <> | X35: =IF(CELL("spalte",X35)<CELL("spalte",$P35)+$Q$2, IF(MOD(CELL("zeile",X35)-CELL("zeile",X$4),$Q$2)=MOD(CELL("spalte",X35)-(CELL("spalte",$P35)),$Q$2),ean_conv(LEFT($J35,12)),""), "<>") -> <> | Y35: =IF(CELL("spalte",Y35)<CELL("spalte",$P35)+$Q$2, IF(MOD(CELL("zeile",Y35)-CELL("zeile",Y$4),$Q$2)=MOD(CELL("spalte",Y35)-(CELL("spalte",$P35)),$Q$2),ean_conv(LEFT($J35,12)),""), "<>") -> <>
A36: 33 | B36: A Business Proposal | C36: 1 | D36: Romance | F36: eng | G36: Groß | H36: Ize Press | I36: X | J36: 9798400900334 | L36: A Business Proposal •eng• | M36: A Business Proposal •eng• 01 | O36: Seite 1 | P36: =IF(CELL("spalte",P36)<CELL("spalte",$P36)+$Q$2, IF(MOD(CELL("zeile",P36)-CELL("zeile",P$4),$Q$2)=MOD(CELL("spalte",P36)-(CELL("spalte",$P36)),$Q$2),ean_conv(LEFT($J36,12)),""), "<>") -> <> | Q36: =IF(CELL("spalte",Q36)<CELL("spalte",$P36)+$Q$2, IF(MOD(CELL("zeile",Q36)-CELL("zeile",Q$4),$Q$2)=MOD(CELL("spalte",Q36)-(CELL("spalte",$P36)),$Q$2),ean_conv(LEFT($J36,12)),""), "<>") -> <> | R36: =IF(CELL("spalte",R36)<CELL("spalte",$P36)+$Q$2, IF(MOD(CELL("zeile",R36)-CELL("zeile",R$4),$Q$2)=MOD(CELL("spalte",R36)-(CELL("spalte",$P36)),$Q$2),ean_conv(LEFT($J36,12)),""), "<>") -> <> | S36: =IF(CELL("spalte",S36)<CELL("spalte",$P36)+$Q$2, IF(MOD(CELL("zeile",S36)-CELL("zeile",S$4),$Q$2)=MOD(CELL("spalte",S36)-(CELL("spalte",$P36)),$Q$2),ean_conv(LEFT($J36,12)),""), "<>") -> <> | T36: =IF(CELL("spalte",T36)<CELL("spalte",$P36)+$Q$2, IF(MOD(CELL("zeile",T36)-CELL("zeile",T$4),$Q$2)=MOD(CELL("spalte",T36)-(CELL("spalte",$P36)),$Q$2),ean_conv(LEFT($J36,12)),""), "<>") -> <> | U36: =IF(CELL("spalte",U36)<CELL("spalte",$P36)+$Q$2, IF(MOD(CELL("zeile",U36)-CELL("zeile",U$4),$Q$2)=MOD(CELL("spalte",U36)-(CELL("spalte",$P36)),$Q$2),ean_conv(LEFT($J36,12)),""), "<>") -> <> | V36: =IF(CELL("spalte",V36)<CELL("spalte",$P36)+$Q$2, IF(MOD(CELL("zeile",V36)-CELL("zeile",V$4),$Q$2)=MOD(CELL("spalte",V36)-(CELL("spalte",$P36)),$Q$2),ean_conv(LEFT($J36,12)),""), "<>") -> <> | W36: =IF(CELL("spalte",W36)<CELL("spalte",$P36)+$Q$2, IF(MOD(CELL("zeile",W36)-CELL("zeile",W$4),$Q$2)=MOD(CELL("spalte",W36)-(CELL("spalte",$P36)),$Q$2),ean_conv(LEFT($J36,12)),""), "<>") -> <> | X36: =IF(CELL("spalte",X36)<CELL("spalte",$P36)+$Q$2, IF(MOD(CELL("zeile",X36)-CELL("zeile",X$4),$Q$2)=MOD(CELL("spalte",X36)-(CELL("spalte",$P36)),$Q$2),ean_conv(LEFT($J36,12)),""), "<>") -> <> | Y36: =IF(CELL("spalte",Y36)<CELL("spalte",$P36)+$Q$2, IF(MOD(CELL("zeile",Y36)-CELL("zeile",Y$4),$Q$2)=MOD(CELL("spalte",Y36)-(CELL("spalte",$P36)),$Q$2),ean_conv(LEFT($J36,12)),""), "<>") -> <>
A37: 34 | B37: A Business Proposal | C37: 2 | D37: Romance | F37: eng | G37: Groß | H37: Ize Press | I37: X | J37: 9798400900402 | L37: A Business Proposal •eng• | M37: A Business Proposal •eng• 02 | O37: Seite 1 | P37: =IF(CELL("spalte",P37)<CELL("spalte",$P37)+$Q$2, IF(MOD(CELL("zeile",P37)-CELL("zeile",P$4),$Q$2)=MOD(CELL("spalte",P37)-(CELL("spalte",$P37)),$Q$2),ean_conv(LEFT($J37,12)),""), "<>") -> <> | Q37: =IF(CELL("spalte",Q37)<CELL("spalte",$P37)+$Q$2, IF(MOD(CELL("zeile",Q37)-CELL("zeile",Q$4),$Q$2)=MOD(CELL("spalte",Q37)-(CELL("spalte",$P37)),$Q$2),ean_conv(LEFT($J37,12)),""), "<>") -> <> | R37: =IF(CELL("spalte",R37)<CELL("spalte",$P37)+$Q$2, IF(MOD(CELL("zeile",R37)-CELL("zeile",R$4),$Q$2)=MOD(CELL("spalte",R37)-(CELL("spalte",$P37)),$Q$2),ean_conv(LEFT($J37,12)),""), "<>") -> <> | S37: =IF(CELL("spalte",S37)<CELL("spalte",$P37)+$Q$2, IF(MOD(CELL("zeile",S37)-CELL("zeile",S$4),$Q$2)=MOD(CELL("spalte",S37)-(CELL("spalte",$P37)),$Q$2),ean_conv(LEFT($J37,12)),""), "<>") -> <> | T37: =IF(CELL("spalte",T37)<CELL("spalte",$P37)+$Q$2, IF(MOD(CELL("zeile",T37)-CELL("zeile",T$4),$Q$2)=MOD(CELL("spalte",T37)-(CELL("spalte",$P37)),$Q$2),ean_conv(LEFT($J37,12)),""), "<>") -> <> | U37: =IF(CELL("spalte",U37)<CELL("spalte",$P37)+$Q$2, IF(MOD(CELL("zeile",U37)-CELL("zeile",U$4),$Q$2)=MOD(CELL("spalte",U37)-(CELL("spalte",$P37)),$Q$2),ean_conv(LEFT($J37,12)),""), "<>") -> <> | V37: =IF(CELL("spalte",V37)<CELL("spalte",$P37)+$Q$2, IF(MOD(CELL("zeile",V37)-CELL("zeile",V$4),$Q$2)=MOD(CELL("spalte",V37)-(CELL("spalte",$P37)),$Q$2),ean_conv(LEFT($J37,12)),""), "<>") -> <> | W37: =IF(CELL("spalte",W37)<CELL("spalte",$P37)+$Q$2, IF(MOD(CELL("zeile",W37)-CELL("zeile",W$4),$Q$2)=MOD(CELL("spalte",W37)-(CELL("spalte",$P37)),$Q$2),ean_conv(LEFT($J37,12)),""), "<>") -> <> | X37: =IF(CELL("spalte",X37)<CELL("spalte",$P37)+$Q$2, IF(MOD(CELL("zeile",X37)-CELL("zeile",X$4),$Q$2)=MOD(CELL("spalte",X37)-(CELL("spalte",$P37)),$Q$2),ean_conv(LEFT($J37,12)),""), "<>") -> <> | Y37: =IF(CELL("spalte",Y37)<CELL("spalte",$P37)+$Q$2, IF(MOD(CELL("zeile",Y37)-CELL("zeile",Y$4),$Q$2)=MOD(CELL("spalte",Y37)-(CELL("spalte",$P37)),$Q$2),ean_conv(LEFT($J37,12)),""), "<>") -> <>
A38: 35 | B38: A Business Proposal | C38: 3 | D38: Romance | F38: eng | G38: Groß | H38: Ize Press | I38: X | J38: 9798400900426 | L38: A Business Proposal •eng• | M38: A Business Proposal •eng• 03 | O38: Seite 1 | P38: =IF(CELL("spalte",P38)<CELL("spalte",$P38)+$Q$2, IF(MOD(CELL("zeile",P38)-CELL("zeile",P$4),$Q$2)=MOD(CELL("spalte",P38)-(CELL("spalte",$P38)),$Q$2),ean_conv(LEFT($J38,12)),""), "<>") -> <> | Q38: =IF(CELL("spalte",Q38)<CELL("spalte",$P38)+$Q$2, IF(MOD(CELL("zeile",Q38)-CELL("zeile",Q$4),$Q$2)=MOD(CELL("spalte",Q38)-(CELL("spalte",$P38)),$Q$2),ean_conv(LEFT($J38,12)),""), "<>") -> <> | R38: =IF(CELL("spalte",R38)<CELL("spalte",$P38)+$Q$2, IF(MOD(CELL("zeile",R38)-CELL("zeile",R$4),$Q$2)=MOD(CELL("spalte",R38)-(CELL("spalte",$P38)),$Q$2),ean_conv(LEFT($J38,12)),""), "<>") -> <> | S38: =IF(CELL("spalte",S38)<CELL("spalte",$P38)+$Q$2, IF(MOD(CELL("zeile",S38)-CELL("zeile",S$4),$Q$2)=MOD(CELL("spalte",S38)-(CELL("spalte",$P38)),$Q$2),ean_conv(LEFT($J38,12)),""), "<>") -> <> | T38: =IF(CELL("spalte",T38)<CELL("spalte",$P38)+$Q$2, IF(MOD(CELL("zeile",T38)-CELL("zeile",T$4),$Q$2)=MOD(CELL("spalte",T38)-(CELL("spalte",$P38)),$Q$2),ean_conv(LEFT($J38,12)),""), "<>") -> <> | U38: =IF(CELL("spalte",U38)<CELL("spalte",$P38)+$Q$2, IF(MOD(CELL("zeile",U38)-CELL("zeile",U$4),$Q$2)=MOD(CELL("spalte",U38)-(CELL("spalte",$P38)),$Q$2),ean_conv(LEFT($J38,12)),""), "<>") -> <> | V38: =IF(CELL("spalte",V38)<CELL("spalte",$P38)+$Q$2, IF(MOD(CELL("zeile",V38)-CELL("zeile",V$4),$Q$2)=MOD(CELL("spalte",V38)-(CELL("spalte",$P38)),$Q$2),ean_conv(LEFT($J38,12)),""), "<>") -> <> | W38: =IF(CELL("spalte",W38)<CELL("spalte",$P38)+$Q$2, IF(MOD(CELL("zeile",W38)-CELL("zeile",W$4),$Q$2)=MOD(CELL("spalte",W38)-(CELL("spalte",$P38)),$Q$2),ean_conv(LEFT($J38,12)),""), "<>") -> <> | X38: =IF(CELL("spalte",X38)<CELL("spalte",$P38)+$Q$2, IF(MOD(CELL("zeile",X38)-CELL("zeile",X$4),$Q$2)=MOD(CELL("spalte",X38)-(CELL("spalte",$P38)),$Q$2),ean_conv(LEFT($J38,12)),""), "<>") -> <> | Y38: =IF(CELL("spalte",Y38)<CELL("spalte",$P38)+$Q$2, IF(MOD(CELL("zeile",Y38)-CELL("zeile",Y$4),$Q$2)=MOD(CELL("spalte",Y38)-(CELL("spalte",$P38)),$Q$2),ean_conv(LEFT($J38,12)),""), "<>") -> <>
A39: 36 | B39: A Business Proposal | C39: 4 | D39: Romance | F39: eng | G39: Groß | H39: Ize Press | I39: X | J39: 9798400900440 | L39: A Business Proposal •eng• | M39: A Business Proposal •eng• 04 | O39: Seite 1 | P39: =IF(CELL("spalte",P39)<CELL("spalte",$P39)+$Q$2, IF(MOD(CELL("zeile",P39)-CELL("zeile",P$4),$Q$2)=MOD(CELL("spalte",P39)-(CELL("spalte",$P39)),$Q$2),ean_conv(LEFT($J39,12)),""), "<>") -> <> | Q39: =IF(CELL("spalte",Q39)<CELL("spalte",$P39)+$Q$2, IF(MOD(CELL("zeile",Q39)-CELL("zeile",Q$4),$Q$2)=MOD(CELL("spalte",Q39)-(CELL("spalte",$P39)),$Q$2),ean_conv(LEFT($J39,12)),""), "<>") -> <> | R39: =IF(CELL("spalte",R39)<CELL("spalte",$P39)+$Q$2, IF(MOD(CELL("zeile",R39)-CELL("zeile",R$4),$Q$2)=MOD(CELL("spalte",R39)-(CELL("spalte",$P39)),$Q$2),ean_conv(LEFT($J39,12)),""), "<>") -> <> | S39: =IF(CELL("spalte",S39)<CELL("spalte",$P39)+$Q$2, IF(MOD(CELL("zeile",S39)-CELL("zeile",S$4),$Q$2)=MOD(CELL("spalte",S39)-(CELL("spalte",$P39)),$Q$2),ean_conv(LEFT($J39,12)),""), "<>") -> <> | T39: =IF(CELL("spalte",T39)<CELL("spalte",$P39)+$Q$2, IF(MOD(CELL("zeile",T39)-CELL("zeile",T$4),$Q$2)=MOD(CELL("spalte",T39)-(CELL("spalte",$P39)),$Q$2),ean_conv(LEFT($J39,12)),""), "<>") -> <> | U39: =IF(CELL("spalte",U39)<CELL("spalte",$P39)+$Q$2, IF(MOD(CELL("zeile",U39)-CELL("zeile",U$4),$Q$2)=MOD(CELL("spalte",U39)-(CELL("spalte",$P39)),$Q$2),ean_conv(LEFT($J39,12)),""), "<>") -> <> | V39: =IF(CELL("spalte",V39)<CELL("spalte",$P39)+$Q$2, IF(MOD(CELL("zeile",V39)-CELL("zeile",V$4),$Q$2)=MOD(CELL("spalte",V39)-(CELL("spalte",$P39)),$Q$2),ean_conv(LEFT($J39,12)),""), "<>") -> <> | W39: =IF(CELL("spalte",W39)<CELL("spalte",$P39)+$Q$2, IF(MOD(CELL("zeile",W39)-CELL("zeile",W$4),$Q$2)=MOD(CELL("spalte",W39)-(CELL("spalte",$P39)),$Q$2),ean_conv(LEFT($J39,12)),""), "<>") -> <> | X39: =IF(CELL("spalte",X39)<CELL("spalte",$P39)+$Q$2, IF(MOD(CELL("zeile",X39)-CELL("zeile",X$4),$Q$2)=MOD(CELL("spalte",X39)-(CELL("spalte",$P39)),$Q$2),ean_conv(LEFT($J39,12)),""), "<>") -> <> | Y39: =IF(CELL("spalte",Y39)<CELL("spalte",$P39)+$Q$2, IF(MOD(CELL("zeile",Y39)-CELL("zeile",Y$4),$Q$2)=MOD(CELL("spalte",Y39)-(CELL("spalte",$P39)),$Q$2),ean_conv(LEFT($J39,12)),""), "<>") -> <>
A40: 37 | B40: A Business Proposal | C40: 5 | D40: Romance | F40: eng | G40: Groß | H40: Ize Press | I40: X | J40: 9798400901560 | L40: A Business Proposal •eng• | M40: A Business Proposal •eng• 05 | O40: Seite 1 | P40: =IF(CELL("spalte",P40)<CELL("spalte",$P40)+$Q$2, IF(MOD(CELL("zeile",P40)-CELL("zeile",P$4),$Q$2)=MOD(CELL("spalte",P40)-(CELL("spalte",$P40)),$Q$2),ean_conv(LEFT($J40,12)),""), "<>") -> <> | Q40: =IF(CELL("spalte",Q40)<CELL("spalte",$P40)+$Q$2, IF(MOD(CELL("zeile",Q40)-CELL("zeile",Q$4),$Q$2)=MOD(CELL("spalte",Q40)-(CELL("spalte",$P40)),$Q$2),ean_conv(LEFT($J40,12)),""), "<>") -> <> | R40: =IF(CELL("spalte",R40)<CELL("spalte",$P40)+$Q$2, IF(MOD(CELL("zeile",R40)-CELL("zeile",R$4),$Q$2)=MOD(CELL("spalte",R40)-(CELL("spalte",$P40)),$Q$2),ean_conv(LEFT($J40,12)),""), "<>") -> <> | S40: =IF(CELL("spalte",S40)<CELL("spalte",$P40)+$Q$2, IF(MOD(CELL("zeile",S40)-CELL("zeile",S$4),$Q$2)=MOD(CELL("spalte",S40)-(CELL("spalte",$P40)),$Q$2),ean_conv(LEFT($J40,12)),""), "<>") -> <> | T40: =IF(CELL("spalte",T40)<CELL("spalte",$P40)+$Q$2, IF(MOD(CELL("zeile",T40)-CELL("zeile",T$4),$Q$2)=MOD(CELL("spalte",T40)-(CELL("spalte",$P40)),$Q$2),ean_conv(LEFT($J40,12)),""), "<>") -> <> | U40: =IF(CELL("spalte",U40)<CELL("spalte",$P40)+$Q$2, IF(MOD(CELL("zeile",U40)-CELL("zeile",U$4),$Q$2)=MOD(CELL("spalte",U40)-(CELL("spalte",$P40)),$Q$2),ean_conv(LEFT($J40,12)),""), "<>") -> <> | V40: =IF(CELL("spalte",V40)<CELL("spalte",$P40)+$Q$2, IF(MOD(CELL("zeile",V40)-CELL("zeile",V$4),$Q$2)=MOD(CELL("spalte",V40)-(CELL("spalte",$P40)),$Q$2),ean_conv(LEFT($J40,12)),""), "<>") -> <> | W40: =IF(CELL("spalte",W40)<CELL("spalte",$P40)+$Q$2, IF(MOD(CELL("zeile",W40)-CELL("zeile",W$4),$Q$2)=MOD(CELL("spalte",W40)-(CELL("spalte",$P40)),$Q$2),ean_conv(LEFT($J40,12)),""), "<>") -> <> | X40: =IF(CELL("spalte",X40)<CELL("spalte",$P40)+$Q$2, IF(MOD(CELL("zeile",X40)-CELL("zeile",X$4),$Q$2)=MOD(CELL("spalte",X40)-(CELL("spalte",$P40)),$Q$2),ean_conv(LEFT($J40,12)),""), "<>") -> <> | Y40: =IF(CELL("spalte",Y40)<CELL("spalte",$P40)+$Q$2, IF(MOD(CELL("zeile",Y40)-CELL("zeile",Y$4),$Q$2)=MOD(CELL("spalte",Y40)-(CELL("spalte",$P40)),$Q$2),ean_conv(LEFT($J40,12)),""), "<>") -> <>
A41: 38 | B41: A Business Proposal | C41: 6 | D41: Romance | F41: eng | G41: Groß | H41: Ize Press | I41: X | J41: 9798400901713 | L41: A Business Proposal •eng• | M41: A Business Proposal •eng• 06 | O41: Seite 1 | P41: =IF(CELL("spalte",P41)<CELL("spalte",$P41)+$Q$2, IF(MOD(CELL("zeile",P41)-CELL("zeile",P$4),$Q$2)=MOD(CELL("spalte",P41)-(CELL("spalte",$P41)),$Q$2),ean_conv(LEFT($J41,12)),""), "<>") -> <> | Q41: =IF(CELL("spalte",Q41)<CELL("spalte",$P41)+$Q$2, IF(MOD(CELL("zeile",Q41)-CELL("zeile",Q$4),$Q$2)=MOD(CELL("spalte",Q41)-(CELL("spalte",$P41)),$Q$2),ean_conv(LEFT($J41,12)),""), "<>") -> <> | R41: =IF(CELL("spalte",R41)<CELL("spalte",$P41)+$Q$2, IF(MOD(CELL("zeile",R41)-CELL("zeile",R$4),$Q$2)=MOD(CELL("spalte",R41)-(CELL("spalte",$P41)),$Q$2),ean_conv(LEFT($J41,12)),""), "<>") -> <> | S41: =IF(CELL("spalte",S41)<CELL("spalte",$P41)+$Q$2, IF(MOD(CELL("zeile",S41)-CELL("zeile",S$4),$Q$2)=MOD(CELL("spalte",S41)-(CELL("spalte",$P41)),$Q$2),ean_conv(LEFT($J41,12)),""), "<>") -> <> | T41: =IF(CELL("spalte",T41)<CELL("spalte",$P41)+$Q$2, IF(MOD(CELL("zeile",T41)-CELL("zeile",T$4),$Q$2)=MOD(CELL("spalte",T41)-(CELL("spalte",$P41)),$Q$2),ean_conv(LEFT($J41,12)),""), "<>") -> <> | U41: =IF(CELL("spalte",U41)<CELL("spalte",$P41)+$Q$2, IF(MOD(CELL("zeile",U41)-CELL("zeile",U$4),$Q$2)=MOD(CELL("spalte",U41)-(CELL("spalte",$P41)),$Q$2),ean_conv(LEFT($J41,12)),""), "<>") -> <> | V41: =IF(CELL("spalte",V41)<CELL("spalte",$P41)+$Q$2, IF(MOD(CELL("zeile",V41)-CELL("zeile",V$4),$Q$2)=MOD(CELL("spalte",V41)-(CELL("spalte",$P41)),$Q$2),ean_conv(LEFT($J41,12)),""), "<>") -> <> | W41: =IF(CELL("spalte",W41)<CELL("spalte",$P41)+$Q$2, IF(MOD(CELL("zeile",W41)-CELL("zeile",W$4),$Q$2)=MOD(CELL("spalte",W41)-(CELL("spalte",$P41)),$Q$2),ean_conv(LEFT($J41,12)),""), "<>") -> <> | X41: =IF(CELL("spalte",X41)<CELL("spalte",$P41)+$Q$2, IF(MOD(CELL("zeile",X41)-CELL("zeile",X$4),$Q$2)=MOD(CELL("spalte",X41)-(CELL("spalte",$P41)),$Q$2),ean_conv(LEFT($J41,12)),""), "<>") -> <> | Y41: =IF(CELL("spalte",Y41)<CELL("spalte",$P41)+$Q$2, IF(MOD(CELL("zeile",Y41)-CELL("zeile",Y$4),$Q$2)=MOD(CELL("spalte",Y41)-(CELL("spalte",$P41)),$Q$2),ean_conv(LEFT($J41,12)),""), "<>") -> <>
A42: 39 | B42: A Business Proposal | C42: 7 | D42: Romance | F42: eng | G42: Groß | H42: Ize Press | J42: 9798400901737 | L42: A Business Proposal •eng• | M42: A Business Proposal •eng• 07 | O42: Seite 1 | P42: =IF(CELL("spalte",P42)<CELL("spalte",$P42)+$Q$2, IF(MOD(CELL("zeile",P42)-CELL("zeile",P$4),$Q$2)=MOD(CELL("spalte",P42)-(CELL("spalte",$P42)),$Q$2),ean_conv(LEFT($J42,12)),""), "<>") -> <> | Q42: =IF(CELL("spalte",Q42)<CELL("spalte",$P42)+$Q$2, IF(MOD(CELL("zeile",Q42)-CELL("zeile",Q$4),$Q$2)=MOD(CELL("spalte",Q42)-(CELL("spalte",$P42)),$Q$2),ean_conv(LEFT($J42,12)),""), "<>") -> <> | R42: =IF(CELL("spalte",R42)<CELL("spalte",$P42)+$Q$2, IF(MOD(CELL("zeile",R42)-CELL("zeile",R$4),$Q$2)=MOD(CELL("spalte",R42)-(CELL("spalte",$P42)),$Q$2),ean_conv(LEFT($J42,12)),""), "<>") -> <> | S42: =IF(CELL("spalte",S42)<CELL("spalte",$P42)+$Q$2, IF(MOD(CELL("zeile",S42)-CELL("zeile",S$4),$Q$2)=MOD(CELL("spalte",S42)-(CELL("spalte",$P42)),$Q$2),ean_conv(LEFT($J42,12)),""), "<>") -> <> | T42: =IF(CELL("spalte",T42)<CELL("spalte",$P42)+$Q$2, IF(MOD(CELL("zeile",T42)-CELL("zeile",T$4),$Q$2)=MOD(CELL("spalte",T42)-(CELL("spalte",$P42)),$Q$2),ean_conv(LEFT($J42,12)),""), "<>") -> <> | U42: =IF(CELL("spalte",U42)<CELL("spalte",$P42)+$Q$2, IF(MOD(CELL("zeile",U42)-CELL("zeile",U$4),$Q$2)=MOD(CELL("spalte",U42)-(CELL("spalte",$P42)),$Q$2),ean_conv(LEFT($J42,12)),""), "<>") -> <> | V42: =IF(CELL("spalte",V42)<CELL("spalte",$P42)+$Q$2, IF(MOD(CELL("zeile",V42)-CELL("zeile",V$4),$Q$2)=MOD(CELL("spalte",V42)-(CELL("spalte",$P42)),$Q$2),ean_conv(LEFT($J42,12)),""), "<>") -> <> | W42: =IF(CELL("spalte",W42)<CELL("spalte",$P42)+$Q$2, IF(MOD(CELL("zeile",W42)-CELL("zeile",W$4),$Q$2)=MOD(CELL("spalte",W42)-(CELL("spalte",$P42)),$Q$2),ean_conv(LEFT($J42,12)),""), "<>") -> <> | X42: =IF(CELL("spalte",X42)<CELL("spalte",$P42)+$Q$2, IF(MOD(CELL("zeile",X42)-CELL("zeile",X$4),$Q$2)=MOD(CELL("spalte",X42)-(CELL("spalte",$P42)),$Q$2),ean_conv(LEFT($J42,12)),""), "<>") -> <> | Y42: =IF(CELL("spalte",Y42)<CELL("spalte",$P42)+$Q$2, IF(MOD(CELL("zeile",Y42)-CELL("zeile",Y$4),$Q$2)=MOD(CELL("spalte",Y42)-(CELL("spalte",$P42)),$Q$2),ean_conv(LEFT($J42,12)),""), "<>") -> <>
A43: 40 | B43: A Business Proposal | C43: 8 | D43: Romance | F43: eng | G43: Groß | H43: Ize Press | J43: 9798400901751 | L43: A Business Proposal •eng• | M43: A Business Proposal •eng• 08 | O43: Seite 1 | P43: =IF(CELL("spalte",P43)<CELL("spalte",$P43)+$Q$2, IF(MOD(CELL("zeile",P43)-CELL("zeile",P$4),$Q$2)=MOD(CELL("spalte",P43)-(CELL("spalte",$P43)),$Q$2),ean_conv(LEFT($J43,12)),""), "<>") -> <> | Q43: =IF(CELL("spalte",Q43)<CELL("spalte",$P43)+$Q$2, IF(MOD(CELL("zeile",Q43)-CELL("zeile",Q$4),$Q$2)=MOD(CELL("spalte",Q43)-(CELL("spalte",$P43)),$Q$2),ean_conv(LEFT($J43,12)),""), "<>") -> <> | R43: =IF(CELL("spalte",R43)<CELL("spalte",$P43)+$Q$2, IF(MOD(CELL("zeile",R43)-CELL("zeile",R$4),$Q$2)=MOD(CELL("spalte",R43)-(CELL("spalte",$P43)),$Q$2),ean_conv(LEFT($J43,12)),""), "<>") -> <> | S43: =IF(CELL("spalte",S43)<CELL("spalte",$P43)+$Q$2, IF(MOD(CELL("zeile",S43)-CELL("zeile",S$4),$Q$2)=MOD(CELL("spalte",S43)-(CELL("spalte",$P43)),$Q$2),ean_conv(LEFT($J43,12)),""), "<>") -> <> | T43: =IF(CELL("spalte",T43)<CELL("spalte",$P43)+$Q$2, IF(MOD(CELL("zeile",T43)-CELL("zeile",T$4),$Q$2)=MOD(CELL("spalte",T43)-(CELL("spalte",$P43)),$Q$2),ean_conv(LEFT($J43,12)),""), "<>") -> <> | U43: =IF(CELL("spalte",U43)<CELL("spalte",$P43)+$Q$2, IF(MOD(CELL("zeile",U43)-CELL("zeile",U$4),$Q$2)=MOD(CELL("spalte",U43)-(CELL("spalte",$P43)),$Q$2),ean_conv(LEFT($J43,12)),""), "<>") -> <> | V43: =IF(CELL("spalte",V43)<CELL("spalte",$P43)+$Q$2, IF(MOD(CELL("zeile",V43)-CELL("zeile",V$4),$Q$2)=MOD(CELL("spalte",V43)-(CELL("spalte",$P43)),$Q$2),ean_conv(LEFT($J43,12)),""), "<>") -> <> | W43: =IF(CELL("spalte",W43)<CELL("spalte",$P43)+$Q$2, IF(MOD(CELL("zeile",W43)-CELL("zeile",W$4),$Q$2)=MOD(CELL("spalte",W43)-(CELL("spalte",$P43)),$Q$2),ean_conv(LEFT($J43,12)),""), "<>") -> <> | X43: =IF(CELL("spalte",X43)<CELL("spalte",$P43)+$Q$2, IF(MOD(CELL("zeile",X43)-CELL("zeile",X$4),$Q$2)=MOD(CELL("spalte",X43)-(CELL("spalte",$P43)),$Q$2),ean_conv(LEFT($J43,12)),""), "<>") -> <> | Y43: =IF(CELL("spalte",Y43)<CELL("spalte",$P43)+$Q$2, IF(MOD(CELL("zeile",Y43)-CELL("zeile",Y$4),$Q$2)=MOD(CELL("spalte",Y43)-(CELL("spalte",$P43)),$Q$2),ean_conv(LEFT($J43,12)),""), "<>") -> <>
A44: 41 | B44: A Business Proposal | C44: 9 | D44: Romance | F44: eng | G44: Groß | H44: Ize Press | J44: 9798400901775 | L44: A Business Proposal •eng• | M44: A Business Proposal •eng• 09 | O44: Seite 1 | P44: =IF(CELL("spalte",P44)<CELL("spalte",$P44)+$Q$2, IF(MOD(CELL("zeile",P44)-CELL("zeile",P$4),$Q$2)=MOD(CELL("spalte",P44)-(CELL("spalte",$P44)),$Q$2),ean_conv(LEFT($J44,12)),""), "<>") -> <> | Q44: =IF(CELL("spalte",Q44)<CELL("spalte",$P44)+$Q$2, IF(MOD(CELL("zeile",Q44)-CELL("zeile",Q$4),$Q$2)=MOD(CELL("spalte",Q44)-(CELL("spalte",$P44)),$Q$2),ean_conv(LEFT($J44,12)),""), "<>") -> <> | R44: =IF(CELL("spalte",R44)<CELL("spalte",$P44)+$Q$2, IF(MOD(CELL("zeile",R44)-CELL("zeile",R$4),$Q$2)=MOD(CELL("spalte",R44)-(CELL("spalte",$P44)),$Q$2),ean_conv(LEFT($J44,12)),""), "<>") -> <> | S44: =IF(CELL("spalte",S44)<CELL("spalte",$P44)+$Q$2, IF(MOD(CELL("zeile",S44)-CELL("zeile",S$4),$Q$2)=MOD(CELL("spalte",S44)-(CELL("spalte",$P44)),$Q$2),ean_conv(LEFT($J44,12)),""), "<>") -> <> | T44: =IF(CELL("spalte",T44)<CELL("spalte",$P44)+$Q$2, IF(MOD(CELL("zeile",T44)-CELL("zeile",T$4),$Q$2)=MOD(CELL("spalte",T44)-(CELL("spalte",$P44)),$Q$2),ean_conv(LEFT($J44,12)),""), "<>") -> <> | U44: =IF(CELL("spalte",U44)<CELL("spalte",$P44)+$Q$2, IF(MOD(CELL("zeile",U44)-CELL("zeile",U$4),$Q$2)=MOD(CELL("spalte",U44)-(CELL("spalte",$P44)),$Q$2),ean_conv(LEFT($J44,12)),""), "<>") -> <> | V44: =IF(CELL("spalte",V44)<CELL("spalte",$P44)+$Q$2, IF(MOD(CELL("zeile",V44)-CELL("zeile",V$4),$Q$2)=MOD(CELL("spalte",V44)-(CELL("spalte",$P44)),$Q$2),ean_conv(LEFT($J44,12)),""), "<>") -> <> | W44: =IF(CELL("spalte",W44)<CELL("spalte",$P44)+$Q$2, IF(MOD(CELL("zeile",W44)-CELL("zeile",W$4),$Q$2)=MOD(CELL("spalte",W44)-(CELL("spalte",$P44)),$Q$2),ean_conv(LEFT($J44,12)),""), "<>") -> <> | X44: =IF(CELL("spalte",X44)<CELL("spalte",$P44)+$Q$2, IF(MOD(CELL("zeile",X44)-CELL("zeile",X$4),$Q$2)=MOD(CELL("spalte",X44)-(CELL("spalte",$P44)),$Q$2),ean_conv(LEFT($J44,12)),""), "<>") -> <> | Y44: =IF(CELL("spalte",Y44)<CELL("spalte",$P44)+$Q$2, IF(MOD(CELL("zeile",Y44)-CELL("zeile",Y$4),$Q$2)=MOD(CELL("spalte",Y44)-(CELL("spalte",$P44)),$Q$2),ean_conv(LEFT($J44,12)),""), "<>") -> <>
A45: 42 | B45: A Business Proposal | C45: 10 | D45: Romance | F45: eng | G45: Groß | H45: Ize Press | J45: 9798400901799 | L45: A Business Proposal •eng• | M45: A Business Proposal •eng• 10 | O45: Seite 1 | P45: =IF(CELL("spalte",P45)<CELL("spalte",$P45)+$Q$2, IF(MOD(CELL("zeile",P45)-CELL("zeile",P$4),$Q$2)=MOD(CELL("spalte",P45)-(CELL("spalte",$P45)),$Q$2),ean_conv(LEFT($J45,12)),""), "<>") -> <> | Q45: =IF(CELL("spalte",Q45)<CELL("spalte",$P45)+$Q$2, IF(MOD(CELL("zeile",Q45)-CELL("zeile",Q$4),$Q$2)=MOD(CELL("spalte",Q45)-(CELL("spalte",$P45)),$Q$2),ean_conv(LEFT($J45,12)),""), "<>") -> <> | R45: =IF(CELL("spalte",R45)<CELL("spalte",$P45)+$Q$2, IF(MOD(CELL("zeile",R45)-CELL("zeile",R$4),$Q$2)=MOD(CELL("spalte",R45)-(CELL("spalte",$P45)),$Q$2),ean_conv(LEFT($J45,12)),""), "<>") -> <> | S45: =IF(CELL("spalte",S45)<CELL("spalte",$P45)+$Q$2, IF(MOD(CELL("zeile",S45)-CELL("zeile",S$4),$Q$2)=MOD(CELL("spalte",S45)-(CELL("spalte",$P45)),$Q$2),ean_conv(LEFT($J45,12)),""), "<>") -> <> | T45: =IF(CELL("spalte",T45)<CELL("spalte",$P45)+$Q$2, IF(MOD(CELL("zeile",T45)-CELL("zeile",T$4),$Q$2)=MOD(CELL("spalte",T45)-(CELL("spalte",$P45)),$Q$2),ean_conv(LEFT($J45,12)),""), "<>") -> <> | U45: =IF(CELL("spalte",U45)<CELL("spalte",$P45)+$Q$2, IF(MOD(CELL("zeile",U45)-CELL("zeile",U$4),$Q$2)=MOD(CELL("spalte",U45)-(CELL("spalte",$P45)),$Q$2),ean_conv(LEFT($J45,12)),""), "<>") -> <> | V45: =IF(CELL("spalte",V45)<CELL("spalte",$P45)+$Q$2, IF(MOD(CELL("zeile",V45)-CELL("zeile",V$4),$Q$2)=MOD(CELL("spalte",V45)-(CELL("spalte",$P45)),$Q$2),ean_conv(LEFT($J45,12)),""), "<>") -> <> | W45: =IF(CELL("spalte",W45)<CELL("spalte",$P45)+$Q$2, IF(MOD(CELL("zeile",W45)-CELL("zeile",W$4),$Q$2)=MOD(CELL("spalte",W45)-(CELL("spalte",$P45)),$Q$2),ean_conv(LEFT($J45,12)),""), "<>") -> <> | X45: =IF(CELL("spalte",X45)<CELL("spalte",$P45)+$Q$2, IF(MOD(CELL("zeile",X45)-CELL("zeile",X$4),$Q$2)=MOD(CELL("spalte",X45)-(CELL("spalte",$P45)),$Q$2),ean_conv(LEFT($J45,12)),""), "<>") -> <> | Y45: =IF(CELL("spalte",Y45)<CELL("spalte",$P45)+$Q$2, IF(MOD(CELL("zeile",Y45)-CELL("zeile",Y$4),$Q$2)=MOD(CELL("spalte",Y45)-(CELL("spalte",$P45)),$Q$2),ean_conv(LEFT($J45,12)),""), "<>") -> <>
A46: 43 | B46: A Couple of Cuckoos | C46: 1 | D46: Comedy | F46: deu | G46: Standard | H46: Carlsen Manga | I46: X | J46: 9783551793737 | L46: A Couple of Cuckoos •deu• | M46: A Couple of Cuckoos •deu• 01 | O46: Seite 1 | P46: =IF(CELL("spalte",P46)<CELL("spalte",$P46)+$Q$2, IF(MOD(CELL("zeile",P46)-CELL("zeile",P$4),$Q$2)=MOD(CELL("spalte",P46)-(CELL("spalte",$P46)),$Q$2),ean_conv(LEFT($J46,12)),""), "<>") -> <> | Q46: =IF(CELL("spalte",Q46)<CELL("spalte",$P46)+$Q$2, IF(MOD(CELL("zeile",Q46)-CELL("zeile",Q$4),$Q$2)=MOD(CELL("spalte",Q46)-(CELL("spalte",$P46)),$Q$2),ean_conv(LEFT($J46,12)),""), "<>") -> <> | R46: =IF(CELL("spalte",R46)<CELL("spalte",$P46)+$Q$2, IF(MOD(CELL("zeile",R46)-CELL("zeile",R$4),$Q$2)=MOD(CELL("spalte",R46)-(CELL("spalte",$P46)),$Q$2),ean_conv(LEFT($J46,12)),""), "<>") -> <> | S46: =IF(CELL("spalte",S46)<CELL("spalte",$P46)+$Q$2, IF(MOD(CELL("zeile",S46)-CELL("zeile",S$4),$Q$2)=MOD(CELL("spalte",S46)-(CELL("spalte",$P46)),$Q$2),ean_conv(LEFT($J46,12)),""), "<>") -> <> | T46: =IF(CELL("spalte",T46)<CELL("spalte",$P46)+$Q$2, IF(MOD(CELL("zeile",T46)-CELL("zeile",T$4),$Q$2)=MOD(CELL("spalte",T46)-(CELL("spalte",$P46)),$Q$2),ean_conv(LEFT($J46,12)),""), "<>") -> <> | U46: =IF(CELL("spalte",U46)<CELL("spalte",$P46)+$Q$2, IF(MOD(CELL("zeile",U46)-CELL("zeile",U$4),$Q$2)=MOD(CELL("spalte",U46)-(CELL("spalte",$P46)),$Q$2),ean_conv(LEFT($J46,12)),""), "<>") -> <> | V46: =IF(CELL("spalte",V46)<CELL("spalte",$P46)+$Q$2, IF(MOD(CELL("zeile",V46)-CELL("zeile",V$4),$Q$2)=MOD(CELL("spalte",V46)-(CELL("spalte",$P46)),$Q$2),ean_conv(LEFT($J46,12)),""), "<>") -> <> | W46: =IF(CELL("spalte",W46)<CELL("spalte",$P46)+$Q$2, IF(MOD(CELL("zeile",W46)-CELL("zeile",W$4),$Q$2)=MOD(CELL("spalte",W46)-(CELL("spalte",$P46)),$Q$2),ean_conv(LEFT($J46,12)),""), "<>") -> <> | X46: =IF(CELL("spalte",X46)<CELL("spalte",$P46)+$Q$2, IF(MOD(CELL("zeile",X46)-CELL("zeile",X$4),$Q$2)=MOD(CELL("spalte",X46)-(CELL("spalte",$P46)),$Q$2),ean_conv(LEFT($J46,12)),""), "<>") -> <> | Y46: =IF(CELL("spalte",Y46)<CELL("spalte",$P46)+$Q$2, IF(MOD(CELL("zeile",Y46)-CELL("zeile",Y$4),$Q$2)=MOD(CELL("spalte",Y46)-(CELL("spalte",$P46)),$Q$2),ean_conv(LEFT($J46,12)),""), "<>") -> <>
A47: 44 | B47: A Couple of Cuckoos | C47: 2 | D47: Comedy | F47: deu | G47: Standard | H47: Carlsen Manga | I47: X | J47: 9783551793744 | L47: A Couple of Cuckoos •deu• | M47: A Couple of Cuckoos •deu• 02 | O47: Seite 1 | P47: =IF(CELL("spalte",P47)<CELL("spalte",$P47)+$Q$2, IF(MOD(CELL("zeile",P47)-CELL("zeile",P$4),$Q$2)=MOD(CELL("spalte",P47)-(CELL("spalte",$P47)),$Q$2),ean_conv(LEFT($J47,12)),""), "<>") -> <> | Q47: =IF(CELL("spalte",Q47)<CELL("spalte",$P47)+$Q$2, IF(MOD(CELL("zeile",Q47)-CELL("zeile",Q$4),$Q$2)=MOD(CELL("spalte",Q47)-(CELL("spalte",$P47)),$Q$2),ean_conv(LEFT($J47,12)),""), "<>") -> <> | R47: =IF(CELL("spalte",R47)<CELL("spalte",$P47)+$Q$2, IF(MOD(CELL("zeile",R47)-CELL("zeile",R$4),$Q$2)=MOD(CELL("spalte",R47)-(CELL("spalte",$P47)),$Q$2),ean_conv(LEFT($J47,12)),""), "<>") -> <> | S47: =IF(CELL("spalte",S47)<CELL("spalte",$P47)+$Q$2, IF(MOD(CELL("zeile",S47)-CELL("zeile",S$4),$Q$2)=MOD(CELL("spalte",S47)-(CELL("spalte",$P47)),$Q$2),ean_conv(LEFT($J47,12)),""), "<>") -> <> | T47: =IF(CELL("spalte",T47)<CELL("spalte",$P47)+$Q$2, IF(MOD(CELL("zeile",T47)-CELL("zeile",T$4),$Q$2)=MOD(CELL("spalte",T47)-(CELL("spalte",$P47)),$Q$2),ean_conv(LEFT($J47,12)),""), "<>") -> <> | U47: =IF(CELL("spalte",U47)<CELL("spalte",$P47)+$Q$2, IF(MOD(CELL("zeile",U47)-CELL("zeile",U$4),$Q$2)=MOD(CELL("spalte",U47)-(CELL("spalte",$P47)),$Q$2),ean_conv(LEFT($J47,12)),""), "<>") -> <> | V47: =IF(CELL("spalte",V47)<CELL("spalte",$P47)+$Q$2, IF(MOD(CELL("zeile",V47)-CELL("zeile",V$4),$Q$2)=MOD(CELL("spalte",V47)-(CELL("spalte",$P47)),$Q$2),ean_conv(LEFT($J47,12)),""), "<>") -> <> | W47: =IF(CELL("spalte",W47)<CELL("spalte",$P47)+$Q$2, IF(MOD(CELL("zeile",W47)-CELL("zeile",W$4),$Q$2)=MOD(CELL("spalte",W47)-(CELL("spalte",$P47)),$Q$2),ean_conv(LEFT($J47,12)),""), "<>") -> <> | X47: =IF(CELL("spalte",X47)<CELL("spalte",$P47)+$Q$2, IF(MOD(CELL("zeile",X47)-CELL("zeile",X$4),$Q$2)=MOD(CELL("spalte",X47)-(CELL("spalte",$P47)),$Q$2),ean_conv(LEFT($J47,12)),""), "<>") -> <> | Y47: =IF(CELL("spalte",Y47)<CELL("spalte",$P47)+$Q$2, IF(MOD(CELL("zeile",Y47)-CELL("zeile",Y$4),$Q$2)=MOD(CELL("spalte",Y47)-(CELL("spalte",$P47)),$Q$2),ean_conv(LEFT($J47,12)),""), "<>") -> <>
A48: 45 | B48: A Couple of Cuckoos | C48: 3 | D48: Comedy | F48: deu | G48: Standard | H48: Carlsen Manga | I48: X | J48: 9783551793751 | L48: A Couple of Cuckoos •deu• | M48: A Couple of Cuckoos •deu• 03 | O48: Seite 1 | P48: =IF(CELL("spalte",P48)<CELL("spalte",$P48)+$Q$2, IF(MOD(CELL("zeile",P48)-CELL("zeile",P$4),$Q$2)=MOD(CELL("spalte",P48)-(CELL("spalte",$P48)),$Q$2),ean_conv(LEFT($J48,12)),""), "<>") -> <> | Q48: =IF(CELL("spalte",Q48)<CELL("spalte",$P48)+$Q$2, IF(MOD(CELL("zeile",Q48)-CELL("zeile",Q$4),$Q$2)=MOD(CELL("spalte",Q48)-(CELL("spalte",$P48)),$Q$2),ean_conv(LEFT($J48,12)),""), "<>") -> <> | R48: =IF(CELL("spalte",R48)<CELL("spalte",$P48)+$Q$2, IF(MOD(CELL("zeile",R48)-CELL("zeile",R$4),$Q$2)=MOD(CELL("spalte",R48)-(CELL("spalte",$P48)),$Q$2),ean_conv(LEFT($J48,12)),""), "<>") -> <> | S48: =IF(CELL("spalte",S48)<CELL("spalte",$P48)+$Q$2, IF(MOD(CELL("zeile",S48)-CELL("zeile",S$4),$Q$2)=MOD(CELL("spalte",S48)-(CELL("spalte",$P48)),$Q$2),ean_conv(LEFT($J48,12)),""), "<>") -> <> | T48: =IF(CELL("spalte",T48)<CELL("spalte",$P48)+$Q$2, IF(MOD(CELL("zeile",T48)-CELL("zeile",T$4),$Q$2)=MOD(CELL("spalte",T48)-(CELL("spalte",$P48)),$Q$2),ean_conv(LEFT($J48,12)),""), "<>") -> <> | U48: =IF(CELL("spalte",U48)<CELL("spalte",$P48)+$Q$2, IF(MOD(CELL("zeile",U48)-CELL("zeile",U$4),$Q$2)=MOD(CELL("spalte",U48)-(CELL("spalte",$P48)),$Q$2),ean_conv(LEFT($J48,12)),""), "<>") -> <> | V48: =IF(CELL("spalte",V48)<CELL("spalte",$P48)+$Q$2, IF(MOD(CELL("zeile",V48)-CELL("zeile",V$4),$Q$2)=MOD(CELL("spalte",V48)-(CELL("spalte",$P48)),$Q$2),ean_conv(LEFT($J48,12)),""), "<>") -> <> | W48: =IF(CELL("spalte",W48)<CELL("spalte",$P48)+$Q$2, IF(MOD(CELL("zeile",W48)-CELL("zeile",W$4),$Q$2)=MOD(CELL("spalte",W48)-(CELL("spalte",$P48)),$Q$2),ean_conv(LEFT($J48,12)),""), "<>") -> <> | X48: =IF(CELL("spalte",X48)<CELL("spalte",$P48)+$Q$2, IF(MOD(CELL("zeile",X48)-CELL("zeile",X$4),$Q$2)=MOD(CELL("spalte",X48)-(CELL("spalte",$P48)),$Q$2),ean_conv(LEFT($J48,12)),""), "<>") -> <> | Y48: =IF(CELL("spalte",Y48)<CELL("spalte",$P48)+$Q$2, IF(MOD(CELL("zeile",Y48)-CELL("zeile",Y$4),$Q$2)=MOD(CELL("spalte",Y48)-(CELL("spalte",$P48)),$Q$2),ean_conv(LEFT($J48,12)),""), "<>") -> <>
A49: 46 | B49: A Couple of Cuckoos | C49: 4 | D49: Comedy | F49: deu | G49: Standard | H49: Carlsen Manga | I49: X | J49: 9783551793768 | L49: A Couple of Cuckoos •deu• | M49: A Couple of Cuckoos •deu• 04 | O49: Seite 1 | P49: =IF(CELL("spalte",P49)<CELL("spalte",$P49)+$Q$2, IF(MOD(CELL("zeile",P49)-CELL("zeile",P$4),$Q$2)=MOD(CELL("spalte",P49)-(CELL("spalte",$P49)),$Q$2),ean_conv(LEFT($J49,12)),""), "<>") -> <> | Q49: =IF(CELL("spalte",Q49)<CELL("spalte",$P49)+$Q$2, IF(MOD(CELL("zeile",Q49)-CELL("zeile",Q$4),$Q$2)=MOD(CELL("spalte",Q49)-(CELL("spalte",$P49)),$Q$2),ean_conv(LEFT($J49,12)),""), "<>") -> <> | R49: =IF(CELL("spalte",R49)<CELL("spalte",$P49)+$Q$2, IF(MOD(CELL("zeile",R49)-CELL("zeile",R$4),$Q$2)=MOD(CELL("spalte",R49)-(CELL("spalte",$P49)),$Q$2),ean_conv(LEFT($J49,12)),""), "<>") -> <> | S49: =IF(CELL("spalte",S49)<CELL("spalte",$P49)+$Q$2, IF(MOD(CELL("zeile",S49)-CELL("zeile",S$4),$Q$2)=MOD(CELL("spalte",S49)-(CELL("spalte",$P49)),$Q$2),ean_conv(LEFT($J49,12)),""), "<>") -> <> | T49: =IF(CELL("spalte",T49)<CELL("spalte",$P49)+$Q$2, IF(MOD(CELL("zeile",T49)-CELL("zeile",T$4),$Q$2)=MOD(CELL("spalte",T49)-(CELL("spalte",$P49)),$Q$2),ean_conv(LEFT($J49,12)),""), "<>") -> <> | U49: =IF(CELL("spalte",U49)<CELL("spalte",$P49)+$Q$2, IF(MOD(CELL("zeile",U49)-CELL("zeile",U$4),$Q$2)=MOD(CELL("spalte",U49)-(CELL("spalte",$P49)),$Q$2),ean_conv(LEFT($J49,12)),""), "<>") -> <> | V49: =IF(CELL("spalte",V49)<CELL("spalte",$P49)+$Q$2, IF(MOD(CELL("zeile",V49)-CELL("zeile",V$4),$Q$2)=MOD(CELL("spalte",V49)-(CELL("spalte",$P49)),$Q$2),ean_conv(LEFT($J49,12)),""), "<>") -> <> | W49: =IF(CELL("spalte",W49)<CELL("spalte",$P49)+$Q$2, IF(MOD(CELL("zeile",W49)-CELL("zeile",W$4),$Q$2)=MOD(CELL("spalte",W49)-(CELL("spalte",$P49)),$Q$2),ean_conv(LEFT($J49,12)),""), "<>") -> <> | X49: =IF(CELL("spalte",X49)<CELL("spalte",$P49)+$Q$2, IF(MOD(CELL("zeile",X49)-CELL("zeile",X$4),$Q$2)=MOD(CELL("spalte",X49)-(CELL("spalte",$P49)),$Q$2),ean_conv(LEFT($J49,12)),""), "<>") -> <> | Y49: =IF(CELL("spalte",Y49)<CELL("spalte",$P49)+$Q$2, IF(MOD(CELL("zeile",Y49)-CELL("zeile",Y$4),$Q$2)=MOD(CELL("spalte",Y49)-(CELL("spalte",$P49)),$Q$2),ean_conv(LEFT($J49,12)),""), "<>") -> <>
A50: 47 | B50: A Couple of Cuckoos | C50: 5 | D50: Comedy | F50: deu | G50: Standard | H50: Carlsen Manga | I50: X | J50: 9783551793775 | L50: A Couple of Cuckoos •deu• | M50: A Couple of Cuckoos •deu• 05 | O50: Seite 1 | P50: =IF(CELL("spalte",P50)<CELL("spalte",$P50)+$Q$2, IF(MOD(CELL("zeile",P50)-CELL("zeile",P$4),$Q$2)=MOD(CELL("spalte",P50)-(CELL("spalte",$P50)),$Q$2),ean_conv(LEFT($J50,12)),""), "<>") -> <> | Q50: =IF(CELL("spalte",Q50)<CELL("spalte",$P50)+$Q$2, IF(MOD(CELL("zeile",Q50)-CELL("zeile",Q$4),$Q$2)=MOD(CELL("spalte",Q50)-(CELL("spalte",$P50)),$Q$2),ean_conv(LEFT($J50,12)),""), "<>") -> <> | R50: =IF(CELL("spalte",R50)<CELL("spalte",$P50)+$Q$2, IF(MOD(CELL("zeile",R50)-CELL("zeile",R$4),$Q$2)=MOD(CELL("spalte",R50)-(CELL("spalte",$P50)),$Q$2),ean_conv(LEFT($J50,12)),""), "<>") -> <> | S50: =IF(CELL("spalte",S50)<CELL("spalte",$P50)+$Q$2, IF(MOD(CELL("zeile",S50)-CELL("zeile",S$4),$Q$2)=MOD(CELL("spalte",S50)-(CELL("spalte",$P50)),$Q$2),ean_conv(LEFT($J50,12)),""), "<>") -> <> | T50: =IF(CELL("spalte",T50)<CELL("spalte",$P50)+$Q$2, IF(MOD(CELL("zeile",T50)-CELL("zeile",T$4),$Q$2)=MOD(CELL("spalte",T50)-(CELL("spalte",$P50)),$Q$2),ean_conv(LEFT($J50,12)),""), "<>") -> <> | U50: =IF(CELL("spalte",U50)<CELL("spalte",$P50)+$Q$2, IF(MOD(CELL("zeile",U50)-CELL("zeile",U$4),$Q$2)=MOD(CELL("spalte",U50)-(CELL("spalte",$P50)),$Q$2),ean_conv(LEFT($J50,12)),""), "<>") -> <> | V50: =IF(CELL("spalte",V50)<CELL("spalte",$P50)+$Q$2, IF(MOD(CELL("zeile",V50)-CELL("zeile",V$4),$Q$2)=MOD(CELL("spalte",V50)-(CELL("spalte",$P50)),$Q$2),ean_conv(LEFT($J50,12)),""), "<>") -> <> | W50: =IF(CELL("spalte",W50)<CELL("spalte",$P50)+$Q$2, IF(MOD(CELL("zeile",W50)-CELL("zeile",W$4),$Q$2)=MOD(CELL("spalte",W50)-(CELL("spalte",$P50)),$Q$2),ean_conv(LEFT($J50,12)),""), "<>") -> <> | X50: =IF(CELL("spalte",X50)<CELL("spalte",$P50)+$Q$2, IF(MOD(CELL("zeile",X50)-CELL("zeile",X$4),$Q$2)=MOD(CELL("spalte",X50)-(CELL("spalte",$P50)),$Q$2),ean_conv(LEFT($J50,12)),""), "<>") -> <> | Y50: =IF(CELL("spalte",Y50)<CELL("spalte",$P50)+$Q$2, IF(MOD(CELL("zeile",Y50)-CELL("zeile",Y$4),$Q$2)=MOD(CELL("spalte",Y50)-(CELL("spalte",$P50)),$Q$2),ean_conv(LEFT($J50,12)),""), "<>") -> <>
A51: 48 | B51: A Couple of Cuckoos | C51: 6 | D51: Comedy | F51: deu | G51: Standard | H51: Carlsen Manga | I51: X | J51: 9783551793782 | L51: A Couple of Cuckoos •deu• | M51: A Couple of Cuckoos •deu• 06 | O51: Seite 1 | P51: =IF(CELL("spalte",P51)<CELL("spalte",$P51)+$Q$2, IF(MOD(CELL("zeile",P51)-CELL("zeile",P$4),$Q$2)=MOD(CELL("spalte",P51)-(CELL("spalte",$P51)),$Q$2),ean_conv(LEFT($J51,12)),""), "<>") -> <> | Q51: =IF(CELL("spalte",Q51)<CELL("spalte",$P51)+$Q$2, IF(MOD(CELL("zeile",Q51)-CELL("zeile",Q$4),$Q$2)=MOD(CELL("spalte",Q51)-(CELL("spalte",$P51)),$Q$2),ean_conv(LEFT($J51,12)),""), "<>") -> <> | R51: =IF(CELL("spalte",R51)<CELL("spalte",$P51)+$Q$2, IF(MOD(CELL("zeile",R51)-CELL("zeile",R$4),$Q$2)=MOD(CELL("spalte",R51)-(CELL("spalte",$P51)),$Q$2),ean_conv(LEFT($J51,12)),""), "<>") -> <> | S51: =IF(CELL("spalte",S51)<CELL("spalte",$P51)+$Q$2, IF(MOD(CELL("zeile",S51)-CELL("zeile",S$4),$Q$2)=MOD(CELL("spalte",S51)-(CELL("spalte",$P51)),$Q$2),ean_conv(LEFT($J51,12)),""), "<>") -> <> | T51: =IF(CELL("spalte",T51)<CELL("spalte",$P51)+$Q$2, IF(MOD(CELL("zeile",T51)-CELL("zeile",T$4),$Q$2)=MOD(CELL("spalte",T51)-(CELL("spalte",$P51)),$Q$2),ean_conv(LEFT($J51,12)),""), "<>") -> <> | U51: =IF(CELL("spalte",U51)<CELL("spalte",$P51)+$Q$2, IF(MOD(CELL("zeile",U51)-CELL("zeile",U$4),$Q$2)=MOD(CELL("spalte",U51)-(CELL("spalte",$P51)),$Q$2),ean_conv(LEFT($J51,12)),""), "<>") -> <> | V51: =IF(CELL("spalte",V51)<CELL("spalte",$P51)+$Q$2, IF(MOD(CELL("zeile",V51)-CELL("zeile",V$4),$Q$2)=MOD(CELL("spalte",V51)-(CELL("spalte",$P51)),$Q$2),ean_conv(LEFT($J51,12)),""), "<>") -> <> | W51: =IF(CELL("spalte",W51)<CELL("spalte",$P51)+$Q$2, IF(MOD(CELL("zeile",W51)-CELL("zeile",W$4),$Q$2)=MOD(CELL("spalte",W51)-(CELL("spalte",$P51)),$Q$2),ean_conv(LEFT($J51,12)),""), "<>") -> <> | X51: =IF(CELL("spalte",X51)<CELL("spalte",$P51)+$Q$2, IF(MOD(CELL("zeile",X51)-CELL("zeile",X$4),$Q$2)=MOD(CELL("spalte",X51)-(CELL("spalte",$P51)),$Q$2),ean_conv(LEFT($J51,12)),""), "<>") -> <> | Y51: =IF(CELL("spalte",Y51)<CELL("spalte",$P51)+$Q$2, IF(MOD(CELL("zeile",Y51)-CELL("zeile",Y$4),$Q$2)=MOD(CELL("spalte",Y51)-(CELL("spalte",$P51)),$Q$2),ean_conv(LEFT($J51,12)),""), "<>") -> <>
A52: 49 | B52: A Couple of Cuckoos | C52: 7 | D52: Comedy | F52: deu | G52: Standard | H52: Carlsen Manga | I52: X | J52: 9783551793799 | L52: A Couple of Cuckoos •deu• | M52: A Couple of Cuckoos •deu• 07 | O52: Seite 1 | P52: =IF(CELL("spalte",P52)<CELL("spalte",$P52)+$Q$2, IF(MOD(CELL("zeile",P52)-CELL("zeile",P$4),$Q$2)=MOD(CELL("spalte",P52)-(CELL("spalte",$P52)),$Q$2),ean_conv(LEFT($J52,12)),""), "<>") -> <> | Q52: =IF(CELL("spalte",Q52)<CELL("spalte",$P52)+$Q$2, IF(MOD(CELL("zeile",Q52)-CELL("zeile",Q$4),$Q$2)=MOD(CELL("spalte",Q52)-(CELL("spalte",$P52)),$Q$2),ean_conv(LEFT($J52,12)),""), "<>") -> <> | R52: =IF(CELL("spalte",R52)<CELL("spalte",$P52)+$Q$2, IF(MOD(CELL("zeile",R52)-CELL("zeile",R$4),$Q$2)=MOD(CELL("spalte",R52)-(CELL("spalte",$P52)),$Q$2),ean_conv(LEFT($J52,12)),""), "<>") -> <> | S52: =IF(CELL("spalte",S52)<CELL("spalte",$P52)+$Q$2, IF(MOD(CELL("zeile",S52)-CELL("zeile",S$4),$Q$2)=MOD(CELL("spalte",S52)-(CELL("spalte",$P52)),$Q$2),ean_conv(LEFT($J52,12)),""), "<>") -> <> | T52: =IF(CELL("spalte",T52)<CELL("spalte",$P52)+$Q$2, IF(MOD(CELL("zeile",T52)-CELL("zeile",T$4),$Q$2)=MOD(CELL("spalte",T52)-(CELL("spalte",$P52)),$Q$2),ean_conv(LEFT($J52,12)),""), "<>") -> <> | U52: =IF(CELL("spalte",U52)<CELL("spalte",$P52)+$Q$2, IF(MOD(CELL("zeile",U52)-CELL("zeile",U$4),$Q$2)=MOD(CELL("spalte",U52)-(CELL("spalte",$P52)),$Q$2),ean_conv(LEFT($J52,12)),""), "<>") -> <> | V52: =IF(CELL("spalte",V52)<CELL("spalte",$P52)+$Q$2, IF(MOD(CELL("zeile",V52)-CELL("zeile",V$4),$Q$2)=MOD(CELL("spalte",V52)-(CELL("spalte",$P52)),$Q$2),ean_conv(LEFT($J52,12)),""), "<>") -> <> | W52: =IF(CELL("spalte",W52)<CELL("spalte",$P52)+$Q$2, IF(MOD(CELL("zeile",W52)-CELL("zeile",W$4),$Q$2)=MOD(CELL("spalte",W52)-(CELL("spalte",$P52)),$Q$2),ean_conv(LEFT($J52,12)),""), "<>") -> <> | X52: =IF(CELL("spalte",X52)<CELL("spalte",$P52)+$Q$2, IF(MOD(CELL("zeile",X52)-CELL("zeile",X$4),$Q$2)=MOD(CELL("spalte",X52)-(CELL("spalte",$P52)),$Q$2),ean_conv(LEFT($J52,12)),""), "<>") -> <> | Y52: =IF(CELL("spalte",Y52)<CELL("spalte",$P52)+$Q$2, IF(MOD(CELL("zeile",Y52)-CELL("zeile",Y$4),$Q$2)=MOD(CELL("spalte",Y52)-(CELL("spalte",$P52)),$Q$2),ean_conv(LEFT($J52,12)),""), "<>") -> <>
A53: 50 | B53: A Couple of Cuckoos | C53: 8 | D53: Comedy | F53: deu | G53: Standard | H53: Carlsen Manga | I53: X | J53: 9783551793805 | L53: A Couple of Cuckoos •deu• | M53: A Couple of Cuckoos •deu• 08 | O53: Seite 1 | P53: =IF(CELL("spalte",P53)<CELL("spalte",$P53)+$Q$2, IF(MOD(CELL("zeile",P53)-CELL("zeile",P$4),$Q$2)=MOD(CELL("spalte",P53)-(CELL("spalte",$P53)),$Q$2),ean_conv(LEFT($J53,12)),""), "<>") -> <> | Q53: =IF(CELL("spalte",Q53)<CELL("spalte",$P53)+$Q$2, IF(MOD(CELL("zeile",Q53)-CELL("zeile",Q$4),$Q$2)=MOD(CELL("spalte",Q53)-(CELL("spalte",$P53)),$Q$2),ean_conv(LEFT($J53,12)),""), "<>") -> <> | R53: =IF(CELL("spalte",R53)<CELL("spalte",$P53)+$Q$2, IF(MOD(CELL("zeile",R53)-CELL("zeile",R$4),$Q$2)=MOD(CELL("spalte",R53)-(CELL("spalte",$P53)),$Q$2),ean_conv(LEFT($J53,12)),""), "<>") -> <> | S53: =IF(CELL("spalte",S53)<CELL("spalte",$P53)+$Q$2, IF(MOD(CELL("zeile",S53)-CELL("zeile",S$4),$Q$2)=MOD(CELL("spalte",S53)-(CELL("spalte",$P53)),$Q$2),ean_conv(LEFT($J53,12)),""), "<>") -> <> | T53: =IF(CELL("spalte",T53)<CELL("spalte",$P53)+$Q$2, IF(MOD(CELL("zeile",T53)-CELL("zeile",T$4),$Q$2)=MOD(CELL("spalte",T53)-(CELL("spalte",$P53)),$Q$2),ean_conv(LEFT($J53,12)),""), "<>") -> <> | U53: =IF(CELL("spalte",U53)<CELL("spalte",$P53)+$Q$2, IF(MOD(CELL("zeile",U53)-CELL("zeile",U$4),$Q$2)=MOD(CELL("spalte",U53)-(CELL("spalte",$P53)),$Q$2),ean_conv(LEFT($J53,12)),""), "<>") -> <> | V53: =IF(CELL("spalte",V53)<CELL("spalte",$P53)+$Q$2, IF(MOD(CELL("zeile",V53)-CELL("zeile",V$4),$Q$2)=MOD(CELL("spalte",V53)-(CELL("spalte",$P53)),$Q$2),ean_conv(LEFT($J53,12)),""), "<>") -> <> | W53: =IF(CELL("spalte",W53)<CELL("spalte",$P53)+$Q$2, IF(MOD(CELL("zeile",W53)-CELL("zeile",W$4),$Q$2)=MOD(CELL("spalte",W53)-(CELL("spalte",$P53)),$Q$2),ean_conv(LEFT($J53,12)),""), "<>") -> <> | X53: =IF(CELL("spalte",X53)<CELL("spalte",$P53)+$Q$2, IF(MOD(CELL("zeile",X53)-CELL("zeile",X$4),$Q$2)=MOD(CELL("spalte",X53)-(CELL("spalte",$P53)),$Q$2),ean_conv(LEFT($J53,12)),""), "<>") -> <> | Y53: =IF(CELL("spalte",Y53)<CELL("spalte",$P53)+$Q$2, IF(MOD(CELL("zeile",Y53)-CELL("zeile",Y$4),$Q$2)=MOD(CELL("spalte",Y53)-(CELL("spalte",$P53)),$Q$2),ean_conv(LEFT($J53,12)),""), "<>") -> <>
A54: 51 | B54: A Couple of Cuckoos | C54: 9 | D54: Comedy | F54: deu | G54: Standard | H54: Carlsen Manga | I54: X | J54: 9783551793652 | L54: A Couple of Cuckoos •deu• | M54: A Couple of Cuckoos •deu• 09 | O54: Seite 1 | P54: =IF(CELL("spalte",P54)<CELL("spalte",$P54)+$Q$2, IF(MOD(CELL("zeile",P54)-CELL("zeile",P$4),$Q$2)=MOD(CELL("spalte",P54)-(CELL("spalte",$P54)),$Q$2),ean_conv(LEFT($J54,12)),""), "<>") -> <> | Q54: =IF(CELL("spalte",Q54)<CELL("spalte",$P54)+$Q$2, IF(MOD(CELL("zeile",Q54)-CELL("zeile",Q$4),$Q$2)=MOD(CELL("spalte",Q54)-(CELL("spalte",$P54)),$Q$2),ean_conv(LEFT($J54,12)),""), "<>") -> <> | R54: =IF(CELL("spalte",R54)<CELL("spalte",$P54)+$Q$2, IF(MOD(CELL("zeile",R54)-CELL("zeile",R$4),$Q$2)=MOD(CELL("spalte",R54)-(CELL("spalte",$P54)),$Q$2),ean_conv(LEFT($J54,12)),""), "<>") -> <> | S54: =IF(CELL("spalte",S54)<CELL("spalte",$P54)+$Q$2, IF(MOD(CELL("zeile",S54)-CELL("zeile",S$4),$Q$2)=MOD(CELL("spalte",S54)-(CELL("spalte",$P54)),$Q$2),ean_conv(LEFT($J54,12)),""), "<>") -> <> | T54: =IF(CELL("spalte",T54)<CELL("spalte",$P54)+$Q$2, IF(MOD(CELL("zeile",T54)-CELL("zeile",T$4),$Q$2)=MOD(CELL("spalte",T54)-(CELL("spalte",$P54)),$Q$2),ean_conv(LEFT($J54,12)),""), "<>") -> <> | U54: =IF(CELL("spalte",U54)<CELL("spalte",$P54)+$Q$2, IF(MOD(CELL("zeile",U54)-CELL("zeile",U$4),$Q$2)=MOD(CELL("spalte",U54)-(CELL("spalte",$P54)),$Q$2),ean_conv(LEFT($J54,12)),""), "<>") -> <> | V54: =IF(CELL("spalte",V54)<CELL("spalte",$P54)+$Q$2, IF(MOD(CELL("zeile",V54)-CELL("zeile",V$4),$Q$2)=MOD(CELL("spalte",V54)-(CELL("spalte",$P54)),$Q$2),ean_conv(LEFT($J54,12)),""), "<>") -> <> | W54: =IF(CELL("spalte",W54)<CELL("spalte",$P54)+$Q$2, IF(MOD(CELL("zeile",W54)-CELL("zeile",W$4),$Q$2)=MOD(CELL("spalte",W54)-(CELL("spalte",$P54)),$Q$2),ean_conv(LEFT($J54,12)),""), "<>") -> <> | X54: =IF(CELL("spalte",X54)<CELL("spalte",$P54)+$Q$2, IF(MOD(CELL("zeile",X54)-CELL("zeile",X$4),$Q$2)=MOD(CELL("spalte",X54)-(CELL("spalte",$P54)),$Q$2),ean_conv(LEFT($J54,12)),""), "<>") -> <> | Y54: =IF(CELL("spalte",Y54)<CELL("spalte",$P54)+$Q$2, IF(MOD(CELL("zeile",Y54)-CELL("zeile",Y$4),$Q$2)=MOD(CELL("spalte",Y54)-(CELL("spalte",$P54)),$Q$2),ean_conv(LEFT($J54,12)),""), "<>") -> <>
A55: 52 | B55: A Couple of Cuckoos | C55: 10 | D55: Comedy | F55: deu | G55: Standard | H55: Carlsen Manga | I55: X | J55: 9783551793850 | L55: A Couple of Cuckoos •deu• | M55: A Couple of Cuckoos •deu• 10 | O55: Seite 1 | P55: =IF(CELL("spalte",P55)<CELL("spalte",$P55)+$Q$2, IF(MOD(CELL("zeile",P55)-CELL("zeile",P$4),$Q$2)=MOD(CELL("spalte",P55)-(CELL("spalte",$P55)),$Q$2),ean_conv(LEFT($J55,12)),""), "<>") -> <> | Q55: =IF(CELL("spalte",Q55)<CELL("spalte",$P55)+$Q$2, IF(MOD(CELL("zeile",Q55)-CELL("zeile",Q$4),$Q$2)=MOD(CELL("spalte",Q55)-(CELL("spalte",$P55)),$Q$2),ean_conv(LEFT($J55,12)),""), "<>") -> <> | R55: =IF(CELL("spalte",R55)<CELL("spalte",$P55)+$Q$2, IF(MOD(CELL("zeile",R55)-CELL("zeile",R$4),$Q$2)=MOD(CELL("spalte",R55)-(CELL("spalte",$P55)),$Q$2),ean_conv(LEFT($J55,12)),""), "<>") -> <> | S55: =IF(CELL("spalte",S55)<CELL("spalte",$P55)+$Q$2, IF(MOD(CELL("zeile",S55)-CELL("zeile",S$4),$Q$2)=MOD(CELL("spalte",S55)-(CELL("spalte",$P55)),$Q$2),ean_conv(LEFT($J55,12)),""), "<>") -> <> | T55: =IF(CELL("spalte",T55)<CELL("spalte",$P55)+$Q$2, IF(MOD(CELL("zeile",T55)-CELL("zeile",T$4),$Q$2)=MOD(CELL("spalte",T55)-(CELL("spalte",$P55)),$Q$2),ean_conv(LEFT($J55,12)),""), "<>") -> <> | U55: =IF(CELL("spalte",U55)<CELL("spalte",$P55)+$Q$2, IF(MOD(CELL("zeile",U55)-CELL("zeile",U$4),$Q$2)=MOD(CELL("spalte",U55)-(CELL("spalte",$P55)),$Q$2),ean_conv(LEFT($J55,12)),""), "<>") -> <> | V55: =IF(CELL("spalte",V55)<CELL("spalte",$P55)+$Q$2, IF(MOD(CELL("zeile",V55)-CELL("zeile",V$4),$Q$2)=MOD(CELL("spalte",V55)-(CELL("spalte",$P55)),$Q$2),ean_conv(LEFT($J55,12)),""), "<>") -> <> | W55: =IF(CELL("spalte",W55)<CELL("spalte",$P55)+$Q$2, IF(MOD(CELL("zeile",W55)-CELL("zeile",W$4),$Q$2)=MOD(CELL("spalte",W55)-(CELL("spalte",$P55)),$Q$2),ean_conv(LEFT($J55,12)),""), "<>") -> <> | X55: =IF(CELL("spalte",X55)<CELL("spalte",$P55)+$Q$2, IF(MOD(CELL("zeile",X55)-CELL("zeile",X$4),$Q$2)=MOD(CELL("spalte",X55)-(CELL("spalte",$P55)),$Q$2),ean_conv(LEFT($J55,12)),""), "<>") -> <> | Y55: =IF(CELL("spalte",Y55)<CELL("spalte",$P55)+$Q$2, IF(MOD(CELL("zeile",Y55)-CELL("zeile",Y$4),$Q$2)=MOD(CELL("spalte",Y55)-(CELL("spalte",$P55)),$Q$2),ean_conv(LEFT($J55,12)),""), "<>") -> <>
A56: 53 | B56: A Couple of Cuckoos | C56: 11 | D56: Comedy | F56: deu | G56: Standard | H56: Carlsen Manga | I56: X | J56: 9783551741479 | L56: A Couple of Cuckoos •deu• | M56: A Couple of Cuckoos •deu• 11 | O56: Seite 1 | P56: =IF(CELL("spalte",P56)<CELL("spalte",$P56)+$Q$2, IF(MOD(CELL("zeile",P56)-CELL("zeile",P$4),$Q$2)=MOD(CELL("spalte",P56)-(CELL("spalte",$P56)),$Q$2),ean_conv(LEFT($J56,12)),""), "<>") -> <> | Q56: =IF(CELL("spalte",Q56)<CELL("spalte",$P56)+$Q$2, IF(MOD(CELL("zeile",Q56)-CELL("zeile",Q$4),$Q$2)=MOD(CELL("spalte",Q56)-(CELL("spalte",$P56)),$Q$2),ean_conv(LEFT($J56,12)),""), "<>") -> <> | R56: =IF(CELL("spalte",R56)<CELL("spalte",$P56)+$Q$2, IF(MOD(CELL("zeile",R56)-CELL("zeile",R$4),$Q$2)=MOD(CELL("spalte",R56)-(CELL("spalte",$P56)),$Q$2),ean_conv(LEFT($J56,12)),""), "<>") -> <> | S56: =IF(CELL("spalte",S56)<CELL("spalte",$P56)+$Q$2, IF(MOD(CELL("zeile",S56)-CELL("zeile",S$4),$Q$2)=MOD(CELL("spalte",S56)-(CELL("spalte",$P56)),$Q$2),ean_conv(LEFT($J56,12)),""), "<>") -> <> | T56: =IF(CELL("spalte",T56)<CELL("spalte",$P56)+$Q$2, IF(MOD(CELL("zeile",T56)-CELL("zeile",T$4),$Q$2)=MOD(CELL("spalte",T56)-(CELL("spalte",$P56)),$Q$2),ean_conv(LEFT($J56,12)),""), "<>") -> <> | U56: =IF(CELL("spalte",U56)<CELL("spalte",$P56)+$Q$2, IF(MOD(CELL("zeile",U56)-CELL("zeile",U$4),$Q$2)=MOD(CELL("spalte",U56)-(CELL("spalte",$P56)),$Q$2),ean_conv(LEFT($J56,12)),""), "<>") -> <> | V56: =IF(CELL("spalte",V56)<CELL("spalte",$P56)+$Q$2, IF(MOD(CELL("zeile",V56)-CELL("zeile",V$4),$Q$2)=MOD(CELL("spalte",V56)-(CELL("spalte",$P56)),$Q$2),ean_conv(LEFT($J56,12)),""), "<>") -> <> | W56: =IF(CELL("spalte",W56)<CELL("spalte",$P56)+$Q$2, IF(MOD(CELL("zeile",W56)-CELL("zeile",W$4),$Q$2)=MOD(CELL("spalte",W56)-(CELL("spalte",$P56)),$Q$2),ean_conv(LEFT($J56,12)),""), "<>") -> <> | X56: =IF(CELL("spalte",X56)<CELL("spalte",$P56)+$Q$2, IF(MOD(CELL("zeile",X56)-CELL("zeile",X$4),$Q$2)=MOD(CELL("spalte",X56)-(CELL("spalte",$P56)),$Q$2),ean_conv(LEFT($J56,12)),""), "<>") -> <> | Y56: =IF(CELL("spalte",Y56)<CELL("spalte",$P56)+$Q$2, IF(MOD(CELL("zeile",Y56)-CELL("zeile",Y$4),$Q$2)=MOD(CELL("spalte",Y56)-(CELL("spalte",$P56)),$Q$2),ean_conv(LEFT($J56,12)),""), "<>") -> <>
A57: 54 | B57: A Couple of Cuckoos | C57: 12 | D57: Comedy | F57: deu | G57: Standard | H57: Carlsen Manga | I57: X | J57: 9783551742094 | L57: A Couple of Cuckoos •deu• | M57: A Couple of Cuckoos •deu• 12 | O57: Seite 1 | P57: =IF(CELL("spalte",P57)<CELL("spalte",$P57)+$Q$2, IF(MOD(CELL("zeile",P57)-CELL("zeile",P$4),$Q$2)=MOD(CELL("spalte",P57)-(CELL("spalte",$P57)),$Q$2),ean_conv(LEFT($J57,12)),""), "<>") -> <> | Q57: =IF(CELL("spalte",Q57)<CELL("spalte",$P57)+$Q$2, IF(MOD(CELL("zeile",Q57)-CELL("zeile",Q$4),$Q$2)=MOD(CELL("spalte",Q57)-(CELL("spalte",$P57)),$Q$2),ean_conv(LEFT($J57,12)),""), "<>") -> <> | R57: =IF(CELL("spalte",R57)<CELL("spalte",$P57)+$Q$2, IF(MOD(CELL("zeile",R57)-CELL("zeile",R$4),$Q$2)=MOD(CELL("spalte",R57)-(CELL("spalte",$P57)),$Q$2),ean_conv(LEFT($J57,12)),""), "<>") -> <> | S57: =IF(CELL("spalte",S57)<CELL("spalte",$P57)+$Q$2, IF(MOD(CELL("zeile",S57)-CELL("zeile",S$4),$Q$2)=MOD(CELL("spalte",S57)-(CELL("spalte",$P57)),$Q$2),ean_conv(LEFT($J57,12)),""), "<>") -> <> | T57: =IF(CELL("spalte",T57)<CELL("spalte",$P57)+$Q$2, IF(MOD(CELL("zeile",T57)-CELL("zeile",T$4),$Q$2)=MOD(CELL("spalte",T57)-(CELL("spalte",$P57)),$Q$2),ean_conv(LEFT($J57,12)),""), "<>") -> <> | U57: =IF(CELL("spalte",U57)<CELL("spalte",$P57)+$Q$2, IF(MOD(CELL("zeile",U57)-CELL("zeile",U$4),$Q$2)=MOD(CELL("spalte",U57)-(CELL("spalte",$P57)),$Q$2),ean_conv(LEFT($J57,12)),""), "<>") -> <> | V57: =IF(CELL("spalte",V57)<CELL("spalte",$P57)+$Q$2, IF(MOD(CELL("zeile",V57)-CELL("zeile",V$4),$Q$2)=MOD(CELL("spalte",V57)-(CELL("spalte",$P57)),$Q$2),ean_conv(LEFT($J57,12)),""), "<>") -> <> | W57: =IF(CELL("spalte",W57)<CELL("spalte",$P57)+$Q$2, IF(MOD(CELL("zeile",W57)-CELL("zeile",W$4),$Q$2)=MOD(CELL("spalte",W57)-(CELL("spalte",$P57)),$Q$2),ean_conv(LEFT($J57,12)),""), "<>") -> <> | X57: =IF(CELL("spalte",X57)<CELL("spalte",$P57)+$Q$2, IF(MOD(CELL("zeile",X57)-CELL("zeile",X$4),$Q$2)=MOD(CELL("spalte",X57)-(CELL("spalte",$P57)),$Q$2),ean_conv(LEFT($J57,12)),""), "<>") -> <> | Y57: =IF(CELL("spalte",Y57)<CELL("spalte",$P57)+$Q$2, IF(MOD(CELL("zeile",Y57)-CELL("zeile",Y$4),$Q$2)=MOD(CELL("spalte",Y57)-(CELL("spalte",$P57)),$Q$2),ean_conv(LEFT($J57,12)),""), "<>") -> <>
A58: 55 | B58: A Couple of Cuckoos | C58: 13 | D58: Comedy | F58: deu | G58: Standard | H58: Carlsen Manga | I58: X | J58: 9783551778109 | L58: A Couple of Cuckoos •deu• | M58: A Couple of Cuckoos •deu• 13 | O58: Seite 1 | P58: =IF(CELL("spalte",P58)<CELL("spalte",$P58)+$Q$2, IF(MOD(CELL("zeile",P58)-CELL("zeile",P$4),$Q$2)=MOD(CELL("spalte",P58)-(CELL("spalte",$P58)),$Q$2),ean_conv(LEFT($J58,12)),""), "<>") -> <> | Q58: =IF(CELL("spalte",Q58)<CELL("spalte",$P58)+$Q$2, IF(MOD(CELL("zeile",Q58)-CELL("zeile",Q$4),$Q$2)=MOD(CELL("spalte",Q58)-(CELL("spalte",$P58)),$Q$2),ean_conv(LEFT($J58,12)),""), "<>") -> <> | R58: =IF(CELL("spalte",R58)<CELL("spalte",$P58)+$Q$2, IF(MOD(CELL("zeile",R58)-CELL("zeile",R$4),$Q$2)=MOD(CELL("spalte",R58)-(CELL("spalte",$P58)),$Q$2),ean_conv(LEFT($J58,12)),""), "<>") -> <> | S58: =IF(CELL("spalte",S58)<CELL("spalte",$P58)+$Q$2, IF(MOD(CELL("zeile",S58)-CELL("zeile",S$4),$Q$2)=MOD(CELL("spalte",S58)-(CELL("spalte",$P58)),$Q$2),ean_conv(LEFT($J58,12)),""), "<>") -> <> | T58: =IF(CELL("spalte",T58)<CELL("spalte",$P58)+$Q$2, IF(MOD(CELL("zeile",T58)-CELL("zeile",T$4),$Q$2)=MOD(CELL("spalte",T58)-(CELL("spalte",$P58)),$Q$2),ean_conv(LEFT($J58,12)),""), "<>") -> <> | U58: =IF(CELL("spalte",U58)<CELL("spalte",$P58)+$Q$2, IF(MOD(CELL("zeile",U58)-CELL("zeile",U$4),$Q$2)=MOD(CELL("spalte",U58)-(CELL("spalte",$P58)),$Q$2),ean_conv(LEFT($J58,12)),""), "<>") -> <> | V58: =IF(CELL("spalte",V58)<CELL("spalte",$P58)+$Q$2, IF(MOD(CELL("zeile",V58)-CELL("zeile",V$4),$Q$2)=MOD(CELL("spalte",V58)-(CELL("spalte",$P58)),$Q$2),ean_conv(LEFT($J58,12)),""), "<>") -> <> | W58: =IF(CELL("spalte",W58)<CELL("spalte",$P58)+$Q$2, IF(MOD(CELL("zeile",W58)-CELL("zeile",W$4),$Q$2)=MOD(CELL("spalte",W58)-(CELL("spalte",$P58)),$Q$2),ean_conv(LEFT($J58,12)),""), "<>") -> <> | X58: =IF(CELL("spalte",X58)<CELL("spalte",$P58)+$Q$2, IF(MOD(CELL("zeile",X58)-CELL("zeile",X$4),$Q$2)=MOD(CELL("spalte",X58)-(CELL("spalte",$P58)),$Q$2),ean_conv(LEFT($J58,12)),""), "<>") -> <> | Y58: =IF(CELL("spalte",Y58)<CELL("spalte",$P58)+$Q$2, IF(MOD(CELL("zeile",Y58)-CELL("zeile",Y$4),$Q$2)=MOD(CELL("spalte",Y58)-(CELL("spalte",$P58)),$Q$2),ean_conv(LEFT($J58,12)),""), "<>") -> <>
A59: 56 | B59: A Couple of Cuckoos | C59: 14 | D59: Comedy | F59: deu | G59: Standard | H59: Carlsen Manga | I59: X | J59: 9783551778871 | L59: A Couple of Cuckoos •deu• | M59: A Couple of Cuckoos •deu• 14 | O59: Seite 1 | P59: =IF(CELL("spalte",P59)<CELL("spalte",$P59)+$Q$2, IF(MOD(CELL("zeile",P59)-CELL("zeile",P$4),$Q$2)=MOD(CELL("spalte",P59)-(CELL("spalte",$P59)),$Q$2),ean_conv(LEFT($J59,12)),""), "<>") -> <> | Q59: =IF(CELL("spalte",Q59)<CELL("spalte",$P59)+$Q$2, IF(MOD(CELL("zeile",Q59)-CELL("zeile",Q$4),$Q$2)=MOD(CELL("spalte",Q59)-(CELL("spalte",$P59)),$Q$2),ean_conv(LEFT($J59,12)),""), "<>") -> <> | R59: =IF(CELL("spalte",R59)<CELL("spalte",$P59)+$Q$2, IF(MOD(CELL("zeile",R59)-CELL("zeile",R$4),$Q$2)=MOD(CELL("spalte",R59)-(CELL("spalte",$P59)),$Q$2),ean_conv(LEFT($J59,12)),""), "<>") -> <> | S59: =IF(CELL("spalte",S59)<CELL("spalte",$P59)+$Q$2, IF(MOD(CELL("zeile",S59)-CELL("zeile",S$4),$Q$2)=MOD(CELL("spalte",S59)-(CELL("spalte",$P59)),$Q$2),ean_conv(LEFT($J59,12)),""), "<>") -> <> | T59: =IF(CELL("spalte",T59)<CELL("spalte",$P59)+$Q$2, IF(MOD(CELL("zeile",T59)-CELL("zeile",T$4),$Q$2)=MOD(CELL("spalte",T59)-(CELL("spalte",$P59)),$Q$2),ean_conv(LEFT($J59,12)),""), "<>") -> <> | U59: =IF(CELL("spalte",U59)<CELL("spalte",$P59)+$Q$2, IF(MOD(CELL("zeile",U59)-CELL("zeile",U$4),$Q$2)=MOD(CELL("spalte",U59)-(CELL("spalte",$P59)),$Q$2),ean_conv(LEFT($J59,12)),""), "<>") -> <> | V59: =IF(CELL("spalte",V59)<CELL("spalte",$P59)+$Q$2, IF(MOD(CELL("zeile",V59)-CELL("zeile",V$4),$Q$2)=MOD(CELL("spalte",V59)-(CELL("spalte",$P59)),$Q$2),ean_conv(LEFT($J59,12)),""), "<>") -> <> | W59: =IF(CELL("spalte",W59)<CELL("spalte",$P59)+$Q$2, IF(MOD(CELL("zeile",W59)-CELL("zeile",W$4),$Q$2)=MOD(CELL("spalte",W59)-(CELL("spalte",$P59)),$Q$2),ean_conv(LEFT($J59,12)),""), "<>") -> <> | X59: =IF(CELL("spalte",X59)<CELL("spalte",$P59)+$Q$2, IF(MOD(CELL("zeile",X59)-CELL("zeile",X$4),$Q$2)=MOD(CELL("spalte",X59)-(CELL("spalte",$P59)),$Q$2),ean_conv(LEFT($J59,12)),""), "<>") -> <> | Y59: =IF(CELL("spalte",Y59)<CELL("spalte",$P59)+$Q$2, IF(MOD(CELL("zeile",Y59)-CELL("zeile",Y$4),$Q$2)=MOD(CELL("spalte",Y59)-(CELL("spalte",$P59)),$Q$2),ean_conv(LEFT($J59,12)),""), "<>") -> <>
A60: 57 | B60: A Couple of Cuckoos | C60: 15 | D60: Comedy | F60: deu | G60: Standard | H60: Carlsen Manga | J60: 9783551779052 | L60: A Couple of Cuckoos •deu• | M60: A Couple of Cuckoos •deu• 15 | O60: Seite 1 | P60: =IF(CELL("spalte",P60)<CELL("spalte",$P60)+$Q$2, IF(MOD(CELL("zeile",P60)-CELL("zeile",P$4),$Q$2)=MOD(CELL("spalte",P60)-(CELL("spalte",$P60)),$Q$2),ean_conv(LEFT($J60,12)),""), "<>") -> <> | Q60: =IF(CELL("spalte",Q60)<CELL("spalte",$P60)+$Q$2, IF(MOD(CELL("zeile",Q60)-CELL("zeile",Q$4),$Q$2)=MOD(CELL("spalte",Q60)-(CELL("spalte",$P60)),$Q$2),ean_conv(LEFT($J60,12)),""), "<>") -> <> | R60: =IF(CELL("spalte",R60)<CELL("spalte",$P60)+$Q$2, IF(MOD(CELL("zeile",R60)-CELL("zeile",R$4),$Q$2)=MOD(CELL("spalte",R60)-(CELL("spalte",$P60)),$Q$2),ean_conv(LEFT($J60,12)),""), "<>") -> <> | S60: =IF(CELL("spalte",S60)<CELL("spalte",$P60)+$Q$2, IF(MOD(CELL("zeile",S60)-CELL("zeile",S$4),$Q$2)=MOD(CELL("spalte",S60)-(CELL("spalte",$P60)),$Q$2),ean_conv(LEFT($J60,12)),""), "<>") -> <> | T60: =IF(CELL("spalte",T60)<CELL("spalte",$P60)+$Q$2, IF(MOD(CELL("zeile",T60)-CELL("zeile",T$4),$Q$2)=MOD(CELL("spalte",T60)-(CELL("spalte",$P60)),$Q$2),ean_conv(LEFT($J60,12)),""), "<>") -> <> | U60: =IF(CELL("spalte",U60)<CELL("spalte",$P60)+$Q$2, IF(MOD(CELL("zeile",U60)-CELL("zeile",U$4),$Q$2)=MOD(CELL("spalte",U60)-(CELL("spalte",$P60)),$Q$2),ean_conv(LEFT($J60,12)),""), "<>") -> <> | V60: =IF(CELL("spalte",V60)<CELL("spalte",$P60)+$Q$2, IF(MOD(CELL("zeile",V60)-CELL("zeile",V$4),$Q$2)=MOD(CELL("spalte",V60)-(CELL("spalte",$P60)),$Q$2),ean_conv(LEFT($J60,12)),""), "<>") -> <> | W60: =IF(CELL("spalte",W60)<CELL("spalte",$P60)+$Q$2, IF(MOD(CELL("zeile",W60)-CELL("zeile",W$4),$Q$2)=MOD(CELL("spalte",W60)-(CELL("spalte",$P60)),$Q$2),ean_conv(LEFT($J60,12)),""), "<>") -> <> | X60: =IF(CELL("spalte",X60)<CELL("spalte",$P60)+$Q$2, IF(MOD(CELL("zeile",X60)-CELL("zeile",X$4),$Q$2)=MOD(CELL("spalte",X60)-(CELL("spalte",$P60)),$Q$2),ean_conv(LEFT($J60,12)),""), "<>") -> <> | Y60: =IF(CELL("spalte",Y60)<CELL("spalte",$P60)+$Q$2, IF(MOD(CELL("zeile",Y60)-CELL("zeile",Y$4),$Q$2)=MOD(CELL("spalte",Y60)-(CELL("spalte",$P60)),$Q$2),ean_conv(LEFT($J60,12)),""), "<>") -> <>
A61: 58 | B61: A Couple of Cuckoos | C61: 16 | D61: Comedy | F61: deu | G61: Standard | H61: Carlsen Manga | J61: 9783551801272 | L61: A Couple of Cuckoos •deu• | M61: A Couple of Cuckoos •deu• 16 | O61: Seite 1 | P61: =IF(CELL("spalte",P61)<CELL("spalte",$P61)+$Q$2, IF(MOD(CELL("zeile",P61)-CELL("zeile",P$4),$Q$2)=MOD(CELL("spalte",P61)-(CELL("spalte",$P61)),$Q$2),ean_conv(LEFT($J61,12)),""), "<>") -> <> | Q61: =IF(CELL("spalte",Q61)<CELL("spalte",$P61)+$Q$2, IF(MOD(CELL("zeile",Q61)-CELL("zeile",Q$4),$Q$2)=MOD(CELL("spalte",Q61)-(CELL("spalte",$P61)),$Q$2),ean_conv(LEFT($J61,12)),""), "<>") -> <> | R61: =IF(CELL("spalte",R61)<CELL("spalte",$P61)+$Q$2, IF(MOD(CELL("zeile",R61)-CELL("zeile",R$4),$Q$2)=MOD(CELL("spalte",R61)-(CELL("spalte",$P61)),$Q$2),ean_conv(LEFT($J61,12)),""), "<>") -> <> | S61: =IF(CELL("spalte",S61)<CELL("spalte",$P61)+$Q$2, IF(MOD(CELL("zeile",S61)-CELL("zeile",S$4),$Q$2)=MOD(CELL("spalte",S61)-(CELL("spalte",$P61)),$Q$2),ean_conv(LEFT($J61,12)),""), "<>") -> <> | T61: =IF(CELL("spalte",T61)<CELL("spalte",$P61)+$Q$2, IF(MOD(CELL("zeile",T61)-CELL("zeile",T$4),$Q$2)=MOD(CELL("spalte",T61)-(CELL("spalte",$P61)),$Q$2),ean_conv(LEFT($J61,12)),""), "<>") -> <> | U61: =IF(CELL("spalte",U61)<CELL("spalte",$P61)+$Q$2, IF(MOD(CELL("zeile",U61)-CELL("zeile",U$4),$Q$2)=MOD(CELL("spalte",U61)-(CELL("spalte",$P61)),$Q$2),ean_conv(LEFT($J61,12)),""), "<>") -> <> | V61: =IF(CELL("spalte",V61)<CELL("spalte",$P61)+$Q$2, IF(MOD(CELL("zeile",V61)-CELL("zeile",V$4),$Q$2)=MOD(CELL("spalte",V61)-(CELL("spalte",$P61)),$Q$2),ean_conv(LEFT($J61,12)),""), "<>") -> <> | W61: =IF(CELL("spalte",W61)<CELL("spalte",$P61)+$Q$2, IF(MOD(CELL("zeile",W61)-CELL("zeile",W$4),$Q$2)=MOD(CELL("spalte",W61)-(CELL("spalte",$P61)),$Q$2),ean_conv(LEFT($J61,12)),""), "<>") -> <> | X61: =IF(CELL("spalte",X61)<CELL("spalte",$P61)+$Q$2, IF(MOD(CELL("zeile",X61)-CELL("zeile",X$4),$Q$2)=MOD(CELL("spalte",X61)-(CELL("spalte",$P61)),$Q$2),ean_conv(LEFT($J61,12)),""), "<>") -> <> | Y61: =IF(CELL("spalte",Y61)<CELL("spalte",$P61)+$Q$2, IF(MOD(CELL("zeile",Y61)-CELL("zeile",Y$4),$Q$2)=MOD(CELL("spalte",Y61)-(CELL("spalte",$P61)),$Q$2),ean_conv(LEFT($J61,12)),""), "<>") -> <>
A62: 59 | B62: A Couple of Cuckoos | C62: 17 | D62: Comedy | F62: deu | G62: Standard | H62: Carlsen Manga | J62: 9783551802309 | L62: A Couple of Cuckoos •deu• | M62: A Couple of Cuckoos •deu• 17 | O62: Seite 1 | P62: =IF(CELL("spalte",P62)<CELL("spalte",$P62)+$Q$2, IF(MOD(CELL("zeile",P62)-CELL("zeile",P$4),$Q$2)=MOD(CELL("spalte",P62)-(CELL("spalte",$P62)),$Q$2),ean_conv(LEFT($J62,12)),""), "<>") -> <> | Q62: =IF(CELL("spalte",Q62)<CELL("spalte",$P62)+$Q$2, IF(MOD(CELL("zeile",Q62)-CELL("zeile",Q$4),$Q$2)=MOD(CELL("spalte",Q62)-(CELL("spalte",$P62)),$Q$2),ean_conv(LEFT($J62,12)),""), "<>") -> <> | R62: =IF(CELL("spalte",R62)<CELL("spalte",$P62)+$Q$2, IF(MOD(CELL("zeile",R62)-CELL("zeile",R$4),$Q$2)=MOD(CELL("spalte",R62)-(CELL("spalte",$P62)),$Q$2),ean_conv(LEFT($J62,12)),""), "<>") -> <> | S62: =IF(CELL("spalte",S62)<CELL("spalte",$P62)+$Q$2, IF(MOD(CELL("zeile",S62)-CELL("zeile",S$4),$Q$2)=MOD(CELL("spalte",S62)-(CELL("spalte",$P62)),$Q$2),ean_conv(LEFT($J62,12)),""), "<>") -> <> | T62: =IF(CELL("spalte",T62)<CELL("spalte",$P62)+$Q$2, IF(MOD(CELL("zeile",T62)-CELL("zeile",T$4),$Q$2)=MOD(CELL("spalte",T62)-(CELL("spalte",$P62)),$Q$2),ean_conv(LEFT($J62,12)),""), "<>") -> <> | U62: =IF(CELL("spalte",U62)<CELL("spalte",$P62)+$Q$2, IF(MOD(CELL("zeile",U62)-CELL("zeile",U$4),$Q$2)=MOD(CELL("spalte",U62)-(CELL("spalte",$P62)),$Q$2),ean_conv(LEFT($J62,12)),""), "<>") -> <> | V62: =IF(CELL("spalte",V62)<CELL("spalte",$P62)+$Q$2, IF(MOD(CELL("zeile",V62)-CELL("zeile",V$4),$Q$2)=MOD(CELL("spalte",V62)-(CELL("spalte",$P62)),$Q$2),ean_conv(LEFT($J62,12)),""), "<>") -> <> | W62: =IF(CELL("spalte",W62)<CELL("spalte",$P62)+$Q$2, IF(MOD(CELL("zeile",W62)-CELL("zeile",W$4),$Q$2)=MOD(CELL("spalte",W62)-(CELL("spalte",$P62)),$Q$2),ean_conv(LEFT($J62,12)),""), "<>") -> <> | X62: =IF(CELL("spalte",X62)<CELL("spalte",$P62)+$Q$2, IF(MOD(CELL("zeile",X62)-CELL("zeile",X$4),$Q$2)=MOD(CELL("spalte",X62)-(CELL("spalte",$P62)),$Q$2),ean_conv(LEFT($J62,12)),""), "<>") -> <> | Y62: =IF(CELL("spalte",Y62)<CELL("spalte",$P62)+$Q$2, IF(MOD(CELL("zeile",Y62)-CELL("zeile",Y$4),$Q$2)=MOD(CELL("spalte",Y62)-(CELL("spalte",$P62)),$Q$2),ean_conv(LEFT($J62,12)),""), "<>") -> <>
A63: 60 | B63: A Couple of Cuckoos | C63: 18 | D63: Comedy | F63: deu | G63: Standard | H63: Carlsen Manga | J63: 9783551802316 | L63: A Couple of Cuckoos •deu• | M63: A Couple of Cuckoos •deu• 18 | O63: Seite 1 | P63: =IF(CELL("spalte",P63)<CELL("spalte",$P63)+$Q$2, IF(MOD(CELL("zeile",P63)-CELL("zeile",P$4),$Q$2)=MOD(CELL("spalte",P63)-(CELL("spalte",$P63)),$Q$2),ean_conv(LEFT($J63,12)),""), "<>") -> <> | Q63: =IF(CELL("spalte",Q63)<CELL("spalte",$P63)+$Q$2, IF(MOD(CELL("zeile",Q63)-CELL("zeile",Q$4),$Q$2)=MOD(CELL("spalte",Q63)-(CELL("spalte",$P63)),$Q$2),ean_conv(LEFT($J63,12)),""), "<>") -> <> | R63: =IF(CELL("spalte",R63)<CELL("spalte",$P63)+$Q$2, IF(MOD(CELL("zeile",R63)-CELL("zeile",R$4),$Q$2)=MOD(CELL("spalte",R63)-(CELL("spalte",$P63)),$Q$2),ean_conv(LEFT($J63,12)),""), "<>") -> <> | S63: =IF(CELL("spalte",S63)<CELL("spalte",$P63)+$Q$2, IF(MOD(CELL("zeile",S63)-CELL("zeile",S$4),$Q$2)=MOD(CELL("spalte",S63)-(CELL("spalte",$P63)),$Q$2),ean_conv(LEFT($J63,12)),""), "<>") -> <> | T63: =IF(CELL("spalte",T63)<CELL("spalte",$P63)+$Q$2, IF(MOD(CELL("zeile",T63)-CELL("zeile",T$4),$Q$2)=MOD(CELL("spalte",T63)-(CELL("spalte",$P63)),$Q$2),ean_conv(LEFT($J63,12)),""), "<>") -> <> | U63: =IF(CELL("spalte",U63)<CELL("spalte",$P63)+$Q$2, IF(MOD(CELL("zeile",U63)-CELL("zeile",U$4),$Q$2)=MOD(CELL("spalte",U63)-(CELL("spalte",$P63)),$Q$2),ean_conv(LEFT($J63,12)),""), "<>") -> <> | V63: =IF(CELL("spalte",V63)<CELL("spalte",$P63)+$Q$2, IF(MOD(CELL("zeile",V63)-CELL("zeile",V$4),$Q$2)=MOD(CELL("spalte",V63)-(CELL("spalte",$P63)),$Q$2),ean_conv(LEFT($J63,12)),""), "<>") -> <> | W63: =IF(CELL("spalte",W63)<CELL("spalte",$P63)+$Q$2, IF(MOD(CELL("zeile",W63)-CELL("zeile",W$4),$Q$2)=MOD(CELL("spalte",W63)-(CELL("spalte",$P63)),$Q$2),ean_conv(LEFT($J63,12)),""), "<>") -> <> | X63: =IF(CELL("spalte",X63)<CELL("spalte",$P63)+$Q$2, IF(MOD(CELL("zeile",X63)-CELL("zeile",X$4),$Q$2)=MOD(CELL("spalte",X63)-(CELL("spalte",$P63)),$Q$2),ean_conv(LEFT($J63,12)),""), "<>") -> <> | Y63: =IF(CELL("spalte",Y63)<CELL("spalte",$P63)+$Q$2, IF(MOD(CELL("zeile",Y63)-CELL("zeile",Y$4),$Q$2)=MOD(CELL("spalte",Y63)-(CELL("spalte",$P63)),$Q$2),ean_conv(LEFT($J63,12)),""), "<>") -> <>
A64: 61 | B64: A Couple of Cuckoos | C64: 19 | D64: Comedy | F64: deu | G64: Standard | H64: Carlsen Manga | J64: 9783551802323 | L64: A Couple of Cuckoos •deu• | M64: A Couple of Cuckoos •deu• 19 | O64: Seite 1 | P64: =IF(CELL("spalte",P64)<CELL("spalte",$P64)+$Q$2, IF(MOD(CELL("zeile",P64)-CELL("zeile",P$4),$Q$2)=MOD(CELL("spalte",P64)-(CELL("spalte",$P64)),$Q$2),ean_conv(LEFT($J64,12)),""), "<>") -> <> | Q64: =IF(CELL("spalte",Q64)<CELL("spalte",$P64)+$Q$2, IF(MOD(CELL("zeile",Q64)-CELL("zeile",Q$4),$Q$2)=MOD(CELL("spalte",Q64)-(CELL("spalte",$P64)),$Q$2),ean_conv(LEFT($J64,12)),""), "<>") -> <> | R64: =IF(CELL("spalte",R64)<CELL("spalte",$P64)+$Q$2, IF(MOD(CELL("zeile",R64)-CELL("zeile",R$4),$Q$2)=MOD(CELL("spalte",R64)-(CELL("spalte",$P64)),$Q$2),ean_conv(LEFT($J64,12)),""), "<>") -> <> | S64: =IF(CELL("spalte",S64)<CELL("spalte",$P64)+$Q$2, IF(MOD(CELL("zeile",S64)-CELL("zeile",S$4),$Q$2)=MOD(CELL("spalte",S64)-(CELL("spalte",$P64)),$Q$2),ean_conv(LEFT($J64,12)),""), "<>") -> <> | T64: =IF(CELL("spalte",T64)<CELL("spalte",$P64)+$Q$2, IF(MOD(CELL("zeile",T64)-CELL("zeile",T$4),$Q$2)=MOD(CELL("spalte",T64)-(CELL("spalte",$P64)),$Q$2),ean_conv(LEFT($J64,12)),""), "<>") -> <> | U64: =IF(CELL("spalte",U64)<CELL("spalte",$P64)+$Q$2, IF(MOD(CELL("zeile",U64)-CELL("zeile",U$4),$Q$2)=MOD(CELL("spalte",U64)-(CELL("spalte",$P64)),$Q$2),ean_conv(LEFT($J64,12)),""), "<>") -> <> | V64: =IF(CELL("spalte",V64)<CELL("spalte",$P64)+$Q$2, IF(MOD(CELL("zeile",V64)-CELL("zeile",V$4),$Q$2)=MOD(CELL("spalte",V64)-(CELL("spalte",$P64)),$Q$2),ean_conv(LEFT($J64,12)),""), "<>") -> <> | W64: =IF(CELL("spalte",W64)<CELL("spalte",$P64)+$Q$2, IF(MOD(CELL("zeile",W64)-CELL("zeile",W$4),$Q$2)=MOD(CELL("spalte",W64)-(CELL("spalte",$P64)),$Q$2),ean_conv(LEFT($J64,12)),""), "<>") -> <> | X64: =IF(CELL("spalte",X64)<CELL("spalte",$P64)+$Q$2, IF(MOD(CELL("zeile",X64)-CELL("zeile",X$4),$Q$2)=MOD(CELL("spalte",X64)-(CELL("spalte",$P64)),$Q$2),ean_conv(LEFT($J64,12)),""), "<>") -> <> | Y64: =IF(CELL("spalte",Y64)<CELL("spalte",$P64)+$Q$2, IF(MOD(CELL("zeile",Y64)-CELL("zeile",Y$4),$Q$2)=MOD(CELL("spalte",Y64)-(CELL("spalte",$P64)),$Q$2),ean_conv(LEFT($J64,12)),""), "<>") -> <>
A65: 62 | B65: A Couple of Cuckoos | C65: 20 | D65: Comedy | F65: deu | G65: Standard | H65: Carlsen Manga | J65: 9783551806758 | L65: A Couple of Cuckoos •deu• | M65: A Couple of Cuckoos •deu• 20 | O65: Seite 1 | P65: =IF(CELL("spalte",P65)<CELL("spalte",$P65)+$Q$2, IF(MOD(CELL("zeile",P65)-CELL("zeile",P$4),$Q$2)=MOD(CELL("spalte",P65)-(CELL("spalte",$P65)),$Q$2),ean_conv(LEFT($J65,12)),""), "<>") -> <> | Q65: =IF(CELL("spalte",Q65)<CELL("spalte",$P65)+$Q$2, IF(MOD(CELL("zeile",Q65)-CELL("zeile",Q$4),$Q$2)=MOD(CELL("spalte",Q65)-(CELL("spalte",$P65)),$Q$2),ean_conv(LEFT($J65,12)),""), "<>") -> <> | R65: =IF(CELL("spalte",R65)<CELL("spalte",$P65)+$Q$2, IF(MOD(CELL("zeile",R65)-CELL("zeile",R$4),$Q$2)=MOD(CELL("spalte",R65)-(CELL("spalte",$P65)),$Q$2),ean_conv(LEFT($J65,12)),""), "<>") -> <> | S65: =IF(CELL("spalte",S65)<CELL("spalte",$P65)+$Q$2, IF(MOD(CELL("zeile",S65)-CELL("zeile",S$4),$Q$2)=MOD(CELL("spalte",S65)-(CELL("spalte",$P65)),$Q$2),ean_conv(LEFT($J65,12)),""), "<>") -> <> | T65: =IF(CELL("spalte",T65)<CELL("spalte",$P65)+$Q$2, IF(MOD(CELL("zeile",T65)-CELL("zeile",T$4),$Q$2)=MOD(CELL("spalte",T65)-(CELL("spalte",$P65)),$Q$2),ean_conv(LEFT($J65,12)),""), "<>") -> <> | U65: =IF(CELL("spalte",U65)<CELL("spalte",$P65)+$Q$2, IF(MOD(CELL("zeile",U65)-CELL("zeile",U$4),$Q$2)=MOD(CELL("spalte",U65)-(CELL("spalte",$P65)),$Q$2),ean_conv(LEFT($J65,12)),""), "<>") -> <> | V65: =IF(CELL("spalte",V65)<CELL("spalte",$P65)+$Q$2, IF(MOD(CELL("zeile",V65)-CELL("zeile",V$4),$Q$2)=MOD(CELL("spalte",V65)-(CELL("spalte",$P65)),$Q$2),ean_conv(LEFT($J65,12)),""), "<>") -> <> | W65: =IF(CELL("spalte",W65)<CELL("spalte",$P65)+$Q$2, IF(MOD(CELL("zeile",W65)-CELL("zeile",W$4),$Q$2)=MOD(CELL("spalte",W65)-(CELL("spalte",$P65)),$Q$2),ean_conv(LEFT($J65,12)),""), "<>") -> <> | X65: =IF(CELL("spalte",X65)<CELL("spalte",$P65)+$Q$2, IF(MOD(CELL("zeile",X65)-CELL("zeile",X$4),$Q$2)=MOD(CELL("spalte",X65)-(CELL("spalte",$P65)),$Q$2),ean_conv(LEFT($J65,12)),""), "<>") -> <> | Y65: =IF(CELL("spalte",Y65)<CELL("spalte",$P65)+$Q$2, IF(MOD(CELL("zeile",Y65)-CELL("zeile",Y$4),$Q$2)=MOD(CELL("spalte",Y65)-(CELL("spalte",$P65)),$Q$2),ean_conv(LEFT($J65,12)),""), "<>") -> <>
A66: 63 | B66: A Healthy Appetite | D66: Hentai | E66: X | F66: eng | G66: Groß | H66: Fakku Books | I66: X | J66: 9781634420587 | L66: A Healthy Appetite •eng• | M66: A Healthy Appetite •eng• | O66: Seite 1 | P66: =IF(CELL("spalte",P66)<CELL("spalte",$P66)+$Q$2, IF(MOD(CELL("zeile",P66)-CELL("zeile",P$4),$Q$2)=MOD(CELL("spalte",P66)-(CELL("spalte",$P66)),$Q$2),ean_conv(LEFT($J66,12)),""), "<>") -> <> | Q66: =IF(CELL("spalte",Q66)<CELL("spalte",$P66)+$Q$2, IF(MOD(CELL("zeile",Q66)-CELL("zeile",Q$4),$Q$2)=MOD(CELL("spalte",Q66)-(CELL("spalte",$P66)),$Q$2),ean_conv(LEFT($J66,12)),""), "<>") -> <> | R66: =IF(CELL("spalte",R66)<CELL("spalte",$P66)+$Q$2, IF(MOD(CELL("zeile",R66)-CELL("zeile",R$4),$Q$2)=MOD(CELL("spalte",R66)-(CELL("spalte",$P66)),$Q$2),ean_conv(LEFT($J66,12)),""), "<>") -> <> | S66: =IF(CELL("spalte",S66)<CELL("spalte",$P66)+$Q$2, IF(MOD(CELL("zeile",S66)-CELL("zeile",S$4),$Q$2)=MOD(CELL("spalte",S66)-(CELL("spalte",$P66)),$Q$2),ean_conv(LEFT($J66,12)),""), "<>") -> <> | T66: =IF(CELL("spalte",T66)<CELL("spalte",$P66)+$Q$2, IF(MOD(CELL("zeile",T66)-CELL("zeile",T$4),$Q$2)=MOD(CELL("spalte",T66)-(CELL("spalte",$P66)),$Q$2),ean_conv(LEFT($J66,12)),""), "<>") -> <> | U66: =IF(CELL("spalte",U66)<CELL("spalte",$P66)+$Q$2, IF(MOD(CELL("zeile",U66)-CELL("zeile",U$4),$Q$2)=MOD(CELL("spalte",U66)-(CELL("spalte",$P66)),$Q$2),ean_conv(LEFT($J66,12)),""), "<>") -> <> | V66: =IF(CELL("spalte",V66)<CELL("spalte",$P66)+$Q$2, IF(MOD(CELL("zeile",V66)-CELL("zeile",V$4),$Q$2)=MOD(CELL("spalte",V66)-(CELL("spalte",$P66)),$Q$2),ean_conv(LEFT($J66,12)),""), "<>") -> <> | W66: =IF(CELL("spalte",W66)<CELL("spalte",$P66)+$Q$2, IF(MOD(CELL("zeile",W66)-CELL("zeile",W$4),$Q$2)=MOD(CELL("spalte",W66)-(CELL("spalte",$P66)),$Q$2),ean_conv(LEFT($J66,12)),""), "<>") -> <> | X66: =IF(CELL("spalte",X66)<CELL("spalte",$P66)+$Q$2, IF(MOD(CELL("zeile",X66)-CELL("zeile",X$4),$Q$2)=MOD(CELL("spalte",X66)-(CELL("spalte",$P66)),$Q$2),ean_conv(LEFT($J66,12)),""), "<>") -> <> | Y66: =IF(CELL("spalte",Y66)<CELL("spalte",$P66)+$Q$2, IF(MOD(CELL("zeile",Y66)-CELL("zeile",Y$4),$Q$2)=MOD(CELL("spalte",Y66)-(CELL("spalte",$P66)),$Q$2),ean_conv(LEFT($J66,12)),""), "<>") -> <>
A67: 64 | B67: A Reincarnated Carrier’s Strategy for Another World | C67: 1 | D67: RomCom | E67: X | F67: eng | G67: Standard | H67: Ghost Ship | I67: X | J67: 9798895615799 | L67: A Reincarnated Carrier’s Strategy for Another World •eng• | M67: A Reincarnated Carrier’s Strategy for Another World •eng• 1 | O67: Seite 1 | P67: =IF(CELL("spalte",P67)<CELL("spalte",$P67)+$Q$2, IF(MOD(CELL("zeile",P67)-CELL("zeile",P$4),$Q$2)=MOD(CELL("spalte",P67)-(CELL("spalte",$P67)),$Q$2),ean_conv(LEFT($J67,12)),""), "<>") -> <> | Q67: =IF(CELL("spalte",Q67)<CELL("spalte",$P67)+$Q$2, IF(MOD(CELL("zeile",Q67)-CELL("zeile",Q$4),$Q$2)=MOD(CELL("spalte",Q67)-(CELL("spalte",$P67)),$Q$2),ean_conv(LEFT($J67,12)),""), "<>") -> <> | R67: =IF(CELL("spalte",R67)<CELL("spalte",$P67)+$Q$2, IF(MOD(CELL("zeile",R67)-CELL("zeile",R$4),$Q$2)=MOD(CELL("spalte",R67)-(CELL("spalte",$P67)),$Q$2),ean_conv(LEFT($J67,12)),""), "<>") -> <> | S67: =IF(CELL("spalte",S67)<CELL("spalte",$P67)+$Q$2, IF(MOD(CELL("zeile",S67)-CELL("zeile",S$4),$Q$2)=MOD(CELL("spalte",S67)-(CELL("spalte",$P67)),$Q$2),ean_conv(LEFT($J67,12)),""), "<>") -> <> | T67: =IF(CELL("spalte",T67)<CELL("spalte",$P67)+$Q$2, IF(MOD(CELL("zeile",T67)-CELL("zeile",T$4),$Q$2)=MOD(CELL("spalte",T67)-(CELL("spalte",$P67)),$Q$2),ean_conv(LEFT($J67,12)),""), "<>") -> <> | U67: =IF(CELL("spalte",U67)<CELL("spalte",$P67)+$Q$2, IF(MOD(CELL("zeile",U67)-CELL("zeile",U$4),$Q$2)=MOD(CELL("spalte",U67)-(CELL("spalte",$P67)),$Q$2),ean_conv(LEFT($J67,12)),""), "<>") -> <> | V67: =IF(CELL("spalte",V67)<CELL("spalte",$P67)+$Q$2, IF(MOD(CELL("zeile",V67)-CELL("zeile",V$4),$Q$2)=MOD(CELL("spalte",V67)-(CELL("spalte",$P67)),$Q$2),ean_conv(LEFT($J67,12)),""), "<>") -> <> | W67: =IF(CELL("spalte",W67)<CELL("spalte",$P67)+$Q$2, IF(MOD(CELL("zeile",W67)-CELL("zeile",W$4),$Q$2)=MOD(CELL("spalte",W67)-(CELL("spalte",$P67)),$Q$2),ean_conv(LEFT($J67,12)),""), "<>") -> <> | X67: =IF(CELL("spalte",X67)<CELL("spalte",$P67)+$Q$2, IF(MOD(CELL("zeile",X67)-CELL("zeile",X$4),$Q$2)=MOD(CELL("spalte",X67)-(CELL("spalte",$P67)),$Q$2),ean_conv(LEFT($J67,12)),""), "<>") -> <> | Y67: =IF(CELL("spalte",Y67)<CELL("spalte",$P67)+$Q$2, IF(MOD(CELL("zeile",Y67)-CELL("zeile",Y$4),$Q$2)=MOD(CELL("spalte",Y67)-(CELL("spalte",$P67)),$Q$2),ean_conv(LEFT($J67,12)),""), "<>") -> <>
A68: =A67+1 -> 65 | B68: Ab sofort Schwester! | C68: 1 | D68: Comedy | F68: deu | G68: Standard | H68: Manga Jamsession | I68: X | J68: 9783950488005 | L68: =IF(B68<>"",B68&Trenner&Einschluss&F68&Einschluss,"") -> Ab sofort Schwester! •deu• | M68: =IF(C68<>"", IF(ISNUMBER(C68), IF(COUNTIF(Sort_Titel,L68)>99,L68&Trenner&TEXT(C68,"000"), IF(COUNTIF(Sort_Titel,L68)>9,L68&Trenner&TEXT(C68,"00"),L68&Trenner&TEXT(C68,"0")) ),L68&Trenner&C68 ),IF(L68<>"",L68,Titel_Leer) ) -> Ab sofort Schwester! •deu• 1 | O68: ="Seite "&TEXT(ROUND(((A68-1)/$O$3)+0.5,0),"0") -> Seite 1 | P68: =IF(CELL("spalte",P68)<CELL("spalte",$P68)+$Q$2, IF(MOD(CELL("zeile",P68)-CELL("zeile",P$4),$Q$2)=MOD(CELL("spalte",P68)-(CELL("spalte",$P68)),$Q$2),ean_conv(LEFT($J68,12)),""), "<>") -> <> | Q68: =IF(CELL("spalte",Q68)<CELL("spalte",$P68)+$Q$2, IF(MOD(CELL("zeile",Q68)-CELL("zeile",Q$4),$Q$2)=MOD(CELL("spalte",Q68)-(CELL("spalte",$P68)),$Q$2),ean_conv(LEFT($J68,12)),""), "<>") -> <> | R68: =IF(CELL("spalte",R68)<CELL("spalte",$P68)+$Q$2, IF(MOD(CELL("zeile",R68)-CELL("zeile",R$4),$Q$2)=MOD(CELL("spalte",R68)-(CELL("spalte",$P68)),$Q$2),ean_conv(LEFT($J68,12)),""), "<>") -> <> | S68: =IF(CELL("spalte",S68)<CELL("spalte",$P68)+$Q$2, IF(MOD(CELL("zeile",S68)-CELL("zeile",S$4),$Q$2)=MOD(CELL("spalte",S68)-(CELL("spalte",$P68)),$Q$2),ean_conv(LEFT($J68,12)),""), "<>") -> <> | T68: =IF(CELL("spalte",T68)<CELL("spalte",$P68)+$Q$2, IF(MOD(CELL("zeile",T68)-CELL("zeile",T$4),$Q$2)=MOD(CELL("spalte",T68)-(CELL("spalte",$P68)),$Q$2),ean_conv(LEFT($J68,12)),""), "<>") -> <> | U68: =IF(CELL("spalte",U68)<CELL("spalte",$P68)+$Q$2, IF(MOD(CELL("zeile",U68)-CELL("zeile",U$4),$Q$2)=MOD(CELL("spalte",U68)-(CELL("spalte",$P68)),$Q$2),ean_conv(LEFT($J68,12)),""), "<>") -> <> | V68: =IF(CELL("spalte",V68)<CELL("spalte",$P68)+$Q$2, IF(MOD(CELL("zeile",V68)-CELL("zeile",V$4),$Q$2)=MOD(CELL("spalte",V68)-(CELL("spalte",$P68)),$Q$2),ean_conv(LEFT($J68,12)),""), "<>") -> <> | W68: =IF(CELL("spalte",W68)<CELL("spalte",$P68)+$Q$2, IF(MOD(CELL("zeile",W68)-CELL("zeile",W$4),$Q$2)=MOD(CELL("spalte",W68)-(CELL("spalte",$P68)),$Q$2),ean_conv(LEFT($J68,12)),""), "<>") -> <> | X68: =IF(CELL("spalte",X68)<CELL("spalte",$P68)+$Q$2, IF(MOD(CELL("zeile",X68)-CELL("zeile",X$4),$Q$2)=MOD(CELL("spalte",X68)-(CELL("spalte",$P68)),$Q$2),ean_conv(LEFT($J68,12)),""), "<>") -> <> | Y68: =IF(CELL("spalte",Y68)<CELL("spalte",$P68)+$Q$2, IF(MOD(CELL("zeile",Y68)-CELL("zeile",Y$4),$Q$2)=MOD(CELL("spalte",Y68)-(CELL("spalte",$P68)),$Q$2),ean_conv(LEFT($J68,12)),""), "<>") -> <>
A69: 66 | B69: Ab sofort Schwester! | C69: 2 | D69: Comedy | F69: deu | G69: Standard | H69: Manga Jamsession | I69: X | J69: 9783950488029 | L69: Ab sofort Schwester! •deu• | M69: Ab sofort Schwester! •deu• 2 | O69: Seite 1 | P69: =IF(CELL("spalte",P69)<CELL("spalte",$P69)+$Q$2, IF(MOD(CELL("zeile",P69)-CELL("zeile",P$4),$Q$2)=MOD(CELL("spalte",P69)-(CELL("spalte",$P69)),$Q$2),ean_conv(LEFT($J69,12)),""), "<>") -> <> | Q69: =IF(CELL("spalte",Q69)<CELL("spalte",$P69)+$Q$2, IF(MOD(CELL("zeile",Q69)-CELL("zeile",Q$4),$Q$2)=MOD(CELL("spalte",Q69)-(CELL("spalte",$P69)),$Q$2),ean_conv(LEFT($J69,12)),""), "<>") -> <> | R69: =IF(CELL("spalte",R69)<CELL("spalte",$P69)+$Q$2, IF(MOD(CELL("zeile",R69)-CELL("zeile",R$4),$Q$2)=MOD(CELL("spalte",R69)-(CELL("spalte",$P69)),$Q$2),ean_conv(LEFT($J69,12)),""), "<>") -> <> | S69: =IF(CELL("spalte",S69)<CELL("spalte",$P69)+$Q$2, IF(MOD(CELL("zeile",S69)-CELL("zeile",S$4),$Q$2)=MOD(CELL("spalte",S69)-(CELL("spalte",$P69)),$Q$2),ean_conv(LEFT($J69,12)),""), "<>") -> <> | T69: =IF(CELL("spalte",T69)<CELL("spalte",$P69)+$Q$2, IF(MOD(CELL("zeile",T69)-CELL("zeile",T$4),$Q$2)=MOD(CELL("spalte",T69)-(CELL("spalte",$P69)),$Q$2),ean_conv(LEFT($J69,12)),""), "<>") -> <> | U69: =IF(CELL("spalte",U69)<CELL("spalte",$P69)+$Q$2, IF(MOD(CELL("zeile",U69)-CELL("zeile",U$4),$Q$2)=MOD(CELL("spalte",U69)-(CELL("spalte",$P69)),$Q$2),ean_conv(LEFT($J69,12)),""), "<>") -> <> | V69: =IF(CELL("spalte",V69)<CELL("spalte",$P69)+$Q$2, IF(MOD(CELL("zeile",V69)-CELL("zeile",V$4),$Q$2)=MOD(CELL("spalte",V69)-(CELL("spalte",$P69)),$Q$2),ean_conv(LEFT($J69,12)),""), "<>") -> <> | W69: =IF(CELL("spalte",W69)<CELL("spalte",$P69)+$Q$2, IF(MOD(CELL("zeile",W69)-CELL("zeile",W$4),$Q$2)=MOD(CELL("spalte",W69)-(CELL("spalte",$P69)),$Q$2),ean_conv(LEFT($J69,12)),""), "<>") -> <> | X69: =IF(CELL("spalte",X69)<CELL("spalte",$P69)+$Q$2, IF(MOD(CELL("zeile",X69)-CELL("zeile",X$4),$Q$2)=MOD(CELL("spalte",X69)-(CELL("spalte",$P69)),$Q$2),ean_conv(LEFT($J69,12)),""), "<>") -> <> | Y69: =IF(CELL("spalte",Y69)<CELL("spalte",$P69)+$Q$2, IF(MOD(CELL("zeile",Y69)-CELL("zeile",Y$4),$Q$2)=MOD(CELL("spalte",Y69)-(CELL("spalte",$P69)),$Q$2),ean_conv(LEFT($J69,12)),""), "<>") -> <>
A70: 67 | B70: Ab sofort Schwester! | C70: 3 | D70: Comedy | F70: deu | G70: Standard | H70: Manga Jamsession | I70: X | J70: 9783950488036 | L70: Ab sofort Schwester! •deu• | M70: Ab sofort Schwester! •deu• 3 | O70: Seite 1 | P70: =IF(CELL("spalte",P70)<CELL("spalte",$P70)+$Q$2, IF(MOD(CELL("zeile",P70)-CELL("zeile",P$4),$Q$2)=MOD(CELL("spalte",P70)-(CELL("spalte",$P70)),$Q$2),ean_conv(LEFT($J70,12)),""), "<>") -> <> | Q70: =IF(CELL("spalte",Q70)<CELL("spalte",$P70)+$Q$2, IF(MOD(CELL("zeile",Q70)-CELL("zeile",Q$4),$Q$2)=MOD(CELL("spalte",Q70)-(CELL("spalte",$P70)),$Q$2),ean_conv(LEFT($J70,12)),""), "<>") -> <> | R70: =IF(CELL("spalte",R70)<CELL("spalte",$P70)+$Q$2, IF(MOD(CELL("zeile",R70)-CELL("zeile",R$4),$Q$2)=MOD(CELL("spalte",R70)-(CELL("spalte",$P70)),$Q$2),ean_conv(LEFT($J70,12)),""), "<>") -> <> | S70: =IF(CELL("spalte",S70)<CELL("spalte",$P70)+$Q$2, IF(MOD(CELL("zeile",S70)-CELL("zeile",S$4),$Q$2)=MOD(CELL("spalte",S70)-(CELL("spalte",$P70)),$Q$2),ean_conv(LEFT($J70,12)),""), "<>") -> <> | T70: =IF(CELL("spalte",T70)<CELL("spalte",$P70)+$Q$2, IF(MOD(CELL("zeile",T70)-CELL("zeile",T$4),$Q$2)=MOD(CELL("spalte",T70)-(CELL("spalte",$P70)),$Q$2),ean_conv(LEFT($J70,12)),""), "<>") -> <> | U70: =IF(CELL("spalte",U70)<CELL("spalte",$P70)+$Q$2, IF(MOD(CELL("zeile",U70)-CELL("zeile",U$4),$Q$2)=MOD(CELL("spalte",U70)-(CELL("spalte",$P70)),$Q$2),ean_conv(LEFT($J70,12)),""), "<>") -> <> | V70: =IF(CELL("spalte",V70)<CELL("spalte",$P70)+$Q$2, IF(MOD(CELL("zeile",V70)-CELL("zeile",V$4),$Q$2)=MOD(CELL("spalte",V70)-(CELL("spalte",$P70)),$Q$2),ean_conv(LEFT($J70,12)),""), "<>") -> <> | W70: =IF(CELL("spalte",W70)<CELL("spalte",$P70)+$Q$2, IF(MOD(CELL("zeile",W70)-CELL("zeile",W$4),$Q$2)=MOD(CELL("spalte",W70)-(CELL("spalte",$P70)),$Q$2),ean_conv(LEFT($J70,12)),""), "<>") -> <> | X70: =IF(CELL("spalte",X70)<CELL("spalte",$P70)+$Q$2, IF(MOD(CELL("zeile",X70)-CELL("zeile",X$4),$Q$2)=MOD(CELL("spalte",X70)-(CELL("spalte",$P70)),$Q$2),ean_conv(LEFT($J70,12)),""), "<>") -> <> | Y70: =IF(CELL("spalte",Y70)<CELL("spalte",$P70)+$Q$2, IF(MOD(CELL("zeile",Y70)-CELL("zeile",Y$4),$Q$2)=MOD(CELL("spalte",Y70)-(CELL("spalte",$P70)),$Q$2),ean_conv(LEFT($J70,12)),""), "<>") -> <>
A71: 68 | B71: Ab sofort Schwester! | C71: 4 | D71: Comedy | F71: deu | G71: Standard | H71: Manga Jamsession | I71: X | J71: 9783903427082 | L71: Ab sofort Schwester! •deu• | M71: Ab sofort Schwester! •deu• 4 | O71: Seite 1 | P71: =IF(CELL("spalte",P71)<CELL("spalte",$P71)+$Q$2, IF(MOD(CELL("zeile",P71)-CELL("zeile",P$4),$Q$2)=MOD(CELL("spalte",P71)-(CELL("spalte",$P71)),$Q$2),ean_conv(LEFT($J71,12)),""), "<>") -> <> | Q71: =IF(CELL("spalte",Q71)<CELL("spalte",$P71)+$Q$2, IF(MOD(CELL("zeile",Q71)-CELL("zeile",Q$4),$Q$2)=MOD(CELL("spalte",Q71)-(CELL("spalte",$P71)),$Q$2),ean_conv(LEFT($J71,12)),""), "<>") -> <> | R71: =IF(CELL("spalte",R71)<CELL("spalte",$P71)+$Q$2, IF(MOD(CELL("zeile",R71)-CELL("zeile",R$4),$Q$2)=MOD(CELL("spalte",R71)-(CELL("spalte",$P71)),$Q$2),ean_conv(LEFT($J71,12)),""), "<>") -> <> | S71: =IF(CELL("spalte",S71)<CELL("spalte",$P71)+$Q$2, IF(MOD(CELL("zeile",S71)-CELL("zeile",S$4),$Q$2)=MOD(CELL("spalte",S71)-(CELL("spalte",$P71)),$Q$2),ean_conv(LEFT($J71,12)),""), "<>") -> <> | T71: =IF(CELL("spalte",T71)<CELL("spalte",$P71)+$Q$2, IF(MOD(CELL("zeile",T71)-CELL("zeile",T$4),$Q$2)=MOD(CELL("spalte",T71)-(CELL("spalte",$P71)),$Q$2),ean_conv(LEFT($J71,12)),""), "<>") -> <> | U71: =IF(CELL("spalte",U71)<CELL("spalte",$P71)+$Q$2, IF(MOD(CELL("zeile",U71)-CELL("zeile",U$4),$Q$2)=MOD(CELL("spalte",U71)-(CELL("spalte",$P71)),$Q$2),ean_conv(LEFT($J71,12)),""), "<>") -> <> | V71: =IF(CELL("spalte",V71)<CELL("spalte",$P71)+$Q$2, IF(MOD(CELL("zeile",V71)-CELL("zeile",V$4),$Q$2)=MOD(CELL("spalte",V71)-(CELL("spalte",$P71)),$Q$2),ean_conv(LEFT($J71,12)),""), "<>") -> <> | W71: =IF(CELL("spalte",W71)<CELL("spalte",$P71)+$Q$2, IF(MOD(CELL("zeile",W71)-CELL("zeile",W$4),$Q$2)=MOD(CELL("spalte",W71)-(CELL("spalte",$P71)),$Q$2),ean_conv(LEFT($J71,12)),""), "<>") -> <> | X71: =IF(CELL("spalte",X71)<CELL("spalte",$P71)+$Q$2, IF(MOD(CELL("zeile",X71)-CELL("zeile",X$4),$Q$2)=MOD(CELL("spalte",X71)-(CELL("spalte",$P71)),$Q$2),ean_conv(LEFT($J71,12)),""), "<>") -> <> | Y71: =IF(CELL("spalte",Y71)<CELL("spalte",$P71)+$Q$2, IF(MOD(CELL("zeile",Y71)-CELL("zeile",Y$4),$Q$2)=MOD(CELL("spalte",Y71)-(CELL("spalte",$P71)),$Q$2),ean_conv(LEFT($J71,12)),""), "<>") -> <>
A72: 69 | B72: Ab sofort Schwester! | C72: 5 | D72: Comedy | F72: deu | G72: Standard | H72: Manga Jamsession | I72: X | J72: 9783903427211 | L72: Ab sofort Schwester! •deu• | M72: Ab sofort Schwester! •deu• 5 | O72: Seite 1 | P72: =IF(CELL("spalte",P72)<CELL("spalte",$P72)+$Q$2, IF(MOD(CELL("zeile",P72)-CELL("zeile",P$4),$Q$2)=MOD(CELL("spalte",P72)-(CELL("spalte",$P72)),$Q$2),ean_conv(LEFT($J72,12)),""), "<>") -> <> | Q72: =IF(CELL("spalte",Q72)<CELL("spalte",$P72)+$Q$2, IF(MOD(CELL("zeile",Q72)-CELL("zeile",Q$4),$Q$2)=MOD(CELL("spalte",Q72)-(CELL("spalte",$P72)),$Q$2),ean_conv(LEFT($J72,12)),""), "<>") -> <> | R72: =IF(CELL("spalte",R72)<CELL("spalte",$P72)+$Q$2, IF(MOD(CELL("zeile",R72)-CELL("zeile",R$4),$Q$2)=MOD(CELL("spalte",R72)-(CELL("spalte",$P72)),$Q$2),ean_conv(LEFT($J72,12)),""), "<>") -> <> | S72: =IF(CELL("spalte",S72)<CELL("spalte",$P72)+$Q$2, IF(MOD(CELL("zeile",S72)-CELL("zeile",S$4),$Q$2)=MOD(CELL("spalte",S72)-(CELL("spalte",$P72)),$Q$2),ean_conv(LEFT($J72,12)),""), "<>") -> <> | T72: =IF(CELL("spalte",T72)<CELL("spalte",$P72)+$Q$2, IF(MOD(CELL("zeile",T72)-CELL("zeile",T$4),$Q$2)=MOD(CELL("spalte",T72)-(CELL("spalte",$P72)),$Q$2),ean_conv(LEFT($J72,12)),""), "<>") -> <> | U72: =IF(CELL("spalte",U72)<CELL("spalte",$P72)+$Q$2, IF(MOD(CELL("zeile",U72)-CELL("zeile",U$4),$Q$2)=MOD(CELL("spalte",U72)-(CELL("spalte",$P72)),$Q$2),ean_conv(LEFT($J72,12)),""), "<>") -> <> | V72: =IF(CELL("spalte",V72)<CELL("spalte",$P72)+$Q$2, IF(MOD(CELL("zeile",V72)-CELL("zeile",V$4),$Q$2)=MOD(CELL("spalte",V72)-(CELL("spalte",$P72)),$Q$2),ean_conv(LEFT($J72,12)),""), "<>") -> <> | W72: =IF(CELL("spalte",W72)<CELL("spalte",$P72)+$Q$2, IF(MOD(CELL("zeile",W72)-CELL("zeile",W$4),$Q$2)=MOD(CELL("spalte",W72)-(CELL("spalte",$P72)),$Q$2),ean_conv(LEFT($J72,12)),""), "<>") -> <> | X72: =IF(CELL("spalte",X72)<CELL("spalte",$P72)+$Q$2, IF(MOD(CELL("zeile",X72)-CELL("zeile",X$4),$Q$2)=MOD(CELL("spalte",X72)-(CELL("spalte",$P72)),$Q$2),ean_conv(LEFT($J72,12)),""), "<>") -> <> | Y72: =IF(CELL("spalte",Y72)<CELL("spalte",$P72)+$Q$2, IF(MOD(CELL("zeile",Y72)-CELL("zeile",Y$4),$Q$2)=MOD(CELL("spalte",Y72)-(CELL("spalte",$P72)),$Q$2),ean_conv(LEFT($J72,12)),""), "<>") -> <>
A73: 70 | B73: Ab sofort Schwester! | C73: 6 | D73: Comedy | F73: deu | G73: Standard | H73: Manga Jamsession | J73: 9783903427327 | L73: Ab sofort Schwester! •deu• | M73: Ab sofort Schwester! •deu• 6 | O73: Seite 1 | P73: =IF(CELL("spalte",P73)<CELL("spalte",$P73)+$Q$2, IF(MOD(CELL("zeile",P73)-CELL("zeile",P$4),$Q$2)=MOD(CELL("spalte",P73)-(CELL("spalte",$P73)),$Q$2),ean_conv(LEFT($J73,12)),""), "<>") -> <> | Q73: =IF(CELL("spalte",Q73)<CELL("spalte",$P73)+$Q$2, IF(MOD(CELL("zeile",Q73)-CELL("zeile",Q$4),$Q$2)=MOD(CELL("spalte",Q73)-(CELL("spalte",$P73)),$Q$2),ean_conv(LEFT($J73,12)),""), "<>") -> <> | R73: =IF(CELL("spalte",R73)<CELL("spalte",$P73)+$Q$2, IF(MOD(CELL("zeile",R73)-CELL("zeile",R$4),$Q$2)=MOD(CELL("spalte",R73)-(CELL("spalte",$P73)),$Q$2),ean_conv(LEFT($J73,12)),""), "<>") -> <> | S73: =IF(CELL("spalte",S73)<CELL("spalte",$P73)+$Q$2, IF(MOD(CELL("zeile",S73)-CELL("zeile",S$4),$Q$2)=MOD(CELL("spalte",S73)-(CELL("spalte",$P73)),$Q$2),ean_conv(LEFT($J73,12)),""), "<>") -> <> | T73: =IF(CELL("spalte",T73)<CELL("spalte",$P73)+$Q$2, IF(MOD(CELL("zeile",T73)-CELL("zeile",T$4),$Q$2)=MOD(CELL("spalte",T73)-(CELL("spalte",$P73)),$Q$2),ean_conv(LEFT($J73,12)),""), "<>") -> <> | U73: =IF(CELL("spalte",U73)<CELL("spalte",$P73)+$Q$2, IF(MOD(CELL("zeile",U73)-CELL("zeile",U$4),$Q$2)=MOD(CELL("spalte",U73)-(CELL("spalte",$P73)),$Q$2),ean_conv(LEFT($J73,12)),""), "<>") -> <> | V73: =IF(CELL("spalte",V73)<CELL("spalte",$P73)+$Q$2, IF(MOD(CELL("zeile",V73)-CELL("zeile",V$4),$Q$2)=MOD(CELL("spalte",V73)-(CELL("spalte",$P73)),$Q$2),ean_conv(LEFT($J73,12)),""), "<>") -> <> | W73: =IF(CELL("spalte",W73)<CELL("spalte",$P73)+$Q$2, IF(MOD(CELL("zeile",W73)-CELL("zeile",W$4),$Q$2)=MOD(CELL("spalte",W73)-(CELL("spalte",$P73)),$Q$2),ean_conv(LEFT($J73,12)),""), "<>") -> <> | X73: =IF(CELL("spalte",X73)<CELL("spalte",$P73)+$Q$2, IF(MOD(CELL("zeile",X73)-CELL("zeile",X$4),$Q$2)=MOD(CELL("spalte",X73)-(CELL("spalte",$P73)),$Q$2),ean_conv(LEFT($J73,12)),""), "<>") -> <> | Y73: =IF(CELL("spalte",Y73)<CELL("spalte",$P73)+$Q$2, IF(MOD(CELL("zeile",Y73)-CELL("zeile",Y$4),$Q$2)=MOD(CELL("spalte",Y73)-(CELL("spalte",$P73)),$Q$2),ean_conv(LEFT($J73,12)),""), "<>") -> <>
A74: 71 | B74: Ab sofort Schwester! | C74: 7 | D74: Comedy | F74: deu | G74: Standard | H74: Manga Jamsession | J74: 9783903427549 | L74: Ab sofort Schwester! •deu• | M74: Ab sofort Schwester! •deu• 7 | O74: Seite 1 | P74: =IF(CELL("spalte",P74)<CELL("spalte",$P74)+$Q$2, IF(MOD(CELL("zeile",P74)-CELL("zeile",P$4),$Q$2)=MOD(CELL("spalte",P74)-(CELL("spalte",$P74)),$Q$2),ean_conv(LEFT($J74,12)),""), "<>") -> <> | Q74: =IF(CELL("spalte",Q74)<CELL("spalte",$P74)+$Q$2, IF(MOD(CELL("zeile",Q74)-CELL("zeile",Q$4),$Q$2)=MOD(CELL("spalte",Q74)-(CELL("spalte",$P74)),$Q$2),ean_conv(LEFT($J74,12)),""), "<>") -> <> | R74: =IF(CELL("spalte",R74)<CELL("spalte",$P74)+$Q$2, IF(MOD(CELL("zeile",R74)-CELL("zeile",R$4),$Q$2)=MOD(CELL("spalte",R74)-(CELL("spalte",$P74)),$Q$2),ean_conv(LEFT($J74,12)),""), "<>") -> <> | S74: =IF(CELL("spalte",S74)<CELL("spalte",$P74)+$Q$2, IF(MOD(CELL("zeile",S74)-CELL("zeile",S$4),$Q$2)=MOD(CELL("spalte",S74)-(CELL("spalte",$P74)),$Q$2),ean_conv(LEFT($J74,12)),""), "<>") -> <> | T74: =IF(CELL("spalte",T74)<CELL("spalte",$P74)+$Q$2, IF(MOD(CELL("zeile",T74)-CELL("zeile",T$4),$Q$2)=MOD(CELL("spalte",T74)-(CELL("spalte",$P74)),$Q$2),ean_conv(LEFT($J74,12)),""), "<>") -> <> | U74: =IF(CELL("spalte",U74)<CELL("spalte",$P74)+$Q$2, IF(MOD(CELL("zeile",U74)-CELL("zeile",U$4),$Q$2)=MOD(CELL("spalte",U74)-(CELL("spalte",$P74)),$Q$2),ean_conv(LEFT($J74,12)),""), "<>") -> <> | V74: =IF(CELL("spalte",V74)<CELL("spalte",$P74)+$Q$2, IF(MOD(CELL("zeile",V74)-CELL("zeile",V$4),$Q$2)=MOD(CELL("spalte",V74)-(CELL("spalte",$P74)),$Q$2),ean_conv(LEFT($J74,12)),""), "<>") -> <> | W74: =IF(CELL("spalte",W74)<CELL("spalte",$P74)+$Q$2, IF(MOD(CELL("zeile",W74)-CELL("zeile",W$4),$Q$2)=MOD(CELL("spalte",W74)-(CELL("spalte",$P74)),$Q$2),ean_conv(LEFT($J74,12)),""), "<>") -> <> | X74: =IF(CELL("spalte",X74)<CELL("spalte",$P74)+$Q$2, IF(MOD(CELL("zeile",X74)-CELL("zeile",X$4),$Q$2)=MOD(CELL("spalte",X74)-(CELL("spalte",$P74)),$Q$2),ean_conv(LEFT($J74,12)),""), "<>") -> <> | Y74: =IF(CELL("spalte",Y74)<CELL("spalte",$P74)+$Q$2, IF(MOD(CELL("zeile",Y74)-CELL("zeile",Y$4),$Q$2)=MOD(CELL("spalte",Y74)-(CELL("spalte",$P74)),$Q$2),ean_conv(LEFT($J74,12)),""), "<>") -> <>
A75: 72 | B75: Accel World | C75: 1 | D75: Action | F75: deu | G75: Standard | H75: Tokyopop | I75: X | J75: 9783842011717 | L75: Accel World •deu• | M75: Accel World •deu• 1 | O75: Seite 1 | P75: =IF(CELL("spalte",P75)<CELL("spalte",$P75)+$Q$2, IF(MOD(CELL("zeile",P75)-CELL("zeile",P$4),$Q$2)=MOD(CELL("spalte",P75)-(CELL("spalte",$P75)),$Q$2),ean_conv(LEFT($J75,12)),""), "<>") -> <> | Q75: =IF(CELL("spalte",Q75)<CELL("spalte",$P75)+$Q$2, IF(MOD(CELL("zeile",Q75)-CELL("zeile",Q$4),$Q$2)=MOD(CELL("spalte",Q75)-(CELL("spalte",$P75)),$Q$2),ean_conv(LEFT($J75,12)),""), "<>") -> <> | R75: =IF(CELL("spalte",R75)<CELL("spalte",$P75)+$Q$2, IF(MOD(CELL("zeile",R75)-CELL("zeile",R$4),$Q$2)=MOD(CELL("spalte",R75)-(CELL("spalte",$P75)),$Q$2),ean_conv(LEFT($J75,12)),""), "<>") -> <> | S75: =IF(CELL("spalte",S75)<CELL("spalte",$P75)+$Q$2, IF(MOD(CELL("zeile",S75)-CELL("zeile",S$4),$Q$2)=MOD(CELL("spalte",S75)-(CELL("spalte",$P75)),$Q$2),ean_conv(LEFT($J75,12)),""), "<>") -> <> | T75: =IF(CELL("spalte",T75)<CELL("spalte",$P75)+$Q$2, IF(MOD(CELL("zeile",T75)-CELL("zeile",T$4),$Q$2)=MOD(CELL("spalte",T75)-(CELL("spalte",$P75)),$Q$2),ean_conv(LEFT($J75,12)),""), "<>") -> <> | U75: =IF(CELL("spalte",U75)<CELL("spalte",$P75)+$Q$2, IF(MOD(CELL("zeile",U75)-CELL("zeile",U$4),$Q$2)=MOD(CELL("spalte",U75)-(CELL("spalte",$P75)),$Q$2),ean_conv(LEFT($J75,12)),""), "<>") -> <> | V75: =IF(CELL("spalte",V75)<CELL("spalte",$P75)+$Q$2, IF(MOD(CELL("zeile",V75)-CELL("zeile",V$4),$Q$2)=MOD(CELL("spalte",V75)-(CELL("spalte",$P75)),$Q$2),ean_conv(LEFT($J75,12)),""), "<>") -> <> | W75: =IF(CELL("spalte",W75)<CELL("spalte",$P75)+$Q$2, IF(MOD(CELL("zeile",W75)-CELL("zeile",W$4),$Q$2)=MOD(CELL("spalte",W75)-(CELL("spalte",$P75)),$Q$2),ean_conv(LEFT($J75,12)),""), "<>") -> <> | X75: =IF(CELL("spalte",X75)<CELL("spalte",$P75)+$Q$2, IF(MOD(CELL("zeile",X75)-CELL("zeile",X$4),$Q$2)=MOD(CELL("spalte",X75)-(CELL("spalte",$P75)),$Q$2),ean_conv(LEFT($J75,12)),""), "<>") -> <> | Y75: =IF(CELL("spalte",Y75)<CELL("spalte",$P75)+$Q$2, IF(MOD(CELL("zeile",Y75)-CELL("zeile",Y$4),$Q$2)=MOD(CELL("spalte",Y75)-(CELL("spalte",$P75)),$Q$2),ean_conv(LEFT($J75,12)),""), "<>") -> <>
A76: 73 | B76: Accel World | C76: 2 | D76: Action | F76: deu | G76: Standard | H76: Tokyopop | I76: X | J76: 9783842011724 | L76: Accel World •deu• | M76: Accel World •deu• 2 | O76: Seite 1 | P76: =IF(CELL("spalte",P76)<CELL("spalte",$P76)+$Q$2, IF(MOD(CELL("zeile",P76)-CELL("zeile",P$4),$Q$2)=MOD(CELL("spalte",P76)-(CELL("spalte",$P76)),$Q$2),ean_conv(LEFT($J76,12)),""), "<>") -> <> | Q76: =IF(CELL("spalte",Q76)<CELL("spalte",$P76)+$Q$2, IF(MOD(CELL("zeile",Q76)-CELL("zeile",Q$4),$Q$2)=MOD(CELL("spalte",Q76)-(CELL("spalte",$P76)),$Q$2),ean_conv(LEFT($J76,12)),""), "<>") -> <> | R76: =IF(CELL("spalte",R76)<CELL("spalte",$P76)+$Q$2, IF(MOD(CELL("zeile",R76)-CELL("zeile",R$4),$Q$2)=MOD(CELL("spalte",R76)-(CELL("spalte",$P76)),$Q$2),ean_conv(LEFT($J76,12)),""), "<>") -> <> | S76: =IF(CELL("spalte",S76)<CELL("spalte",$P76)+$Q$2, IF(MOD(CELL("zeile",S76)-CELL("zeile",S$4),$Q$2)=MOD(CELL("spalte",S76)-(CELL("spalte",$P76)),$Q$2),ean_conv(LEFT($J76,12)),""), "<>") -> <> | T76: =IF(CELL("spalte",T76)<CELL("spalte",$P76)+$Q$2, IF(MOD(CELL("zeile",T76)-CELL("zeile",T$4),$Q$2)=MOD(CELL("spalte",T76)-(CELL("spalte",$P76)),$Q$2),ean_conv(LEFT($J76,12)),""), "<>") -> <> | U76: =IF(CELL("spalte",U76)<CELL("spalte",$P76)+$Q$2, IF(MOD(CELL("zeile",U76)-CELL("zeile",U$4),$Q$2)=MOD(CELL("spalte",U76)-(CELL("spalte",$P76)),$Q$2),ean_conv(LEFT($J76,12)),""), "<>") -> <> | V76: =IF(CELL("spalte",V76)<CELL("spalte",$P76)+$Q$2, IF(MOD(CELL("zeile",V76)-CELL("zeile",V$4),$Q$2)=MOD(CELL("spalte",V76)-(CELL("spalte",$P76)),$Q$2),ean_conv(LEFT($J76,12)),""), "<>") -> <> | W76: =IF(CELL("spalte",W76)<CELL("spalte",$P76)+$Q$2, IF(MOD(CELL("zeile",W76)-CELL("zeile",W$4),$Q$2)=MOD(CELL("spalte",W76)-(CELL("spalte",$P76)),$Q$2),ean_conv(LEFT($J76,12)),""), "<>") -> <> | X76: =IF(CELL("spalte",X76)<CELL("spalte",$P76)+$Q$2, IF(MOD(CELL("zeile",X76)-CELL("zeile",X$4),$Q$2)=MOD(CELL("spalte",X76)-(CELL("spalte",$P76)),$Q$2),ean_conv(LEFT($J76,12)),""), "<>") -> <> | Y76: =IF(CELL("spalte",Y76)<CELL("spalte",$P76)+$Q$2, IF(MOD(CELL("zeile",Y76)-CELL("zeile",Y$4),$Q$2)=MOD(CELL("spalte",Y76)-(CELL("spalte",$P76)),$Q$2),ean_conv(LEFT($J76,12)),""), "<>") -> <>
A77: 74 | B77: Accel World | C77: 3 | D77: Action | F77: deu | G77: Standard | H77: Tokyopop | I77: X | J77: 9783842011731 | L77: Accel World •deu• | M77: Accel World •deu• 3 | O77: Seite 1 | P77: =IF(CELL("spalte",P77)<CELL("spalte",$P77)+$Q$2, IF(MOD(CELL("zeile",P77)-CELL("zeile",P$4),$Q$2)=MOD(CELL("spalte",P77)-(CELL("spalte",$P77)),$Q$2),ean_conv(LEFT($J77,12)),""), "<>") -> <> | Q77: =IF(CELL("spalte",Q77)<CELL("spalte",$P77)+$Q$2, IF(MOD(CELL("zeile",Q77)-CELL("zeile",Q$4),$Q$2)=MOD(CELL("spalte",Q77)-(CELL("spalte",$P77)),$Q$2),ean_conv(LEFT($J77,12)),""), "<>") -> <> | R77: =IF(CELL("spalte",R77)<CELL("spalte",$P77)+$Q$2, IF(MOD(CELL("zeile",R77)-CELL("zeile",R$4),$Q$2)=MOD(CELL("spalte",R77)-(CELL("spalte",$P77)),$Q$2),ean_conv(LEFT($J77,12)),""), "<>") -> <> | S77: =IF(CELL("spalte",S77)<CELL("spalte",$P77)+$Q$2, IF(MOD(CELL("zeile",S77)-CELL("zeile",S$4),$Q$2)=MOD(CELL("spalte",S77)-(CELL("spalte",$P77)),$Q$2),ean_conv(LEFT($J77,12)),""), "<>") -> <> | T77: =IF(CELL("spalte",T77)<CELL("spalte",$P77)+$Q$2, IF(MOD(CELL("zeile",T77)-CELL("zeile",T$4),$Q$2)=MOD(CELL("spalte",T77)-(CELL("spalte",$P77)),$Q$2),ean_conv(LEFT($J77,12)),""), "<>") -> <> | U77: =IF(CELL("spalte",U77)<CELL("spalte",$P77)+$Q$2, IF(MOD(CELL("zeile",U77)-CELL("zeile",U$4),$Q$2)=MOD(CELL("spalte",U77)-(CELL("spalte",$P77)),$Q$2),ean_conv(LEFT($J77,12)),""), "<>") -> <> | V77: =IF(CELL("spalte",V77)<CELL("spalte",$P77)+$Q$2, IF(MOD(CELL("zeile",V77)-CELL("zeile",V$4),$Q$2)=MOD(CELL("spalte",V77)-(CELL("spalte",$P77)),$Q$2),ean_conv(LEFT($J77,12)),""), "<>") -> <> | W77: =IF(CELL("spalte",W77)<CELL("spalte",$P77)+$Q$2, IF(MOD(CELL("zeile",W77)-CELL("zeile",W$4),$Q$2)=MOD(CELL("spalte",W77)-(CELL("spalte",$P77)),$Q$2),ean_conv(LEFT($J77,12)),""), "<>") -> <> | X77: =IF(CELL("spalte",X77)<CELL("spalte",$P77)+$Q$2, IF(MOD(CELL("zeile",X77)-CELL("zeile",X$4),$Q$2)=MOD(CELL("spalte",X77)-(CELL("spalte",$P77)),$Q$2),ean_conv(LEFT($J77,12)),""), "<>") -> <> | Y77: =IF(CELL("spalte",Y77)<CELL("spalte",$P77)+$Q$2, IF(MOD(CELL("zeile",Y77)-CELL("zeile",Y$4),$Q$2)=MOD(CELL("spalte",Y77)-(CELL("spalte",$P77)),$Q$2),ean_conv(LEFT($J77,12)),""), "<>") -> <>
A78: 75 | B78: Accel World | C78: 4 | D78: Action | F78: deu | G78: Standard | H78: Tokyopop | I78: X | J78: 9783842011748 | L78: Accel World •deu• | M78: Accel World •deu• 4 | O78: Seite 1 | P78: =IF(CELL("spalte",P78)<CELL("spalte",$P78)+$Q$2, IF(MOD(CELL("zeile",P78)-CELL("zeile",P$4),$Q$2)=MOD(CELL("spalte",P78)-(CELL("spalte",$P78)),$Q$2),ean_conv(LEFT($J78,12)),""), "<>") -> <> | Q78: =IF(CELL("spalte",Q78)<CELL("spalte",$P78)+$Q$2, IF(MOD(CELL("zeile",Q78)-CELL("zeile",Q$4),$Q$2)=MOD(CELL("spalte",Q78)-(CELL("spalte",$P78)),$Q$2),ean_conv(LEFT($J78,12)),""), "<>") -> <> | R78: =IF(CELL("spalte",R78)<CELL("spalte",$P78)+$Q$2, IF(MOD(CELL("zeile",R78)-CELL("zeile",R$4),$Q$2)=MOD(CELL("spalte",R78)-(CELL("spalte",$P78)),$Q$2),ean_conv(LEFT($J78,12)),""), "<>") -> <> | S78: =IF(CELL("spalte",S78)<CELL("spalte",$P78)+$Q$2, IF(MOD(CELL("zeile",S78)-CELL("zeile",S$4),$Q$2)=MOD(CELL("spalte",S78)-(CELL("spalte",$P78)),$Q$2),ean_conv(LEFT($J78,12)),""), "<>") -> <> | T78: =IF(CELL("spalte",T78)<CELL("spalte",$P78)+$Q$2, IF(MOD(CELL("zeile",T78)-CELL("zeile",T$4),$Q$2)=MOD(CELL("spalte",T78)-(CELL("spalte",$P78)),$Q$2),ean_conv(LEFT($J78,12)),""), "<>") -> <> | U78: =IF(CELL("spalte",U78)<CELL("spalte",$P78)+$Q$2, IF(MOD(CELL("zeile",U78)-CELL("zeile",U$4),$Q$2)=MOD(CELL("spalte",U78)-(CELL("spalte",$P78)),$Q$2),ean_conv(LEFT($J78,12)),""), "<>") -> <> | V78: =IF(CELL("spalte",V78)<CELL("spalte",$P78)+$Q$2, IF(MOD(CELL("zeile",V78)-CELL("zeile",V$4),$Q$2)=MOD(CELL("spalte",V78)-(CELL("spalte",$P78)),$Q$2),ean_conv(LEFT($J78,12)),""), "<>") -> <> | W78: =IF(CELL("spalte",W78)<CELL("spalte",$P78)+$Q$2, IF(MOD(CELL("zeile",W78)-CELL("zeile",W$4),$Q$2)=MOD(CELL("spalte",W78)-(CELL("spalte",$P78)),$Q$2),ean_conv(LEFT($J78,12)),""), "<>") -> <> | X78: =IF(CELL("spalte",X78)<CELL("spalte",$P78)+$Q$2, IF(MOD(CELL("zeile",X78)-CELL("zeile",X$4),$Q$2)=MOD(CELL("spalte",X78)-(CELL("spalte",$P78)),$Q$2),ean_conv(LEFT($J78,12)),""), "<>") -> <> | Y78: =IF(CELL("spalte",Y78)<CELL("spalte",$P78)+$Q$2, IF(MOD(CELL("zeile",Y78)-CELL("zeile",Y$4),$Q$2)=MOD(CELL("spalte",Y78)-(CELL("spalte",$P78)),$Q$2),ean_conv(LEFT($J78,12)),""), "<>") -> <>
A79: 76 | B79: Accel World | C79: 5 | D79: Action | F79: deu | G79: Standard | H79: Tokyopop | I79: X | J79: 9783842017467 | L79: Accel World •deu• | M79: Accel World •deu• 5 | O79: Seite 1 | P79: =IF(CELL("spalte",P79)<CELL("spalte",$P79)+$Q$2, IF(MOD(CELL("zeile",P79)-CELL("zeile",P$4),$Q$2)=MOD(CELL("spalte",P79)-(CELL("spalte",$P79)),$Q$2),ean_conv(LEFT($J79,12)),""), "<>") -> <> | Q79: =IF(CELL("spalte",Q79)<CELL("spalte",$P79)+$Q$2, IF(MOD(CELL("zeile",Q79)-CELL("zeile",Q$4),$Q$2)=MOD(CELL("spalte",Q79)-(CELL("spalte",$P79)),$Q$2),ean_conv(LEFT($J79,12)),""), "<>") -> <> | R79: =IF(CELL("spalte",R79)<CELL("spalte",$P79)+$Q$2, IF(MOD(CELL("zeile",R79)-CELL("zeile",R$4),$Q$2)=MOD(CELL("spalte",R79)-(CELL("spalte",$P79)),$Q$2),ean_conv(LEFT($J79,12)),""), "<>") -> <> | S79: =IF(CELL("spalte",S79)<CELL("spalte",$P79)+$Q$2, IF(MOD(CELL("zeile",S79)-CELL("zeile",S$4),$Q$2)=MOD(CELL("spalte",S79)-(CELL("spalte",$P79)),$Q$2),ean_conv(LEFT($J79,12)),""), "<>") -> <> | T79: =IF(CELL("spalte",T79)<CELL("spalte",$P79)+$Q$2, IF(MOD(CELL("zeile",T79)-CELL("zeile",T$4),$Q$2)=MOD(CELL("spalte",T79)-(CELL("spalte",$P79)),$Q$2),ean_conv(LEFT($J79,12)),""), "<>") -> <> | U79: =IF(CELL("spalte",U79)<CELL("spalte",$P79)+$Q$2, IF(MOD(CELL("zeile",U79)-CELL("zeile",U$4),$Q$2)=MOD(CELL("spalte",U79)-(CELL("spalte",$P79)),$Q$2),ean_conv(LEFT($J79,12)),""), "<>") -> <> | V79: =IF(CELL("spalte",V79)<CELL("spalte",$P79)+$Q$2, IF(MOD(CELL("zeile",V79)-CELL("zeile",V$4),$Q$2)=MOD(CELL("spalte",V79)-(CELL("spalte",$P79)),$Q$2),ean_conv(LEFT($J79,12)),""), "<>") -> <> | W79: =IF(CELL("spalte",W79)<CELL("spalte",$P79)+$Q$2, IF(MOD(CELL("zeile",W79)-CELL("zeile",W$4),$Q$2)=MOD(CELL("spalte",W79)-(CELL("spalte",$P79)),$Q$2),ean_conv(LEFT($J79,12)),""), "<>") -> <> | X79: =IF(CELL("spalte",X79)<CELL("spalte",$P79)+$Q$2, IF(MOD(CELL("zeile",X79)-CELL("zeile",X$4),$Q$2)=MOD(CELL("spalte",X79)-(CELL("spalte",$P79)),$Q$2),ean_conv(LEFT($J79,12)),""), "<>") -> <> | Y79: =IF(CELL("spalte",Y79)<CELL("spalte",$P79)+$Q$2, IF(MOD(CELL("zeile",Y79)-CELL("zeile",Y$4),$Q$2)=MOD(CELL("spalte",Y79)-(CELL("spalte",$P79)),$Q$2),ean_conv(LEFT($J79,12)),""), "<>") -> <>
A80: 77 | B80: Accel World | C80: 6 | D80: Action | F80: deu | G80: Standard | H80: Tokyopop | I80: X | J80: 9783842017474 | L80: Accel World •deu• | M80: Accel World •deu• 6 | O80: Seite 1 | P80: =IF(CELL("spalte",P80)<CELL("spalte",$P80)+$Q$2, IF(MOD(CELL("zeile",P80)-CELL("zeile",P$4),$Q$2)=MOD(CELL("spalte",P80)-(CELL("spalte",$P80)),$Q$2),ean_conv(LEFT($J80,12)),""), "<>") -> <> | Q80: =IF(CELL("spalte",Q80)<CELL("spalte",$P80)+$Q$2, IF(MOD(CELL("zeile",Q80)-CELL("zeile",Q$4),$Q$2)=MOD(CELL("spalte",Q80)-(CELL("spalte",$P80)),$Q$2),ean_conv(LEFT($J80,12)),""), "<>") -> <> | R80: =IF(CELL("spalte",R80)<CELL("spalte",$P80)+$Q$2, IF(MOD(CELL("zeile",R80)-CELL("zeile",R$4),$Q$2)=MOD(CELL("spalte",R80)-(CELL("spalte",$P80)),$Q$2),ean_conv(LEFT($J80,12)),""), "<>") -> <> | S80: =IF(CELL("spalte",S80)<CELL("spalte",$P80)+$Q$2, IF(MOD(CELL("zeile",S80)-CELL("zeile",S$4),$Q$2)=MOD(CELL("spalte",S80)-(CELL("spalte",$P80)),$Q$2),ean_conv(LEFT($J80,12)),""), "<>") -> <> | T80: =IF(CELL("spalte",T80)<CELL("spalte",$P80)+$Q$2, IF(MOD(CELL("zeile",T80)-CELL("zeile",T$4),$Q$2)=MOD(CELL("spalte",T80)-(CELL("spalte",$P80)),$Q$2),ean_conv(LEFT($J80,12)),""), "<>") -> <> | U80: =IF(CELL("spalte",U80)<CELL("spalte",$P80)+$Q$2, IF(MOD(CELL("zeile",U80)-CELL("zeile",U$4),$Q$2)=MOD(CELL("spalte",U80)-(CELL("spalte",$P80)),$Q$2),ean_conv(LEFT($J80,12)),""), "<>") -> <> | V80: =IF(CELL("spalte",V80)<CELL("spalte",$P80)+$Q$2, IF(MOD(CELL("zeile",V80)-CELL("zeile",V$4),$Q$2)=MOD(CELL("spalte",V80)-(CELL("spalte",$P80)),$Q$2),ean_conv(LEFT($J80,12)),""), "<>") -> <> | W80: =IF(CELL("spalte",W80)<CELL("spalte",$P80)+$Q$2, IF(MOD(CELL("zeile",W80)-CELL("zeile",W$4),$Q$2)=MOD(CELL("spalte",W80)-(CELL("spalte",$P80)),$Q$2),ean_conv(LEFT($J80,12)),""), "<>") -> <> | X80: =IF(CELL("spalte",X80)<CELL("spalte",$P80)+$Q$2, IF(MOD(CELL("zeile",X80)-CELL("zeile",X$4),$Q$2)=MOD(CELL("spalte",X80)-(CELL("spalte",$P80)),$Q$2),ean_conv(LEFT($J80,12)),""), "<>") -> <> | Y80: =IF(CELL("spalte",Y80)<CELL("spalte",$P80)+$Q$2, IF(MOD(CELL("zeile",Y80)-CELL("zeile",Y$4),$Q$2)=MOD(CELL("spalte",Y80)-(CELL("spalte",$P80)),$Q$2),ean_conv(LEFT($J80,12)),""), "<>") -> <>
A81: 78 | B81: Accel World | C81: 7 | D81: Action | F81: deu | G81: Standard | H81: Tokyopop | I81: X | J81: 9783842035508 | L81: Accel World •deu• | M81: Accel World •deu• 7 | O81: Seite 1 | P81: =IF(CELL("spalte",P81)<CELL("spalte",$P81)+$Q$2, IF(MOD(CELL("zeile",P81)-CELL("zeile",P$4),$Q$2)=MOD(CELL("spalte",P81)-(CELL("spalte",$P81)),$Q$2),ean_conv(LEFT($J81,12)),""), "<>") -> <> | Q81: =IF(CELL("spalte",Q81)<CELL("spalte",$P81)+$Q$2, IF(MOD(CELL("zeile",Q81)-CELL("zeile",Q$4),$Q$2)=MOD(CELL("spalte",Q81)-(CELL("spalte",$P81)),$Q$2),ean_conv(LEFT($J81,12)),""), "<>") -> <> | R81: =IF(CELL("spalte",R81)<CELL("spalte",$P81)+$Q$2, IF(MOD(CELL("zeile",R81)-CELL("zeile",R$4),$Q$2)=MOD(CELL("spalte",R81)-(CELL("spalte",$P81)),$Q$2),ean_conv(LEFT($J81,12)),""), "<>") -> <> | S81: =IF(CELL("spalte",S81)<CELL("spalte",$P81)+$Q$2, IF(MOD(CELL("zeile",S81)-CELL("zeile",S$4),$Q$2)=MOD(CELL("spalte",S81)-(CELL("spalte",$P81)),$Q$2),ean_conv(LEFT($J81,12)),""), "<>") -> <> | T81: =IF(CELL("spalte",T81)<CELL("spalte",$P81)+$Q$2, IF(MOD(CELL("zeile",T81)-CELL("zeile",T$4),$Q$2)=MOD(CELL("spalte",T81)-(CELL("spalte",$P81)),$Q$2),ean_conv(LEFT($J81,12)),""), "<>") -> <> | U81: =IF(CELL("spalte",U81)<CELL("spalte",$P81)+$Q$2, IF(MOD(CELL("zeile",U81)-CELL("zeile",U$4),$Q$2)=MOD(CELL("spalte",U81)-(CELL("spalte",$P81)),$Q$2),ean_conv(LEFT($J81,12)),""), "<>") -> <> | V81: =IF(CELL("spalte",V81)<CELL("spalte",$P81)+$Q$2, IF(MOD(CELL("zeile",V81)-CELL("zeile",V$4),$Q$2)=MOD(CELL("spalte",V81)-(CELL("spalte",$P81)),$Q$2),ean_conv(LEFT($J81,12)),""), "<>") -> <> | W81: =IF(CELL("spalte",W81)<CELL("spalte",$P81)+$Q$2, IF(MOD(CELL("zeile",W81)-CELL("zeile",W$4),$Q$2)=MOD(CELL("spalte",W81)-(CELL("spalte",$P81)),$Q$2),ean_conv(LEFT($J81,12)),""), "<>") -> <> | X81: =IF(CELL("spalte",X81)<CELL("spalte",$P81)+$Q$2, IF(MOD(CELL("zeile",X81)-CELL("zeile",X$4),$Q$2)=MOD(CELL("spalte",X81)-(CELL("spalte",$P81)),$Q$2),ean_conv(LEFT($J81,12)),""), "<>") -> <> | Y81: =IF(CELL("spalte",Y81)<CELL("spalte",$P81)+$Q$2, IF(MOD(CELL("zeile",Y81)-CELL("zeile",Y$4),$Q$2)=MOD(CELL("spalte",Y81)-(CELL("spalte",$P81)),$Q$2),ean_conv(LEFT($J81,12)),""), "<>") -> <>
A82: 79 | B82: Accel World | C82: 8 | D82: Action | F82: deu | G82: Standard | H82: Tokyopop | I82: X | J82: 9783842043084 | L82: Accel World •deu• | M82: Accel World •deu• 8 | O82: Seite 1 | P82: =IF(CELL("spalte",P82)<CELL("spalte",$P82)+$Q$2, IF(MOD(CELL("zeile",P82)-CELL("zeile",P$4),$Q$2)=MOD(CELL("spalte",P82)-(CELL("spalte",$P82)),$Q$2),ean_conv(LEFT($J82,12)),""), "<>") -> <> | Q82: =IF(CELL("spalte",Q82)<CELL("spalte",$P82)+$Q$2, IF(MOD(CELL("zeile",Q82)-CELL("zeile",Q$4),$Q$2)=MOD(CELL("spalte",Q82)-(CELL("spalte",$P82)),$Q$2),ean_conv(LEFT($J82,12)),""), "<>") -> <> | R82: =IF(CELL("spalte",R82)<CELL("spalte",$P82)+$Q$2, IF(MOD(CELL("zeile",R82)-CELL("zeile",R$4),$Q$2)=MOD(CELL("spalte",R82)-(CELL("spalte",$P82)),$Q$2),ean_conv(LEFT($J82,12)),""), "<>") -> <> | S82: =IF(CELL("spalte",S82)<CELL("spalte",$P82)+$Q$2, IF(MOD(CELL("zeile",S82)-CELL("zeile",S$4),$Q$2)=MOD(CELL("spalte",S82)-(CELL("spalte",$P82)),$Q$2),ean_conv(LEFT($J82,12)),""), "<>") -> <> | T82: =IF(CELL("spalte",T82)<CELL("spalte",$P82)+$Q$2, IF(MOD(CELL("zeile",T82)-CELL("zeile",T$4),$Q$2)=MOD(CELL("spalte",T82)-(CELL("spalte",$P82)),$Q$2),ean_conv(LEFT($J82,12)),""), "<>") -> <> | U82: =IF(CELL("spalte",U82)<CELL("spalte",$P82)+$Q$2, IF(MOD(CELL("zeile",U82)-CELL("zeile",U$4),$Q$2)=MOD(CELL("spalte",U82)-(CELL("spalte",$P82)),$Q$2),ean_conv(LEFT($J82,12)),""), "<>") -> <> | V82: =IF(CELL("spalte",V82)<CELL("spalte",$P82)+$Q$2, IF(MOD(CELL("zeile",V82)-CELL("zeile",V$4),$Q$2)=MOD(CELL("spalte",V82)-(CELL("spalte",$P82)),$Q$2),ean_conv(LEFT($J82,12)),""), "<>") -> <> | W82: =IF(CELL("spalte",W82)<CELL("spalte",$P82)+$Q$2, IF(MOD(CELL("zeile",W82)-CELL("zeile",W$4),$Q$2)=MOD(CELL("spalte",W82)-(CELL("spalte",$P82)),$Q$2),ean_conv(LEFT($J82,12)),""), "<>") -> <> | X82: =IF(CELL("spalte",X82)<CELL("spalte",$P82)+$Q$2, IF(MOD(CELL("zeile",X82)-CELL("zeile",X$4),$Q$2)=MOD(CELL("spalte",X82)-(CELL("spalte",$P82)),$Q$2),ean_conv(LEFT($J82,12)),""), "<>") -> <> | Y82: =IF(CELL("spalte",Y82)<CELL("spalte",$P82)+$Q$2, IF(MOD(CELL("zeile",Y82)-CELL("zeile",Y$4),$Q$2)=MOD(CELL("spalte",Y82)-(CELL("spalte",$P82)),$Q$2),ean_conv(LEFT($J82,12)),""), "<>") -> <>
A83: 80 | B83: Accel World/Dural - Magisa Garden | C83: 1 | D83: Action | F83: deu | G83: Standard | H83: Tokyopop | I83: X | J83: 9783842032248 | L83: Accel World/Dural - Magisa Garden •deu• | M83: Accel World/Dural - Magisa Garden •deu• 1 | O83: Seite 1 | P83: =IF(CELL("spalte",P83)<CELL("spalte",$P83)+$Q$2, IF(MOD(CELL("zeile",P83)-CELL("zeile",P$4),$Q$2)=MOD(CELL("spalte",P83)-(CELL("spalte",$P83)),$Q$2),ean_conv(LEFT($J83,12)),""), "<>") -> <> | Q83: =IF(CELL("spalte",Q83)<CELL("spalte",$P83)+$Q$2, IF(MOD(CELL("zeile",Q83)-CELL("zeile",Q$4),$Q$2)=MOD(CELL("spalte",Q83)-(CELL("spalte",$P83)),$Q$2),ean_conv(LEFT($J83,12)),""), "<>") -> <> | R83: =IF(CELL("spalte",R83)<CELL("spalte",$P83)+$Q$2, IF(MOD(CELL("zeile",R83)-CELL("zeile",R$4),$Q$2)=MOD(CELL("spalte",R83)-(CELL("spalte",$P83)),$Q$2),ean_conv(LEFT($J83,12)),""), "<>") -> <> | S83: =IF(CELL("spalte",S83)<CELL("spalte",$P83)+$Q$2, IF(MOD(CELL("zeile",S83)-CELL("zeile",S$4),$Q$2)=MOD(CELL("spalte",S83)-(CELL("spalte",$P83)),$Q$2),ean_conv(LEFT($J83,12)),""), "<>") -> <> | T83: =IF(CELL("spalte",T83)<CELL("spalte",$P83)+$Q$2, IF(MOD(CELL("zeile",T83)-CELL("zeile",T$4),$Q$2)=MOD(CELL("spalte",T83)-(CELL("spalte",$P83)),$Q$2),ean_conv(LEFT($J83,12)),""), "<>") -> <> | U83: =IF(CELL("spalte",U83)<CELL("spalte",$P83)+$Q$2, IF(MOD(CELL("zeile",U83)-CELL("zeile",U$4),$Q$2)=MOD(CELL("spalte",U83)-(CELL("spalte",$P83)),$Q$2),ean_conv(LEFT($J83,12)),""), "<>") -> <> | V83: =IF(CELL("spalte",V83)<CELL("spalte",$P83)+$Q$2, IF(MOD(CELL("zeile",V83)-CELL("zeile",V$4),$Q$2)=MOD(CELL("spalte",V83)-(CELL("spalte",$P83)),$Q$2),ean_conv(LEFT($J83,12)),""), "<>") -> <> | W83: =IF(CELL("spalte",W83)<CELL("spalte",$P83)+$Q$2, IF(MOD(CELL("zeile",W83)-CELL("zeile",W$4),$Q$2)=MOD(CELL("spalte",W83)-(CELL("spalte",$P83)),$Q$2),ean_conv(LEFT($J83,12)),""), "<>") -> <> | X83: =IF(CELL("spalte",X83)<CELL("spalte",$P83)+$Q$2, IF(MOD(CELL("zeile",X83)-CELL("zeile",X$4),$Q$2)=MOD(CELL("spalte",X83)-(CELL("spalte",$P83)),$Q$2),ean_conv(LEFT($J83,12)),""), "<>") -> <> | Y83: =IF(CELL("spalte",Y83)<CELL("spalte",$P83)+$Q$2, IF(MOD(CELL("zeile",Y83)-CELL("zeile",Y$4),$Q$2)=MOD(CELL("spalte",Y83)-(CELL("spalte",$P83)),$Q$2),ean_conv(LEFT($J83,12)),""), "<>") -> <>
A84: 81 | B84: Accel World/Dural - Magisa Garden | C84: 2 | D84: Action | F84: deu | G84: Standard | H84: Tokyopop | I84: X | J84: 9783842032255 | L84: Accel World/Dural - Magisa Garden •deu• | M84: Accel World/Dural - Magisa Garden •deu• 2 | O84: Seite 2 | P84: =IF(CELL("spalte",P84)<CELL("spalte",$P84)+$Q$2, IF(MOD(CELL("zeile",P84)-CELL("zeile",P$4),$Q$2)=MOD(CELL("spalte",P84)-(CELL("spalte",$P84)),$Q$2),ean_conv(LEFT($J84,12)),""), "<>") -> <> | Q84: =IF(CELL("spalte",Q84)<CELL("spalte",$P84)+$Q$2, IF(MOD(CELL("zeile",Q84)-CELL("zeile",Q$4),$Q$2)=MOD(CELL("spalte",Q84)-(CELL("spalte",$P84)),$Q$2),ean_conv(LEFT($J84,12)),""), "<>") -> <> | R84: =IF(CELL("spalte",R84)<CELL("spalte",$P84)+$Q$2, IF(MOD(CELL("zeile",R84)-CELL("zeile",R$4),$Q$2)=MOD(CELL("spalte",R84)-(CELL("spalte",$P84)),$Q$2),ean_conv(LEFT($J84,12)),""), "<>") -> <> | S84: =IF(CELL("spalte",S84)<CELL("spalte",$P84)+$Q$2, IF(MOD(CELL("zeile",S84)-CELL("zeile",S$4),$Q$2)=MOD(CELL("spalte",S84)-(CELL("spalte",$P84)),$Q$2),ean_conv(LEFT($J84,12)),""), "<>") -> <> | T84: =IF(CELL("spalte",T84)<CELL("spalte",$P84)+$Q$2, IF(MOD(CELL("zeile",T84)-CELL("zeile",T$4),$Q$2)=MOD(CELL("spalte",T84)-(CELL("spalte",$P84)),$Q$2),ean_conv(LEFT($J84,12)),""), "<>") -> <> | U84: =IF(CELL("spalte",U84)<CELL("spalte",$P84)+$Q$2, IF(MOD(CELL("zeile",U84)-CELL("zeile",U$4),$Q$2)=MOD(CELL("spalte",U84)-(CELL("spalte",$P84)),$Q$2),ean_conv(LEFT($J84,12)),""), "<>") -> <> | V84: =IF(CELL("spalte",V84)<CELL("spalte",$P84)+$Q$2, IF(MOD(CELL("zeile",V84)-CELL("zeile",V$4),$Q$2)=MOD(CELL("spalte",V84)-(CELL("spalte",$P84)),$Q$2),ean_conv(LEFT($J84,12)),""), "<>") -> <> | W84: =IF(CELL("spalte",W84)<CELL("spalte",$P84)+$Q$2, IF(MOD(CELL("zeile",W84)-CELL("zeile",W$4),$Q$2)=MOD(CELL("spalte",W84)-(CELL("spalte",$P84)),$Q$2),ean_conv(LEFT($J84,12)),""), "<>") -> <> | X84: =IF(CELL("spalte",X84)<CELL("spalte",$P84)+$Q$2, IF(MOD(CELL("zeile",X84)-CELL("zeile",X$4),$Q$2)=MOD(CELL("spalte",X84)-(CELL("spalte",$P84)),$Q$2),ean_conv(LEFT($J84,12)),""), "<>") -> <> | Y84: =IF(CELL("spalte",Y84)<CELL("spalte",$P84)+$Q$2, IF(MOD(CELL("zeile",Y84)-CELL("zeile",Y$4),$Q$2)=MOD(CELL("spalte",Y84)-(CELL("spalte",$P84)),$Q$2),ean_conv(LEFT($J84,12)),""), "<>") -> <>
A85: 82 | B85: Accel World/Dural - Magisa Garden | C85: 3 | D85: Action | F85: deu | G85: Standard | H85: Tokyopop | I85: X | J85: 9783842032262 | L85: Accel World/Dural - Magisa Garden •deu• | M85: Accel World/Dural - Magisa Garden •deu• 3 | O85: Seite 2 | P85: =IF(CELL("spalte",P85)<CELL("spalte",$P85)+$Q$2, IF(MOD(CELL("zeile",P85)-CELL("zeile",P$4),$Q$2)=MOD(CELL("spalte",P85)-(CELL("spalte",$P85)),$Q$2),ean_conv(LEFT($J85,12)),""), "<>") -> <> | Q85: =IF(CELL("spalte",Q85)<CELL("spalte",$P85)+$Q$2, IF(MOD(CELL("zeile",Q85)-CELL("zeile",Q$4),$Q$2)=MOD(CELL("spalte",Q85)-(CELL("spalte",$P85)),$Q$2),ean_conv(LEFT($J85,12)),""), "<>") -> <> | R85: =IF(CELL("spalte",R85)<CELL("spalte",$P85)+$Q$2, IF(MOD(CELL("zeile",R85)-CELL("zeile",R$4),$Q$2)=MOD(CELL("spalte",R85)-(CELL("spalte",$P85)),$Q$2),ean_conv(LEFT($J85,12)),""), "<>") -> <> | S85: =IF(CELL("spalte",S85)<CELL("spalte",$P85)+$Q$2, IF(MOD(CELL("zeile",S85)-CELL("zeile",S$4),$Q$2)=MOD(CELL("spalte",S85)-(CELL("spalte",$P85)),$Q$2),ean_conv(LEFT($J85,12)),""), "<>") -> <> | T85: =IF(CELL("spalte",T85)<CELL("spalte",$P85)+$Q$2, IF(MOD(CELL("zeile",T85)-CELL("zeile",T$4),$Q$2)=MOD(CELL("spalte",T85)-(CELL("spalte",$P85)),$Q$2),ean_conv(LEFT($J85,12)),""), "<>") -> <> | U85: =IF(CELL("spalte",U85)<CELL("spalte",$P85)+$Q$2, IF(MOD(CELL("zeile",U85)-CELL("zeile",U$4),$Q$2)=MOD(CELL("spalte",U85)-(CELL("spalte",$P85)),$Q$2),ean_conv(LEFT($J85,12)),""), "<>") -> <> | V85: =IF(CELL("spalte",V85)<CELL("spalte",$P85)+$Q$2, IF(MOD(CELL("zeile",V85)-CELL("zeile",V$4),$Q$2)=MOD(CELL("spalte",V85)-(CELL("spalte",$P85)),$Q$2),ean_conv(LEFT($J85,12)),""), "<>") -> <> | W85: =IF(CELL("spalte",W85)<CELL("spalte",$P85)+$Q$2, IF(MOD(CELL("zeile",W85)-CELL("zeile",W$4),$Q$2)=MOD(CELL("spalte",W85)-(CELL("spalte",$P85)),$Q$2),ean_conv(LEFT($J85,12)),""), "<>") -> <> | X85: =IF(CELL("spalte",X85)<CELL("spalte",$P85)+$Q$2, IF(MOD(CELL("zeile",X85)-CELL("zeile",X$4),$Q$2)=MOD(CELL("spalte",X85)-(CELL("spalte",$P85)),$Q$2),ean_conv(LEFT($J85,12)),""), "<>") -> <> | Y85: =IF(CELL("spalte",Y85)<CELL("spalte",$P85)+$Q$2, IF(MOD(CELL("zeile",Y85)-CELL("zeile",Y$4),$Q$2)=MOD(CELL("spalte",Y85)-(CELL("spalte",$P85)),$Q$2),ean_conv(LEFT($J85,12)),""), "<>") -> <>
A86: 83 | B86: Accel World/Dural - Magisa Garden | C86: 4 | D86: Action | F86: deu | G86: Standard | H86: Tokyopop | I86: X | J86: 9783842032279 | L86: Accel World/Dural - Magisa Garden •deu• | M86: Accel World/Dural - Magisa Garden •deu• 4 | O86: Seite 2 | P86: =IF(CELL("spalte",P86)<CELL("spalte",$P86)+$Q$2, IF(MOD(CELL("zeile",P86)-CELL("zeile",P$4),$Q$2)=MOD(CELL("spalte",P86)-(CELL("spalte",$P86)),$Q$2),ean_conv(LEFT($J86,12)),""), "<>") -> <> | Q86: =IF(CELL("spalte",Q86)<CELL("spalte",$P86)+$Q$2, IF(MOD(CELL("zeile",Q86)-CELL("zeile",Q$4),$Q$2)=MOD(CELL("spalte",Q86)-(CELL("spalte",$P86)),$Q$2),ean_conv(LEFT($J86,12)),""), "<>") -> <> | R86: =IF(CELL("spalte",R86)<CELL("spalte",$P86)+$Q$2, IF(MOD(CELL("zeile",R86)-CELL("zeile",R$4),$Q$2)=MOD(CELL("spalte",R86)-(CELL("spalte",$P86)),$Q$2),ean_conv(LEFT($J86,12)),""), "<>") -> <> | S86: =IF(CELL("spalte",S86)<CELL("spalte",$P86)+$Q$2, IF(MOD(CELL("zeile",S86)-CELL("zeile",S$4),$Q$2)=MOD(CELL("spalte",S86)-(CELL("spalte",$P86)),$Q$2),ean_conv(LEFT($J86,12)),""), "<>") -> <> | T86: =IF(CELL("spalte",T86)<CELL("spalte",$P86)+$Q$2, IF(MOD(CELL("zeile",T86)-CELL("zeile",T$4),$Q$2)=MOD(CELL("spalte",T86)-(CELL("spalte",$P86)),$Q$2),ean_conv(LEFT($J86,12)),""), "<>") -> <> | U86: =IF(CELL("spalte",U86)<CELL("spalte",$P86)+$Q$2, IF(MOD(CELL("zeile",U86)-CELL("zeile",U$4),$Q$2)=MOD(CELL("spalte",U86)-(CELL("spalte",$P86)),$Q$2),ean_conv(LEFT($J86,12)),""), "<>") -> <> | V86: =IF(CELL("spalte",V86)<CELL("spalte",$P86)+$Q$2, IF(MOD(CELL("zeile",V86)-CELL("zeile",V$4),$Q$2)=MOD(CELL("spalte",V86)-(CELL("spalte",$P86)),$Q$2),ean_conv(LEFT($J86,12)),""), "<>") -> <> | W86: =IF(CELL("spalte",W86)<CELL("spalte",$P86)+$Q$2, IF(MOD(CELL("zeile",W86)-CELL("zeile",W$4),$Q$2)=MOD(CELL("spalte",W86)-(CELL("spalte",$P86)),$Q$2),ean_conv(LEFT($J86,12)),""), "<>") -> <> | X86: =IF(CELL("spalte",X86)<CELL("spalte",$P86)+$Q$2, IF(MOD(CELL("zeile",X86)-CELL("zeile",X$4),$Q$2)=MOD(CELL("spalte",X86)-(CELL("spalte",$P86)),$Q$2),ean_conv(LEFT($J86,12)),""), "<>") -> <> | Y86: =IF(CELL("spalte",Y86)<CELL("spalte",$P86)+$Q$2, IF(MOD(CELL("zeile",Y86)-CELL("zeile",Y$4),$Q$2)=MOD(CELL("spalte",Y86)-(CELL("spalte",$P86)),$Q$2),ean_conv(LEFT($J86,12)),""), "<>") -> <>
A87: 84 | B87: Accel World/Dural - Magisa Garden | C87: 5 | D87: Action | F87: deu | G87: Standard | H87: Tokyopop | I87: X | J87: 9783842032286 | L87: Accel World/Dural - Magisa Garden •deu• | M87: Accel World/Dural - Magisa Garden •deu• 5 | O87: Seite 2 | P87: =IF(CELL("spalte",P87)<CELL("spalte",$P87)+$Q$2, IF(MOD(CELL("zeile",P87)-CELL("zeile",P$4),$Q$2)=MOD(CELL("spalte",P87)-(CELL("spalte",$P87)),$Q$2),ean_conv(LEFT($J87,12)),""), "<>") -> <> | Q87: =IF(CELL("spalte",Q87)<CELL("spalte",$P87)+$Q$2, IF(MOD(CELL("zeile",Q87)-CELL("zeile",Q$4),$Q$2)=MOD(CELL("spalte",Q87)-(CELL("spalte",$P87)),$Q$2),ean_conv(LEFT($J87,12)),""), "<>") -> <> | R87: =IF(CELL("spalte",R87)<CELL("spalte",$P87)+$Q$2, IF(MOD(CELL("zeile",R87)-CELL("zeile",R$4),$Q$2)=MOD(CELL("spalte",R87)-(CELL("spalte",$P87)),$Q$2),ean_conv(LEFT($J87,12)),""), "<>") -> <> | S87: =IF(CELL("spalte",S87)<CELL("spalte",$P87)+$Q$2, IF(MOD(CELL("zeile",S87)-CELL("zeile",S$4),$Q$2)=MOD(CELL("spalte",S87)-(CELL("spalte",$P87)),$Q$2),ean_conv(LEFT($J87,12)),""), "<>") -> <> | T87: =IF(CELL("spalte",T87)<CELL("spalte",$P87)+$Q$2, IF(MOD(CELL("zeile",T87)-CELL("zeile",T$4),$Q$2)=MOD(CELL("spalte",T87)-(CELL("spalte",$P87)),$Q$2),ean_conv(LEFT($J87,12)),""), "<>") -> <> | U87: =IF(CELL("spalte",U87)<CELL("spalte",$P87)+$Q$2, IF(MOD(CELL("zeile",U87)-CELL("zeile",U$4),$Q$2)=MOD(CELL("spalte",U87)-(CELL("spalte",$P87)),$Q$2),ean_conv(LEFT($J87,12)),""), "<>") -> <> | V87: =IF(CELL("spalte",V87)<CELL("spalte",$P87)+$Q$2, IF(MOD(CELL("zeile",V87)-CELL("zeile",V$4),$Q$2)=MOD(CELL("spalte",V87)-(CELL("spalte",$P87)),$Q$2),ean_conv(LEFT($J87,12)),""), "<>") -> <> | W87: =IF(CELL("spalte",W87)<CELL("spalte",$P87)+$Q$2, IF(MOD(CELL("zeile",W87)-CELL("zeile",W$4),$Q$2)=MOD(CELL("spalte",W87)-(CELL("spalte",$P87)),$Q$2),ean_conv(LEFT($J87,12)),""), "<>") -> <> | X87: =IF(CELL("spalte",X87)<CELL("spalte",$P87)+$Q$2, IF(MOD(CELL("zeile",X87)-CELL("zeile",X$4),$Q$2)=MOD(CELL("spalte",X87)-(CELL("spalte",$P87)),$Q$2),ean_conv(LEFT($J87,12)),""), "<>") -> <> | Y87: =IF(CELL("spalte",Y87)<CELL("spalte",$P87)+$Q$2, IF(MOD(CELL("zeile",Y87)-CELL("zeile",Y$4),$Q$2)=MOD(CELL("spalte",Y87)-(CELL("spalte",$P87)),$Q$2),ean_conv(LEFT($J87,12)),""), "<>") -> <>
A88: 85 | B88: Accel World/Dural - Magisa Garden | C88: 6 | D88: Action | F88: deu | G88: Standard | H88: Tokyopop | I88: X | J88: 9783842032293 | L88: Accel World/Dural - Magisa Garden •deu• | M88: Accel World/Dural - Magisa Garden •deu• 6 | O88: Seite 2 | P88: =IF(CELL("spalte",P88)<CELL("spalte",$P88)+$Q$2, IF(MOD(CELL("zeile",P88)-CELL("zeile",P$4),$Q$2)=MOD(CELL("spalte",P88)-(CELL("spalte",$P88)),$Q$2),ean_conv(LEFT($J88,12)),""), "<>") -> <> | Q88: =IF(CELL("spalte",Q88)<CELL("spalte",$P88)+$Q$2, IF(MOD(CELL("zeile",Q88)-CELL("zeile",Q$4),$Q$2)=MOD(CELL("spalte",Q88)-(CELL("spalte",$P88)),$Q$2),ean_conv(LEFT($J88,12)),""), "<>") -> <> | R88: =IF(CELL("spalte",R88)<CELL("spalte",$P88)+$Q$2, IF(MOD(CELL("zeile",R88)-CELL("zeile",R$4),$Q$2)=MOD(CELL("spalte",R88)-(CELL("spalte",$P88)),$Q$2),ean_conv(LEFT($J88,12)),""), "<>") -> <> | S88: =IF(CELL("spalte",S88)<CELL("spalte",$P88)+$Q$2, IF(MOD(CELL("zeile",S88)-CELL("zeile",S$4),$Q$2)=MOD(CELL("spalte",S88)-(CELL("spalte",$P88)),$Q$2),ean_conv(LEFT($J88,12)),""), "<>") -> <> | T88: =IF(CELL("spalte",T88)<CELL("spalte",$P88)+$Q$2, IF(MOD(CELL("zeile",T88)-CELL("zeile",T$4),$Q$2)=MOD(CELL("spalte",T88)-(CELL("spalte",$P88)),$Q$2),ean_conv(LEFT($J88,12)),""), "<>") -> <> | U88: =IF(CELL("spalte",U88)<CELL("spalte",$P88)+$Q$2, IF(MOD(CELL("zeile",U88)-CELL("zeile",U$4),$Q$2)=MOD(CELL("spalte",U88)-(CELL("spalte",$P88)),$Q$2),ean_conv(LEFT($J88,12)),""), "<>") -> <> | V88: =IF(CELL("spalte",V88)<CELL("spalte",$P88)+$Q$2, IF(MOD(CELL("zeile",V88)-CELL("zeile",V$4),$Q$2)=MOD(CELL("spalte",V88)-(CELL("spalte",$P88)),$Q$2),ean_conv(LEFT($J88,12)),""), "<>") -> <> | W88: =IF(CELL("spalte",W88)<CELL("spalte",$P88)+$Q$2, IF(MOD(CELL("zeile",W88)-CELL("zeile",W$4),$Q$2)=MOD(CELL("spalte",W88)-(CELL("spalte",$P88)),$Q$2),ean_conv(LEFT($J88,12)),""), "<>") -> <> | X88: =IF(CELL("spalte",X88)<CELL("spalte",$P88)+$Q$2, IF(MOD(CELL("zeile",X88)-CELL("zeile",X$4),$Q$2)=MOD(CELL("spalte",X88)-(CELL("spalte",$P88)),$Q$2),ean_conv(LEFT($J88,12)),""), "<>") -> <> | Y88: =IF(CELL("spalte",Y88)<CELL("spalte",$P88)+$Q$2, IF(MOD(CELL("zeile",Y88)-CELL("zeile",Y$4),$Q$2)=MOD(CELL("spalte",Y88)-(CELL("spalte",$P88)),$Q$2),ean_conv(LEFT($J88,12)),""), "<>") -> <>
A89: 86 | B89: Accel World/Dural - Magisa Garden | C89: 7 | D89: Action | F89: deu | G89: Standard | H89: Tokyopop | I89: X | J89: 9783842035379 | L89: Accel World/Dural - Magisa Garden •deu• | M89: Accel World/Dural - Magisa Garden •deu• 7 | O89: Seite 2 | P89: =IF(CELL("spalte",P89)<CELL("spalte",$P89)+$Q$2, IF(MOD(CELL("zeile",P89)-CELL("zeile",P$4),$Q$2)=MOD(CELL("spalte",P89)-(CELL("spalte",$P89)),$Q$2),ean_conv(LEFT($J89,12)),""), "<>") -> <> | Q89: =IF(CELL("spalte",Q89)<CELL("spalte",$P89)+$Q$2, IF(MOD(CELL("zeile",Q89)-CELL("zeile",Q$4),$Q$2)=MOD(CELL("spalte",Q89)-(CELL("spalte",$P89)),$Q$2),ean_conv(LEFT($J89,12)),""), "<>") -> <> | R89: =IF(CELL("spalte",R89)<CELL("spalte",$P89)+$Q$2, IF(MOD(CELL("zeile",R89)-CELL("zeile",R$4),$Q$2)=MOD(CELL("spalte",R89)-(CELL("spalte",$P89)),$Q$2),ean_conv(LEFT($J89,12)),""), "<>") -> <> | S89: =IF(CELL("spalte",S89)<CELL("spalte",$P89)+$Q$2, IF(MOD(CELL("zeile",S89)-CELL("zeile",S$4),$Q$2)=MOD(CELL("spalte",S89)-(CELL("spalte",$P89)),$Q$2),ean_conv(LEFT($J89,12)),""), "<>") -> <> | T89: =IF(CELL("spalte",T89)<CELL("spalte",$P89)+$Q$2, IF(MOD(CELL("zeile",T89)-CELL("zeile",T$4),$Q$2)=MOD(CELL("spalte",T89)-(CELL("spalte",$P89)),$Q$2),ean_conv(LEFT($J89,12)),""), "<>") -> <> | U89: =IF(CELL("spalte",U89)<CELL("spalte",$P89)+$Q$2, IF(MOD(CELL("zeile",U89)-CELL("zeile",U$4),$Q$2)=MOD(CELL("spalte",U89)-(CELL("spalte",$P89)),$Q$2),ean_conv(LEFT($J89,12)),""), "<>") -> <> | V89: =IF(CELL("spalte",V89)<CELL("spalte",$P89)+$Q$2, IF(MOD(CELL("zeile",V89)-CELL("zeile",V$4),$Q$2)=MOD(CELL("spalte",V89)-(CELL("spalte",$P89)),$Q$2),ean_conv(LEFT($J89,12)),""), "<>") -> <> | W89: =IF(CELL("spalte",W89)<CELL("spalte",$P89)+$Q$2, IF(MOD(CELL("zeile",W89)-CELL("zeile",W$4),$Q$2)=MOD(CELL("spalte",W89)-(CELL("spalte",$P89)),$Q$2),ean_conv(LEFT($J89,12)),""), "<>") -> <> | X89: =IF(CELL("spalte",X89)<CELL("spalte",$P89)+$Q$2, IF(MOD(CELL("zeile",X89)-CELL("zeile",X$4),$Q$2)=MOD(CELL("spalte",X89)-(CELL("spalte",$P89)),$Q$2),ean_conv(LEFT($J89,12)),""), "<>") -> <> | Y89: =IF(CELL("spalte",Y89)<CELL("spalte",$P89)+$Q$2, IF(MOD(CELL("zeile",Y89)-CELL("zeile",Y$4),$Q$2)=MOD(CELL("spalte",Y89)-(CELL("spalte",$P89)),$Q$2),ean_conv(LEFT($J89,12)),""), "<>") -> <>
A90: 87 | B90: Accel World/Dural - Magisa Garden | C90: 8 | D90: Action | F90: deu | G90: Standard | H90: Tokyopop | I90: X | J90: 9783842044197 | L90: Accel World/Dural - Magisa Garden •deu• | M90: Accel World/Dural - Magisa Garden •deu• 8 | O90: Seite 2 | P90: =IF(CELL("spalte",P90)<CELL("spalte",$P90)+$Q$2, IF(MOD(CELL("zeile",P90)-CELL("zeile",P$4),$Q$2)=MOD(CELL("spalte",P90)-(CELL("spalte",$P90)),$Q$2),ean_conv(LEFT($J90,12)),""), "<>") -> <> | Q90: =IF(CELL("spalte",Q90)<CELL("spalte",$P90)+$Q$2, IF(MOD(CELL("zeile",Q90)-CELL("zeile",Q$4),$Q$2)=MOD(CELL("spalte",Q90)-(CELL("spalte",$P90)),$Q$2),ean_conv(LEFT($J90,12)),""), "<>") -> <> | R90: =IF(CELL("spalte",R90)<CELL("spalte",$P90)+$Q$2, IF(MOD(CELL("zeile",R90)-CELL("zeile",R$4),$Q$2)=MOD(CELL("spalte",R90)-(CELL("spalte",$P90)),$Q$2),ean_conv(LEFT($J90,12)),""), "<>") -> <> | S90: =IF(CELL("spalte",S90)<CELL("spalte",$P90)+$Q$2, IF(MOD(CELL("zeile",S90)-CELL("zeile",S$4),$Q$2)=MOD(CELL("spalte",S90)-(CELL("spalte",$P90)),$Q$2),ean_conv(LEFT($J90,12)),""), "<>") -> <> | T90: =IF(CELL("spalte",T90)<CELL("spalte",$P90)+$Q$2, IF(MOD(CELL("zeile",T90)-CELL("zeile",T$4),$Q$2)=MOD(CELL("spalte",T90)-(CELL("spalte",$P90)),$Q$2),ean_conv(LEFT($J90,12)),""), "<>") -> <> | U90: =IF(CELL("spalte",U90)<CELL("spalte",$P90)+$Q$2, IF(MOD(CELL("zeile",U90)-CELL("zeile",U$4),$Q$2)=MOD(CELL("spalte",U90)-(CELL("spalte",$P90)),$Q$2),ean_conv(LEFT($J90,12)),""), "<>") -> <> | V90: =IF(CELL("spalte",V90)<CELL("spalte",$P90)+$Q$2, IF(MOD(CELL("zeile",V90)-CELL("zeile",V$4),$Q$2)=MOD(CELL("spalte",V90)-(CELL("spalte",$P90)),$Q$2),ean_conv(LEFT($J90,12)),""), "<>") -> <> | W90: =IF(CELL("spalte",W90)<CELL("spalte",$P90)+$Q$2, IF(MOD(CELL("zeile",W90)-CELL("zeile",W$4),$Q$2)=MOD(CELL("spalte",W90)-(CELL("spalte",$P90)),$Q$2),ean_conv(LEFT($J90,12)),""), "<>") -> <> | X90: =IF(CELL("spalte",X90)<CELL("spalte",$P90)+$Q$2, IF(MOD(CELL("zeile",X90)-CELL("zeile",X$4),$Q$2)=MOD(CELL("spalte",X90)-(CELL("spalte",$P90)),$Q$2),ean_conv(LEFT($J90,12)),""), "<>") -> <> | Y90: =IF(CELL("spalte",Y90)<CELL("spalte",$P90)+$Q$2, IF(MOD(CELL("zeile",Y90)-CELL("zeile",Y$4),$Q$2)=MOD(CELL("spalte",Y90)-(CELL("spalte",$P90)),$Q$2),ean_conv(LEFT($J90,12)),""), "<>") -> <>
A91: 88 | B91: After Hours | C91: 1 | D91: Girls Love | F91: deu | G91: Standard | H91: Tokyopop | I91: X | J91: 9783842051805 | L91: After Hours •deu• | M91: After Hours •deu• 1 | O91: Seite 2 | P91: =IF(CELL("spalte",P91)<CELL("spalte",$P91)+$Q$2, IF(MOD(CELL("zeile",P91)-CELL("zeile",P$4),$Q$2)=MOD(CELL("spalte",P91)-(CELL("spalte",$P91)),$Q$2),ean_conv(LEFT($J91,12)),""), "<>") -> <> | Q91: =IF(CELL("spalte",Q91)<CELL("spalte",$P91)+$Q$2, IF(MOD(CELL("zeile",Q91)-CELL("zeile",Q$4),$Q$2)=MOD(CELL("spalte",Q91)-(CELL("spalte",$P91)),$Q$2),ean_conv(LEFT($J91,12)),""), "<>") -> <> | R91: =IF(CELL("spalte",R91)<CELL("spalte",$P91)+$Q$2, IF(MOD(CELL("zeile",R91)-CELL("zeile",R$4),$Q$2)=MOD(CELL("spalte",R91)-(CELL("spalte",$P91)),$Q$2),ean_conv(LEFT($J91,12)),""), "<>") -> <> | S91: =IF(CELL("spalte",S91)<CELL("spalte",$P91)+$Q$2, IF(MOD(CELL("zeile",S91)-CELL("zeile",S$4),$Q$2)=MOD(CELL("spalte",S91)-(CELL("spalte",$P91)),$Q$2),ean_conv(LEFT($J91,12)),""), "<>") -> <> | T91: =IF(CELL("spalte",T91)<CELL("spalte",$P91)+$Q$2, IF(MOD(CELL("zeile",T91)-CELL("zeile",T$4),$Q$2)=MOD(CELL("spalte",T91)-(CELL("spalte",$P91)),$Q$2),ean_conv(LEFT($J91,12)),""), "<>") -> <> | U91: =IF(CELL("spalte",U91)<CELL("spalte",$P91)+$Q$2, IF(MOD(CELL("zeile",U91)-CELL("zeile",U$4),$Q$2)=MOD(CELL("spalte",U91)-(CELL("spalte",$P91)),$Q$2),ean_conv(LEFT($J91,12)),""), "<>") -> <> | V91: =IF(CELL("spalte",V91)<CELL("spalte",$P91)+$Q$2, IF(MOD(CELL("zeile",V91)-CELL("zeile",V$4),$Q$2)=MOD(CELL("spalte",V91)-(CELL("spalte",$P91)),$Q$2),ean_conv(LEFT($J91,12)),""), "<>") -> <> | W91: =IF(CELL("spalte",W91)<CELL("spalte",$P91)+$Q$2, IF(MOD(CELL("zeile",W91)-CELL("zeile",W$4),$Q$2)=MOD(CELL("spalte",W91)-(CELL("spalte",$P91)),$Q$2),ean_conv(LEFT($J91,12)),""), "<>") -> <> | X91: =IF(CELL("spalte",X91)<CELL("spalte",$P91)+$Q$2, IF(MOD(CELL("zeile",X91)-CELL("zeile",X$4),$Q$2)=MOD(CELL("spalte",X91)-(CELL("spalte",$P91)),$Q$2),ean_conv(LEFT($J91,12)),""), "<>") -> <> | Y91: =IF(CELL("spalte",Y91)<CELL("spalte",$P91)+$Q$2, IF(MOD(CELL("zeile",Y91)-CELL("zeile",Y$4),$Q$2)=MOD(CELL("spalte",Y91)-(CELL("spalte",$P91)),$Q$2),ean_conv(LEFT($J91,12)),""), "<>") -> <>
A92: 89 | B92: After Hours | C92: 2 | D92: Girls Love | F92: deu | G92: Standard | H92: Tokyopop | I92: X | J92: 9783842051812 | L92: After Hours •deu• | M92: After Hours •deu• 2 | O92: Seite 2 | P92: =IF(CELL("spalte",P92)<CELL("spalte",$P92)+$Q$2, IF(MOD(CELL("zeile",P92)-CELL("zeile",P$4),$Q$2)=MOD(CELL("spalte",P92)-(CELL("spalte",$P92)),$Q$2),ean_conv(LEFT($J92,12)),""), "<>") -> <> | Q92: =IF(CELL("spalte",Q92)<CELL("spalte",$P92)+$Q$2, IF(MOD(CELL("zeile",Q92)-CELL("zeile",Q$4),$Q$2)=MOD(CELL("spalte",Q92)-(CELL("spalte",$P92)),$Q$2),ean_conv(LEFT($J92,12)),""), "<>") -> <> | R92: =IF(CELL("spalte",R92)<CELL("spalte",$P92)+$Q$2, IF(MOD(CELL("zeile",R92)-CELL("zeile",R$4),$Q$2)=MOD(CELL("spalte",R92)-(CELL("spalte",$P92)),$Q$2),ean_conv(LEFT($J92,12)),""), "<>") -> <> | S92: =IF(CELL("spalte",S92)<CELL("spalte",$P92)+$Q$2, IF(MOD(CELL("zeile",S92)-CELL("zeile",S$4),$Q$2)=MOD(CELL("spalte",S92)-(CELL("spalte",$P92)),$Q$2),ean_conv(LEFT($J92,12)),""), "<>") -> <> | T92: =IF(CELL("spalte",T92)<CELL("spalte",$P92)+$Q$2, IF(MOD(CELL("zeile",T92)-CELL("zeile",T$4),$Q$2)=MOD(CELL("spalte",T92)-(CELL("spalte",$P92)),$Q$2),ean_conv(LEFT($J92,12)),""), "<>") -> <> | U92: =IF(CELL("spalte",U92)<CELL("spalte",$P92)+$Q$2, IF(MOD(CELL("zeile",U92)-CELL("zeile",U$4),$Q$2)=MOD(CELL("spalte",U92)-(CELL("spalte",$P92)),$Q$2),ean_conv(LEFT($J92,12)),""), "<>") -> <> | V92: =IF(CELL("spalte",V92)<CELL("spalte",$P92)+$Q$2, IF(MOD(CELL("zeile",V92)-CELL("zeile",V$4),$Q$2)=MOD(CELL("spalte",V92)-(CELL("spalte",$P92)),$Q$2),ean_conv(LEFT($J92,12)),""), "<>") -> <> | W92: =IF(CELL("spalte",W92)<CELL("spalte",$P92)+$Q$2, IF(MOD(CELL("zeile",W92)-CELL("zeile",W$4),$Q$2)=MOD(CELL("spalte",W92)-(CELL("spalte",$P92)),$Q$2),ean_conv(LEFT($J92,12)),""), "<>") -> <> | X92: =IF(CELL("spalte",X92)<CELL("spalte",$P92)+$Q$2, IF(MOD(CELL("zeile",X92)-CELL("zeile",X$4),$Q$2)=MOD(CELL("spalte",X92)-(CELL("spalte",$P92)),$Q$2),ean_conv(LEFT($J92,12)),""), "<>") -> <> | Y92: =IF(CELL("spalte",Y92)<CELL("spalte",$P92)+$Q$2, IF(MOD(CELL("zeile",Y92)-CELL("zeile",Y$4),$Q$2)=MOD(CELL("spalte",Y92)-(CELL("spalte",$P92)),$Q$2),ean_conv(LEFT($J92,12)),""), "<>") -> <>
A93: 90 | B93: After Hours | C93: 3 | D93: Girls Love | F93: deu | G93: Standard | H93: Tokyopop | I93: X | J93: 9783842051829 | L93: After Hours •deu• | M93: After Hours •deu• 3 | O93: Seite 2 | P93: =IF(CELL("spalte",P93)<CELL("spalte",$P93)+$Q$2, IF(MOD(CELL("zeile",P93)-CELL("zeile",P$4),$Q$2)=MOD(CELL("spalte",P93)-(CELL("spalte",$P93)),$Q$2),ean_conv(LEFT($J93,12)),""), "<>") -> <> | Q93: =IF(CELL("spalte",Q93)<CELL("spalte",$P93)+$Q$2, IF(MOD(CELL("zeile",Q93)-CELL("zeile",Q$4),$Q$2)=MOD(CELL("spalte",Q93)-(CELL("spalte",$P93)),$Q$2),ean_conv(LEFT($J93,12)),""), "<>") -> <> | R93: =IF(CELL("spalte",R93)<CELL("spalte",$P93)+$Q$2, IF(MOD(CELL("zeile",R93)-CELL("zeile",R$4),$Q$2)=MOD(CELL("spalte",R93)-(CELL("spalte",$P93)),$Q$2),ean_conv(LEFT($J93,12)),""), "<>") -> <> | S93: =IF(CELL("spalte",S93)<CELL("spalte",$P93)+$Q$2, IF(MOD(CELL("zeile",S93)-CELL("zeile",S$4),$Q$2)=MOD(CELL("spalte",S93)-(CELL("spalte",$P93)),$Q$2),ean_conv(LEFT($J93,12)),""), "<>") -> <> | T93: =IF(CELL("spalte",T93)<CELL("spalte",$P93)+$Q$2, IF(MOD(CELL("zeile",T93)-CELL("zeile",T$4),$Q$2)=MOD(CELL("spalte",T93)-(CELL("spalte",$P93)),$Q$2),ean_conv(LEFT($J93,12)),""), "<>") -> <> | U93: =IF(CELL("spalte",U93)<CELL("spalte",$P93)+$Q$2, IF(MOD(CELL("zeile",U93)-CELL("zeile",U$4),$Q$2)=MOD(CELL("spalte",U93)-(CELL("spalte",$P93)),$Q$2),ean_conv(LEFT($J93,12)),""), "<>") -> <> | V93: =IF(CELL("spalte",V93)<CELL("spalte",$P93)+$Q$2, IF(MOD(CELL("zeile",V93)-CELL("zeile",V$4),$Q$2)=MOD(CELL("spalte",V93)-(CELL("spalte",$P93)),$Q$2),ean_conv(LEFT($J93,12)),""), "<>") -> <> | W93: =IF(CELL("spalte",W93)<CELL("spalte",$P93)+$Q$2, IF(MOD(CELL("zeile",W93)-CELL("zeile",W$4),$Q$2)=MOD(CELL("spalte",W93)-(CELL("spalte",$P93)),$Q$2),ean_conv(LEFT($J93,12)),""), "<>") -> <> | X93: =IF(CELL("spalte",X93)<CELL("spalte",$P93)+$Q$2, IF(MOD(CELL("zeile",X93)-CELL("zeile",X$4),$Q$2)=MOD(CELL("spalte",X93)-(CELL("spalte",$P93)),$Q$2),ean_conv(LEFT($J93,12)),""), "<>") -> <> | Y93: =IF(CELL("spalte",Y93)<CELL("spalte",$P93)+$Q$2, IF(MOD(CELL("zeile",Y93)-CELL("zeile",Y$4),$Q$2)=MOD(CELL("spalte",Y93)-(CELL("spalte",$P93)),$Q$2),ean_conv(LEFT($J93,12)),""), "<>") -> <>
A94: 91 | B94: After-Scool Bitchcraft | C94: 1 | D94: Fantasy | F94: deu | G94: Standard | H94: Yen Press | I94: X | J94: 9781975399221 | L94: After-Scool Bitchcraft •deu• | M94: After-Scool Bitchcraft •deu• 1 | O94: Seite 2 | P94: =IF(CELL("spalte",P94)<CELL("spalte",$P94)+$Q$2, IF(MOD(CELL("zeile",P94)-CELL("zeile",P$4),$Q$2)=MOD(CELL("spalte",P94)-(CELL("spalte",$P94)),$Q$2),ean_conv(LEFT($J94,12)),""), "<>") -> <> | Q94: =IF(CELL("spalte",Q94)<CELL("spalte",$P94)+$Q$2, IF(MOD(CELL("zeile",Q94)-CELL("zeile",Q$4),$Q$2)=MOD(CELL("spalte",Q94)-(CELL("spalte",$P94)),$Q$2),ean_conv(LEFT($J94,12)),""), "<>") -> <> | R94: =IF(CELL("spalte",R94)<CELL("spalte",$P94)+$Q$2, IF(MOD(CELL("zeile",R94)-CELL("zeile",R$4),$Q$2)=MOD(CELL("spalte",R94)-(CELL("spalte",$P94)),$Q$2),ean_conv(LEFT($J94,12)),""), "<>") -> <> | S94: =IF(CELL("spalte",S94)<CELL("spalte",$P94)+$Q$2, IF(MOD(CELL("zeile",S94)-CELL("zeile",S$4),$Q$2)=MOD(CELL("spalte",S94)-(CELL("spalte",$P94)),$Q$2),ean_conv(LEFT($J94,12)),""), "<>") -> <> | T94: =IF(CELL("spalte",T94)<CELL("spalte",$P94)+$Q$2, IF(MOD(CELL("zeile",T94)-CELL("zeile",T$4),$Q$2)=MOD(CELL("spalte",T94)-(CELL("spalte",$P94)),$Q$2),ean_conv(LEFT($J94,12)),""), "<>") -> <> | U94: =IF(CELL("spalte",U94)<CELL("spalte",$P94)+$Q$2, IF(MOD(CELL("zeile",U94)-CELL("zeile",U$4),$Q$2)=MOD(CELL("spalte",U94)-(CELL("spalte",$P94)),$Q$2),ean_conv(LEFT($J94,12)),""), "<>") -> <> | V94: =IF(CELL("spalte",V94)<CELL("spalte",$P94)+$Q$2, IF(MOD(CELL("zeile",V94)-CELL("zeile",V$4),$Q$2)=MOD(CELL("spalte",V94)-(CELL("spalte",$P94)),$Q$2),ean_conv(LEFT($J94,12)),""), "<>") -> <> | W94: =IF(CELL("spalte",W94)<CELL("spalte",$P94)+$Q$2, IF(MOD(CELL("zeile",W94)-CELL("zeile",W$4),$Q$2)=MOD(CELL("spalte",W94)-(CELL("spalte",$P94)),$Q$2),ean_conv(LEFT($J94,12)),""), "<>") -> <> | X94: =IF(CELL("spalte",X94)<CELL("spalte",$P94)+$Q$2, IF(MOD(CELL("zeile",X94)-CELL("zeile",X$4),$Q$2)=MOD(CELL("spalte",X94)-(CELL("spalte",$P94)),$Q$2),ean_conv(LEFT($J94,12)),""), "<>") -> <> | Y94: =IF(CELL("spalte",Y94)<CELL("spalte",$P94)+$Q$2, IF(MOD(CELL("zeile",Y94)-CELL("zeile",Y$4),$Q$2)=MOD(CELL("spalte",Y94)-(CELL("spalte",$P94)),$Q$2),ean_conv(LEFT($J94,12)),""), "<>") -> <>
A95: 92 | B95: After-Scool Bitchcraft | C95: 2 | D95: Fantasy | F95: deu | G95: Standard | H95: Yen Press | I95: X | J95: 9781975319052 | L95: After-Scool Bitchcraft •deu• | M95: After-Scool Bitchcraft •deu• 2 | O95: Seite 2 | P95: =IF(CELL("spalte",P95)<CELL("spalte",$P95)+$Q$2, IF(MOD(CELL("zeile",P95)-CELL("zeile",P$4),$Q$2)=MOD(CELL("spalte",P95)-(CELL("spalte",$P95)),$Q$2),ean_conv(LEFT($J95,12)),""), "<>") -> <> | Q95: =IF(CELL("spalte",Q95)<CELL("spalte",$P95)+$Q$2, IF(MOD(CELL("zeile",Q95)-CELL("zeile",Q$4),$Q$2)=MOD(CELL("spalte",Q95)-(CELL("spalte",$P95)),$Q$2),ean_conv(LEFT($J95,12)),""), "<>") -> <> | R95: =IF(CELL("spalte",R95)<CELL("spalte",$P95)+$Q$2, IF(MOD(CELL("zeile",R95)-CELL("zeile",R$4),$Q$2)=MOD(CELL("spalte",R95)-(CELL("spalte",$P95)),$Q$2),ean_conv(LEFT($J95,12)),""), "<>") -> <> | S95: =IF(CELL("spalte",S95)<CELL("spalte",$P95)+$Q$2, IF(MOD(CELL("zeile",S95)-CELL("zeile",S$4),$Q$2)=MOD(CELL("spalte",S95)-(CELL("spalte",$P95)),$Q$2),ean_conv(LEFT($J95,12)),""), "<>") -> <> | T95: =IF(CELL("spalte",T95)<CELL("spalte",$P95)+$Q$2, IF(MOD(CELL("zeile",T95)-CELL("zeile",T$4),$Q$2)=MOD(CELL("spalte",T95)-(CELL("spalte",$P95)),$Q$2),ean_conv(LEFT($J95,12)),""), "<>") -> <> | U95: =IF(CELL("spalte",U95)<CELL("spalte",$P95)+$Q$2, IF(MOD(CELL("zeile",U95)-CELL("zeile",U$4),$Q$2)=MOD(CELL("spalte",U95)-(CELL("spalte",$P95)),$Q$2),ean_conv(LEFT($J95,12)),""), "<>") -> <> | V95: =IF(CELL("spalte",V95)<CELL("spalte",$P95)+$Q$2, IF(MOD(CELL("zeile",V95)-CELL("zeile",V$4),$Q$2)=MOD(CELL("spalte",V95)-(CELL("spalte",$P95)),$Q$2),ean_conv(LEFT($J95,12)),""), "<>") -> <> | W95: =IF(CELL("spalte",W95)<CELL("spalte",$P95)+$Q$2, IF(MOD(CELL("zeile",W95)-CELL("zeile",W$4),$Q$2)=MOD(CELL("spalte",W95)-(CELL("spalte",$P95)),$Q$2),ean_conv(LEFT($J95,12)),""), "<>") -> <> | X95: =IF(CELL("spalte",X95)<CELL("spalte",$P95)+$Q$2, IF(MOD(CELL("zeile",X95)-CELL("zeile",X$4),$Q$2)=MOD(CELL("spalte",X95)-(CELL("spalte",$P95)),$Q$2),ean_conv(LEFT($J95,12)),""), "<>") -> <> | Y95: =IF(CELL("spalte",Y95)<CELL("spalte",$P95)+$Q$2, IF(MOD(CELL("zeile",Y95)-CELL("zeile",Y$4),$Q$2)=MOD(CELL("spalte",Y95)-(CELL("spalte",$P95)),$Q$2),ean_conv(LEFT($J95,12)),""), "<>") -> <>
A96: 93 | B96: After-Scool Bitchcraft | C96: 3 | D96: Fantasy | F96: deu | G96: Standard | H96: Yen Press | I96: X | J96: 9781975334956 | L96: After-Scool Bitchcraft •deu• | M96: After-Scool Bitchcraft •deu• 3 | O96: Seite 2 | P96: =IF(CELL("spalte",P96)<CELL("spalte",$P96)+$Q$2, IF(MOD(CELL("zeile",P96)-CELL("zeile",P$4),$Q$2)=MOD(CELL("spalte",P96)-(CELL("spalte",$P96)),$Q$2),ean_conv(LEFT($J96,12)),""), "<>") -> <> | Q96: =IF(CELL("spalte",Q96)<CELL("spalte",$P96)+$Q$2, IF(MOD(CELL("zeile",Q96)-CELL("zeile",Q$4),$Q$2)=MOD(CELL("spalte",Q96)-(CELL("spalte",$P96)),$Q$2),ean_conv(LEFT($J96,12)),""), "<>") -> <> | R96: =IF(CELL("spalte",R96)<CELL("spalte",$P96)+$Q$2, IF(MOD(CELL("zeile",R96)-CELL("zeile",R$4),$Q$2)=MOD(CELL("spalte",R96)-(CELL("spalte",$P96)),$Q$2),ean_conv(LEFT($J96,12)),""), "<>") -> <> | S96: =IF(CELL("spalte",S96)<CELL("spalte",$P96)+$Q$2, IF(MOD(CELL("zeile",S96)-CELL("zeile",S$4),$Q$2)=MOD(CELL("spalte",S96)-(CELL("spalte",$P96)),$Q$2),ean_conv(LEFT($J96,12)),""), "<>") -> <> | T96: =IF(CELL("spalte",T96)<CELL("spalte",$P96)+$Q$2, IF(MOD(CELL("zeile",T96)-CELL("zeile",T$4),$Q$2)=MOD(CELL("spalte",T96)-(CELL("spalte",$P96)),$Q$2),ean_conv(LEFT($J96,12)),""), "<>") -> <> | U96: =IF(CELL("spalte",U96)<CELL("spalte",$P96)+$Q$2, IF(MOD(CELL("zeile",U96)-CELL("zeile",U$4),$Q$2)=MOD(CELL("spalte",U96)-(CELL("spalte",$P96)),$Q$2),ean_conv(LEFT($J96,12)),""), "<>") -> <> | V96: =IF(CELL("spalte",V96)<CELL("spalte",$P96)+$Q$2, IF(MOD(CELL("zeile",V96)-CELL("zeile",V$4),$Q$2)=MOD(CELL("spalte",V96)-(CELL("spalte",$P96)),$Q$2),ean_conv(LEFT($J96,12)),""), "<>") -> <> | W96: =IF(CELL("spalte",W96)<CELL("spalte",$P96)+$Q$2, IF(MOD(CELL("zeile",W96)-CELL("zeile",W$4),$Q$2)=MOD(CELL("spalte",W96)-(CELL("spalte",$P96)),$Q$2),ean_conv(LEFT($J96,12)),""), "<>") -> <> | X96: =IF(CELL("spalte",X96)<CELL("spalte",$P96)+$Q$2, IF(MOD(CELL("zeile",X96)-CELL("zeile",X$4),$Q$2)=MOD(CELL("spalte",X96)-(CELL("spalte",$P96)),$Q$2),ean_conv(LEFT($J96,12)),""), "<>") -> <> | Y96: =IF(CELL("spalte",Y96)<CELL("spalte",$P96)+$Q$2, IF(MOD(CELL("zeile",Y96)-CELL("zeile",Y$4),$Q$2)=MOD(CELL("spalte",Y96)-(CELL("spalte",$P96)),$Q$2),ean_conv(LEFT($J96,12)),""), "<>") -> <>
A97: 94 | B97: Agent of my Heart | C97: 1 | D97: Romance | F97: deu | G97: Standard | H97: Tokyopop | I97: X | J97: 9783842084032 | L97: Agent of my Heart •deu• | M97: Agent of my Heart •deu• 1 | O97: Seite 2 | P97: =IF(CELL("spalte",P97)<CELL("spalte",$P97)+$Q$2, IF(MOD(CELL("zeile",P97)-CELL("zeile",P$4),$Q$2)=MOD(CELL("spalte",P97)-(CELL("spalte",$P97)),$Q$2),ean_conv(LEFT($J97,12)),""), "<>") -> <> | Q97: =IF(CELL("spalte",Q97)<CELL("spalte",$P97)+$Q$2, IF(MOD(CELL("zeile",Q97)-CELL("zeile",Q$4),$Q$2)=MOD(CELL("spalte",Q97)-(CELL("spalte",$P97)),$Q$2),ean_conv(LEFT($J97,12)),""), "<>") -> <> | R97: =IF(CELL("spalte",R97)<CELL("spalte",$P97)+$Q$2, IF(MOD(CELL("zeile",R97)-CELL("zeile",R$4),$Q$2)=MOD(CELL("spalte",R97)-(CELL("spalte",$P97)),$Q$2),ean_conv(LEFT($J97,12)),""), "<>") -> <> | S97: =IF(CELL("spalte",S97)<CELL("spalte",$P97)+$Q$2, IF(MOD(CELL("zeile",S97)-CELL("zeile",S$4),$Q$2)=MOD(CELL("spalte",S97)-(CELL("spalte",$P97)),$Q$2),ean_conv(LEFT($J97,12)),""), "<>") -> <> | T97: =IF(CELL("spalte",T97)<CELL("spalte",$P97)+$Q$2, IF(MOD(CELL("zeile",T97)-CELL("zeile",T$4),$Q$2)=MOD(CELL("spalte",T97)-(CELL("spalte",$P97)),$Q$2),ean_conv(LEFT($J97,12)),""), "<>") -> <> | U97: =IF(CELL("spalte",U97)<CELL("spalte",$P97)+$Q$2, IF(MOD(CELL("zeile",U97)-CELL("zeile",U$4),$Q$2)=MOD(CELL("spalte",U97)-(CELL("spalte",$P97)),$Q$2),ean_conv(LEFT($J97,12)),""), "<>") -> <> | V97: =IF(CELL("spalte",V97)<CELL("spalte",$P97)+$Q$2, IF(MOD(CELL("zeile",V97)-CELL("zeile",V$4),$Q$2)=MOD(CELL("spalte",V97)-(CELL("spalte",$P97)),$Q$2),ean_conv(LEFT($J97,12)),""), "<>") -> <> | W97: =IF(CELL("spalte",W97)<CELL("spalte",$P97)+$Q$2, IF(MOD(CELL("zeile",W97)-CELL("zeile",W$4),$Q$2)=MOD(CELL("spalte",W97)-(CELL("spalte",$P97)),$Q$2),ean_conv(LEFT($J97,12)),""), "<>") -> <> | X97: =IF(CELL("spalte",X97)<CELL("spalte",$P97)+$Q$2, IF(MOD(CELL("zeile",X97)-CELL("zeile",X$4),$Q$2)=MOD(CELL("spalte",X97)-(CELL("spalte",$P97)),$Q$2),ean_conv(LEFT($J97,12)),""), "<>") -> <> | Y97: =IF(CELL("spalte",Y97)<CELL("spalte",$P97)+$Q$2, IF(MOD(CELL("zeile",Y97)-CELL("zeile",Y$4),$Q$2)=MOD(CELL("spalte",Y97)-(CELL("spalte",$P97)),$Q$2),ean_conv(LEFT($J97,12)),""), "<>") -> <>
A98: 95 | B98: Agent of my Heart | C98: 2 | D98: Romance | F98: deu | G98: Standard | H98: Tokyopop | I98: X | J98: 9783842084049 | L98: Agent of my Heart •deu• | M98: Agent of my Heart •deu• 2 | O98: Seite 2 | P98: =IF(CELL("spalte",P98)<CELL("spalte",$P98)+$Q$2, IF(MOD(CELL("zeile",P98)-CELL("zeile",P$4),$Q$2)=MOD(CELL("spalte",P98)-(CELL("spalte",$P98)),$Q$2),ean_conv(LEFT($J98,12)),""), "<>") -> <> | Q98: =IF(CELL("spalte",Q98)<CELL("spalte",$P98)+$Q$2, IF(MOD(CELL("zeile",Q98)-CELL("zeile",Q$4),$Q$2)=MOD(CELL("spalte",Q98)-(CELL("spalte",$P98)),$Q$2),ean_conv(LEFT($J98,12)),""), "<>") -> <> | R98: =IF(CELL("spalte",R98)<CELL("spalte",$P98)+$Q$2, IF(MOD(CELL("zeile",R98)-CELL("zeile",R$4),$Q$2)=MOD(CELL("spalte",R98)-(CELL("spalte",$P98)),$Q$2),ean_conv(LEFT($J98,12)),""), "<>") -> <> | S98: =IF(CELL("spalte",S98)<CELL("spalte",$P98)+$Q$2, IF(MOD(CELL("zeile",S98)-CELL("zeile",S$4),$Q$2)=MOD(CELL("spalte",S98)-(CELL("spalte",$P98)),$Q$2),ean_conv(LEFT($J98,12)),""), "<>") -> <> | T98: =IF(CELL("spalte",T98)<CELL("spalte",$P98)+$Q$2, IF(MOD(CELL("zeile",T98)-CELL("zeile",T$4),$Q$2)=MOD(CELL("spalte",T98)-(CELL("spalte",$P98)),$Q$2),ean_conv(LEFT($J98,12)),""), "<>") -> <> | U98: =IF(CELL("spalte",U98)<CELL("spalte",$P98)+$Q$2, IF(MOD(CELL("zeile",U98)-CELL("zeile",U$4),$Q$2)=MOD(CELL("spalte",U98)-(CELL("spalte",$P98)),$Q$2),ean_conv(LEFT($J98,12)),""), "<>") -> <> | V98: =IF(CELL("spalte",V98)<CELL("spalte",$P98)+$Q$2, IF(MOD(CELL("zeile",V98)-CELL("zeile",V$4),$Q$2)=MOD(CELL("spalte",V98)-(CELL("spalte",$P98)),$Q$2),ean_conv(LEFT($J98,12)),""), "<>") -> <> | W98: =IF(CELL("spalte",W98)<CELL("spalte",$P98)+$Q$2, IF(MOD(CELL("zeile",W98)-CELL("zeile",W$4),$Q$2)=MOD(CELL("spalte",W98)-(CELL("spalte",$P98)),$Q$2),ean_conv(LEFT($J98,12)),""), "<>") -> <> | X98: =IF(CELL("spalte",X98)<CELL("spalte",$P98)+$Q$2, IF(MOD(CELL("zeile",X98)-CELL("zeile",X$4),$Q$2)=MOD(CELL("spalte",X98)-(CELL("spalte",$P98)),$Q$2),ean_conv(LEFT($J98,12)),""), "<>") -> <> | Y98: =IF(CELL("spalte",Y98)<CELL("spalte",$P98)+$Q$2, IF(MOD(CELL("zeile",Y98)-CELL("zeile",Y$4),$Q$2)=MOD(CELL("spalte",Y98)-(CELL("spalte",$P98)),$Q$2),ean_conv(LEFT($J98,12)),""), "<>") -> <>
A99: 96 | B99: Agent of my Heart | C99: 3 | D99: Romance | F99: deu | G99: Standard | H99: Tokyopop | I99: X | J99: 9783842084704 | L99: Agent of my Heart •deu• | M99: Agent of my Heart •deu• 3 | O99: Seite 2 | P99: =IF(CELL("spalte",P99)<CELL("spalte",$P99)+$Q$2, IF(MOD(CELL("zeile",P99)-CELL("zeile",P$4),$Q$2)=MOD(CELL("spalte",P99)-(CELL("spalte",$P99)),$Q$2),ean_conv(LEFT($J99,12)),""), "<>") -> <> | Q99: =IF(CELL("spalte",Q99)<CELL("spalte",$P99)+$Q$2, IF(MOD(CELL("zeile",Q99)-CELL("zeile",Q$4),$Q$2)=MOD(CELL("spalte",Q99)-(CELL("spalte",$P99)),$Q$2),ean_conv(LEFT($J99,12)),""), "<>") -> <> | R99: =IF(CELL("spalte",R99)<CELL("spalte",$P99)+$Q$2, IF(MOD(CELL("zeile",R99)-CELL("zeile",R$4),$Q$2)=MOD(CELL("spalte",R99)-(CELL("spalte",$P99)),$Q$2),ean_conv(LEFT($J99,12)),""), "<>") -> <> | S99: =IF(CELL("spalte",S99)<CELL("spalte",$P99)+$Q$2, IF(MOD(CELL("zeile",S99)-CELL("zeile",S$4),$Q$2)=MOD(CELL("spalte",S99)-(CELL("spalte",$P99)),$Q$2),ean_conv(LEFT($J99,12)),""), "<>") -> <> | T99: =IF(CELL("spalte",T99)<CELL("spalte",$P99)+$Q$2, IF(MOD(CELL("zeile",T99)-CELL("zeile",T$4),$Q$2)=MOD(CELL("spalte",T99)-(CELL("spalte",$P99)),$Q$2),ean_conv(LEFT($J99,12)),""), "<>") -> <> | U99: =IF(CELL("spalte",U99)<CELL("spalte",$P99)+$Q$2, IF(MOD(CELL("zeile",U99)-CELL("zeile",U$4),$Q$2)=MOD(CELL("spalte",U99)-(CELL("spalte",$P99)),$Q$2),ean_conv(LEFT($J99,12)),""), "<>") -> <> | V99: =IF(CELL("spalte",V99)<CELL("spalte",$P99)+$Q$2, IF(MOD(CELL("zeile",V99)-CELL("zeile",V$4),$Q$2)=MOD(CELL("spalte",V99)-(CELL("spalte",$P99)),$Q$2),ean_conv(LEFT($J99,12)),""), "<>") -> <> | W99: =IF(CELL("spalte",W99)<CELL("spalte",$P99)+$Q$2, IF(MOD(CELL("zeile",W99)-CELL("zeile",W$4),$Q$2)=MOD(CELL("spalte",W99)-(CELL("spalte",$P99)),$Q$2),ean_conv(LEFT($J99,12)),""), "<>") -> <> | X99: =IF(CELL("spalte",X99)<CELL("spalte",$P99)+$Q$2, IF(MOD(CELL("zeile",X99)-CELL("zeile",X$4),$Q$2)=MOD(CELL("spalte",X99)-(CELL("spalte",$P99)),$Q$2),ean_conv(LEFT($J99,12)),""), "<>") -> <> | Y99: =IF(CELL("spalte",Y99)<CELL("spalte",$P99)+$Q$2, IF(MOD(CELL("zeile",Y99)-CELL("zeile",Y$4),$Q$2)=MOD(CELL("spalte",Y99)-(CELL("spalte",$P99)),$Q$2),ean_conv(LEFT($J99,12)),""), "<>") -> <>
A100: 97 | B100: Agent of my Heart | C100: 4 | D100: Romance | F100: deu | G100: Standard | H100: Tokyopop | I100: X | J100: 9783842089716 | L100: Agent of my Heart •deu• | M100: Agent of my Heart •deu• 4 | O100: Seite 2 | P100: =IF(CELL("spalte",P100)<CELL("spalte",$P100)+$Q$2, IF(MOD(CELL("zeile",P100)-CELL("zeile",P$4),$Q$2)=MOD(CELL("spalte",P100)-(CELL("spalte",$P100)),$Q$2),ean_conv(LEFT($J100,12)),""), "<>") -> <> | Q100: =IF(CELL("spalte",Q100)<CELL("spalte",$P100)+$Q$2, IF(MOD(CELL("zeile",Q100)-CELL("zeile",Q$4),$Q$2)=MOD(CELL("spalte",Q100)-(CELL("spalte",$P100)),$Q$2),ean_conv(LEFT($J100,12)),""), "<>") -> <> | R100: =IF(CELL("spalte",R100)<CELL("spalte",$P100)+$Q$2, IF(MOD(CELL("zeile",R100)-CELL("zeile",R$4),$Q$2)=MOD(CELL("spalte",R100)-(CELL("spalte",$P100)),$Q$2),ean_conv(LEFT($J100,12)),""), "<>") -> <> | S100: =IF(CELL("spalte",S100)<CELL("spalte",$P100)+$Q$2, IF(MOD(CELL("zeile",S100)-CELL("zeile",S$4),$Q$2)=MOD(CELL("spalte",S100)-(CELL("spalte",$P100)),$Q$2),ean_conv(LEFT($J100,12)),""), "<>") -> <> | T100: =IF(CELL("spalte",T100)<CELL("spalte",$P100)+$Q$2, IF(MOD(CELL("zeile",T100)-CELL("zeile",T$4),$Q$2)=MOD(CELL("spalte",T100)-(CELL("spalte",$P100)),$Q$2),ean_conv(LEFT($J100,12)),""), "<>") -> <> | U100: =IF(CELL("spalte",U100)<CELL("spalte",$P100)+$Q$2, IF(MOD(CELL("zeile",U100)-CELL("zeile",U$4),$Q$2)=MOD(CELL("spalte",U100)-(CELL("spalte",$P100)),$Q$2),ean_conv(LEFT($J100,12)),""), "<>") -> <> | V100: =IF(CELL("spalte",V100)<CELL("spalte",$P100)+$Q$2, IF(MOD(CELL("zeile",V100)-CELL("zeile",V$4),$Q$2)=MOD(CELL("spalte",V100)-(CELL("spalte",$P100)),$Q$2),ean_conv(LEFT($J100,12)),""), "<>") -> <> | W100: =IF(CELL("spalte",W100)<CELL("spalte",$P100)+$Q$2, IF(MOD(CELL("zeile",W100)-CELL("zeile",W$4),$Q$2)=MOD(CELL("spalte",W100)-(CELL("spalte",$P100)),$Q$2),ean_conv(LEFT($J100,12)),""), "<>") -> <> | X100: =IF(CELL("spalte",X100)<CELL("spalte",$P100)+$Q$2, IF(MOD(CELL("zeile",X100)-CELL("zeile",X$4),$Q$2)=MOD(CELL("spalte",X100)-(CELL("spalte",$P100)),$Q$2),ean_conv(LEFT($J100,12)),""), "<>") -> <> | Y100: =IF(CELL("spalte",Y100)<CELL("spalte",$P100)+$Q$2, IF(MOD(CELL("zeile",Y100)-CELL("zeile",Y$4),$Q$2)=MOD(CELL("spalte",Y100)-(CELL("spalte",$P100)),$Q$2),ean_conv(LEFT($J100,12)),""), "<>") -> <>
A101: 98 | B101: Akuma no riddle | C101: 1 | D101: Mystery | F101: deu | G101: Standard | H101: Egmont Manga | I101: X | J101: 9783770486304 | L101: Akuma no riddle •deu• | M101: Akuma no riddle •deu• 1 | O101: Seite 2 | P101: =IF(CELL("spalte",P101)<CELL("spalte",$P101)+$Q$2, IF(MOD(CELL("zeile",P101)-CELL("zeile",P$4),$Q$2)=MOD(CELL("spalte",P101)-(CELL("spalte",$P101)),$Q$2),ean_conv(LEFT($J101,12)),""), "<>") -> <> | Q101: =IF(CELL("spalte",Q101)<CELL("spalte",$P101)+$Q$2, IF(MOD(CELL("zeile",Q101)-CELL("zeile",Q$4),$Q$2)=MOD(CELL("spalte",Q101)-(CELL("spalte",$P101)),$Q$2),ean_conv(LEFT($J101,12)),""), "<>") -> <> | R101: =IF(CELL("spalte",R101)<CELL("spalte",$P101)+$Q$2, IF(MOD(CELL("zeile",R101)-CELL("zeile",R$4),$Q$2)=MOD(CELL("spalte",R101)-(CELL("spalte",$P101)),$Q$2),ean_conv(LEFT($J101,12)),""), "<>") -> <> | S101: =IF(CELL("spalte",S101)<CELL("spalte",$P101)+$Q$2, IF(MOD(CELL("zeile",S101)-CELL("zeile",S$4),$Q$2)=MOD(CELL("spalte",S101)-(CELL("spalte",$P101)),$Q$2),ean_conv(LEFT($J101,12)),""), "<>") -> <> | T101: =IF(CELL("spalte",T101)<CELL("spalte",$P101)+$Q$2, IF(MOD(CELL("zeile",T101)-CELL("zeile",T$4),$Q$2)=MOD(CELL("spalte",T101)-(CELL("spalte",$P101)),$Q$2),ean_conv(LEFT($J101,12)),""), "<>") -> <> | U101: =IF(CELL("spalte",U101)<CELL("spalte",$P101)+$Q$2, IF(MOD(CELL("zeile",U101)-CELL("zeile",U$4),$Q$2)=MOD(CELL("spalte",U101)-(CELL("spalte",$P101)),$Q$2),ean_conv(LEFT($J101,12)),""), "<>") -> <> | V101: =IF(CELL("spalte",V101)<CELL("spalte",$P101)+$Q$2, IF(MOD(CELL("zeile",V101)-CELL("zeile",V$4),$Q$2)=MOD(CELL("spalte",V101)-(CELL("spalte",$P101)),$Q$2),ean_conv(LEFT($J101,12)),""), "<>") -> <> | W101: =IF(CELL("spalte",W101)<CELL("spalte",$P101)+$Q$2, IF(MOD(CELL("zeile",W101)-CELL("zeile",W$4),$Q$2)=MOD(CELL("spalte",W101)-(CELL("spalte",$P101)),$Q$2),ean_conv(LEFT($J101,12)),""), "<>") -> <> | X101: =IF(CELL("spalte",X101)<CELL("spalte",$P101)+$Q$2, IF(MOD(CELL("zeile",X101)-CELL("zeile",X$4),$Q$2)=MOD(CELL("spalte",X101)-(CELL("spalte",$P101)),$Q$2),ean_conv(LEFT($J101,12)),""), "<>") -> <> | Y101: =IF(CELL("spalte",Y101)<CELL("spalte",$P101)+$Q$2, IF(MOD(CELL("zeile",Y101)-CELL("zeile",Y$4),$Q$2)=MOD(CELL("spalte",Y101)-(CELL("spalte",$P101)),$Q$2),ean_conv(LEFT($J101,12)),""), "<>") -> <>
A102: 99 | B102: Akuma no riddle | C102: 2 | D102: Mystery | F102: deu | G102: Standard | H102: Egmont Manga | I102: X | J102: 9783770486311 | L102: Akuma no riddle •deu• | M102: Akuma no riddle •deu• 2 | O102: Seite 2 | P102: =IF(CELL("spalte",P102)<CELL("spalte",$P102)+$Q$2, IF(MOD(CELL("zeile",P102)-CELL("zeile",P$4),$Q$2)=MOD(CELL("spalte",P102)-(CELL("spalte",$P102)),$Q$2),ean_conv(LEFT($J102,12)),""), "<>") -> <> | Q102: =IF(CELL("spalte",Q102)<CELL("spalte",$P102)+$Q$2, IF(MOD(CELL("zeile",Q102)-CELL("zeile",Q$4),$Q$2)=MOD(CELL("spalte",Q102)-(CELL("spalte",$P102)),$Q$2),ean_conv(LEFT($J102,12)),""), "<>") -> <> | R102: =IF(CELL("spalte",R102)<CELL("spalte",$P102)+$Q$2, IF(MOD(CELL("zeile",R102)-CELL("zeile",R$4),$Q$2)=MOD(CELL("spalte",R102)-(CELL("spalte",$P102)),$Q$2),ean_conv(LEFT($J102,12)),""), "<>") -> <> | S102: =IF(CELL("spalte",S102)<CELL("spalte",$P102)+$Q$2, IF(MOD(CELL("zeile",S102)-CELL("zeile",S$4),$Q$2)=MOD(CELL("spalte",S102)-(CELL("spalte",$P102)),$Q$2),ean_conv(LEFT($J102,12)),""), "<>") -> <> | T102: =IF(CELL("spalte",T102)<CELL("spalte",$P102)+$Q$2, IF(MOD(CELL("zeile",T102)-CELL("zeile",T$4),$Q$2)=MOD(CELL("spalte",T102)-(CELL("spalte",$P102)),$Q$2),ean_conv(LEFT($J102,12)),""), "<>") -> <> | U102: =IF(CELL("spalte",U102)<CELL("spalte",$P102)+$Q$2, IF(MOD(CELL("zeile",U102)-CELL("zeile",U$4),$Q$2)=MOD(CELL("spalte",U102)-(CELL("spalte",$P102)),$Q$2),ean_conv(LEFT($J102,12)),""), "<>") -> <> | V102: =IF(CELL("spalte",V102)<CELL("spalte",$P102)+$Q$2, IF(MOD(CELL("zeile",V102)-CELL("zeile",V$4),$Q$2)=MOD(CELL("spalte",V102)-(CELL("spalte",$P102)),$Q$2),ean_conv(LEFT($J102,12)),""), "<>") -> <> | W102: =IF(CELL("spalte",W102)<CELL("spalte",$P102)+$Q$2, IF(MOD(CELL("zeile",W102)-CELL("zeile",W$4),$Q$2)=MOD(CELL("spalte",W102)-(CELL("spalte",$P102)),$Q$2),ean_conv(LEFT($J102,12)),""), "<>") -> <> | X102: =IF(CELL("spalte",X102)<CELL("spalte",$P102)+$Q$2, IF(MOD(CELL("zeile",X102)-CELL("zeile",X$4),$Q$2)=MOD(CELL("spalte",X102)-(CELL("spalte",$P102)),$Q$2),ean_conv(LEFT($J102,12)),""), "<>") -> <> | Y102: =IF(CELL("spalte",Y102)<CELL("spalte",$P102)+$Q$2, IF(MOD(CELL("zeile",Y102)-CELL("zeile",Y$4),$Q$2)=MOD(CELL("spalte",Y102)-(CELL("spalte",$P102)),$Q$2),ean_conv(LEFT($J102,12)),""), "<>") -> <>
A103: 100 | B103: Akuma no riddle | C103: 3 | D103: Mystery | F103: deu | G103: Standard | H103: Egmont Manga | I103: X | J103: 9783770487257 | L103: Akuma no riddle •deu• | M103: Akuma no riddle •deu• 3 | O103: Seite 2 | P103: =IF(CELL("spalte",P103)<CELL("spalte",$P103)+$Q$2, IF(MOD(CELL("zeile",P103)-CELL("zeile",P$4),$Q$2)=MOD(CELL("spalte",P103)-(CELL("spalte",$P103)),$Q$2),ean_conv(LEFT($J103,12)),""), "<>") -> <> | Q103: =IF(CELL("spalte",Q103)<CELL("spalte",$P103)+$Q$2, IF(MOD(CELL("zeile",Q103)-CELL("zeile",Q$4),$Q$2)=MOD(CELL("spalte",Q103)-(CELL("spalte",$P103)),$Q$2),ean_conv(LEFT($J103,12)),""), "<>") -> <> | R103: =IF(CELL("spalte",R103)<CELL("spalte",$P103)+$Q$2, IF(MOD(CELL("zeile",R103)-CELL("zeile",R$4),$Q$2)=MOD(CELL("spalte",R103)-(CELL("spalte",$P103)),$Q$2),ean_conv(LEFT($J103,12)),""), "<>") -> <> | S103: =IF(CELL("spalte",S103)<CELL("spalte",$P103)+$Q$2, IF(MOD(CELL("zeile",S103)-CELL("zeile",S$4),$Q$2)=MOD(CELL("spalte",S103)-(CELL("spalte",$P103)),$Q$2),ean_conv(LEFT($J103,12)),""), "<>") -> <> | T103: =IF(CELL("spalte",T103)<CELL("spalte",$P103)+$Q$2, IF(MOD(CELL("zeile",T103)-CELL("zeile",T$4),$Q$2)=MOD(CELL("spalte",T103)-(CELL("spalte",$P103)),$Q$2),ean_conv(LEFT($J103,12)),""), "<>") -> <> | U103: =IF(CELL("spalte",U103)<CELL("spalte",$P103)+$Q$2, IF(MOD(CELL("zeile",U103)-CELL("zeile",U$4),$Q$2)=MOD(CELL("spalte",U103)-(CELL("spalte",$P103)),$Q$2),ean_conv(LEFT($J103,12)),""), "<>") -> <> | V103: =IF(CELL("spalte",V103)<CELL("spalte",$P103)+$Q$2, IF(MOD(CELL("zeile",V103)-CELL("zeile",V$4),$Q$2)=MOD(CELL("spalte",V103)-(CELL("spalte",$P103)),$Q$2),ean_conv(LEFT($J103,12)),""), "<>") -> <> | W103: =IF(CELL("spalte",W103)<CELL("spalte",$P103)+$Q$2, IF(MOD(CELL("zeile",W103)-CELL("zeile",W$4),$Q$2)=MOD(CELL("spalte",W103)-(CELL("spalte",$P103)),$Q$2),ean_conv(LEFT($J103,12)),""), "<>") -> <> | X103: =IF(CELL("spalte",X103)<CELL("spalte",$P103)+$Q$2, IF(MOD(CELL("zeile",X103)-CELL("zeile",X$4),$Q$2)=MOD(CELL("spalte",X103)-(CELL("spalte",$P103)),$Q$2),ean_conv(LEFT($J103,12)),""), "<>") -> <> | Y103: =IF(CELL("spalte",Y103)<CELL("spalte",$P103)+$Q$2, IF(MOD(CELL("zeile",Y103)-CELL("zeile",Y$4),$Q$2)=MOD(CELL("spalte",Y103)-(CELL("spalte",$P103)),$Q$2),ean_conv(LEFT($J103,12)),""), "<>") -> <>
A104: 101 | B104: Akuma no riddle | C104: 4 | D104: Mystery | F104: deu | G104: Standard | H104: Egmont Manga | I104: X | J104: 9783770488490 | L104: Akuma no riddle •deu• | M104: Akuma no riddle •deu• 4 | O104: Seite 2 | P104: =IF(CELL("spalte",P104)<CELL("spalte",$P104)+$Q$2, IF(MOD(CELL("zeile",P104)-CELL("zeile",P$4),$Q$2)=MOD(CELL("spalte",P104)-(CELL("spalte",$P104)),$Q$2),ean_conv(LEFT($J104,12)),""), "<>") -> <> | Q104: =IF(CELL("spalte",Q104)<CELL("spalte",$P104)+$Q$2, IF(MOD(CELL("zeile",Q104)-CELL("zeile",Q$4),$Q$2)=MOD(CELL("spalte",Q104)-(CELL("spalte",$P104)),$Q$2),ean_conv(LEFT($J104,12)),""), "<>") -> <> | R104: =IF(CELL("spalte",R104)<CELL("spalte",$P104)+$Q$2, IF(MOD(CELL("zeile",R104)-CELL("zeile",R$4),$Q$2)=MOD(CELL("spalte",R104)-(CELL("spalte",$P104)),$Q$2),ean_conv(LEFT($J104,12)),""), "<>") -> <> | S104: =IF(CELL("spalte",S104)<CELL("spalte",$P104)+$Q$2, IF(MOD(CELL("zeile",S104)-CELL("zeile",S$4),$Q$2)=MOD(CELL("spalte",S104)-(CELL("spalte",$P104)),$Q$2),ean_conv(LEFT($J104,12)),""), "<>") -> <> | T104: =IF(CELL("spalte",T104)<CELL("spalte",$P104)+$Q$2, IF(MOD(CELL("zeile",T104)-CELL("zeile",T$4),$Q$2)=MOD(CELL("spalte",T104)-(CELL("spalte",$P104)),$Q$2),ean_conv(LEFT($J104,12)),""), "<>") -> <> | U104: =IF(CELL("spalte",U104)<CELL("spalte",$P104)+$Q$2, IF(MOD(CELL("zeile",U104)-CELL("zeile",U$4),$Q$2)=MOD(CELL("spalte",U104)-(CELL("spalte",$P104)),$Q$2),ean_conv(LEFT($J104,12)),""), "<>") -> <> | V104: =IF(CELL("spalte",V104)<CELL("spalte",$P104)+$Q$2, IF(MOD(CELL("zeile",V104)-CELL("zeile",V$4),$Q$2)=MOD(CELL("spalte",V104)-(CELL("spalte",$P104)),$Q$2),ean_conv(LEFT($J104,12)),""), "<>") -> <> | W104: =IF(CELL("spalte",W104)<CELL("spalte",$P104)+$Q$2, IF(MOD(CELL("zeile",W104)-CELL("zeile",W$4),$Q$2)=MOD(CELL("spalte",W104)-(CELL("spalte",$P104)),$Q$2),ean_conv(LEFT($J104,12)),""), "<>") -> <> | X104: =IF(CELL("spalte",X104)<CELL("spalte",$P104)+$Q$2, IF(MOD(CELL("zeile",X104)-CELL("zeile",X$4),$Q$2)=MOD(CELL("spalte",X104)-(CELL("spalte",$P104)),$Q$2),ean_conv(LEFT($J104,12)),""), "<>") -> <> | Y104: =IF(CELL("spalte",Y104)<CELL("spalte",$P104)+$Q$2, IF(MOD(CELL("zeile",Y104)-CELL("zeile",Y$4),$Q$2)=MOD(CELL("spalte",Y104)-(CELL("spalte",$P104)),$Q$2),ean_conv(LEFT($J104,12)),""), "<>") -> <>
A105: 102 | B105: Akuma no riddle | C105: 5 | D105: Mystery | F105: deu | G105: Standard | H105: Egmont Manga | I105: X | J105: 9783770491360 | L105: Akuma no riddle •deu• | M105: Akuma no riddle •deu• 5 | O105: Seite 2 | P105: =IF(CELL("spalte",P105)<CELL("spalte",$P105)+$Q$2, IF(MOD(CELL("zeile",P105)-CELL("zeile",P$4),$Q$2)=MOD(CELL("spalte",P105)-(CELL("spalte",$P105)),$Q$2),ean_conv(LEFT($J105,12)),""), "<>") -> <> | Q105: =IF(CELL("spalte",Q105)<CELL("spalte",$P105)+$Q$2, IF(MOD(CELL("zeile",Q105)-CELL("zeile",Q$4),$Q$2)=MOD(CELL("spalte",Q105)-(CELL("spalte",$P105)),$Q$2),ean_conv(LEFT($J105,12)),""), "<>") -> <> | R105: =IF(CELL("spalte",R105)<CELL("spalte",$P105)+$Q$2, IF(MOD(CELL("zeile",R105)-CELL("zeile",R$4),$Q$2)=MOD(CELL("spalte",R105)-(CELL("spalte",$P105)),$Q$2),ean_conv(LEFT($J105,12)),""), "<>") -> <> | S105: =IF(CELL("spalte",S105)<CELL("spalte",$P105)+$Q$2, IF(MOD(CELL("zeile",S105)-CELL("zeile",S$4),$Q$2)=MOD(CELL("spalte",S105)-(CELL("spalte",$P105)),$Q$2),ean_conv(LEFT($J105,12)),""), "<>") -> <> | T105: =IF(CELL("spalte",T105)<CELL("spalte",$P105)+$Q$2, IF(MOD(CELL("zeile",T105)-CELL("zeile",T$4),$Q$2)=MOD(CELL("spalte",T105)-(CELL("spalte",$P105)),$Q$2),ean_conv(LEFT($J105,12)),""), "<>") -> <> | U105: =IF(CELL("spalte",U105)<CELL("spalte",$P105)+$Q$2, IF(MOD(CELL("zeile",U105)-CELL("zeile",U$4),$Q$2)=MOD(CELL("spalte",U105)-(CELL("spalte",$P105)),$Q$2),ean_conv(LEFT($J105,12)),""), "<>") -> <> | V105: =IF(CELL("spalte",V105)<CELL("spalte",$P105)+$Q$2, IF(MOD(CELL("zeile",V105)-CELL("zeile",V$4),$Q$2)=MOD(CELL("spalte",V105)-(CELL("spalte",$P105)),$Q$2),ean_conv(LEFT($J105,12)),""), "<>") -> <> | W105: =IF(CELL("spalte",W105)<CELL("spalte",$P105)+$Q$2, IF(MOD(CELL("zeile",W105)-CELL("zeile",W$4),$Q$2)=MOD(CELL("spalte",W105)-(CELL("spalte",$P105)),$Q$2),ean_conv(LEFT($J105,12)),""), "<>") -> <> | X105: =IF(CELL("spalte",X105)<CELL("spalte",$P105)+$Q$2, IF(MOD(CELL("zeile",X105)-CELL("zeile",X$4),$Q$2)=MOD(CELL("spalte",X105)-(CELL("spalte",$P105)),$Q$2),ean_conv(LEFT($J105,12)),""), "<>") -> <> | Y105: =IF(CELL("spalte",Y105)<CELL("spalte",$P105)+$Q$2, IF(MOD(CELL("zeile",Y105)-CELL("zeile",Y$4),$Q$2)=MOD(CELL("spalte",Y105)-(CELL("spalte",$P105)),$Q$2),ean_conv(LEFT($J105,12)),""), "<>") -> <>
A106: 103 | B106: Alice und die Halbbluthexe | C106: 1 | D106: Girls Love | F106: deu | G106: Standard | H106: Tokyopop | I106: X | J106: 9783842090774 | L106: Alice und die Halbbluthexe •deu• | M106: Alice und die Halbbluthexe •deu• 1 | O106: Seite 2 | P106: =IF(CELL("spalte",P106)<CELL("spalte",$P106)+$Q$2, IF(MOD(CELL("zeile",P106)-CELL("zeile",P$4),$Q$2)=MOD(CELL("spalte",P106)-(CELL("spalte",$P106)),$Q$2),ean_conv(LEFT($J106,12)),""), "<>") -> <> | Q106: =IF(CELL("spalte",Q106)<CELL("spalte",$P106)+$Q$2, IF(MOD(CELL("zeile",Q106)-CELL("zeile",Q$4),$Q$2)=MOD(CELL("spalte",Q106)-(CELL("spalte",$P106)),$Q$2),ean_conv(LEFT($J106,12)),""), "<>") -> <> | R106: =IF(CELL("spalte",R106)<CELL("spalte",$P106)+$Q$2, IF(MOD(CELL("zeile",R106)-CELL("zeile",R$4),$Q$2)=MOD(CELL("spalte",R106)-(CELL("spalte",$P106)),$Q$2),ean_conv(LEFT($J106,12)),""), "<>") -> <> | S106: =IF(CELL("spalte",S106)<CELL("spalte",$P106)+$Q$2, IF(MOD(CELL("zeile",S106)-CELL("zeile",S$4),$Q$2)=MOD(CELL("spalte",S106)-(CELL("spalte",$P106)),$Q$2),ean_conv(LEFT($J106,12)),""), "<>") -> <> | T106: =IF(CELL("spalte",T106)<CELL("spalte",$P106)+$Q$2, IF(MOD(CELL("zeile",T106)-CELL("zeile",T$4),$Q$2)=MOD(CELL("spalte",T106)-(CELL("spalte",$P106)),$Q$2),ean_conv(LEFT($J106,12)),""), "<>") -> <> | U106: =IF(CELL("spalte",U106)<CELL("spalte",$P106)+$Q$2, IF(MOD(CELL("zeile",U106)-CELL("zeile",U$4),$Q$2)=MOD(CELL("spalte",U106)-(CELL("spalte",$P106)),$Q$2),ean_conv(LEFT($J106,12)),""), "<>") -> <> | V106: =IF(CELL("spalte",V106)<CELL("spalte",$P106)+$Q$2, IF(MOD(CELL("zeile",V106)-CELL("zeile",V$4),$Q$2)=MOD(CELL("spalte",V106)-(CELL("spalte",$P106)),$Q$2),ean_conv(LEFT($J106,12)),""), "<>") -> <> | W106: =IF(CELL("spalte",W106)<CELL("spalte",$P106)+$Q$2, IF(MOD(CELL("zeile",W106)-CELL("zeile",W$4),$Q$2)=MOD(CELL("spalte",W106)-(CELL("spalte",$P106)),$Q$2),ean_conv(LEFT($J106,12)),""), "<>") -> <> | X106: =IF(CELL("spalte",X106)<CELL("spalte",$P106)+$Q$2, IF(MOD(CELL("zeile",X106)-CELL("zeile",X$4),$Q$2)=MOD(CELL("spalte",X106)-(CELL("spalte",$P106)),$Q$2),ean_conv(LEFT($J106,12)),""), "<>") -> <> | Y106: =IF(CELL("spalte",Y106)<CELL("spalte",$P106)+$Q$2, IF(MOD(CELL("zeile",Y106)-CELL("zeile",Y$4),$Q$2)=MOD(CELL("spalte",Y106)-(CELL("spalte",$P106)),$Q$2),ean_conv(LEFT($J106,12)),""), "<>") -> <>
A107: 104 | B107: Alice und die Halbbluthexe | C107: 2 | D107: Girls Love | F107: deu | G107: Standard | H107: Tokyopop | I107: X | J107: 9783842090781 | L107: Alice und die Halbbluthexe •deu• | M107: Alice und die Halbbluthexe •deu• 2 | O107: Seite 2 | P107: =IF(CELL("spalte",P107)<CELL("spalte",$P107)+$Q$2, IF(MOD(CELL("zeile",P107)-CELL("zeile",P$4),$Q$2)=MOD(CELL("spalte",P107)-(CELL("spalte",$P107)),$Q$2),ean_conv(LEFT($J107,12)),""), "<>") -> <> | Q107: =IF(CELL("spalte",Q107)<CELL("spalte",$P107)+$Q$2, IF(MOD(CELL("zeile",Q107)-CELL("zeile",Q$4),$Q$2)=MOD(CELL("spalte",Q107)-(CELL("spalte",$P107)),$Q$2),ean_conv(LEFT($J107,12)),""), "<>") -> <> | R107: =IF(CELL("spalte",R107)<CELL("spalte",$P107)+$Q$2, IF(MOD(CELL("zeile",R107)-CELL("zeile",R$4),$Q$2)=MOD(CELL("spalte",R107)-(CELL("spalte",$P107)),$Q$2),ean_conv(LEFT($J107,12)),""), "<>") -> <> | S107: =IF(CELL("spalte",S107)<CELL("spalte",$P107)+$Q$2, IF(MOD(CELL("zeile",S107)-CELL("zeile",S$4),$Q$2)=MOD(CELL("spalte",S107)-(CELL("spalte",$P107)),$Q$2),ean_conv(LEFT($J107,12)),""), "<>") -> <> | T107: =IF(CELL("spalte",T107)<CELL("spalte",$P107)+$Q$2, IF(MOD(CELL("zeile",T107)-CELL("zeile",T$4),$Q$2)=MOD(CELL("spalte",T107)-(CELL("spalte",$P107)),$Q$2),ean_conv(LEFT($J107,12)),""), "<>") -> <> | U107: =IF(CELL("spalte",U107)<CELL("spalte",$P107)+$Q$2, IF(MOD(CELL("zeile",U107)-CELL("zeile",U$4),$Q$2)=MOD(CELL("spalte",U107)-(CELL("spalte",$P107)),$Q$2),ean_conv(LEFT($J107,12)),""), "<>") -> <> | V107: =IF(CELL("spalte",V107)<CELL("spalte",$P107)+$Q$2, IF(MOD(CELL("zeile",V107)-CELL("zeile",V$4),$Q$2)=MOD(CELL("spalte",V107)-(CELL("spalte",$P107)),$Q$2),ean_conv(LEFT($J107,12)),""), "<>") -> <> | W107: =IF(CELL("spalte",W107)<CELL("spalte",$P107)+$Q$2, IF(MOD(CELL("zeile",W107)-CELL("zeile",W$4),$Q$2)=MOD(CELL("spalte",W107)-(CELL("spalte",$P107)),$Q$2),ean_conv(LEFT($J107,12)),""), "<>") -> <> | X107: =IF(CELL("spalte",X107)<CELL("spalte",$P107)+$Q$2, IF(MOD(CELL("zeile",X107)-CELL("zeile",X$4),$Q$2)=MOD(CELL("spalte",X107)-(CELL("spalte",$P107)),$Q$2),ean_conv(LEFT($J107,12)),""), "<>") -> <> | Y107: =IF(CELL("spalte",Y107)<CELL("spalte",$P107)+$Q$2, IF(MOD(CELL("zeile",Y107)-CELL("zeile",Y$4),$Q$2)=MOD(CELL("spalte",Y107)-(CELL("spalte",$P107)),$Q$2),ean_conv(LEFT($J107,12)),""), "<>") -> <>
A108: 105 | B108: Alice und die Halbbluthexe | C108: 3 | D108: Girls Love | F108: deu | G108: Standard | H108: Tokyopop | I108: X | J108: 9783842090798 | L108: Alice und die Halbbluthexe •deu• | M108: Alice und die Halbbluthexe •deu• 3 | O108: Seite 2 | P108: =IF(CELL("spalte",P108)<CELL("spalte",$P108)+$Q$2, IF(MOD(CELL("zeile",P108)-CELL("zeile",P$4),$Q$2)=MOD(CELL("spalte",P108)-(CELL("spalte",$P108)),$Q$2),ean_conv(LEFT($J108,12)),""), "<>") -> <> | Q108: =IF(CELL("spalte",Q108)<CELL("spalte",$P108)+$Q$2, IF(MOD(CELL("zeile",Q108)-CELL("zeile",Q$4),$Q$2)=MOD(CELL("spalte",Q108)-(CELL("spalte",$P108)),$Q$2),ean_conv(LEFT($J108,12)),""), "<>") -> <> | R108: =IF(CELL("spalte",R108)<CELL("spalte",$P108)+$Q$2, IF(MOD(CELL("zeile",R108)-CELL("zeile",R$4),$Q$2)=MOD(CELL("spalte",R108)-(CELL("spalte",$P108)),$Q$2),ean_conv(LEFT($J108,12)),""), "<>") -> <> | S108: =IF(CELL("spalte",S108)<CELL("spalte",$P108)+$Q$2, IF(MOD(CELL("zeile",S108)-CELL("zeile",S$4),$Q$2)=MOD(CELL("spalte",S108)-(CELL("spalte",$P108)),$Q$2),ean_conv(LEFT($J108,12)),""), "<>") -> <> | T108: =IF(CELL("spalte",T108)<CELL("spalte",$P108)+$Q$2, IF(MOD(CELL("zeile",T108)-CELL("zeile",T$4),$Q$2)=MOD(CELL("spalte",T108)-(CELL("spalte",$P108)),$Q$2),ean_conv(LEFT($J108,12)),""), "<>") -> <> | U108: =IF(CELL("spalte",U108)<CELL("spalte",$P108)+$Q$2, IF(MOD(CELL("zeile",U108)-CELL("zeile",U$4),$Q$2)=MOD(CELL("spalte",U108)-(CELL("spalte",$P108)),$Q$2),ean_conv(LEFT($J108,12)),""), "<>") -> <> | V108: =IF(CELL("spalte",V108)<CELL("spalte",$P108)+$Q$2, IF(MOD(CELL("zeile",V108)-CELL("zeile",V$4),$Q$2)=MOD(CELL("spalte",V108)-(CELL("spalte",$P108)),$Q$2),ean_conv(LEFT($J108,12)),""), "<>") -> <> | W108: =IF(CELL("spalte",W108)<CELL("spalte",$P108)+$Q$2, IF(MOD(CELL("zeile",W108)-CELL("zeile",W$4),$Q$2)=MOD(CELL("spalte",W108)-(CELL("spalte",$P108)),$Q$2),ean_conv(LEFT($J108,12)),""), "<>") -> <> | X108: =IF(CELL("spalte",X108)<CELL("spalte",$P108)+$Q$2, IF(MOD(CELL("zeile",X108)-CELL("zeile",X$4),$Q$2)=MOD(CELL("spalte",X108)-(CELL("spalte",$P108)),$Q$2),ean_conv(LEFT($J108,12)),""), "<>") -> <> | Y108: =IF(CELL("spalte",Y108)<CELL("spalte",$P108)+$Q$2, IF(MOD(CELL("zeile",Y108)-CELL("zeile",Y$4),$Q$2)=MOD(CELL("spalte",Y108)-(CELL("spalte",$P108)),$Q$2),ean_conv(LEFT($J108,12)),""), "<>") -> <>
A109: 106 | B109: All You Need is Kill | D109: Sci-Fi | F109: deu | G109: Groß | H109: Tokyopop | J109: 9783759318411 | L109: All You Need is Kill •deu• | M109: All You Need is Kill •deu• | O109: Seite 2 | P109: =IF(CELL("spalte",P109)<CELL("spalte",$P109)+$Q$2, IF(MOD(CELL("zeile",P109)-CELL("zeile",P$4),$Q$2)=MOD(CELL("spalte",P109)-(CELL("spalte",$P109)),$Q$2),ean_conv(LEFT($J109,12)),""), "<>") -> <> | Q109: =IF(CELL("spalte",Q109)<CELL("spalte",$P109)+$Q$2, IF(MOD(CELL("zeile",Q109)-CELL("zeile",Q$4),$Q$2)=MOD(CELL("spalte",Q109)-(CELL("spalte",$P109)),$Q$2),ean_conv(LEFT($J109,12)),""), "<>") -> <> | R109: =IF(CELL("spalte",R109)<CELL("spalte",$P109)+$Q$2, IF(MOD(CELL("zeile",R109)-CELL("zeile",R$4),$Q$2)=MOD(CELL("spalte",R109)-(CELL("spalte",$P109)),$Q$2),ean_conv(LEFT($J109,12)),""), "<>") -> <> | S109: =IF(CELL("spalte",S109)<CELL("spalte",$P109)+$Q$2, IF(MOD(CELL("zeile",S109)-CELL("zeile",S$4),$Q$2)=MOD(CELL("spalte",S109)-(CELL("spalte",$P109)),$Q$2),ean_conv(LEFT($J109,12)),""), "<>") -> <> | T109: =IF(CELL("spalte",T109)<CELL("spalte",$P109)+$Q$2, IF(MOD(CELL("zeile",T109)-CELL("zeile",T$4),$Q$2)=MOD(CELL("spalte",T109)-(CELL("spalte",$P109)),$Q$2),ean_conv(LEFT($J109,12)),""), "<>") -> <> | U109: =IF(CELL("spalte",U109)<CELL("spalte",$P109)+$Q$2, IF(MOD(CELL("zeile",U109)-CELL("zeile",U$4),$Q$2)=MOD(CELL("spalte",U109)-(CELL("spalte",$P109)),$Q$2),ean_conv(LEFT($J109,12)),""), "<>") -> <> | V109: =IF(CELL("spalte",V109)<CELL("spalte",$P109)+$Q$2, IF(MOD(CELL("zeile",V109)-CELL("zeile",V$4),$Q$2)=MOD(CELL("spalte",V109)-(CELL("spalte",$P109)),$Q$2),ean_conv(LEFT($J109,12)),""), "<>") -> <> | W109: =IF(CELL("spalte",W109)<CELL("spalte",$P109)+$Q$2, IF(MOD(CELL("zeile",W109)-CELL("zeile",W$4),$Q$2)=MOD(CELL("spalte",W109)-(CELL("spalte",$P109)),$Q$2),ean_conv(LEFT($J109,12)),""), "<>") -> <> | X109: =IF(CELL("spalte",X109)<CELL("spalte",$P109)+$Q$2, IF(MOD(CELL("zeile",X109)-CELL("zeile",X$4),$Q$2)=MOD(CELL("spalte",X109)-(CELL("spalte",$P109)),$Q$2),ean_conv(LEFT($J109,12)),""), "<>") -> <> | Y109: =IF(CELL("spalte",Y109)<CELL("spalte",$P109)+$Q$2, IF(MOD(CELL("zeile",Y109)-CELL("zeile",Y$4),$Q$2)=MOD(CELL("spalte",Y109)-(CELL("spalte",$P109)),$Q$2),ean_conv(LEFT($J109,12)),""), "<>") -> <>
A110: 107 | B110: Alter Ego | C110: 1 | D110: Girls Love | F110: eng | G110: Standard | H110: Tokyopop | I110: X | J110: 9781427867568 | L110: Alter Ego •eng• | M110: Alter Ego •eng• 1 | O110: Seite 2 | P110: =IF(CELL("spalte",P110)<CELL("spalte",$P110)+$Q$2, IF(MOD(CELL("zeile",P110)-CELL("zeile",P$4),$Q$2)=MOD(CELL("spalte",P110)-(CELL("spalte",$P110)),$Q$2),ean_conv(LEFT($J110,12)),""), "<>") -> <> | Q110: =IF(CELL("spalte",Q110)<CELL("spalte",$P110)+$Q$2, IF(MOD(CELL("zeile",Q110)-CELL("zeile",Q$4),$Q$2)=MOD(CELL("spalte",Q110)-(CELL("spalte",$P110)),$Q$2),ean_conv(LEFT($J110,12)),""), "<>") -> <> | R110: =IF(CELL("spalte",R110)<CELL("spalte",$P110)+$Q$2, IF(MOD(CELL("zeile",R110)-CELL("zeile",R$4),$Q$2)=MOD(CELL("spalte",R110)-(CELL("spalte",$P110)),$Q$2),ean_conv(LEFT($J110,12)),""), "<>") -> <> | S110: =IF(CELL("spalte",S110)<CELL("spalte",$P110)+$Q$2, IF(MOD(CELL("zeile",S110)-CELL("zeile",S$4),$Q$2)=MOD(CELL("spalte",S110)-(CELL("spalte",$P110)),$Q$2),ean_conv(LEFT($J110,12)),""), "<>") -> <> | T110: =IF(CELL("spalte",T110)<CELL("spalte",$P110)+$Q$2, IF(MOD(CELL("zeile",T110)-CELL("zeile",T$4),$Q$2)=MOD(CELL("spalte",T110)-(CELL("spalte",$P110)),$Q$2),ean_conv(LEFT($J110,12)),""), "<>") -> <> | U110: =IF(CELL("spalte",U110)<CELL("spalte",$P110)+$Q$2, IF(MOD(CELL("zeile",U110)-CELL("zeile",U$4),$Q$2)=MOD(CELL("spalte",U110)-(CELL("spalte",$P110)),$Q$2),ean_conv(LEFT($J110,12)),""), "<>") -> <> | V110: =IF(CELL("spalte",V110)<CELL("spalte",$P110)+$Q$2, IF(MOD(CELL("zeile",V110)-CELL("zeile",V$4),$Q$2)=MOD(CELL("spalte",V110)-(CELL("spalte",$P110)),$Q$2),ean_conv(LEFT($J110,12)),""), "<>") -> <> | W110: =IF(CELL("spalte",W110)<CELL("spalte",$P110)+$Q$2, IF(MOD(CELL("zeile",W110)-CELL("zeile",W$4),$Q$2)=MOD(CELL("spalte",W110)-(CELL("spalte",$P110)),$Q$2),ean_conv(LEFT($J110,12)),""), "<>") -> <> | X110: =IF(CELL("spalte",X110)<CELL("spalte",$P110)+$Q$2, IF(MOD(CELL("zeile",X110)-CELL("zeile",X$4),$Q$2)=MOD(CELL("spalte",X110)-(CELL("spalte",$P110)),$Q$2),ean_conv(LEFT($J110,12)),""), "<>") -> <> | Y110: =IF(CELL("spalte",Y110)<CELL("spalte",$P110)+$Q$2, IF(MOD(CELL("zeile",Y110)-CELL("zeile",Y$4),$Q$2)=MOD(CELL("spalte",Y110)-(CELL("spalte",$P110)),$Q$2),ean_conv(LEFT($J110,12)),""), "<>") -> <>
A111: 108 | B111: Alter Ego | C111: 2 | D111: Girls Love | F111: eng | G111: Standard | H111: Tokyopop | I111: X | J111: 9781427876638 | L111: Alter Ego •eng• | M111: Alter Ego •eng• 2 | O111: Seite 2 | P111: =IF(CELL("spalte",P111)<CELL("spalte",$P111)+$Q$2, IF(MOD(CELL("zeile",P111)-CELL("zeile",P$4),$Q$2)=MOD(CELL("spalte",P111)-(CELL("spalte",$P111)),$Q$2),ean_conv(LEFT($J111,12)),""), "<>") -> <> | Q111: =IF(CELL("spalte",Q111)<CELL("spalte",$P111)+$Q$2, IF(MOD(CELL("zeile",Q111)-CELL("zeile",Q$4),$Q$2)=MOD(CELL("spalte",Q111)-(CELL("spalte",$P111)),$Q$2),ean_conv(LEFT($J111,12)),""), "<>") -> <> | R111: =IF(CELL("spalte",R111)<CELL("spalte",$P111)+$Q$2, IF(MOD(CELL("zeile",R111)-CELL("zeile",R$4),$Q$2)=MOD(CELL("spalte",R111)-(CELL("spalte",$P111)),$Q$2),ean_conv(LEFT($J111,12)),""), "<>") -> <> | S111: =IF(CELL("spalte",S111)<CELL("spalte",$P111)+$Q$2, IF(MOD(CELL("zeile",S111)-CELL("zeile",S$4),$Q$2)=MOD(CELL("spalte",S111)-(CELL("spalte",$P111)),$Q$2),ean_conv(LEFT($J111,12)),""), "<>") -> <> | T111: =IF(CELL("spalte",T111)<CELL("spalte",$P111)+$Q$2, IF(MOD(CELL("zeile",T111)-CELL("zeile",T$4),$Q$2)=MOD(CELL("spalte",T111)-(CELL("spalte",$P111)),$Q$2),ean_conv(LEFT($J111,12)),""), "<>") -> <> | U111: =IF(CELL("spalte",U111)<CELL("spalte",$P111)+$Q$2, IF(MOD(CELL("zeile",U111)-CELL("zeile",U$4),$Q$2)=MOD(CELL("spalte",U111)-(CELL("spalte",$P111)),$Q$2),ean_conv(LEFT($J111,12)),""), "<>") -> <> | V111: =IF(CELL("spalte",V111)<CELL("spalte",$P111)+$Q$2, IF(MOD(CELL("zeile",V111)-CELL("zeile",V$4),$Q$2)=MOD(CELL("spalte",V111)-(CELL("spalte",$P111)),$Q$2),ean_conv(LEFT($J111,12)),""), "<>") -> <> | W111: =IF(CELL("spalte",W111)<CELL("spalte",$P111)+$Q$2, IF(MOD(CELL("zeile",W111)-CELL("zeile",W$4),$Q$2)=MOD(CELL("spalte",W111)-(CELL("spalte",$P111)),$Q$2),ean_conv(LEFT($J111,12)),""), "<>") -> <> | X111: =IF(CELL("spalte",X111)<CELL("spalte",$P111)+$Q$2, IF(MOD(CELL("zeile",X111)-CELL("zeile",X$4),$Q$2)=MOD(CELL("spalte",X111)-(CELL("spalte",$P111)),$Q$2),ean_conv(LEFT($J111,12)),""), "<>") -> <> | Y111: =IF(CELL("spalte",Y111)<CELL("spalte",$P111)+$Q$2, IF(MOD(CELL("zeile",Y111)-CELL("zeile",Y$4),$Q$2)=MOD(CELL("spalte",Y111)-(CELL("spalte",$P111)),$Q$2),ean_conv(LEFT($J111,12)),""), "<>") -> <>
A112: 109 | B112: An Archdemon's Dilemma: How to Love Your Elf Bride | C112: 1 | D112: RomCom | F112: deu | G112: Standard | H112: Dokico | I112: X | J112: 9783987450846 | L112: An Archdemon's Dilemma: How to Love Your Elf Bride •deu• | M112: An Archdemon's Dilemma: How to Love Your Elf Bride •deu• 1 | O112: Seite 2 | P112: =IF(CELL("spalte",P112)<CELL("spalte",$P112)+$Q$2, IF(MOD(CELL("zeile",P112)-CELL("zeile",P$4),$Q$2)=MOD(CELL("spalte",P112)-(CELL("spalte",$P112)),$Q$2),ean_conv(LEFT($J112,12)),""), "<>") -> <> | Q112: =IF(CELL("spalte",Q112)<CELL("spalte",$P112)+$Q$2, IF(MOD(CELL("zeile",Q112)-CELL("zeile",Q$4),$Q$2)=MOD(CELL("spalte",Q112)-(CELL("spalte",$P112)),$Q$2),ean_conv(LEFT($J112,12)),""), "<>") -> <> | R112: =IF(CELL("spalte",R112)<CELL("spalte",$P112)+$Q$2, IF(MOD(CELL("zeile",R112)-CELL("zeile",R$4),$Q$2)=MOD(CELL("spalte",R112)-(CELL("spalte",$P112)),$Q$2),ean_conv(LEFT($J112,12)),""), "<>") -> <> | S112: =IF(CELL("spalte",S112)<CELL("spalte",$P112)+$Q$2, IF(MOD(CELL("zeile",S112)-CELL("zeile",S$4),$Q$2)=MOD(CELL("spalte",S112)-(CELL("spalte",$P112)),$Q$2),ean_conv(LEFT($J112,12)),""), "<>") -> <> | T112: =IF(CELL("spalte",T112)<CELL("spalte",$P112)+$Q$2, IF(MOD(CELL("zeile",T112)-CELL("zeile",T$4),$Q$2)=MOD(CELL("spalte",T112)-(CELL("spalte",$P112)),$Q$2),ean_conv(LEFT($J112,12)),""), "<>") -> <> | U112: =IF(CELL("spalte",U112)<CELL("spalte",$P112)+$Q$2, IF(MOD(CELL("zeile",U112)-CELL("zeile",U$4),$Q$2)=MOD(CELL("spalte",U112)-(CELL("spalte",$P112)),$Q$2),ean_conv(LEFT($J112,12)),""), "<>") -> <> | V112: =IF(CELL("spalte",V112)<CELL("spalte",$P112)+$Q$2, IF(MOD(CELL("zeile",V112)-CELL("zeile",V$4),$Q$2)=MOD(CELL("spalte",V112)-(CELL("spalte",$P112)),$Q$2),ean_conv(LEFT($J112,12)),""), "<>") -> <> | W112: =IF(CELL("spalte",W112)<CELL("spalte",$P112)+$Q$2, IF(MOD(CELL("zeile",W112)-CELL("zeile",W$4),$Q$2)=MOD(CELL("spalte",W112)-(CELL("spalte",$P112)),$Q$2),ean_conv(LEFT($J112,12)),""), "<>") -> <> | X112: =IF(CELL("spalte",X112)<CELL("spalte",$P112)+$Q$2, IF(MOD(CELL("zeile",X112)-CELL("zeile",X$4),$Q$2)=MOD(CELL("spalte",X112)-(CELL("spalte",$P112)),$Q$2),ean_conv(LEFT($J112,12)),""), "<>") -> <> | Y112: =IF(CELL("spalte",Y112)<CELL("spalte",$P112)+$Q$2, IF(MOD(CELL("zeile",Y112)-CELL("zeile",Y$4),$Q$2)=MOD(CELL("spalte",Y112)-(CELL("spalte",$P112)),$Q$2),ean_conv(LEFT($J112,12)),""), "<>") -> <>
A113: 110 | B113: An Archdemon's Dilemma: How to Love Your Elf Bride | C113: 2 | D113: RomCom | F113: deu | G113: Standard | H113: Dokico | I113: X | J113: 9783987451546 | L113: An Archdemon's Dilemma: How to Love Your Elf Bride •deu• | M113: An Archdemon's Dilemma: How to Love Your Elf Bride •deu• 2 | O113: Seite 2 | P113: =IF(CELL("spalte",P113)<CELL("spalte",$P113)+$Q$2, IF(MOD(CELL("zeile",P113)-CELL("zeile",P$4),$Q$2)=MOD(CELL("spalte",P113)-(CELL("spalte",$P113)),$Q$2),ean_conv(LEFT($J113,12)),""), "<>") -> <> | Q113: =IF(CELL("spalte",Q113)<CELL("spalte",$P113)+$Q$2, IF(MOD(CELL("zeile",Q113)-CELL("zeile",Q$4),$Q$2)=MOD(CELL("spalte",Q113)-(CELL("spalte",$P113)),$Q$2),ean_conv(LEFT($J113,12)),""), "<>") -> <> | R113: =IF(CELL("spalte",R113)<CELL("spalte",$P113)+$Q$2, IF(MOD(CELL("zeile",R113)-CELL("zeile",R$4),$Q$2)=MOD(CELL("spalte",R113)-(CELL("spalte",$P113)),$Q$2),ean_conv(LEFT($J113,12)),""), "<>") -> <> | S113: =IF(CELL("spalte",S113)<CELL("spalte",$P113)+$Q$2, IF(MOD(CELL("zeile",S113)-CELL("zeile",S$4),$Q$2)=MOD(CELL("spalte",S113)-(CELL("spalte",$P113)),$Q$2),ean_conv(LEFT($J113,12)),""), "<>") -> <> | T113: =IF(CELL("spalte",T113)<CELL("spalte",$P113)+$Q$2, IF(MOD(CELL("zeile",T113)-CELL("zeile",T$4),$Q$2)=MOD(CELL("spalte",T113)-(CELL("spalte",$P113)),$Q$2),ean_conv(LEFT($J113,12)),""), "<>") -> <> | U113: =IF(CELL("spalte",U113)<CELL("spalte",$P113)+$Q$2, IF(MOD(CELL("zeile",U113)-CELL("zeile",U$4),$Q$2)=MOD(CELL("spalte",U113)-(CELL("spalte",$P113)),$Q$2),ean_conv(LEFT($J113,12)),""), "<>") -> <> | V113: =IF(CELL("spalte",V113)<CELL("spalte",$P113)+$Q$2, IF(MOD(CELL("zeile",V113)-CELL("zeile",V$4),$Q$2)=MOD(CELL("spalte",V113)-(CELL("spalte",$P113)),$Q$2),ean_conv(LEFT($J113,12)),""), "<>") -> <> | W113: =IF(CELL("spalte",W113)<CELL("spalte",$P113)+$Q$2, IF(MOD(CELL("zeile",W113)-CELL("zeile",W$4),$Q$2)=MOD(CELL("spalte",W113)-(CELL("spalte",$P113)),$Q$2),ean_conv(LEFT($J113,12)),""), "<>") -> <> | X113: =IF(CELL("spalte",X113)<CELL("spalte",$P113)+$Q$2, IF(MOD(CELL("zeile",X113)-CELL("zeile",X$4),$Q$2)=MOD(CELL("spalte",X113)-(CELL("spalte",$P113)),$Q$2),ean_conv(LEFT($J113,12)),""), "<>") -> <> | Y113: =IF(CELL("spalte",Y113)<CELL("spalte",$P113)+$Q$2, IF(MOD(CELL("zeile",Y113)-CELL("zeile",Y$4),$Q$2)=MOD(CELL("spalte",Y113)-(CELL("spalte",$P113)),$Q$2),ean_conv(LEFT($J113,12)),""), "<>") -> <>
A114: 111 | B114: An Archdemon's Dilemma: How to Love Your Elf Bride | C114: 3 | D114: RomCom | F114: deu | G114: Standard | H114: Dokico | J114: 9783987451560 | L114: An Archdemon's Dilemma: How to Love Your Elf Bride •deu• | M114: An Archdemon's Dilemma: How to Love Your Elf Bride •deu• 3 | O114: Seite 2 | P114: =IF(CELL("spalte",P114)<CELL("spalte",$P114)+$Q$2, IF(MOD(CELL("zeile",P114)-CELL("zeile",P$4),$Q$2)=MOD(CELL("spalte",P114)-(CELL("spalte",$P114)),$Q$2),ean_conv(LEFT($J114,12)),""), "<>") -> <> | Q114: =IF(CELL("spalte",Q114)<CELL("spalte",$P114)+$Q$2, IF(MOD(CELL("zeile",Q114)-CELL("zeile",Q$4),$Q$2)=MOD(CELL("spalte",Q114)-(CELL("spalte",$P114)),$Q$2),ean_conv(LEFT($J114,12)),""), "<>") -> <> | R114: =IF(CELL("spalte",R114)<CELL("spalte",$P114)+$Q$2, IF(MOD(CELL("zeile",R114)-CELL("zeile",R$4),$Q$2)=MOD(CELL("spalte",R114)-(CELL("spalte",$P114)),$Q$2),ean_conv(LEFT($J114,12)),""), "<>") -> <> | S114: =IF(CELL("spalte",S114)<CELL("spalte",$P114)+$Q$2, IF(MOD(CELL("zeile",S114)-CELL("zeile",S$4),$Q$2)=MOD(CELL("spalte",S114)-(CELL("spalte",$P114)),$Q$2),ean_conv(LEFT($J114,12)),""), "<>") -> <> | T114: =IF(CELL("spalte",T114)<CELL("spalte",$P114)+$Q$2, IF(MOD(CELL("zeile",T114)-CELL("zeile",T$4),$Q$2)=MOD(CELL("spalte",T114)-(CELL("spalte",$P114)),$Q$2),ean_conv(LEFT($J114,12)),""), "<>") -> <> | U114: =IF(CELL("spalte",U114)<CELL("spalte",$P114)+$Q$2, IF(MOD(CELL("zeile",U114)-CELL("zeile",U$4),$Q$2)=MOD(CELL("spalte",U114)-(CELL("spalte",$P114)),$Q$2),ean_conv(LEFT($J114,12)),""), "<>") -> <> | V114: =IF(CELL("spalte",V114)<CELL("spalte",$P114)+$Q$2, IF(MOD(CELL("zeile",V114)-CELL("zeile",V$4),$Q$2)=MOD(CELL("spalte",V114)-(CELL("spalte",$P114)),$Q$2),ean_conv(LEFT($J114,12)),""), "<>") -> <> | W114: =IF(CELL("spalte",W114)<CELL("spalte",$P114)+$Q$2, IF(MOD(CELL("zeile",W114)-CELL("zeile",W$4),$Q$2)=MOD(CELL("spalte",W114)-(CELL("spalte",$P114)),$Q$2),ean_conv(LEFT($J114,12)),""), "<>") -> <> | X114: =IF(CELL("spalte",X114)<CELL("spalte",$P114)+$Q$2, IF(MOD(CELL("zeile",X114)-CELL("zeile",X$4),$Q$2)=MOD(CELL("spalte",X114)-(CELL("spalte",$P114)),$Q$2),ean_conv(LEFT($J114,12)),""), "<>") -> <> | Y114: =IF(CELL("spalte",Y114)<CELL("spalte",$P114)+$Q$2, IF(MOD(CELL("zeile",Y114)-CELL("zeile",Y$4),$Q$2)=MOD(CELL("spalte",Y114)-(CELL("spalte",$P114)),$Q$2),ean_conv(LEFT($J114,12)),""), "<>") -> <>
A115: 112 | B115: Another | C115: 1 | D115: Mystery | F115: deu | G115: Standard | H115: Egmont Manga | I115: X | J115: 9783770477326 | L115: Another •deu• | M115: Another •deu• 1 | O115: Seite 2 | P115: =IF(CELL("spalte",P115)<CELL("spalte",$P115)+$Q$2, IF(MOD(CELL("zeile",P115)-CELL("zeile",P$4),$Q$2)=MOD(CELL("spalte",P115)-(CELL("spalte",$P115)),$Q$2),ean_conv(LEFT($J115,12)),""), "<>") -> <> | Q115: =IF(CELL("spalte",Q115)<CELL("spalte",$P115)+$Q$2, IF(MOD(CELL("zeile",Q115)-CELL("zeile",Q$4),$Q$2)=MOD(CELL("spalte",Q115)-(CELL("spalte",$P115)),$Q$2),ean_conv(LEFT($J115,12)),""), "<>") -> <> | R115: =IF(CELL("spalte",R115)<CELL("spalte",$P115)+$Q$2, IF(MOD(CELL("zeile",R115)-CELL("zeile",R$4),$Q$2)=MOD(CELL("spalte",R115)-(CELL("spalte",$P115)),$Q$2),ean_conv(LEFT($J115,12)),""), "<>") -> <> | S115: =IF(CELL("spalte",S115)<CELL("spalte",$P115)+$Q$2, IF(MOD(CELL("zeile",S115)-CELL("zeile",S$4),$Q$2)=MOD(CELL("spalte",S115)-(CELL("spalte",$P115)),$Q$2),ean_conv(LEFT($J115,12)),""), "<>") -> <> | T115: =IF(CELL("spalte",T115)<CELL("spalte",$P115)+$Q$2, IF(MOD(CELL("zeile",T115)-CELL("zeile",T$4),$Q$2)=MOD(CELL("spalte",T115)-(CELL("spalte",$P115)),$Q$2),ean_conv(LEFT($J115,12)),""), "<>") -> <> | U115: =IF(CELL("spalte",U115)<CELL("spalte",$P115)+$Q$2, IF(MOD(CELL("zeile",U115)-CELL("zeile",U$4),$Q$2)=MOD(CELL("spalte",U115)-(CELL("spalte",$P115)),$Q$2),ean_conv(LEFT($J115,12)),""), "<>") -> <> | V115: =IF(CELL("spalte",V115)<CELL("spalte",$P115)+$Q$2, IF(MOD(CELL("zeile",V115)-CELL("zeile",V$4),$Q$2)=MOD(CELL("spalte",V115)-(CELL("spalte",$P115)),$Q$2),ean_conv(LEFT($J115,12)),""), "<>") -> <> | W115: =IF(CELL("spalte",W115)<CELL("spalte",$P115)+$Q$2, IF(MOD(CELL("zeile",W115)-CELL("zeile",W$4),$Q$2)=MOD(CELL("spalte",W115)-(CELL("spalte",$P115)),$Q$2),ean_conv(LEFT($J115,12)),""), "<>") -> <> | X115: =IF(CELL("spalte",X115)<CELL("spalte",$P115)+$Q$2, IF(MOD(CELL("zeile",X115)-CELL("zeile",X$4),$Q$2)=MOD(CELL("spalte",X115)-(CELL("spalte",$P115)),$Q$2),ean_conv(LEFT($J115,12)),""), "<>") -> <> | Y115: =IF(CELL("spalte",Y115)<CELL("spalte",$P115)+$Q$2, IF(MOD(CELL("zeile",Y115)-CELL("zeile",Y$4),$Q$2)=MOD(CELL("spalte",Y115)-(CELL("spalte",$P115)),$Q$2),ean_conv(LEFT($J115,12)),""), "<>") -> <>
A116: 113 | B116: Another | C116: 2 | D116: Mystery | F116: deu | G116: Standard | H116: Egmont Manga | I116: X | J116: 9783770477333 | L116: Another •deu• | M116: Another •deu• 2 | O116: Seite 2 | P116: =IF(CELL("spalte",P116)<CELL("spalte",$P116)+$Q$2, IF(MOD(CELL("zeile",P116)-CELL("zeile",P$4),$Q$2)=MOD(CELL("spalte",P116)-(CELL("spalte",$P116)),$Q$2),ean_conv(LEFT($J116,12)),""), "<>") -> <> | Q116: =IF(CELL("spalte",Q116)<CELL("spalte",$P116)+$Q$2, IF(MOD(CELL("zeile",Q116)-CELL("zeile",Q$4),$Q$2)=MOD(CELL("spalte",Q116)-(CELL("spalte",$P116)),$Q$2),ean_conv(LEFT($J116,12)),""), "<>") -> <> | R116: =IF(CELL("spalte",R116)<CELL("spalte",$P116)+$Q$2, IF(MOD(CELL("zeile",R116)-CELL("zeile",R$4),$Q$2)=MOD(CELL("spalte",R116)-(CELL("spalte",$P116)),$Q$2),ean_conv(LEFT($J116,12)),""), "<>") -> <> | S116: =IF(CELL("spalte",S116)<CELL("spalte",$P116)+$Q$2, IF(MOD(CELL("zeile",S116)-CELL("zeile",S$4),$Q$2)=MOD(CELL("spalte",S116)-(CELL("spalte",$P116)),$Q$2),ean_conv(LEFT($J116,12)),""), "<>") -> <> | T116: =IF(CELL("spalte",T116)<CELL("spalte",$P116)+$Q$2, IF(MOD(CELL("zeile",T116)-CELL("zeile",T$4),$Q$2)=MOD(CELL("spalte",T116)-(CELL("spalte",$P116)),$Q$2),ean_conv(LEFT($J116,12)),""), "<>") -> <> | U116: =IF(CELL("spalte",U116)<CELL("spalte",$P116)+$Q$2, IF(MOD(CELL("zeile",U116)-CELL("zeile",U$4),$Q$2)=MOD(CELL("spalte",U116)-(CELL("spalte",$P116)),$Q$2),ean_conv(LEFT($J116,12)),""), "<>") -> <> | V116: =IF(CELL("spalte",V116)<CELL("spalte",$P116)+$Q$2, IF(MOD(CELL("zeile",V116)-CELL("zeile",V$4),$Q$2)=MOD(CELL("spalte",V116)-(CELL("spalte",$P116)),$Q$2),ean_conv(LEFT($J116,12)),""), "<>") -> <> | W116: =IF(CELL("spalte",W116)<CELL("spalte",$P116)+$Q$2, IF(MOD(CELL("zeile",W116)-CELL("zeile",W$4),$Q$2)=MOD(CELL("spalte",W116)-(CELL("spalte",$P116)),$Q$2),ean_conv(LEFT($J116,12)),""), "<>") -> <> | X116: =IF(CELL("spalte",X116)<CELL("spalte",$P116)+$Q$2, IF(MOD(CELL("zeile",X116)-CELL("zeile",X$4),$Q$2)=MOD(CELL("spalte",X116)-(CELL("spalte",$P116)),$Q$2),ean_conv(LEFT($J116,12)),""), "<>") -> <> | Y116: =IF(CELL("spalte",Y116)<CELL("spalte",$P116)+$Q$2, IF(MOD(CELL("zeile",Y116)-CELL("zeile",Y$4),$Q$2)=MOD(CELL("spalte",Y116)-(CELL("spalte",$P116)),$Q$2),ean_conv(LEFT($J116,12)),""), "<>") -> <>
A117: 114 | B117: Another | C117: 3 | D117: Mystery | F117: deu | G117: Standard | H117: Egmont Manga | I117: X | J117: 9783770479122 | L117: Another •deu• | M117: Another •deu• 3 | O117: Seite 2 | P117: =IF(CELL("spalte",P117)<CELL("spalte",$P117)+$Q$2, IF(MOD(CELL("zeile",P117)-CELL("zeile",P$4),$Q$2)=MOD(CELL("spalte",P117)-(CELL("spalte",$P117)),$Q$2),ean_conv(LEFT($J117,12)),""), "<>") -> <> | Q117: =IF(CELL("spalte",Q117)<CELL("spalte",$P117)+$Q$2, IF(MOD(CELL("zeile",Q117)-CELL("zeile",Q$4),$Q$2)=MOD(CELL("spalte",Q117)-(CELL("spalte",$P117)),$Q$2),ean_conv(LEFT($J117,12)),""), "<>") -> <> | R117: =IF(CELL("spalte",R117)<CELL("spalte",$P117)+$Q$2, IF(MOD(CELL("zeile",R117)-CELL("zeile",R$4),$Q$2)=MOD(CELL("spalte",R117)-(CELL("spalte",$P117)),$Q$2),ean_conv(LEFT($J117,12)),""), "<>") -> <> | S117: =IF(CELL("spalte",S117)<CELL("spalte",$P117)+$Q$2, IF(MOD(CELL("zeile",S117)-CELL("zeile",S$4),$Q$2)=MOD(CELL("spalte",S117)-(CELL("spalte",$P117)),$Q$2),ean_conv(LEFT($J117,12)),""), "<>") -> <> | T117: =IF(CELL("spalte",T117)<CELL("spalte",$P117)+$Q$2, IF(MOD(CELL("zeile",T117)-CELL("zeile",T$4),$Q$2)=MOD(CELL("spalte",T117)-(CELL("spalte",$P117)),$Q$2),ean_conv(LEFT($J117,12)),""), "<>") -> <> | U117: =IF(CELL("spalte",U117)<CELL("spalte",$P117)+$Q$2, IF(MOD(CELL("zeile",U117)-CELL("zeile",U$4),$Q$2)=MOD(CELL("spalte",U117)-(CELL("spalte",$P117)),$Q$2),ean_conv(LEFT($J117,12)),""), "<>") -> <> | V117: =IF(CELL("spalte",V117)<CELL("spalte",$P117)+$Q$2, IF(MOD(CELL("zeile",V117)-CELL("zeile",V$4),$Q$2)=MOD(CELL("spalte",V117)-(CELL("spalte",$P117)),$Q$2),ean_conv(LEFT($J117,12)),""), "<>") -> <> | W117: =IF(CELL("spalte",W117)<CELL("spalte",$P117)+$Q$2, IF(MOD(CELL("zeile",W117)-CELL("zeile",W$4),$Q$2)=MOD(CELL("spalte",W117)-(CELL("spalte",$P117)),$Q$2),ean_conv(LEFT($J117,12)),""), "<>") -> <> | X117: =IF(CELL("spalte",X117)<CELL("spalte",$P117)+$Q$2, IF(MOD(CELL("zeile",X117)-CELL("zeile",X$4),$Q$2)=MOD(CELL("spalte",X117)-(CELL("spalte",$P117)),$Q$2),ean_conv(LEFT($J117,12)),""), "<>") -> <> | Y117: =IF(CELL("spalte",Y117)<CELL("spalte",$P117)+$Q$2, IF(MOD(CELL("zeile",Y117)-CELL("zeile",Y$4),$Q$2)=MOD(CELL("spalte",Y117)-(CELL("spalte",$P117)),$Q$2),ean_conv(LEFT($J117,12)),""), "<>") -> <>
A118: 115 | B118: Another | C118: 4 | D118: Mystery | F118: deu | G118: Standard | H118: Egmont Manga | I118: X | J118: 9783770479139 | L118: Another •deu• | M118: Another •deu• 4 | O118: Seite 2 | P118: =IF(CELL("spalte",P118)<CELL("spalte",$P118)+$Q$2, IF(MOD(CELL("zeile",P118)-CELL("zeile",P$4),$Q$2)=MOD(CELL("spalte",P118)-(CELL("spalte",$P118)),$Q$2),ean_conv(LEFT($J118,12)),""), "<>") -> <> | Q118: =IF(CELL("spalte",Q118)<CELL("spalte",$P118)+$Q$2, IF(MOD(CELL("zeile",Q118)-CELL("zeile",Q$4),$Q$2)=MOD(CELL("spalte",Q118)-(CELL("spalte",$P118)),$Q$2),ean_conv(LEFT($J118,12)),""), "<>") -> <> | R118: =IF(CELL("spalte",R118)<CELL("spalte",$P118)+$Q$2, IF(MOD(CELL("zeile",R118)-CELL("zeile",R$4),$Q$2)=MOD(CELL("spalte",R118)-(CELL("spalte",$P118)),$Q$2),ean_conv(LEFT($J118,12)),""), "<>") -> <> | S118: =IF(CELL("spalte",S118)<CELL("spalte",$P118)+$Q$2, IF(MOD(CELL("zeile",S118)-CELL("zeile",S$4),$Q$2)=MOD(CELL("spalte",S118)-(CELL("spalte",$P118)),$Q$2),ean_conv(LEFT($J118,12)),""), "<>") -> <> | T118: =IF(CELL("spalte",T118)<CELL("spalte",$P118)+$Q$2, IF(MOD(CELL("zeile",T118)-CELL("zeile",T$4),$Q$2)=MOD(CELL("spalte",T118)-(CELL("spalte",$P118)),$Q$2),ean_conv(LEFT($J118,12)),""), "<>") -> <> | U118: =IF(CELL("spalte",U118)<CELL("spalte",$P118)+$Q$2, IF(MOD(CELL("zeile",U118)-CELL("zeile",U$4),$Q$2)=MOD(CELL("spalte",U118)-(CELL("spalte",$P118)),$Q$2),ean_conv(LEFT($J118,12)),""), "<>") -> <> | V118: =IF(CELL("spalte",V118)<CELL("spalte",$P118)+$Q$2, IF(MOD(CELL("zeile",V118)-CELL("zeile",V$4),$Q$2)=MOD(CELL("spalte",V118)-(CELL("spalte",$P118)),$Q$2),ean_conv(LEFT($J118,12)),""), "<>") -> <> | W118: =IF(CELL("spalte",W118)<CELL("spalte",$P118)+$Q$2, IF(MOD(CELL("zeile",W118)-CELL("zeile",W$4),$Q$2)=MOD(CELL("spalte",W118)-(CELL("spalte",$P118)),$Q$2),ean_conv(LEFT($J118,12)),""), "<>") -> <> | X118: =IF(CELL("spalte",X118)<CELL("spalte",$P118)+$Q$2, IF(MOD(CELL("zeile",X118)-CELL("zeile",X$4),$Q$2)=MOD(CELL("spalte",X118)-(CELL("spalte",$P118)),$Q$2),ean_conv(LEFT($J118,12)),""), "<>") -> <> | Y118: =IF(CELL("spalte",Y118)<CELL("spalte",$P118)+$Q$2, IF(MOD(CELL("zeile",Y118)-CELL("zeile",Y$4),$Q$2)=MOD(CELL("spalte",Y118)-(CELL("spalte",$P118)),$Q$2),ean_conv(LEFT($J118,12)),""), "<>") -> <>
A119: 116 | B119: Apocalyptic Organs | C119: 1 | D119: Action | F119: deu | G119: Standard | H119: Tokyopop | I119: X | J119: 9783842058804 | L119: Apocalyptic Organs •deu• | M119: Apocalyptic Organs •deu• 1 | O119: Seite 2 | P119: =IF(CELL("spalte",P119)<CELL("spalte",$P119)+$Q$2, IF(MOD(CELL("zeile",P119)-CELL("zeile",P$4),$Q$2)=MOD(CELL("spalte",P119)-(CELL("spalte",$P119)),$Q$2),ean_conv(LEFT($J119,12)),""), "<>") -> <> | Q119: =IF(CELL("spalte",Q119)<CELL("spalte",$P119)+$Q$2, IF(MOD(CELL("zeile",Q119)-CELL("zeile",Q$4),$Q$2)=MOD(CELL("spalte",Q119)-(CELL("spalte",$P119)),$Q$2),ean_conv(LEFT($J119,12)),""), "<>") -> <> | R119: =IF(CELL("spalte",R119)<CELL("spalte",$P119)+$Q$2, IF(MOD(CELL("zeile",R119)-CELL("zeile",R$4),$Q$2)=MOD(CELL("spalte",R119)-(CELL("spalte",$P119)),$Q$2),ean_conv(LEFT($J119,12)),""), "<>") -> <> | S119: =IF(CELL("spalte",S119)<CELL("spalte",$P119)+$Q$2, IF(MOD(CELL("zeile",S119)-CELL("zeile",S$4),$Q$2)=MOD(CELL("spalte",S119)-(CELL("spalte",$P119)),$Q$2),ean_conv(LEFT($J119,12)),""), "<>") -> <> | T119: =IF(CELL("spalte",T119)<CELL("spalte",$P119)+$Q$2, IF(MOD(CELL("zeile",T119)-CELL("zeile",T$4),$Q$2)=MOD(CELL("spalte",T119)-(CELL("spalte",$P119)),$Q$2),ean_conv(LEFT($J119,12)),""), "<>") -> <> | U119: =IF(CELL("spalte",U119)<CELL("spalte",$P119)+$Q$2, IF(MOD(CELL("zeile",U119)-CELL("zeile",U$4),$Q$2)=MOD(CELL("spalte",U119)-(CELL("spalte",$P119)),$Q$2),ean_conv(LEFT($J119,12)),""), "<>") -> <> | V119: =IF(CELL("spalte",V119)<CELL("spalte",$P119)+$Q$2, IF(MOD(CELL("zeile",V119)-CELL("zeile",V$4),$Q$2)=MOD(CELL("spalte",V119)-(CELL("spalte",$P119)),$Q$2),ean_conv(LEFT($J119,12)),""), "<>") -> <> | W119: =IF(CELL("spalte",W119)<CELL("spalte",$P119)+$Q$2, IF(MOD(CELL("zeile",W119)-CELL("zeile",W$4),$Q$2)=MOD(CELL("spalte",W119)-(CELL("spalte",$P119)),$Q$2),ean_conv(LEFT($J119,12)),""), "<>") -> <> | X119: =IF(CELL("spalte",X119)<CELL("spalte",$P119)+$Q$2, IF(MOD(CELL("zeile",X119)-CELL("zeile",X$4),$Q$2)=MOD(CELL("spalte",X119)-(CELL("spalte",$P119)),$Q$2),ean_conv(LEFT($J119,12)),""), "<>") -> <> | Y119: =IF(CELL("spalte",Y119)<CELL("spalte",$P119)+$Q$2, IF(MOD(CELL("zeile",Y119)-CELL("zeile",Y$4),$Q$2)=MOD(CELL("spalte",Y119)-(CELL("spalte",$P119)),$Q$2),ean_conv(LEFT($J119,12)),""), "<>") -> <>
A120: 117 | B120: Apocalyptic Organs | C120: 2 | D120: Action | F120: deu | G120: Standard | H120: Tokyopop | I120: X | J120: 9783842058811 | L120: Apocalyptic Organs •deu• | M120: Apocalyptic Organs •deu• 2 | O120: Seite 2 | P120: =IF(CELL("spalte",P120)<CELL("spalte",$P120)+$Q$2, IF(MOD(CELL("zeile",P120)-CELL("zeile",P$4),$Q$2)=MOD(CELL("spalte",P120)-(CELL("spalte",$P120)),$Q$2),ean_conv(LEFT($J120,12)),""), "<>") -> <> | Q120: =IF(CELL("spalte",Q120)<CELL("spalte",$P120)+$Q$2, IF(MOD(CELL("zeile",Q120)-CELL("zeile",Q$4),$Q$2)=MOD(CELL("spalte",Q120)-(CELL("spalte",$P120)),$Q$2),ean_conv(LEFT($J120,12)),""), "<>") -> <> | R120: =IF(CELL("spalte",R120)<CELL("spalte",$P120)+$Q$2, IF(MOD(CELL("zeile",R120)-CELL("zeile",R$4),$Q$2)=MOD(CELL("spalte",R120)-(CELL("spalte",$P120)),$Q$2),ean_conv(LEFT($J120,12)),""), "<>") -> <> | S120: =IF(CELL("spalte",S120)<CELL("spalte",$P120)+$Q$2, IF(MOD(CELL("zeile",S120)-CELL("zeile",S$4),$Q$2)=MOD(CELL("spalte",S120)-(CELL("spalte",$P120)),$Q$2),ean_conv(LEFT($J120,12)),""), "<>") -> <> | T120: =IF(CELL("spalte",T120)<CELL("spalte",$P120)+$Q$2, IF(MOD(CELL("zeile",T120)-CELL("zeile",T$4),$Q$2)=MOD(CELL("spalte",T120)-(CELL("spalte",$P120)),$Q$2),ean_conv(LEFT($J120,12)),""), "<>") -> <> | U120: =IF(CELL("spalte",U120)<CELL("spalte",$P120)+$Q$2, IF(MOD(CELL("zeile",U120)-CELL("zeile",U$4),$Q$2)=MOD(CELL("spalte",U120)-(CELL("spalte",$P120)),$Q$2),ean_conv(LEFT($J120,12)),""), "<>") -> <> | V120: =IF(CELL("spalte",V120)<CELL("spalte",$P120)+$Q$2, IF(MOD(CELL("zeile",V120)-CELL("zeile",V$4),$Q$2)=MOD(CELL("spalte",V120)-(CELL("spalte",$P120)),$Q$2),ean_conv(LEFT($J120,12)),""), "<>") -> <> | W120: =IF(CELL("spalte",W120)<CELL("spalte",$P120)+$Q$2, IF(MOD(CELL("zeile",W120)-CELL("zeile",W$4),$Q$2)=MOD(CELL("spalte",W120)-(CELL("spalte",$P120)),$Q$2),ean_conv(LEFT($J120,12)),""), "<>") -> <> | X120: =IF(CELL("spalte",X120)<CELL("spalte",$P120)+$Q$2, IF(MOD(CELL("zeile",X120)-CELL("zeile",X$4),$Q$2)=MOD(CELL("spalte",X120)-(CELL("spalte",$P120)),$Q$2),ean_conv(LEFT($J120,12)),""), "<>") -> <> | Y120: =IF(CELL("spalte",Y120)<CELL("spalte",$P120)+$Q$2, IF(MOD(CELL("zeile",Y120)-CELL("zeile",Y$4),$Q$2)=MOD(CELL("spalte",Y120)-(CELL("spalte",$P120)),$Q$2),ean_conv(LEFT($J120,12)),""), "<>") -> <>
A121: 118 | B121: Apocalyptic Organs | C121: 3 | D121: Action | F121: deu | G121: Standard | H121: Tokyopop | I121: X | J121: 9783842067769 | L121: Apocalyptic Organs •deu• | M121: Apocalyptic Organs •deu• 3 | O121: Seite 2 | P121: =IF(CELL("spalte",P121)<CELL("spalte",$P121)+$Q$2, IF(MOD(CELL("zeile",P121)-CELL("zeile",P$4),$Q$2)=MOD(CELL("spalte",P121)-(CELL("spalte",$P121)),$Q$2),ean_conv(LEFT($J121,12)),""), "<>") -> <> | Q121: =IF(CELL("spalte",Q121)<CELL("spalte",$P121)+$Q$2, IF(MOD(CELL("zeile",Q121)-CELL("zeile",Q$4),$Q$2)=MOD(CELL("spalte",Q121)-(CELL("spalte",$P121)),$Q$2),ean_conv(LEFT($J121,12)),""), "<>") -> <> | R121: =IF(CELL("spalte",R121)<CELL("spalte",$P121)+$Q$2, IF(MOD(CELL("zeile",R121)-CELL("zeile",R$4),$Q$2)=MOD(CELL("spalte",R121)-(CELL("spalte",$P121)),$Q$2),ean_conv(LEFT($J121,12)),""), "<>") -> <> | S121: =IF(CELL("spalte",S121)<CELL("spalte",$P121)+$Q$2, IF(MOD(CELL("zeile",S121)-CELL("zeile",S$4),$Q$2)=MOD(CELL("spalte",S121)-(CELL("spalte",$P121)),$Q$2),ean_conv(LEFT($J121,12)),""), "<>") -> <> | T121: =IF(CELL("spalte",T121)<CELL("spalte",$P121)+$Q$2, IF(MOD(CELL("zeile",T121)-CELL("zeile",T$4),$Q$2)=MOD(CELL("spalte",T121)-(CELL("spalte",$P121)),$Q$2),ean_conv(LEFT($J121,12)),""), "<>") -> <> | U121: =IF(CELL("spalte",U121)<CELL("spalte",$P121)+$Q$2, IF(MOD(CELL("zeile",U121)-CELL("zeile",U$4),$Q$2)=MOD(CELL("spalte",U121)-(CELL("spalte",$P121)),$Q$2),ean_conv(LEFT($J121,12)),""), "<>") -> <> | V121: =IF(CELL("spalte",V121)<CELL("spalte",$P121)+$Q$2, IF(MOD(CELL("zeile",V121)-CELL("zeile",V$4),$Q$2)=MOD(CELL("spalte",V121)-(CELL("spalte",$P121)),$Q$2),ean_conv(LEFT($J121,12)),""), "<>") -> <> | W121: =IF(CELL("spalte",W121)<CELL("spalte",$P121)+$Q$2, IF(MOD(CELL("zeile",W121)-CELL("zeile",W$4),$Q$2)=MOD(CELL("spalte",W121)-(CELL("spalte",$P121)),$Q$2),ean_conv(LEFT($J121,12)),""), "<>") -> <> | X121: =IF(CELL("spalte",X121)<CELL("spalte",$P121)+$Q$2, IF(MOD(CELL("zeile",X121)-CELL("zeile",X$4),$Q$2)=MOD(CELL("spalte",X121)-(CELL("spalte",$P121)),$Q$2),ean_conv(LEFT($J121,12)),""), "<>") -> <> | Y121: =IF(CELL("spalte",Y121)<CELL("spalte",$P121)+$Q$2, IF(MOD(CELL("zeile",Y121)-CELL("zeile",Y$4),$Q$2)=MOD(CELL("spalte",Y121)-(CELL("spalte",$P121)),$Q$2),ean_conv(LEFT($J121,12)),""), "<>") -> <>
A122: 119 | B122: Apocalyptic Organs | C122: 4 | D122: Action | F122: deu | G122: Standard | H122: Tokyopop | I122: X | J122: 9783842068391 | L122: Apocalyptic Organs •deu• | M122: Apocalyptic Organs •deu• 4 | O122: Seite 2 | P122: =IF(CELL("spalte",P122)<CELL("spalte",$P122)+$Q$2, IF(MOD(CELL("zeile",P122)-CELL("zeile",P$4),$Q$2)=MOD(CELL("spalte",P122)-(CELL("spalte",$P122)),$Q$2),ean_conv(LEFT($J122,12)),""), "<>") -> <> | Q122: =IF(CELL("spalte",Q122)<CELL("spalte",$P122)+$Q$2, IF(MOD(CELL("zeile",Q122)-CELL("zeile",Q$4),$Q$2)=MOD(CELL("spalte",Q122)-(CELL("spalte",$P122)),$Q$2),ean_conv(LEFT($J122,12)),""), "<>") -> <> | R122: =IF(CELL("spalte",R122)<CELL("spalte",$P122)+$Q$2, IF(MOD(CELL("zeile",R122)-CELL("zeile",R$4),$Q$2)=MOD(CELL("spalte",R122)-(CELL("spalte",$P122)),$Q$2),ean_conv(LEFT($J122,12)),""), "<>") -> <> | S122: =IF(CELL("spalte",S122)<CELL("spalte",$P122)+$Q$2, IF(MOD(CELL("zeile",S122)-CELL("zeile",S$4),$Q$2)=MOD(CELL("spalte",S122)-(CELL("spalte",$P122)),$Q$2),ean_conv(LEFT($J122,12)),""), "<>") -> <> | T122: =IF(CELL("spalte",T122)<CELL("spalte",$P122)+$Q$2, IF(MOD(CELL("zeile",T122)-CELL("zeile",T$4),$Q$2)=MOD(CELL("spalte",T122)-(CELL("spalte",$P122)),$Q$2),ean_conv(LEFT($J122,12)),""), "<>") -> <> | U122: =IF(CELL("spalte",U122)<CELL("spalte",$P122)+$Q$2, IF(MOD(CELL("zeile",U122)-CELL("zeile",U$4),$Q$2)=MOD(CELL("spalte",U122)-(CELL("spalte",$P122)),$Q$2),ean_conv(LEFT($J122,12)),""), "<>") -> <> | V122: =IF(CELL("spalte",V122)<CELL("spalte",$P122)+$Q$2, IF(MOD(CELL("zeile",V122)-CELL("zeile",V$4),$Q$2)=MOD(CELL("spalte",V122)-(CELL("spalte",$P122)),$Q$2),ean_conv(LEFT($J122,12)),""), "<>") -> <> | W122: =IF(CELL("spalte",W122)<CELL("spalte",$P122)+$Q$2, IF(MOD(CELL("zeile",W122)-CELL("zeile",W$4),$Q$2)=MOD(CELL("spalte",W122)-(CELL("spalte",$P122)),$Q$2),ean_conv(LEFT($J122,12)),""), "<>") -> <> | X122: =IF(CELL("spalte",X122)<CELL("spalte",$P122)+$Q$2, IF(MOD(CELL("zeile",X122)-CELL("zeile",X$4),$Q$2)=MOD(CELL("spalte",X122)-(CELL("spalte",$P122)),$Q$2),ean_conv(LEFT($J122,12)),""), "<>") -> <> | Y122: =IF(CELL("spalte",Y122)<CELL("spalte",$P122)+$Q$2, IF(MOD(CELL("zeile",Y122)-CELL("zeile",Y$4),$Q$2)=MOD(CELL("spalte",Y122)-(CELL("spalte",$P122)),$Q$2),ean_conv(LEFT($J122,12)),""), "<>") -> <>
A123: 120 | B123: Aria & Die goldene Sanduhr der Zeit | C123: 1 | D123: Romantasy | F123: deu | G123: Groß | H123: Papertoons | I123: X | J123: 9783910530522 | L123: Aria & Die goldene Sanduhr der Zeit •deu• | M123: Aria & Die goldene Sanduhr der Zeit •deu• 1 | O123: Seite 2 | P123: =IF(CELL("spalte",P123)<CELL("spalte",$P123)+$Q$2, IF(MOD(CELL("zeile",P123)-CELL("zeile",P$4),$Q$2)=MOD(CELL("spalte",P123)-(CELL("spalte",$P123)),$Q$2),ean_conv(LEFT($J123,12)),""), "<>") -> <> | Q123: =IF(CELL("spalte",Q123)<CELL("spalte",$P123)+$Q$2, IF(MOD(CELL("zeile",Q123)-CELL("zeile",Q$4),$Q$2)=MOD(CELL("spalte",Q123)-(CELL("spalte",$P123)),$Q$2),ean_conv(LEFT($J123,12)),""), "<>") -> <> | R123: =IF(CELL("spalte",R123)<CELL("spalte",$P123)+$Q$2, IF(MOD(CELL("zeile",R123)-CELL("zeile",R$4),$Q$2)=MOD(CELL("spalte",R123)-(CELL("spalte",$P123)),$Q$2),ean_conv(LEFT($J123,12)),""), "<>") -> <> | S123: =IF(CELL("spalte",S123)<CELL("spalte",$P123)+$Q$2, IF(MOD(CELL("zeile",S123)-CELL("zeile",S$4),$Q$2)=MOD(CELL("spalte",S123)-(CELL("spalte",$P123)),$Q$2),ean_conv(LEFT($J123,12)),""), "<>") -> <> | T123: =IF(CELL("spalte",T123)<CELL("spalte",$P123)+$Q$2, IF(MOD(CELL("zeile",T123)-CELL("zeile",T$4),$Q$2)=MOD(CELL("spalte",T123)-(CELL("spalte",$P123)),$Q$2),ean_conv(LEFT($J123,12)),""), "<>") -> <> | U123: =IF(CELL("spalte",U123)<CELL("spalte",$P123)+$Q$2, IF(MOD(CELL("zeile",U123)-CELL("zeile",U$4),$Q$2)=MOD(CELL("spalte",U123)-(CELL("spalte",$P123)),$Q$2),ean_conv(LEFT($J123,12)),""), "<>") -> <> | V123: =IF(CELL("spalte",V123)<CELL("spalte",$P123)+$Q$2, IF(MOD(CELL("zeile",V123)-CELL("zeile",V$4),$Q$2)=MOD(CELL("spalte",V123)-(CELL("spalte",$P123)),$Q$2),ean_conv(LEFT($J123,12)),""), "<>") -> <> | W123: =IF(CELL("spalte",W123)<CELL("spalte",$P123)+$Q$2, IF(MOD(CELL("zeile",W123)-CELL("zeile",W$4),$Q$2)=MOD(CELL("spalte",W123)-(CELL("spalte",$P123)),$Q$2),ean_conv(LEFT($J123,12)),""), "<>") -> <> | X123: =IF(CELL("spalte",X123)<CELL("spalte",$P123)+$Q$2, IF(MOD(CELL("zeile",X123)-CELL("zeile",X$4),$Q$2)=MOD(CELL("spalte",X123)-(CELL("spalte",$P123)),$Q$2),ean_conv(LEFT($J123,12)),""), "<>") -> <> | Y123: =IF(CELL("spalte",Y123)<CELL("spalte",$P123)+$Q$2, IF(MOD(CELL("zeile",Y123)-CELL("zeile",Y$4),$Q$2)=MOD(CELL("spalte",Y123)-(CELL("spalte",$P123)),$Q$2),ean_conv(LEFT($J123,12)),""), "<>") -> <>
A124: 121 | B124: Aria & Die goldene Sanduhr der Zeit | C124: 2 | D124: Romantasy | F124: deu | G124: Groß | H124: Papertoons | I124: X | J124: 9783910530539 | L124: Aria & Die goldene Sanduhr der Zeit •deu• | M124: Aria & Die goldene Sanduhr der Zeit •deu• 2 | O124: Seite 2 | P124: =IF(CELL("spalte",P124)<CELL("spalte",$P124)+$Q$2, IF(MOD(CELL("zeile",P124)-CELL("zeile",P$4),$Q$2)=MOD(CELL("spalte",P124)-(CELL("spalte",$P124)),$Q$2),ean_conv(LEFT($J124,12)),""), "<>") -> <> | Q124: =IF(CELL("spalte",Q124)<CELL("spalte",$P124)+$Q$2, IF(MOD(CELL("zeile",Q124)-CELL("zeile",Q$4),$Q$2)=MOD(CELL("spalte",Q124)-(CELL("spalte",$P124)),$Q$2),ean_conv(LEFT($J124,12)),""), "<>") -> <> | R124: =IF(CELL("spalte",R124)<CELL("spalte",$P124)+$Q$2, IF(MOD(CELL("zeile",R124)-CELL("zeile",R$4),$Q$2)=MOD(CELL("spalte",R124)-(CELL("spalte",$P124)),$Q$2),ean_conv(LEFT($J124,12)),""), "<>") -> <> | S124: =IF(CELL("spalte",S124)<CELL("spalte",$P124)+$Q$2, IF(MOD(CELL("zeile",S124)-CELL("zeile",S$4),$Q$2)=MOD(CELL("spalte",S124)-(CELL("spalte",$P124)),$Q$2),ean_conv(LEFT($J124,12)),""), "<>") -> <> | T124: =IF(CELL("spalte",T124)<CELL("spalte",$P124)+$Q$2, IF(MOD(CELL("zeile",T124)-CELL("zeile",T$4),$Q$2)=MOD(CELL("spalte",T124)-(CELL("spalte",$P124)),$Q$2),ean_conv(LEFT($J124,12)),""), "<>") -> <> | U124: =IF(CELL("spalte",U124)<CELL("spalte",$P124)+$Q$2, IF(MOD(CELL("zeile",U124)-CELL("zeile",U$4),$Q$2)=MOD(CELL("spalte",U124)-(CELL("spalte",$P124)),$Q$2),ean_conv(LEFT($J124,12)),""), "<>") -> <> | V124: =IF(CELL("spalte",V124)<CELL("spalte",$P124)+$Q$2, IF(MOD(CELL("zeile",V124)-CELL("zeile",V$4),$Q$2)=MOD(CELL("spalte",V124)-(CELL("spalte",$P124)),$Q$2),ean_conv(LEFT($J124,12)),""), "<>") -> <> | W124: =IF(CELL("spalte",W124)<CELL("spalte",$P124)+$Q$2, IF(MOD(CELL("zeile",W124)-CELL("zeile",W$4),$Q$2)=MOD(CELL("spalte",W124)-(CELL("spalte",$P124)),$Q$2),ean_conv(LEFT($J124,12)),""), "<>") -> <> | X124: =IF(CELL("spalte",X124)<CELL("spalte",$P124)+$Q$2, IF(MOD(CELL("zeile",X124)-CELL("zeile",X$4),$Q$2)=MOD(CELL("spalte",X124)-(CELL("spalte",$P124)),$Q$2),ean_conv(LEFT($J124,12)),""), "<>") -> <> | Y124: =IF(CELL("spalte",Y124)<CELL("spalte",$P124)+$Q$2, IF(MOD(CELL("zeile",Y124)-CELL("zeile",Y$4),$Q$2)=MOD(CELL("spalte",Y124)-(CELL("spalte",$P124)),$Q$2),ean_conv(LEFT($J124,12)),""), "<>") -> <>
A125: 122 | B125: Aria & Die goldene Sanduhr der Zeit | C125: 3 | D125: Romantasy | F125: deu | G125: Groß | H125: Papertoons | I125: X | J125: 9783910530546 | L125: Aria & Die goldene Sanduhr der Zeit •deu• | M125: Aria & Die goldene Sanduhr der Zeit •deu• 3 | O125: Seite 2 | P125: =IF(CELL("spalte",P125)<CELL("spalte",$P125)+$Q$2, IF(MOD(CELL("zeile",P125)-CELL("zeile",P$4),$Q$2)=MOD(CELL("spalte",P125)-(CELL("spalte",$P125)),$Q$2),ean_conv(LEFT($J125,12)),""), "<>") -> <> | Q125: =IF(CELL("spalte",Q125)<CELL("spalte",$P125)+$Q$2, IF(MOD(CELL("zeile",Q125)-CELL("zeile",Q$4),$Q$2)=MOD(CELL("spalte",Q125)-(CELL("spalte",$P125)),$Q$2),ean_conv(LEFT($J125,12)),""), "<>") -> <> | R125: =IF(CELL("spalte",R125)<CELL("spalte",$P125)+$Q$2, IF(MOD(CELL("zeile",R125)-CELL("zeile",R$4),$Q$2)=MOD(CELL("spalte",R125)-(CELL("spalte",$P125)),$Q$2),ean_conv(LEFT($J125,12)),""), "<>") -> <> | S125: =IF(CELL("spalte",S125)<CELL("spalte",$P125)+$Q$2, IF(MOD(CELL("zeile",S125)-CELL("zeile",S$4),$Q$2)=MOD(CELL("spalte",S125)-(CELL("spalte",$P125)),$Q$2),ean_conv(LEFT($J125,12)),""), "<>") -> <> | T125: =IF(CELL("spalte",T125)<CELL("spalte",$P125)+$Q$2, IF(MOD(CELL("zeile",T125)-CELL("zeile",T$4),$Q$2)=MOD(CELL("spalte",T125)-(CELL("spalte",$P125)),$Q$2),ean_conv(LEFT($J125,12)),""), "<>") -> <> | U125: =IF(CELL("spalte",U125)<CELL("spalte",$P125)+$Q$2, IF(MOD(CELL("zeile",U125)-CELL("zeile",U$4),$Q$2)=MOD(CELL("spalte",U125)-(CELL("spalte",$P125)),$Q$2),ean_conv(LEFT($J125,12)),""), "<>") -> <> | V125: =IF(CELL("spalte",V125)<CELL("spalte",$P125)+$Q$2, IF(MOD(CELL("zeile",V125)-CELL("zeile",V$4),$Q$2)=MOD(CELL("spalte",V125)-(CELL("spalte",$P125)),$Q$2),ean_conv(LEFT($J125,12)),""), "<>") -> <> | W125: =IF(CELL("spalte",W125)<CELL("spalte",$P125)+$Q$2, IF(MOD(CELL("zeile",W125)-CELL("zeile",W$4),$Q$2)=MOD(CELL("spalte",W125)-(CELL("spalte",$P125)),$Q$2),ean_conv(LEFT($J125,12)),""), "<>") -> <> | X125: =IF(CELL("spalte",X125)<CELL("spalte",$P125)+$Q$2, IF(MOD(CELL("zeile",X125)-CELL("zeile",X$4),$Q$2)=MOD(CELL("spalte",X125)-(CELL("spalte",$P125)),$Q$2),ean_conv(LEFT($J125,12)),""), "<>") -> <> | Y125: =IF(CELL("spalte",Y125)<CELL("spalte",$P125)+$Q$2, IF(MOD(CELL("zeile",Y125)-CELL("zeile",Y$4),$Q$2)=MOD(CELL("spalte",Y125)-(CELL("spalte",$P125)),$Q$2),ean_conv(LEFT($J125,12)),""), "<>") -> <>
A126: 123 | B126: Aria & die goldene Sanduhr der Zeit | C126: 4 | D126: Romantasy | F126: deu | G126: Groß | H126: Papertoons | I126: X | J126: 9783910530553 | L126: Aria & die goldene Sanduhr der Zeit •deu• | M126: Aria & die goldene Sanduhr der Zeit •deu• 4 | O126: Seite 2 | P126: =IF(CELL("spalte",P126)<CELL("spalte",$P126)+$Q$2, IF(MOD(CELL("zeile",P126)-CELL("zeile",P$4),$Q$2)=MOD(CELL("spalte",P126)-(CELL("spalte",$P126)),$Q$2),ean_conv(LEFT($J126,12)),""), "<>") -> <> | Q126: =IF(CELL("spalte",Q126)<CELL("spalte",$P126)+$Q$2, IF(MOD(CELL("zeile",Q126)-CELL("zeile",Q$4),$Q$2)=MOD(CELL("spalte",Q126)-(CELL("spalte",$P126)),$Q$2),ean_conv(LEFT($J126,12)),""), "<>") -> <> | R126: =IF(CELL("spalte",R126)<CELL("spalte",$P126)+$Q$2, IF(MOD(CELL("zeile",R126)-CELL("zeile",R$4),$Q$2)=MOD(CELL("spalte",R126)-(CELL("spalte",$P126)),$Q$2),ean_conv(LEFT($J126,12)),""), "<>") -> <> | S126: =IF(CELL("spalte",S126)<CELL("spalte",$P126)+$Q$2, IF(MOD(CELL("zeile",S126)-CELL("zeile",S$4),$Q$2)=MOD(CELL("spalte",S126)-(CELL("spalte",$P126)),$Q$2),ean_conv(LEFT($J126,12)),""), "<>") -> <> | T126: =IF(CELL("spalte",T126)<CELL("spalte",$P126)+$Q$2, IF(MOD(CELL("zeile",T126)-CELL("zeile",T$4),$Q$2)=MOD(CELL("spalte",T126)-(CELL("spalte",$P126)),$Q$2),ean_conv(LEFT($J126,12)),""), "<>") -> <> | U126: =IF(CELL("spalte",U126)<CELL("spalte",$P126)+$Q$2, IF(MOD(CELL("zeile",U126)-CELL("zeile",U$4),$Q$2)=MOD(CELL("spalte",U126)-(CELL("spalte",$P126)),$Q$2),ean_conv(LEFT($J126,12)),""), "<>") -> <> | V126: =IF(CELL("spalte",V126)<CELL("spalte",$P126)+$Q$2, IF(MOD(CELL("zeile",V126)-CELL("zeile",V$4),$Q$2)=MOD(CELL("spalte",V126)-(CELL("spalte",$P126)),$Q$2),ean_conv(LEFT($J126,12)),""), "<>") -> <> | W126: =IF(CELL("spalte",W126)<CELL("spalte",$P126)+$Q$2, IF(MOD(CELL("zeile",W126)-CELL("zeile",W$4),$Q$2)=MOD(CELL("spalte",W126)-(CELL("spalte",$P126)),$Q$2),ean_conv(LEFT($J126,12)),""), "<>") -> <> | X126: =IF(CELL("spalte",X126)<CELL("spalte",$P126)+$Q$2, IF(MOD(CELL("zeile",X126)-CELL("zeile",X$4),$Q$2)=MOD(CELL("spalte",X126)-(CELL("spalte",$P126)),$Q$2),ean_conv(LEFT($J126,12)),""), "<>") -> <> | Y126: =IF(CELL("spalte",Y126)<CELL("spalte",$P126)+$Q$2, IF(MOD(CELL("zeile",Y126)-CELL("zeile",Y$4),$Q$2)=MOD(CELL("spalte",Y126)-(CELL("spalte",$P126)),$Q$2),ean_conv(LEFT($J126,12)),""), "<>") -> <>
A127: 124 | B127: Aria & Die goldene Sanduhr der Zeit | C127: 5 | D127: Romantasy | F127: deu | G127: Groß | H127: Papertoons | I127: X | J127: 9783910530560 | L127: Aria & Die goldene Sanduhr der Zeit •deu• | M127: Aria & Die goldene Sanduhr der Zeit •deu• 5 | O127: Seite 2 | P127: =IF(CELL("spalte",P127)<CELL("spalte",$P127)+$Q$2, IF(MOD(CELL("zeile",P127)-CELL("zeile",P$4),$Q$2)=MOD(CELL("spalte",P127)-(CELL("spalte",$P127)),$Q$2),ean_conv(LEFT($J127,12)),""), "<>") -> <> | Q127: =IF(CELL("spalte",Q127)<CELL("spalte",$P127)+$Q$2, IF(MOD(CELL("zeile",Q127)-CELL("zeile",Q$4),$Q$2)=MOD(CELL("spalte",Q127)-(CELL("spalte",$P127)),$Q$2),ean_conv(LEFT($J127,12)),""), "<>") -> <> | R127: =IF(CELL("spalte",R127)<CELL("spalte",$P127)+$Q$2, IF(MOD(CELL("zeile",R127)-CELL("zeile",R$4),$Q$2)=MOD(CELL("spalte",R127)-(CELL("spalte",$P127)),$Q$2),ean_conv(LEFT($J127,12)),""), "<>") -> <> | S127: =IF(CELL("spalte",S127)<CELL("spalte",$P127)+$Q$2, IF(MOD(CELL("zeile",S127)-CELL("zeile",S$4),$Q$2)=MOD(CELL("spalte",S127)-(CELL("spalte",$P127)),$Q$2),ean_conv(LEFT($J127,12)),""), "<>") -> <> | T127: =IF(CELL("spalte",T127)<CELL("spalte",$P127)+$Q$2, IF(MOD(CELL("zeile",T127)-CELL("zeile",T$4),$Q$2)=MOD(CELL("spalte",T127)-(CELL("spalte",$P127)),$Q$2),ean_conv(LEFT($J127,12)),""), "<>") -> <> | U127: =IF(CELL("spalte",U127)<CELL("spalte",$P127)+$Q$2, IF(MOD(CELL("zeile",U127)-CELL("zeile",U$4),$Q$2)=MOD(CELL("spalte",U127)-(CELL("spalte",$P127)),$Q$2),ean_conv(LEFT($J127,12)),""), "<>") -> <> | V127: =IF(CELL("spalte",V127)<CELL("spalte",$P127)+$Q$2, IF(MOD(CELL("zeile",V127)-CELL("zeile",V$4),$Q$2)=MOD(CELL("spalte",V127)-(CELL("spalte",$P127)),$Q$2),ean_conv(LEFT($J127,12)),""), "<>") -> <> | W127: =IF(CELL("spalte",W127)<CELL("spalte",$P127)+$Q$2, IF(MOD(CELL("zeile",W127)-CELL("zeile",W$4),$Q$2)=MOD(CELL("spalte",W127)-(CELL("spalte",$P127)),$Q$2),ean_conv(LEFT($J127,12)),""), "<>") -> <> | X127: =IF(CELL("spalte",X127)<CELL("spalte",$P127)+$Q$2, IF(MOD(CELL("zeile",X127)-CELL("zeile",X$4),$Q$2)=MOD(CELL("spalte",X127)-(CELL("spalte",$P127)),$Q$2),ean_conv(LEFT($J127,12)),""), "<>") -> <> | Y127: =IF(CELL("spalte",Y127)<CELL("spalte",$P127)+$Q$2, IF(MOD(CELL("zeile",Y127)-CELL("zeile",Y$4),$Q$2)=MOD(CELL("spalte",Y127)-(CELL("spalte",$P127)),$Q$2),ean_conv(LEFT($J127,12)),""), "<>") -> <>
A128: 125 | B128: Aria & Die goldene Sanduhr der Zeit | C128: 6 | D128: Romantasy | F128: deu | G128: Groß | H128: Papertoons | I128: X | J128: 9783910530577 | L128: Aria & Die goldene Sanduhr der Zeit •deu• | M128: Aria & Die goldene Sanduhr der Zeit •deu• 6 | O128: Seite 2 | P128: =IF(CELL("spalte",P128)<CELL("spalte",$P128)+$Q$2, IF(MOD(CELL("zeile",P128)-CELL("zeile",P$4),$Q$2)=MOD(CELL("spalte",P128)-(CELL("spalte",$P128)),$Q$2),ean_conv(LEFT($J128,12)),""), "<>") -> <> | Q128: =IF(CELL("spalte",Q128)<CELL("spalte",$P128)+$Q$2, IF(MOD(CELL("zeile",Q128)-CELL("zeile",Q$4),$Q$2)=MOD(CELL("spalte",Q128)-(CELL("spalte",$P128)),$Q$2),ean_conv(LEFT($J128,12)),""), "<>") -> <> | R128: =IF(CELL("spalte",R128)<CELL("spalte",$P128)+$Q$2, IF(MOD(CELL("zeile",R128)-CELL("zeile",R$4),$Q$2)=MOD(CELL("spalte",R128)-(CELL("spalte",$P128)),$Q$2),ean_conv(LEFT($J128,12)),""), "<>") -> <> | S128: =IF(CELL("spalte",S128)<CELL("spalte",$P128)+$Q$2, IF(MOD(CELL("zeile",S128)-CELL("zeile",S$4),$Q$2)=MOD(CELL("spalte",S128)-(CELL("spalte",$P128)),$Q$2),ean_conv(LEFT($J128,12)),""), "<>") -> <> | T128: =IF(CELL("spalte",T128)<CELL("spalte",$P128)+$Q$2, IF(MOD(CELL("zeile",T128)-CELL("zeile",T$4),$Q$2)=MOD(CELL("spalte",T128)-(CELL("spalte",$P128)),$Q$2),ean_conv(LEFT($J128,12)),""), "<>") -> <> | U128: =IF(CELL("spalte",U128)<CELL("spalte",$P128)+$Q$2, IF(MOD(CELL("zeile",U128)-CELL("zeile",U$4),$Q$2)=MOD(CELL("spalte",U128)-(CELL("spalte",$P128)),$Q$2),ean_conv(LEFT($J128,12)),""), "<>") -> <> | V128: =IF(CELL("spalte",V128)<CELL("spalte",$P128)+$Q$2, IF(MOD(CELL("zeile",V128)-CELL("zeile",V$4),$Q$2)=MOD(CELL("spalte",V128)-(CELL("spalte",$P128)),$Q$2),ean_conv(LEFT($J128,12)),""), "<>") -> <> | W128: =IF(CELL("spalte",W128)<CELL("spalte",$P128)+$Q$2, IF(MOD(CELL("zeile",W128)-CELL("zeile",W$4),$Q$2)=MOD(CELL("spalte",W128)-(CELL("spalte",$P128)),$Q$2),ean_conv(LEFT($J128,12)),""), "<>") -> <> | X128: =IF(CELL("spalte",X128)<CELL("spalte",$P128)+$Q$2, IF(MOD(CELL("zeile",X128)-CELL("zeile",X$4),$Q$2)=MOD(CELL("spalte",X128)-(CELL("spalte",$P128)),$Q$2),ean_conv(LEFT($J128,12)),""), "<>") -> <> | Y128: =IF(CELL("spalte",Y128)<CELL("spalte",$P128)+$Q$2, IF(MOD(CELL("zeile",Y128)-CELL("zeile",Y$4),$Q$2)=MOD(CELL("spalte",Y128)-(CELL("spalte",$P128)),$Q$2),ean_conv(LEFT($J128,12)),""), "<>") -> <>
A129: 126 | B129: Aria & Die goldene Sanduhr der Zeit | C129: 7 | D129: Romantasy | F129: deu | G129: Groß | H129: Papertoons | I129: X | J129: 9783910530584 | L129: Aria & Die goldene Sanduhr der Zeit •deu• | M129: Aria & Die goldene Sanduhr der Zeit •deu• 7 | O129: Seite 2 | P129: =IF(CELL("spalte",P129)<CELL("spalte",$P129)+$Q$2, IF(MOD(CELL("zeile",P129)-CELL("zeile",P$4),$Q$2)=MOD(CELL("spalte",P129)-(CELL("spalte",$P129)),$Q$2),ean_conv(LEFT($J129,12)),""), "<>") -> <> | Q129: =IF(CELL("spalte",Q129)<CELL("spalte",$P129)+$Q$2, IF(MOD(CELL("zeile",Q129)-CELL("zeile",Q$4),$Q$2)=MOD(CELL("spalte",Q129)-(CELL("spalte",$P129)),$Q$2),ean_conv(LEFT($J129,12)),""), "<>") -> <> | R129: =IF(CELL("spalte",R129)<CELL("spalte",$P129)+$Q$2, IF(MOD(CELL("zeile",R129)-CELL("zeile",R$4),$Q$2)=MOD(CELL("spalte",R129)-(CELL("spalte",$P129)),$Q$2),ean_conv(LEFT($J129,12)),""), "<>") -> <> | S129: =IF(CELL("spalte",S129)<CELL("spalte",$P129)+$Q$2, IF(MOD(CELL("zeile",S129)-CELL("zeile",S$4),$Q$2)=MOD(CELL("spalte",S129)-(CELL("spalte",$P129)),$Q$2),ean_conv(LEFT($J129,12)),""), "<>") -> <> | T129: =IF(CELL("spalte",T129)<CELL("spalte",$P129)+$Q$2, IF(MOD(CELL("zeile",T129)-CELL("zeile",T$4),$Q$2)=MOD(CELL("spalte",T129)-(CELL("spalte",$P129)),$Q$2),ean_conv(LEFT($J129,12)),""), "<>") -> <> | U129: =IF(CELL("spalte",U129)<CELL("spalte",$P129)+$Q$2, IF(MOD(CELL("zeile",U129)-CELL("zeile",U$4),$Q$2)=MOD(CELL("spalte",U129)-(CELL("spalte",$P129)),$Q$2),ean_conv(LEFT($J129,12)),""), "<>") -> <> | V129: =IF(CELL("spalte",V129)<CELL("spalte",$P129)+$Q$2, IF(MOD(CELL("zeile",V129)-CELL("zeile",V$4),$Q$2)=MOD(CELL("spalte",V129)-(CELL("spalte",$P129)),$Q$2),ean_conv(LEFT($J129,12)),""), "<>") -> <> | W129: =IF(CELL("spalte",W129)<CELL("spalte",$P129)+$Q$2, IF(MOD(CELL("zeile",W129)-CELL("zeile",W$4),$Q$2)=MOD(CELL("spalte",W129)-(CELL("spalte",$P129)),$Q$2),ean_conv(LEFT($J129,12)),""), "<>") -> <> | X129: =IF(CELL("spalte",X129)<CELL("spalte",$P129)+$Q$2, IF(MOD(CELL("zeile",X129)-CELL("zeile",X$4),$Q$2)=MOD(CELL("spalte",X129)-(CELL("spalte",$P129)),$Q$2),ean_conv(LEFT($J129,12)),""), "<>") -> <> | Y129: =IF(CELL("spalte",Y129)<CELL("spalte",$P129)+$Q$2, IF(MOD(CELL("zeile",Y129)-CELL("zeile",Y$4),$Q$2)=MOD(CELL("spalte",Y129)-(CELL("spalte",$P129)),$Q$2),ean_conv(LEFT($J129,12)),""), "<>") -> <>
A130: 127 | B130: Aria & Die goldene Sanduhr der Zeit | C130: 8 | D130: Romantasy | F130: deu | G130: Groß | H130: Papertoons | I130: X | J130: 9783910530591 | L130: Aria & Die goldene Sanduhr der Zeit •deu• | M130: Aria & Die goldene Sanduhr der Zeit •deu• 8 | O130: Seite 2 | P130: =IF(CELL("spalte",P130)<CELL("spalte",$P130)+$Q$2, IF(MOD(CELL("zeile",P130)-CELL("zeile",P$4),$Q$2)=MOD(CELL("spalte",P130)-(CELL("spalte",$P130)),$Q$2),ean_conv(LEFT($J130,12)),""), "<>") -> <> | Q130: =IF(CELL("spalte",Q130)<CELL("spalte",$P130)+$Q$2, IF(MOD(CELL("zeile",Q130)-CELL("zeile",Q$4),$Q$2)=MOD(CELL("spalte",Q130)-(CELL("spalte",$P130)),$Q$2),ean_conv(LEFT($J130,12)),""), "<>") -> <> | R130: =IF(CELL("spalte",R130)<CELL("spalte",$P130)+$Q$2, IF(MOD(CELL("zeile",R130)-CELL("zeile",R$4),$Q$2)=MOD(CELL("spalte",R130)-(CELL("spalte",$P130)),$Q$2),ean_conv(LEFT($J130,12)),""), "<>") -> <> | S130: =IF(CELL("spalte",S130)<CELL("spalte",$P130)+$Q$2, IF(MOD(CELL("zeile",S130)-CELL("zeile",S$4),$Q$2)=MOD(CELL("spalte",S130)-(CELL("spalte",$P130)),$Q$2),ean_conv(LEFT($J130,12)),""), "<>") -> <> | T130: =IF(CELL("spalte",T130)<CELL("spalte",$P130)+$Q$2, IF(MOD(CELL("zeile",T130)-CELL("zeile",T$4),$Q$2)=MOD(CELL("spalte",T130)-(CELL("spalte",$P130)),$Q$2),ean_conv(LEFT($J130,12)),""), "<>") -> <> | U130: =IF(CELL("spalte",U130)<CELL("spalte",$P130)+$Q$2, IF(MOD(CELL("zeile",U130)-CELL("zeile",U$4),$Q$2)=MOD(CELL("spalte",U130)-(CELL("spalte",$P130)),$Q$2),ean_conv(LEFT($J130,12)),""), "<>") -> <> | V130: =IF(CELL("spalte",V130)<CELL("spalte",$P130)+$Q$2, IF(MOD(CELL("zeile",V130)-CELL("zeile",V$4),$Q$2)=MOD(CELL("spalte",V130)-(CELL("spalte",$P130)),$Q$2),ean_conv(LEFT($J130,12)),""), "<>") -> <> | W130: =IF(CELL("spalte",W130)<CELL("spalte",$P130)+$Q$2, IF(MOD(CELL("zeile",W130)-CELL("zeile",W$4),$Q$2)=MOD(CELL("spalte",W130)-(CELL("spalte",$P130)),$Q$2),ean_conv(LEFT($J130,12)),""), "<>") -> <> | X130: =IF(CELL("spalte",X130)<CELL("spalte",$P130)+$Q$2, IF(MOD(CELL("zeile",X130)-CELL("zeile",X$4),$Q$2)=MOD(CELL("spalte",X130)-(CELL("spalte",$P130)),$Q$2),ean_conv(LEFT($J130,12)),""), "<>") -> <> | Y130: =IF(CELL("spalte",Y130)<CELL("spalte",$P130)+$Q$2, IF(MOD(CELL("zeile",Y130)-CELL("zeile",Y$4),$Q$2)=MOD(CELL("spalte",Y130)-(CELL("spalte",$P130)),$Q$2),ean_conv(LEFT($J130,12)),""), "<>") -> <>
A131: 128 | B131: Arifureta - Der Kampf zurück in meine Welt | C131: 1 | D131: Fantasy | F131: deu | G131: Standard | H131: Altraverse | I131: X | J131: 9783963584206 | L131: Arifureta - Der Kampf zurück in meine Welt •deu• | M131: Arifureta - Der Kampf zurück in meine Welt •deu• 01 | O131: Seite 2 | P131: =IF(CELL("spalte",P131)<CELL("spalte",$P131)+$Q$2, IF(MOD(CELL("zeile",P131)-CELL("zeile",P$4),$Q$2)=MOD(CELL("spalte",P131)-(CELL("spalte",$P131)),$Q$2),ean_conv(LEFT($J131,12)),""), "<>") -> <> | Q131: =IF(CELL("spalte",Q131)<CELL("spalte",$P131)+$Q$2, IF(MOD(CELL("zeile",Q131)-CELL("zeile",Q$4),$Q$2)=MOD(CELL("spalte",Q131)-(CELL("spalte",$P131)),$Q$2),ean_conv(LEFT($J131,12)),""), "<>") -> <> | R131: =IF(CELL("spalte",R131)<CELL("spalte",$P131)+$Q$2, IF(MOD(CELL("zeile",R131)-CELL("zeile",R$4),$Q$2)=MOD(CELL("spalte",R131)-(CELL("spalte",$P131)),$Q$2),ean_conv(LEFT($J131,12)),""), "<>") -> <> | S131: =IF(CELL("spalte",S131)<CELL("spalte",$P131)+$Q$2, IF(MOD(CELL("zeile",S131)-CELL("zeile",S$4),$Q$2)=MOD(CELL("spalte",S131)-(CELL("spalte",$P131)),$Q$2),ean_conv(LEFT($J131,12)),""), "<>") -> <> | T131: =IF(CELL("spalte",T131)<CELL("spalte",$P131)+$Q$2, IF(MOD(CELL("zeile",T131)-CELL("zeile",T$4),$Q$2)=MOD(CELL("spalte",T131)-(CELL("spalte",$P131)),$Q$2),ean_conv(LEFT($J131,12)),""), "<>") -> <> | U131: =IF(CELL("spalte",U131)<CELL("spalte",$P131)+$Q$2, IF(MOD(CELL("zeile",U131)-CELL("zeile",U$4),$Q$2)=MOD(CELL("spalte",U131)-(CELL("spalte",$P131)),$Q$2),ean_conv(LEFT($J131,12)),""), "<>") -> <> | V131: =IF(CELL("spalte",V131)<CELL("spalte",$P131)+$Q$2, IF(MOD(CELL("zeile",V131)-CELL("zeile",V$4),$Q$2)=MOD(CELL("spalte",V131)-(CELL("spalte",$P131)),$Q$2),ean_conv(LEFT($J131,12)),""), "<>") -> <> | W131: =IF(CELL("spalte",W131)<CELL("spalte",$P131)+$Q$2, IF(MOD(CELL("zeile",W131)-CELL("zeile",W$4),$Q$2)=MOD(CELL("spalte",W131)-(CELL("spalte",$P131)),$Q$2),ean_conv(LEFT($J131,12)),""), "<>") -> <> | X131: =IF(CELL("spalte",X131)<CELL("spalte",$P131)+$Q$2, IF(MOD(CELL("zeile",X131)-CELL("zeile",X$4),$Q$2)=MOD(CELL("spalte",X131)-(CELL("spalte",$P131)),$Q$2),ean_conv(LEFT($J131,12)),""), "<>") -> <> | Y131: =IF(CELL("spalte",Y131)<CELL("spalte",$P131)+$Q$2, IF(MOD(CELL("zeile",Y131)-CELL("zeile",Y$4),$Q$2)=MOD(CELL("spalte",Y131)-(CELL("spalte",$P131)),$Q$2),ean_conv(LEFT($J131,12)),""), "<>") -> <>
A132: =A131+1 -> 129 | B132: Arifureta - Der Kampf zurück in meine Welt | C132: 2 | D132: Fantasy | F132: deu | G132: Standard | H132: Altraverse | I132: X | J132: 9783963584213 | L132: =IF(B132<>"",B132&Trenner&Einschluss&F132&Einschluss,"") -> Arifureta - Der Kampf zurück in meine Welt •deu• | M132: =IF(C132<>"", IF(ISNUMBER(C132), IF(COUNTIF(Sort_Titel,L132)>99,L132&Trenner&TEXT(C132,"000"), IF(COUNTIF(Sort_Titel,L132)>9,L132&Trenner&TEXT(C132,"00"),L132&Trenner&TEXT(C132,"0")) ),L132&Trenner&C132 ),IF(L132<>"",L132,Titel_Leer) ) -> Arifureta - Der Kampf zurück in meine Welt •deu• 02 | O132: ="Seite "&TEXT(ROUND(((A132-1)/$O$3)+0.5,0),"0") -> Seite 2 | P132: =IF(CELL("spalte",P132)<CELL("spalte",$P132)+$Q$2, IF(MOD(CELL("zeile",P132)-CELL("zeile",P$4),$Q$2)=MOD(CELL("spalte",P132)-(CELL("spalte",$P132)),$Q$2),ean_conv(LEFT($J132,12)),""), "<>") -> <> | Q132: =IF(CELL("spalte",Q132)<CELL("spalte",$P132)+$Q$2, IF(MOD(CELL("zeile",Q132)-CELL("zeile",Q$4),$Q$2)=MOD(CELL("spalte",Q132)-(CELL("spalte",$P132)),$Q$2),ean_conv(LEFT($J132,12)),""), "<>") -> <> | R132: =IF(CELL("spalte",R132)<CELL("spalte",$P132)+$Q$2, IF(MOD(CELL("zeile",R132)-CELL("zeile",R$4),$Q$2)=MOD(CELL("spalte",R132)-(CELL("spalte",$P132)),$Q$2),ean_conv(LEFT($J132,12)),""), "<>") -> <> | S132: =IF(CELL("spalte",S132)<CELL("spalte",$P132)+$Q$2, IF(MOD(CELL("zeile",S132)-CELL("zeile",S$4),$Q$2)=MOD(CELL("spalte",S132)-(CELL("spalte",$P132)),$Q$2),ean_conv(LEFT($J132,12)),""), "<>") -> <> | T132: =IF(CELL("spalte",T132)<CELL("spalte",$P132)+$Q$2, IF(MOD(CELL("zeile",T132)-CELL("zeile",T$4),$Q$2)=MOD(CELL("spalte",T132)-(CELL("spalte",$P132)),$Q$2),ean_conv(LEFT($J132,12)),""), "<>") -> <> | U132: =IF(CELL("spalte",U132)<CELL("spalte",$P132)+$Q$2, IF(MOD(CELL("zeile",U132)-CELL("zeile",U$4),$Q$2)=MOD(CELL("spalte",U132)-(CELL("spalte",$P132)),$Q$2),ean_conv(LEFT($J132,12)),""), "<>") -> <> | V132: =IF(CELL("spalte",V132)<CELL("spalte",$P132)+$Q$2, IF(MOD(CELL("zeile",V132)-CELL("zeile",V$4),$Q$2)=MOD(CELL("spalte",V132)-(CELL("spalte",$P132)),$Q$2),ean_conv(LEFT($J132,12)),""), "<>") -> <> | W132: =IF(CELL("spalte",W132)<CELL("spalte",$P132)+$Q$2, IF(MOD(CELL("zeile",W132)-CELL("zeile",W$4),$Q$2)=MOD(CELL("spalte",W132)-(CELL("spalte",$P132)),$Q$2),ean_conv(LEFT($J132,12)),""), "<>") -> <> | X132: =IF(CELL("spalte",X132)<CELL("spalte",$P132)+$Q$2, IF(MOD(CELL("zeile",X132)-CELL("zeile",X$4),$Q$2)=MOD(CELL("spalte",X132)-(CELL("spalte",$P132)),$Q$2),ean_conv(LEFT($J132,12)),""), "<>") -> <> | Y132: =IF(CELL("spalte",Y132)<CELL("spalte",$P132)+$Q$2, IF(MOD(CELL("zeile",Y132)-CELL("zeile",Y$4),$Q$2)=MOD(CELL("spalte",Y132)-(CELL("spalte",$P132)),$Q$2),ean_conv(LEFT($J132,12)),""), "<>") -> <>
